Workbook

Sheet Past

Sheet Past & On-going
A1: Date | B1: 2014-04-16 | C1: 2014-05-16 | D1: 2014-05-30 | E1: 2014-06-27 | F1: 2014-07-08 | G1: 2014-07-18 | H1: 2014-08-01 | I1: 2014-09-10 | J1: 2014-09-25 | K1: 2014-10-01 | L1: 2014-10-20 | M1: 2014-10-31 | N1: 2014-11-12 | O1: 2014-11-20 | P1: 2014-12-23 | Q1: 2015-01-23 | R1: 2016-02-20 | S1: 2015-02-20 | T1: 2015-03-06 | U1: 2015-03-11 | V1: 2015-03-13 | W1: 2015-03-23 | X1: 2015-03-26 | Y1: 2015-03-30 | Z1: 2015-04-20 | AA1: 2015-04-20 | AB1: 2015-05-20 | AC1: 2015-06-18 | AD1: 2015-06-19 | AE1: 2015-06-19 | AF1: 2015-06-22 | AG1: 2015-06-22 | AH1: 2015-07-21 | AI1: 2015-07-28 | AJ1: 2015-07-30 | AK1: 2015-08-03 | AL1: 2015-08-13 | AM1: 2015-08-18 | AN1: 2015-08-20 | AO1: 2015-08-24 | AP1: 2015-09-04 | AQ1: 2015-09-18 | AR1: 2015-09-21 | AS1: 2015-10-30 | AT1: 2015-11-04 | AU1: 2015-11-23 | AV1: 2015-11-30 | AW1: 2015-12-01 | AX1: 2015-12-10 | AY1: 2015-12-18 | AZ1: 2015-12-18 | BA1: 2015-12-21 | BB1: 2015-12-21 | BC1: 2015-12-22 | BD1: 2016-01-07 | BE1: 2016-01-20 | BF1: 2016-01-20 | BG1: 2016-01-27 | BH1: 2016-01-28 | BI1: 2016-02-12 | BJ1: 2016-02-16 | BK1: 2016-02-18 | BL1: 2016-02-22 | BM1: 2016-02-25 | BN1: 2016-03-01 | BO1: 2016-03-23 | BP1: 2016-03-23 | BQ1: 2016-03-29 | BR1: 2016-04-05 | BS1: 2016-04-06 | BT1: 2016-04-08 | BU1: 2016-04-08 | BV1: 2016-04-19 | BW1: 2016-04-20 | BX1: 2016-04-20 | BY1: 2016-04-21 | BZ1: 2016-04-21 | CA1: 2016-05-17 | CB1: 2016-05-20 | CC1: 2016-06-01 | CD1: 2016-06-07 | CE1: 2016-06-07 | CF1: 2016-06-10 | CG1: 2016-06-20 | CH1: 2016-06-21 | CI1: 2016-06-21 | CJ1: 2016-06-22 | CK1: 2016-07-12 | CL1: 2016-07-20 | CM1: 2016-07-20 | CN1: 2016-07-20 | CO1: 2016-07-22 | CP1: 2016-07-22 | CQ1: 2016-07-22 | CR1: 2016-07-22 | CS1: 2016-07-22 | CT1: 2016-08-01 | CU1: 2016-08-01 | CV1: 2016-08-02 | CW1: 2016-08-05 | CX1: 2016-08-16 | CY1: 2016-08-22 | CZ1: 2016-09-20 | DA1: 2016-09-20 | DB1: 2016-09-20 | DC1: 2016-09-29 | DD1: 2016-10-04 | DE1: 2016-10-13 | DF1: 2016-10-14 | DG1: 2016-10-18 | DH1: 2016-10-20 | DI1: 2016-10-20 | DJ1: 2016-10-21 | DK1: 2016-10-27 | DL1: 2016-11-15 | DM1: 2016-11-18 | DN1: 2016-11-21 | DO1: 2016-11-28 | DP1: 2016-12-12 | DQ1: 2016-12-14 | DR1: 2016-12-16 | DS1: 2016-12-20 | DT1: 2016-12-22 | DU1: 2016-12-28 | DV1: 2017-01-04 | DW1: 2017-01-05 | DX1: 2017-01-16 | DY1: 2017-01-18 | DZ1: 2017-01-20 | EA1: 2017-01-25 | EB1: 2017-02-01 | EC1: 2017-02-01 | ED1: 2017-02-03 | EE1: 2017-02-03 | EF1: 2017-02-13 | EG1: 2017-02-16 | EH1: 2017-02-16 | EI1: 2017-02-20 | EJ1: 2017-02-20 | EK1: 2017-02-22 | EL1: 2017-02-24 | EM1: 2017-03-13
A2: Client | B2: SAN | C2: 8966.7434 | D2: UofAuck | E2: GIV | F2: MBIE | G2: KiwiNet | H2: GIV | I2: SAN | J2: MON | K2: MBIE | L2: KiwiNet | M2: GIV | N2: SAN | O2: FG | P2: FG | Q2: FG | R2: FG | S2: KiwiNet | T2: GIV | U2: SAN | V2: Fed Fmrs | W2: KiwiNet | X2: FG | Y2: NZP | Z2: FG | AA2: KiwiNet | AB2: FG | AC2: MBIE | AD2: MBIE | AE2: PFR | AF2: FG | AG2: KiwiNet | AH2: FG | AI2: NZBIO | AJ2: GSK | AK2: Anatara | AL2: MBIE | AM2: UofOtago | AN2: KiwiNet | AO2: FG | AP2: Anatara | AQ2: KiwiNet | AR2: FG | AS2: FG | AT2: Anatara | AU2: KiwiNet | AV2: FG | AW2: Pfizer (Jul-Sep + DorsaVi) | AX2: Anatara | AY2: PFR | AZ2: MBIE (Manju) | BA2: FG | BB2: KiwiNet | BC2: Pfizer (Oct) | BD2: Roche | BE2: KiwiNet | BF2: Anatara | BG2: FG | BH2: UofOtago | BI2: HVN | BJ2: Anatara | BK2: KiwiNet | BL2: FG | BM2: Pfizer (Nov) | BN2: Pfizer (Dec) | BO2: Anatara | BP2: FG | BQ2: Pfizer | BR2: Pfizer (Jan + 6 months error catch-up) | BS2: GSK | BT2: Anatara | BU2: HVN | BV2: Pfizer | BW2: FG | BX2: PFR MBIE advice | BY2: NZFOA | BZ2: NZFOA rebate | CA2: Pfizer | CB2: FG | CC2: MBIE Assessor | CD2: Taskforce Nutriton | CE2: Taskforce Nutrition | CF2: HVN Board | CG2: FG | CH2: Pfizer | CI2: NZFOA | CJ2: NZFOA rebate | CK2: Taskforce Nutrition | CL2: FG | CM2: PFR MBIE advice | CN2: PFR facilitn | CO2: KiwiNet | CP2: KiwiNet | CQ2: KiwiNet | CR2: KiwiNet | CS2: KiwiNet | CT2: NZVCA | CU2: NZVCA | CV2: Pfizer | CW2: Bayer | CX2: KiwiNet | CY2: FG | CZ2: FG | DA2: KiwiNet | DB2: Callaghan Innovation | DC2: Endeavour Fund | DD2: Zoetis | DE2: Anatara | DF2: Bayer CH | DG2: Pfizer | DH2: KiwiNet | DI2: FG | DJ2: Zoetis | DK2: Taskforce Nutrition | DL2: Pfizer | DM2: FG | DN2: KiwiNet | DO2: Bayer CH | DP2: P&G | DQ2: KiwiNet | DR2: Bayer CH | DS2: FG | DT2: Taskforce, S'pore | DU2: Pfizer | DV2: Zoetis | DW2: MLA-DC | DX2: Bayer CH | DY2: Pfizer | DZ2: FG | EA2: KiwiNet | EB2: Merck Group | EC2: Taskforce, S'pore | ED2: HVN Board | EE2: HVN Board | EF2: KiwiNet | EG2: MBIE CRI SSIF | EH2: Bayer CH | EI2: Spring Sheep | EJ2: HVN Board | EK2: Pfizer | EL2: Douglas KOL | EM2: EA Pharma | EN2: KiwiNet | EO2: KiwiNet | EP2: Bayer CH | EQ2: Bayer CH | ER2: Bayer CH | ES2: Bayer CH | ET2: Pfizer | EU2: Pfizer | EV2: Pfizer | EW2: Pfizer | EX2: HVN Board | EY2: Zoetis | EZ2: Zoetis | FA2: NBTY | FB2: NBTY | FC2: Pfizer pharma | FD2: Pfizer pharma | FE2: Pfizer pharma | FF2: GSK | FG2: Ea Pharma | FH2: Mundipharma | FI2: Spring Sheep | FJ2: Douglas KOL
A3: Gross Amount | B3: 24,093.00 € | C3: 26,900.23 € | D3: 6,583.75 € | E3: 26,512.42 € | F3: 10,363.50 € | G3: 14,479.90 € | H3: 27,337.30 € | I3: 24,685.85 € | J3: 115,318.25 € | K3: 8,547.50 € | L3: 3,601.60 € | M3: 26,624.34 € | N3: 24,602.07 € | O3: 2,108.33 € | P3: 2,108.33 € | Q3: 2,108.33 € | R3: 2,108.33 € | S3: 7,187.50 € | T3: 31,022.64 € | U3: 23,109.36 € | V3: 197.10 € | W3: 11,797.16 € | X3: 2,108.33 € | Y3: 2,300.00 € | Z3: 2,108.33 € | AA3: 2,395.83 € | AB3: 2,108.33 € | AC3: 9,200.00 € | AD3: 3,876.50 € | AE3: 3,881.25 € | AF3: 2,226.83 € | AG3: 7,371.99 € | AH3: 2,108.33 € | AI3: 3,500.00 € | AJ3: 139,567.72 € | AK3: 5,432.22 € | AL3: 9,200.00 € | AM3: 3,450.00 € | AN3: 2,395.83 € | AO3: 2,108.33 € | AP3: 5,259.00 € | AQ3: 2,395.83 € | AR3: 2,108.33 € | AS3: 2,108.33 € | AT3: 5,239.31 € | AU3: 4,791.66 € | AV3: 2,108.33 € | AW3: 13,220.08 € | AX3: 5,231.39 € | AY3: 4,600.00 € | AZ3: 13,800.00 € | BA3: 2,108.33 € | BB3: 2,395.83 € | BC3: 3,133.12 € | BD3: 95,663.10 € | BE3: 2,395.83 € | BF3: 5,281.17 € | BG3: 2,108.33 € | BH3: 2,530.00 € | BI3: 2,875.00 € | BJ3: 5,249.82 € | BK3: 2,395.83 € | BL3: 2,108.33 € | BM3: 3,197.40 € | BN3: 3,221.64 € | BO3: 5,517.73 € | BP3: 2,108.33 € | BQ3: 3,159.17 € | BR3: 10,361.17 € | BS3: 150,854.38 € | BT3: 5,410.96 € | BU3: 2,875.00 € | BV3: 4,057.00 € | BW3: 2,108.33 € | BX3: 11,500.00 € | BY3: 27,887.50 € | BZ3: -16,698.00 € | CA3: 4,173.16 € | CB3: 2,108.33 € | CC3: 4,674.75 € | CD3: 10,695.00 € | CE3: 21,390.00 € | CF3: 2,875.00 € | CG3: 2,108.33 € | CH3: 3,977.04 € | CI3: 28,458.50 € | CJ3: -17,067.15 € | CK3: 21,390.00 € | CL3: 2,108.33 € | CM3: 5,290.00 € | CN3: 4,025.00 € | CO3: 2,395.83 € | CP3: 2,395.83 € | CQ3: 2,395.83 € | CR3: 2,395.83 € | CS3: 2,395.83 € | CT3: 5,612.22 € | CU3: 25,276.04 € | CV3: 3,927.76 € | CW3: 3,916.65 € | CX3: 2,395.83 € | CY3: 2,108.33 € | CZ3: 2,108.33 € | DA3: 2,395.83 € | DB3: 690.00 € | DC3: 12,105.46 € | DD3: 11,659.72 € | DE3: 20,777.04 € | DF3: 15,792.87 € | DG3: 7,608.07 € | DH3: 2,395.83 € | DI3: 2,108.33 € | DJ3: 11,831.41 € | DK3: 6,095.00 € | DL3: 7,655.14 € | DM3: 2,108.33 € | DN3: 2,395.83 € | DO3: 3,800.11 € | DP3: 10,236.10 € | DQ3: 2,395.83 € | DR3: 3,730.86 € | DS3: 2,108.33 € | DT3: 12,477.50 € | DU3: 7,895.00 € | DV3: 12,311.44 € | DW3: 46,081.56 € | DX3: 3,771.78 € | DY3: 7,574.98 € | DZ3: 2,108.33 € | EA3: 2,395.83 € | EB3: 21,197.12 € | EC3: 12,477.50 € | ED3: 2,875.00 € | EE3: 2,875.00 € | EF3: 2,395.83 € | EG3: 2,300.00 € | EH3: 3,706.73 € | EI3: 5,290.00 € | EJ3: 2,875.00 € | EK3: 7,615.36 € | EL3: 5,031.25 € | EM3: 9,229.63 € | EN3: 2,395.83 € | EO3: 2,395.83 € | EP3: 3,800.00 € | EQ3: 3,800.00 € | ER3: 3,800.00 € | ES3: 3,800.00 € | ET3: 7,700.00 € | EU3: 7,700.00 € | EV3: 7,700.00 € | EW3: 7,700.00 € | EX3: 2,875.00 € | EY3: 12,000.00 € | EZ3: 12,000.00 € | FA3: 12,000.00 € | FB3: 12,000.00 € | FC3: 33,500.00 € | FD3: 16,750.00 € | FE3: 16,750.00 € | FF3: 150,000.00 € | FG3: 4,400.00 € | FH3: 8,500.00 € | FI3: 5,290.00 € | FJ3: 5,031.25 €
A4: GST | B4: N | C4: N | D4: Y | E4: N | F4: Y | G4: Y | H4: N | I4: N | J4: N | K4: Y | L4: Y | M4: N | N4: N | O4: Y | P4: Y | Q4: Y | R4: Y | S4: Y | T4: N | U4: N | V4: Y | W4: Y | X4: Y | Y4: Y | Z4: Y | AA4: Y | AB4: Y | AC4: Y | AD4: Y | AE4: Y | AF4: Y | AG4: Y | AH4: Y | AI4: N | AJ4: N | AK4: N | AL4: Y | AM4: Y | AN4: Y | AO4: Y | AP4: N | AQ4: Y | AR4: Y | AS4: Y | AT4: N | AU4: Y | AV4: Y | AW4: N | AX4: N | AY4: Y | AZ4: Y | BA4: Y | BB4: Y | BC4: N | BD4: N | BE4: Y | BF4: N | BG4: Y | BH4: Y | BI4: Y | BJ4: N | BK4: Y | BL4: Y | BM4: N | BN4: N | BO4: N | BP4: Y | BQ4: N | BR4: N | BS4: N | BT4: N | BU4: Y | BV4: N | BW4: Y | BX4: Y | BY4: Y | BZ4: Y | CA4: N | CB4: Y | CC4: Y | CD4: Y | CE4: Y | CF4: Y | CG4: Y | CH4: N | CI4: Y | CJ4: Y | CK4: Y | CL4: Y | CM4: Y | CN4: Y | CO4: Y | CP4: Y | CQ4: Y | CR4: Y | CS4: Y | CT4: N | CU4: N | CV4: N | CW4: N | CX4: Y | CY4: Y | CZ4: Y | DA4: Y | DB4: Y | DC4: Y | DD4: N | DE4: N | DF4: N | DG4: N | DH4: Y | DI4: Y | DJ4: N | DK4: Y | DL4: N | DM4: Y | DN4: Y | DO4: N | DP4: N | DQ4: Y | DR4: N | DS4: Y | DT4: Y | DU4: N | DV4: N | DW4: N | DX4: N | DY4: N | DZ4: Y | EA4: Y | EB4: N | EC4: Y | ED4: Y | EE4: Y | EF4: Y | EG4: Y | EH4: N | EI4: Y | EJ4: Y | EK4: N | EL4: Y | EM4: N | EN4: Y | EO4: Y | EP4: N | EQ4: N | ER4: N | ES4: N | ET4: N | EU4: N | EV4: N | EW4: N | EX4: Y | EY4: N | EZ4: N | FA4: N | FB4: N | FC4: N | FD4: N | FE4: N | FF4: N | FG4: N | FH4: N | FI4: Y | FJ4: Y
A5: Amount excl. GST | B5: =IF(B4="Y", B3/1.15,B3) -> 24,093.00 € | C5: =IF(C4="Y", C3/1.15,C3) -> 26,900.23 € | D5: 5,725.00 € | E5: 26,512.42 € | F5: 9,011.74 € | G5: 12,591.22 € | H5: 27,337.30 € | I5: 24,685.85 € | J5: 115,318.25 € | K5: 7,432.61 € | L5: 3,131.83 € | M5: 26,624.34 € | N5: 24,602.07 € | O5: 1,833.33 € | P5: 1,833.33 € | Q5: 1,833.33 € | R5: 1,833.33 € | S5: 6,250.00 € | T5: 31,022.64 € | U5: 23,109.36 € | V5: 171.39 € | W5: 10,258.40 € | X5: 1,833.33 € | Y5: 2,000.00 € | Z5: 1,833.33 € | AA5: 2,083.33 € | AB5: 1,833.33 € | AC5: 8,000.00 € | AD5: 3,370.87 € | AE5: 3,375.00 € | AF5: 1,936.37 € | AG5: 6,410.43 € | AH5: 1,833.33 € | AI5: 3,500.00 € | AJ5: 139,567.72 € | AK5: 5,432.22 € | AL5: 8,000.00 € | AM5: 3,000.00 € | AN5: 2,083.33 € | AO5: 1,833.33 € | AP5: 5,259.00 € | AQ5: 2,083.33 € | AR5: 1,833.33 € | AS5: 1,833.33 € | AT5: 5,239.31 € | AU5: 4,166.66 € | AV5: 1,833.33 € | AW5: 13,220.08 € | AX5: 5,231.39 € | AY5: 4,000.00 € | AZ5: 12,000.00 € | BA5: 1,833.33 € | BB5: 2,083.33 € | BC5: 3,133.12 € | BD5: 95,663.10 € | BE5: 2,083.33 € | BF5: 5,281.17 € | BG5: 1,833.33 € | BH5: 2,200.00 € | BI5: 2,500.00 € | BJ5: 5,249.82 € | BK5: 2,083.33 € | BL5: 1,833.33 € | BM5: 3,197.40 € | BN5: =IF(BN4="Y", BN3/1.15,BN3) -> 3,221.64 € | BO5: 5,517.73 € | BP5: 1,833.33 € | BQ5: 3,159.17 € | BR5: 10,361.17 € | BS5: 150,854.38 € | BT5: 5,410.96 € | BU5: 2,500.00 € | BV5: 4,057.00 € | BW5: 1,833.33 € | BX5: 10,000.00 € | BY5: 24,250.00 € | BZ5: -14,520.00 € | CA5: 4,173.16 € | CB5: 1,833.33 € | CC5: 4,065.00 € | CD5: 9,300.00 € | CE5: 18,600.00 € | CF5: 2,500.00 € | CG5: 1,833.33 € | CH5: 3,977.04 € | CI5: 24,746.52 € | CJ5: -14,841.00 € | CK5: =IF(CK4="Y", CK3/1.15,CK3) -> 18,600.00 € | CL5: =IF(CL4="Y", CL3/1.15,CL3) -> 1,833.33 € | CM5: =IF(CM4="Y", CM3/1.15,CM3) -> 4,600.00 € | CN5: =IF(CN4="Y", CN3/1.15,CN3) -> 3,500.00 € | CO5: 2,083.33 € | CP5: 2,083.33 € | CQ5: 2,083.33 € | CR5: 2,083.33 € | CS5: 2,083.33 € | CT5: 5,612.22 € | CU5: 25,276.04 € | CV5: 3,927.76 € | CW5: 3,916.65 € | CX5: 2,083.33 € | CY5: 1,833.33 € | CZ5: 1,833.33 € | DA5: 2,083.33 € | DB5: 600.00 € | DC5: 10,526.49 € | DD5: 11,659.72 € | DE5: 20,777.04 € | DF5: 15,792.87 € | DG5: 7,608.07 € | DH5: 2,083.33 € | DI5: 1,833.33 € | DJ5: 11,831.41 € | DK5: 5,300.00 € | DL5: 7,655.14 € | DM5: =IF(DM4="Y", DM3/1.15,DM3) -> 1,833.33 € | DN5: 2,083.33 € | DO5: 3,800.11 € | DP5: 10,236.10 € | DQ5: 2,083.33 € | DR5: 3,730.86 € | DS5: =IF(DS4="Y", DS3/1.15,DS3) -> 1,833.33 € | DT5: =IF(DT4="Y", DT3/1.15,DT3) -> 10,850.00 € | DU5: 7,895.00 € | DV5: 12,311.44 € | DW5: 46,081.56 € | DX5: 3,771.78 € | DY5: 7,574.98 € | DZ5: 1,833.33 € | EA5: 2,083.33 € | EB5: 21,197.12 € | EC5: 10,850.00 € | ED5: 2,500.00 € | EE5: 2,500.00 € | EF5: 2,083.33 € | EG5: 2,000.00 € | EH5: 3,706.73 € | EI5: 4,600.00 € | EJ5: 2,500.00 € | EK5: 7,615.36 € | EL5: 4,375.00 € | EM5: =IF(EM4="Y", EM3/1.15,EM3) -> 9,229.63 € | EN5: =IF(EN4="Y", EN3/1.15,EN3) -> 2,083.33 € | EO5: 2,083.33 € | EP5: 3,800.00 € | EQ5: 3,800.00 € | ER5: =IF(ER4="Y", ER3/1.15,ER3) -> 3,800.00 € | ES5: =IF(ES4="Y", ES3/1.15,ES3) -> 3,800.00 € | ET5: 7,700.00 € | EU5: 7,700.00 € | EV5: 7,700.00 € | EW5: 7,700.00 € | EX5: 2,500.00 € | EY5: =IF(EY4="Y", EY3/1.15,EY3) -> 12,000.00 € | EZ5: =IF(EZ4="Y", EZ3/1.15,EZ3) -> 12,000.00 € | FA5: 12,000.00 € | FB5: 12,000.00 € | FC5: 33,500.00 € | FD5: 16,750.00 € | FE5: 16,750.00 € | FF5: 150,000.00 € | FG5: 4,400.00 € | FH5: 8,500.00 € | FI5: 4,600.00 € | FJ5: 4,375.00 €
A6: Begins | B6: 2014-04-01 | C6: 2014-01-01 | D6: 2014-01-01 | E6: 2014-04-01 | F6: 2014-01-01 | G6: 2014-01-01 | H6: 2014-07-01 | I6: 2014-07-01 | J6: 2014-06-01 | K6: 2014-06-01 | L6: 2014-08-25 | M6: 2014-10-01 | N6: 2014-10-01 | O6: 2014-10-01 | P6: 2014-11-01 | Q6: 2014-12-01 | R6: 2015-01-01 | S6: 2014-07-01 | T6: 2015-01-01 | U6: 2015-01-01 | V6: 2014-09-24 | W6: 2014-10-01 | X6: 2015-02-01 | Y6: 2015-01-01 | Z6: 2015-03-01 | AA6: 2015-03-01 | AB6: 2015-04-01 | AC6: 2015-03-01 | AD6: 2015-05-01 | AE6: 2015-06-01 | AF6: 2015-05-01 | AG6: 2015-04-01 | AH6: 2015-06-01 | AI6: 2015-06-01 | AJ6: 2014-12-19 | AK6: 2015-08-01 | AL6: 2015-06-01 | AM6: 2015-07-01 | AN6: 2015-07-01 | AO6: 2015-07-01 | AP6: 2015-09-01 | AQ6: 2015-08-01 | AR6: 2015-08-01 | AS6: 2015-09-01 | AT6: 2015-10-01 | AU6: 2015-09-01 | AV6: 2015-10-01 | AW6: 2015-07-01 | AX6: 2015-11-01 | AY6: 2015-11-25 | AZ6: 2015-11-01 | BA6: 2015-11-01 | BB6: 2015-11-01 | BC6: 2015-07-01 | BD6: 2015-10-01 | BE6: 2015-12-01 | BF6: 2015-12-01 | BG6: 2015-12-01 | BH6: 2015-12-09 | BI6: 2015-10-01 | BJ6: 2016-01-01 | BK6: 2016-01-01 | BL6: 2016-01-01 | BM6: 2015-07-01 | BN6: 2015-07-01 | BO6: 2016-02-01 | BP6: 2016-02-01 | BQ6: 2016-02-01 | BR6: 2015-07-01 | BS6: 2015-12-19 | BT6: 2016-03-01 | BU6: 2016-01-01 | BV6: 2016-03-01 | BW6: 2016-03-01 | BX6: 2016-02-29 | BY6: 2016-03-29 | BZ6: 2016-03-29 | CA6: 2016-04-01 | CB6: 2016-04-01 | CC6: 2016-03-01 | CD6: 2016-03-24 | CE6: 2016-04-01 | CF6: 2016-04-01 | CG6: 2016-05-01 | CH6: 2016-05-01 | CI6: 2016-04-29 | CJ6: 2016-04-29 | CK6: 2016-05-01 | CL6: 2016-06-01 | CM6: 2016-05-29 | CN6: 2016-02-29 | CO6: 2016-02-01 | CP6: 2016-03-01 | CQ6: 2016-04-01 | CR6: 2016-05-01 | CS6: 2016-06-01 | CT6: 2015-10-02 | CU6: 2015-10-17 | CV6: 2016-06-01 | CW6: 2016-02-25 | CX6: 2016-07-01 | CY6: 2016-07-01 | CZ6: 2016-08-01 | DA6: 2016-08-01 | DB6: 2016-05-19 | DC6: 2016-07-28 | DD6: 2016-04-01 | DE6: 2016-08-16 | DF6: 2016-03-25 | DG6: 2016-07-01 | DH6: 2016-09-01 | DI6: 2016-09-01 | DJ6: 2016-07-01 | DK6: 2016-07-01 | DL6: 2016-08-01 | DM6: 2016-10-01 | DN6: 2016-10-01 | DO6: 2016-07-25 | DP6: 2016-08-10 | DQ6: 2016-11-01 | DR6: 2016-08-25 | DS6: 2016-11-01 | DT6: 2016-11-11 | DU6: 2016-09-01 | DV6: 2016-10-01 | DW6: 2016-08-16 | DX6: 2016-09-25 | DY6: 2016-10-01 | DZ6: 2016-12-01 | EA6: 2016-12-01 | EB6: 2016-12-01 | EC6: 2016-11-11 | ED6: 2016-07-01 | EE6: 2016-10-01 | EF6: 2017-01-01 | EG6: 2017-01-01 | EH6: 2016-10-25 | EI6: 2017-01-25 | EJ6: 2017-01-01 | EK6: 2016-11-01 | EL6: 2017-01-26 | EM6: 2017-01-21 | EN6: 2017-02-01 | EO6: 2017-03-01 | EP6: 2016-11-25 | EQ6: 2017-01-25 | ER6: 2016-12-25 | ES6: 2017-02-25 | ET6: 2016-12-01 | EU6: 2017-03-01 | EV6: 2017-01-01 | EW6: 2017-02-01 | EX6: 2017-04-01 | EY6: 2017-01-01 | EZ6: 2017-04-01 | FA6: 2016-12-12 | FB6: 2017-02-16 | FC6: 2016-11-15 | FD6: 2017-01-01 | FE6: 2017-03-01 | FF6: 2016-12-19 | FG6: 2017-03-01 | FH6: 2017-03-15 | FI6: 2017-01-25 | FJ6: 2017-01-26
A7: Ends | B7: 2014-06-30 | C7: 2014-03-31 | D7: 2014-02-28 | E7: 2014-06-30 | F7: 2014-03-31 | G7: 2014-06-30 | H7: 2014-09-30 | I7: 2014-09-30 | J7: 2015-05-31 | K7: 2014-07-31 | L7: 2014-08-26 | M7: 2014-12-31 | N7: 2014-12-31 | O7: 2014-10-31 | P7: 2014-11-30 | Q7: 2014-12-31 | R7: 2015-01-31 | S7: 2014-09-30 | T7: 2015-03-31 | U7: 2015-03-31 | V7: 2014-09-24 | W7: 2015-02-28 | X7: 2015-02-28 | Y7: 2015-01-31 | Z7: 2015-03-31 | AA7: 2015-03-31 | AB7: 2015-04-30 | AC7: 2015-04-30 | AD7: 2015-05-31 | AE7: 2015-06-02 | AF7: 2015-05-31 | AG7: 2015-06-30 | AH7: 2015-06-30 | AI7: 2015-06-30 | AJ7: 2015-12-18 | AK7: 2015-08-31 | AL7: 2015-07-31 | AM7: 2015-07-31 | AN7: 2015-07-31 | AO7: 2015-07-31 | AP7: 2015-09-30 | AQ7: 2015-08-31 | AR7: 2015-08-31 | AS7: 2015-09-30 | AT7: 2015-10-31 | AU7: 2015-10-31 | AV7: 2015-10-31 | AW7: 2016-01-31 | AX7: 2015-11-30 | AY7: 2015-11-27 | AZ7: 2016-03-31 | BA7: 2015-11-30 | BB7: 2015-11-30 | BC7: 2016-01-31 | BD7: 2016-03-31 | BE7: 2015-12-31 | BF7: 2015-12-31 | BG7: 2015-12-31 | BH7: 2015-12-10 | BI7: 2015-12-31 | BJ7: 2016-01-31 | BK7: 2016-01-31 | BL7: 2016-01-31 | BM7: 2016-01-31 | BN7: 2016-01-31 | BO7: 2016-02-29 | BP7: 2016-02-29 | BQ7: 2016-02-29 | BR7: 2016-01-31 | BS7: 2016-12-18 | BT7: 2016-03-31 | BU7: 2016-03-31 | BV7: 2016-03-31 | BW7: 2016-03-31 | BX7: 2016-03-17 | BY7: 2016-04-28 | BZ7: 2016-04-28 | CA7: 2016-04-30 | CB7: 2016-04-30 | CC7: 2016-04-30 | CD7: 2016-03-31 | CE7: 2016-04-30 | CF7: 2016-06-30 | CG7: 2016-05-31 | CH7: 2016-05-31 | CI7: 2016-05-28 | CJ7: 2016-05-28 | CK7: 2016-05-31 | CL7: 2016-06-30 | CM7: 2016-06-03 | CN7: 2016-03-01 | CO7: 2016-02-29 | CP7: 2016-03-31 | CQ7: 2016-04-30 | CR7: 2016-05-31 | CS7: 2016-06-30 | CT7: 2015-10-09 | CU7: 2015-11-08 | CV7: 2016-06-30 | CW7: 2016-03-24 | CX7: 2016-07-31 | CY7: 2016-07-31 | CZ7: 2016-08-31 | DA7: 2016-08-31 | DB7: 2016-05-20 | DC7: 2016-08-01 | DD7: 2016-06-30 | DE7: 2016-09-15 | DF7: 2016-07-24 | DG7: 2016-07-31 | DH7: 2016-09-30 | DI7: 2016-09-30 | DJ7: 2016-09-30 | DK7: 2016-07-22 | DL7: 2016-08-31 | DM7: 2016-10-31 | DN7: 2016-10-31 | DO7: 2016-08-24 | DP7: 2016-09-13 | DQ7: 2016-11-30 | DR7: 2016-09-24 | DS7: 2016-11-30 | DT7: 2016-12-10 | DU7: 2016-09-30 | DV7: 2016-12-31 | DW7: 2016-11-10 | DX7: 2016-10-24 | DY7: 2016-10-31 | DZ7: 2016-12-31 | EA7: 2016-12-31 | EB7: 2017-02-28 | EC7: 2016-12-10 | ED7: 2016-09-30 | EE7: 2016-12-31 | EF7: 2017-01-31 | EG7: 2017-01-31 | EH7: 2016-11-24 | EI7: 2017-02-24 | EJ7: 2017-03-31 | EK7: 2016-11-30 | EL7: 2017-03-07 | EM7: 2017-02-28 | EN7: 2017-02-28 | EO7: 2017-03-31 | EP7: 2016-12-24 | EQ7: 2017-02-24 | ER7: 2017-01-24 | ES7: 2017-03-24 | ET7: 2016-12-31 | EU7: 2017-03-31 | EV7: 2017-01-31 | EW7: 2017-02-28 | EX7: 2017-06-30 | EY7: 2017-03-31 | EZ7: 2017-06-30 | FA7: 2017-02-15 | FB7: 2017-04-30 | FC7: 2016-12-31 | FD7: 2017-01-31 | FE7: 2017-03-31 | FF7: 2017-12-18 | FG7: 2017-03-31 | FH7: 2017-05-31 | FI7: 2017-02-24 | FJ7: 2017-03-07
B8: P | C8: P | D8: C | E8: P | F8: C | G8: C | H8: P | I8: P | J8: P | K8: C | L8: C | M8: P | N8: P | O8: C | P8: C | Q8: C | R8: C | S8: C | T8: P | U8: P | V8: C | W8: C | X8: C | Y8: C | Z8: C | AA8: C | AB8: C | AC8: C | AD8: C | AE8: C | AF8: C | AG8: C | AH8: C | AI8: C | AJ8: P | AK8: C | AL8: C | AM8: C | AN8: C | AO8: C | AP8: C | AQ8: C | AR8: C | AS8: C | AT8: C | AU8: C | AV8: C | AW8: P | AX8: C | AY8: C | AZ8: C | BA8: C | BB8: C | BC8: P | BD8: P | BE8: C | BF8: C | BG8: C | BH8: C | BI8: C | BJ8: C | BK8: C | BL8: C | BM8: P | BN8: P | BO8: C | BP8: C | BQ8: P | BR8: P | BS8: P | BT8: C | BU8: C | BV8: P | BW8: C | BX8: C | BY8: C | BZ8: C | CA8: P | CB8: C | CC8: C | CD8: C | CE8: C | CF8: C | CG8: C | CH8: P | CI8: C | CJ8: C | CK8: C | CL8: C | CM8: C | CN8: C | CO8: C | CP8: C | CQ8: C | CR8: C | CS8: C | CT8: C | CU8: C | CV8: P | CW8: P | CX8: C | CY8: C | CZ8: C | DA8: C | DB8: C | DC8: C | DD8: P | DE8: C | DF8: P | DG8: P | DH8: C | DI8: C | DJ8: P | DK8: C | DL8: P | DM8: C | DN8: C | DO8: P | DP8: P | DQ8: C | DR8: P | DS8: C | DT8: C | DU8: P | DV8: P | DW8: C | DX8: P | DY8: P | DZ8: C | EA8: C | EB8: P | EC8: C | ED8: C | EE8: C | EF8: C | EG8: C | EH8: P | EI8: C | EJ8: C | EK8: P | EL8: C | EM8: P | EN8: C | EO8: C | EP8: P | EQ8: P | ER8: P | ES8: P | ET8: P | EU8: P | EV8: P | EW8: P | EX8: C | EY8: P | EZ8: P | FA8: P | FB8: P | FC8: P | FD8: P | FE8: P | FF8: P | FG8: P | FH8: P | FI8: C | FJ8: C
A12: January | C12: 8,966.7 | D12: 3,008.1 | F12: 3,003.9 | G12: 2,109.9 | R12: €1,833.33 | T12: 10,340.9 | U12: 7,703.1 | Y12: €2,000.00 | BJ12: €5,249.82 | BK12: €2,083.33 | BL12: €1,833.33 | BU12: 833.3 | EF12: €2,083.33 | EG12: €2,000.00 | EI12: 1,038.7 | EJ12: 833.3 | EL12: 596.6 | EM12: 2,603.2 | EQ12: 858.1 | EV12: €7,700.00 | EY12: 4,000.0 | FD12: €16,750.00 | FI12: 1,038.7 | FJ12: 596.6
A13: February | C13: 8,966.7 | D13: 2,716.9 | F13: 3,003.9 | G13: 2,109.9 | T13: 10,340.9 | U13: 7,703.1 | X13: €1,833.33 | BO13: €5,517.73 | BP13: €1,833.33 | BQ13: €3,159.17 | BU13: 833.3 | BX13: 1,500.0 | CN13: 2,625.0 | CO13: €2,083.33 | CW13: 884.4 | EI13: 3,561.3 | EJ13: 833.3 | EL13: 3,082.4 | EM13: 6,626.4 | EN13: €2,083.33 | EQ13: 2,941.9 | ES13: 858.1 | EW13: €7,700.00 | EY13: 4,000.0 | FB13: 2,493.5 | FI13: 3,561.3 | FJ13: 3,082.4
A14: March | C14: 8,966.7 | F14: 3,003.9 | G14: 2,109.9 | T14: 10,340.9 | U14: 7,703.1 | Z14: €1,833.33 | AA14: €2,083.33 | AC14: 4,065.6 | BT14: €5,410.96 | BU14: 833.3 | BV14: €4,057.00 | BW14: €1,833.33 | BX14: 8,500.0 | BY14: 2,346.8 | BZ14: -1,405.2 | CC14: 2,065.8 | CD14: €9,300.00 | CN14: 875.0 | CP14: €2,083.33 | CW14: 3,032.2 | DF14: 891.5 | EJ14: 833.3 | EL14: 696.0 | EO14: €2,083.33 | ES14: 2,941.9 | EU14: €7,700.00 | EY14: 4,000.0 | FB14: 4,831.2 | FE14: €16,750.00 | FG14: €4,400.00 | FH14: 1,829.1 | FJ14: 696.0
A15: April | B15: 8,118.3 | E15: 8,933.5 | G15: 2,109.9 | AB15: €1,833.33 | AC15: 3,934.4 | AG15: 2,160.0 | BY15: 21,903.2 | BZ15: -13,114.8 | CA15: €4,173.16 | CB15: €1,833.33 | CC15: 1,999.2 | CE15: €18,600.00 | CF15: 842.4 | CI15: 2,394.8 | CJ15: -1,436.2 | CQ15: €2,083.33 | DD15: 3,928.8 | DF15: 3,948.2 | EX15: 842.4 | EZ15: 4,043.5 | FB15: 4,675.3 | FH15: 3,335.4
A16: May | B16: 8,118.3 | E16: 8,933.5 | G16: 2,109.9 | AD16: €3,370.87 | AF16: €1,936.37 | AG16: 2,160.0 | CF16: 842.4 | CG16: €1,833.33 | CH16: €3,977.04 | CI16: 22,351.7 | CJ16: -13,404.8 | CK16: €18,600.00 | CM16: 2,300.0 | CR16: €2,083.33 | DB16: €600.00 | DD16: 3,928.8 | DF16: 3,948.2 | EX16: 842.4 | EZ16: 4,043.5 | FH16: 3,335.4
A17: June | B17: 7,856.4 | E17: 8,645.4 | G17: 2,041.8 | J17: 9,609.9 | K17: 3,716.3 | AE17: €3,375.00 | AG17: 2,090.4 | AH17: €1,833.33 | AI17: €3,500.00 | AL17: 4,000.0 | CF17: 815.2 | CL17: €1,833.33 | CM17: 2,300.0 | CS17: €2,083.33 | CV17: €3,927.76 | DD17: 3,802.1 | DF17: 3,948.2 | EX17: 815.2 | EZ17: 3,913.0
A18: July | H18: 9,211.5 | I18: 8,318.1 | J18: 9,609.9 | K18: 3,716.3 | S18: 2,106.0 | AL18: 4,000.0 | AM18: €3,000.00 | AN18: €2,083.33 | AO18: €1,833.33 | AW18: 1,888.6 | BC18: 447.6 | BM18: 456.8 | BN18: 460.2 | BR18: 1,480.2 | CX18: €2,083.33 | CY18: €1,833.33 | DC18: 8,421.2 | DF18: 3,056.7 | DG18: €7,608.07 | DJ18: 3,986.7 | DK18: €5,300.00 | DO18: 858.1 | ED18: 842.4
A19: August | H19: 9,211.5 | I19: 8,318.1 | J19: 9,609.9 | L19: €3,131.83 | S19: 2,106.0 | AK19: €5,432.22 | AQ19: €2,083.33 | AR19: €1,833.33 | AW19: 1,888.6 | BC19: 447.6 | BM19: 456.8 | BN19: 460.2 | BR19: 1,480.2 | CZ19: €1,833.33 | DA19: €2,083.33 | DC19: 2,105.3 | DE19: 10,723.6 | DJ19: 3,986.7 | DL19: €7,655.14 | DO19: 2,942.0 | DP19: 6,434.1 | DR19: 842.5 | DW19: 8,378.5 | ED19: 842.4
A20: September | H20: 8,914.3 | I20: 8,049.7 | J20: 9,609.9 | S20: 2,038.0 | V20: €171.39 | AP20: €5,259.00 | AS20: €1,833.33 | AU20: 2,083.3 | AW20: 1,888.6 | BC20: 447.6 | BM20: 456.8 | BN20: 460.2 | BR20: 1,480.2 | DE20: 10,053.4 | DH20: €2,083.33 | DI20: €1,833.33 | DJ20: 3,858.1 | DP20: 3,802.0 | DR20: 2,888.4 | DU20: €7,895.00 | DW20: 16,233.3 | DX20: 851.7 | ED20: 815.2
A21: October | J21: 9,609.9 | M21: 8,874.8 | N21: 8,200.7 | O21: €1,833.33 | W21: 2,092.2 | AT21: €5,239.31 | AU21: 2,083.3 | AV21: €1,833.33 | AW21: 1,888.6 | BC21: 447.6 | BD21: 15,943.9 | BI21: 833.3 | BM21: 456.8 | BN21: 460.2 | BR21: 1,480.2 | CT21: €5,612.22 | CU21: 16,484.4 | DM21: €1,833.33 | DN21: €2,083.33 | DV21: 4,103.8 | DW21: 16,233.3 | DX21: 2,920.1 | DY21: €7,574.98 | EE21: 833.3 | EH21: 837.0
A22: November | J22: 9,609.9 | M22: 8,874.8 | N22: 8,200.7 | P22: €1,833.33 | W22: 2,092.2 | AW22: 1,888.6 | AX22: €5,231.39 | AY22: €4,000.00 | AZ22: 2,400.0 | BA22: €1,833.33 | BB22: €2,083.33 | BC22: 447.6 | BD22: 15,943.9 | BI22: 833.3 | BM22: 456.8 | BN22: 460.2 | BR22: 1,480.2 | CU22: 8,791.7 | DQ22: €2,083.33 | DS22: €1,833.33 | DT22: 7,350.0 | DV22: 4,103.8 | DW22: 5,236.5 | EC22: 7,350.0 | EE22: 833.3 | EH22: 2,869.7 | EK22: €7,615.36 | EP22: 858.1 | FC22: 11,864.6
A23: December | J23: 9,609.9 | M23: 8,874.8 | N23: 8,200.7 | Q23: €1,833.33 | W23: 2,092.2 | AJ23: €4,877.37 | AW23: 1,888.6 | AZ23: 2,400.0 | BC23: 447.6 | BD23: 15,943.9 | BE23: €2,083.33 | BF23: €5,281.17 | BG23: €1,833.33 | BH23: €2,200.00 | BI23: 833.3 | BM23: 456.8 | BN23: 460.2 | BR23: 1,480.2 | BS23: €5,271.79 | DT23: 3,500.0 | DV23: 4,103.8 | DZ23: €1,833.33 | EA23: €2,083.33 | EB23: 7,301.2 | EC23: 3,500.0 | EE23: 833.3 | EP23: 2,941.9 | ER23: 858.1 | ET23: €7,700.00 | FA23: 3,636.4 | FC23: 21,635.4 | FF23: 5,241.9
A24: January | J24: 9,609.9 | W24: 2,092.2 | AJ24: 11630.64333 | AW24: 1,888.6 | AZ24: 2,400.0 | BC24: 447.6 | BD24: 15,943.9 | BM24: 456.8 | BN24: 460.2 | BR24: 1,480.2 | BS24: 12571.19834 | EB24: 7,301.2 | ER24: 2,941.9 | FA24: 5,636.4 | FF24: 12,500.0
A25: February | J25: 9,609.9 | W25: 1,889.7 | AJ25: 11630.64333 | AZ25: 2,400.0 | BD25: 15,943.9 | BS25: 12571.19834 | EB25: 6,594.7 | FA25: 2,727.3 | FF25: 12,500.0
A26: March | J26: 9,609.9 | AJ26: 11630.64333 | AZ26: 2,400.0 | BD26: 15,943.9 | BS26: 12571.19834 | FF26: 12,500.0
A27: April | J27: 9,609.9 | AJ27: 11630.64333 | BS27: 12571.19834 | FF27: 12,500.0
A28: May | J28: 9,609.9 | AJ28: 11630.64333 | BS28: 12571.19834 | FF28: 12,500.0
A29: June | AJ29: 11630.64333 | BS29: 12571.19834 | FF29: 12,500.0
A30: July | AJ30: 11630.64333 | BS30: 12571.19834 | FF30: 12,500.0
A31: August | AJ31: 11630.64333 | BS31: 12571.19834 | FF31: 12,500.0
A32: September | AJ32: 11630.64333 | BS32: 12571.19834 | FF32: 12,500.0
A33: October | AJ33: 11630.64333 | BS33: 12571.19834 | FF33: 12,500.0
A34: November | AJ34: 11630.64333 | BS34: 12571.19834 | FF34: 12,500.0
A35: December | AJ35: 6753.276774 | BS35: 7299.405484 | FF35: 7,258.1
A37: TOTAL | B37: =SUM(B12:B35) -> 24,093.0 | C37: =SUM(C12:C35) -> 26,900.2 | D37: 5,725.0 | E37: 26,512.4 | F37: 9,011.7 | G37: 12,591.2 | H37: 27,337.3 | I37: 24,685.8 | J37: 115,318.2 | K37: 7,432.6 | L37: 3,131.8 | M37: 26,624.3 | N37: 24,602.1 | O37: 1,833.3 | P37: 1,833.3 | Q37: 1,833.3 | R37: 1,833.3 | S37: 6,250.0 | T37: 31,022.6 | U37: 23,109.4 | V37: 171.4 | W37: 10,258.4 | X37: 1,833.3 | Y37: 2,000.0 | Z37: 1,833.3 | AA37: 2,083.3 | AB37: 1,833.3 | AC37: 8,000.0 | AD37: 3,370.9 | AE37: 3,375.0 | AF37: 1,936.4 | AG37: 6,410.4 | AH37: 1,833.3 | AI37: 3,500.0 | AJ37: 139,567.7 | AK37: 5,432.2 | AL37: 8,000.0 | AM37: 3,000.0 | AN37: 2,083.3 | AO37: 1,833.3 | AP37: 5,259.0 | AQ37: 2,083.3 | AR37: 1,833.3 | AS37: 1,833.3 | AT37: 5,239.3 | AU37: 4,166.7 | AV37: 1,833.3 | AW37: 13,220.1 | AX37: 5,231.4 | AY37: 4,000.0 | AZ37: 12,000.0 | BA37: 1,833.3 | BB37: 2,083.3 | BC37: 3,133.1 | BD37: 95,663.1 | BE37: 2,083.3 | BF37: 5,281.2 | BG37: 1,833.3 | BH37: 2,200.0 | BI37: 2,500.0 | BJ37: 5,249.8 | BK37: 2,083.3 | BL37: 1,833.3 | BM37: 3,197.4 | BN37: 3,221.6 | BO37: =SUM(BO12:BO35) -> 5,517.7 | BP37: 1,833.3 | BQ37: 3,159.2 | BR37: 10,361.2 | BS37: 150,854.4 | BT37: 5,411.0 | BU37: 2,500.0 | BV37: 4,057.0 | BW37: 1,833.3 | BX37: 10,000.0 | BY37: 24,250.0 | BZ37: -14,520.0 | CA37: 4,173.2 | CB37: 1,833.3 | CC37: 4,065.0 | CD37: 9,300.0 | CE37: 18,600.0 | CF37: 2,500.0 | CG37: 1,833.3 | CH37: 3,977.0 | CI37: 24,746.5 | CJ37: -14,841.0 | CK37: 18,600.0 | CL37: 1,833.3 | CM37: 4,600.0 | CN37: 3,500.0 | CO37: 2,083.3 | CP37: 2,083.3 | CQ37: 2,083.3 | CR37: 2,083.3 | CS37: 2,083.3 | CT37: 5,612.2 | CU37: 25,276.0 | CV37: 3,927.8 | CW37: 3,916.7 | CX37: 2,083.3 | CY37: 1,833.3 | CZ37: 1,833.3 | DA37: 2,083.3 | DB37: 600.0 | DC37: 10,526.5 | DD37: 11,659.7 | DE37: 20,777.0 | DF37: 15,792.9 | DG37: 7,608.1 | DH37: 2,083.3 | DI37: 1,833.3 | DJ37: 11,831.4 | DK37: 5,300.0 | DL37: 7,655.1 | DM37: 1,833.3 | DN37: 2,083.3 | DO37: 3,800.1 | DP37: 10,236.1 | DQ37: 2,083.3 | DR37: 3,730.9 | DS37: 1,833.3 | DT37: 10,850.0 | DU37: 7,895.0 | DV37: 12,311.4 | DW37: 46,081.6 | DX37: 3,771.8 | DY37: 7,575.0 | DZ37: 1,833.3 | EA37: =SUM(EA12:EA35) -> 2,083.3 | EB37: 21,197.1 | EC37: 10,850.0 | ED37: 2,500.0 | EE37: 2,500.0 | EF37: 2,083.3 | EG37: 2,000.0 | EH37: 3,706.7 | EI37: 4,600.0 | EJ37: 2,500.0 | EK37: 7,615.4 | EL37: 4,375.0 | EM37: 9,229.6 | EN37: 2,083.3 | EO37: 2,083.3 | EP37: 3,800.0 | EQ37: 3,800.0 | ER37: 3,800.0 | ES37: 3,800.0 | ET37: 7,700.0 | EU37: 7,700.0 | EV37: 7,700.0 | EW37: 7,700.0 | EX37: 2,500.0 | EY37: 12,000.0 | EZ37: 12,000.0 | FA37: 12,000.0 | FB37: 12,000.0 | FC37: 33,500.0 | FD37: 16,750.0 | FE37: 16,750.0 | FF37: 150,000.0 | FG37: 4,400.0 | FH37: 8,500.0 | FI37: 4,600.0 | FJ37: 4,375.0 | FK37: 0.0 | FL37: 0.0 | FM37: 0.0 | FN37: 0.0 | FO37: 0.0 | FP37: 0.0 | FQ37: 0.0 | FR37: 0.0 | FS37: 0.0 | FT37: 0.0 | FU37: 0.0 | FV37: 0.0 | FW37: 0.0 | FX37: 0.0 | FY37: 0.0 | FZ37: 0.0 | GA37: 0.0 | GB37: 0.0 | GC37: 0.0 | GD37: 0.0 | GE37: 0.0 | GF37: 0.0 | GG37: 0.0 | GH37: 0.0 | GI37: 0.0 | GJ37: 0.0 | GK37: 0.0 | GL37: 0.0 | GM37: =SUM(GM12:GM35) -> 0.0 | GN37: 0.0 | GO37: 0.0 | GP37: 0.0 | GQ37: 0.0 | GR37: 0.0 | GS37: 0.0 | GT37: 0.0 | GU37: 0.0 | GV37: 0.0 | GW37: 0.0 | GX37: 0.0 | GY37: 0.0 | GZ37: 0.0 | HA37: 0.0 | HB37: 0.0 | HC37: 0.0 | HD37: 0.0 | HE37: 0.0 | HF37: 0.0 | HG37: 0.0 | HH37: 0.0 | HI37: 0.0 | HJ37: 0.0 | HK37: 0.0 | HL37: 0.0 | HM37: 0.0 | HN37: 0.0 | HO37: 0.0 | HP37: 0.0 | HQ37: 0.0 | HR37: 0.0 | HS37: 0.0 | HT37: 0.0 | HU37: 0.0 | HV37: 0.0 | HW37: 0.0 | HX37: 0.0 | HY37: 0.0 | HZ37: 0.0 | IA37: 0.0 | IB37: 0.0 | IC37: 0.0 | ID37: 0.0 | IE37: 0.0 | IF37: 0.0 | IG37: 0.0 | IH37: 0.0 | II37: 0.0 | IJ37: 0.0 | IK37: 0.0 | IL37: 0.0 | IM37: 0.0 | IN37: 0.0 | IO37: 0.0 | IP37: 0.0 | IQ37: 0.0 | IR37: 0.0 | IS37: 0.0 | IT37: 0.0 | IU37: 0.0 | IV37: 0.0 | IW37: 0.0 | IX37: 0.0 | IY37: =SUM(IY12:IY35) -> 0.0 | IZ37: 0.0 | JA37: 0.0 | JB37: 0.0 | JC37: 0.0 | JD37: 0.0 | JE37: 0.0 | JF37: 0.0 | JG37: 0.0 | JH37: 0.0 | JI37: 0.0 | JJ37: 0.0 | JK37: 0.0 | JL37: 0.0 | JM37: 0.0 | JN37: 0.0 | JO37: 0.0 | JP37: 0.0 | JQ37: 0.0 | JR37: 0.0 | JS37: 0.0 | JT37: 0.0 | JU37: 0.0 | JV37: 0.0 | JW37: 0.0 | JX37: 0.0 | JY37: 0.0 | JZ37: 0.0 | KA37: 0.0 | KB37: 0.0 | KC37: 0.0 | KD37: 0.0 | KE37: 0.0 | KF37: 0.0 | KG37: 0.0 | KH37: 0.0 | KI37: 0.0 | KJ37: 0.0 | KK37: 0.0 | KL37: 0.0 | KM37: 0.0 | KN37: 0.0 | KO37: 0.0 | KP37: 0.0 | KQ37: 0.0 | KR37: 0.0 | KS37: 0.0 | KT37: 0.0 | KU37: 0.0 | KV37: 0.0 | KW37: 0.0 | KX37: 0.0 | KY37: 0.0 | KZ37: 0.0 | LA37: 0.0 | LB37: 0.0 | LC37: 0.0 | LD37: 0.0 | LE37: 0.0 | LF37: 0.0 | LG37: 0.0 | LH37: 0.0 | LI37: 0.0 | LJ37: 0.0 | LK37: =SUM(LK12:LK35) -> 0.0 | LL37: 0.0 | LM37: 0.0 | LN37: 0.0 | LO37: 0.0 | LP37: 0.0 | LQ37: 0.0 | LR37: 0.0 | LS37: 0.0 | LT37: 0.0 | LU37: 0.0 | LV37: 0.0 | LW37: 0.0 | LX37: 0.0 | LY37: 0.0 | LZ37: 0.0 | MA37: 0.0 | MB37: 0.0 | MC37: 0.0 | MD37: 0.0 | ME37: 0.0 | MF37: 0.0 | MG37: 0.0 | MH37: 0.0 | MI37: 0.0 | MJ37: 0.0 | MK37: 0.0 | ML37: 0.0 | MM37: 0.0 | MN37: 0.0 | MO37: 0.0 | MP37: 0.0 | MQ37: 0.0 | MR37: 0.0 | MS37: 0.0 | MT37: 0.0 | MU37: 0.0 | MV37: 0.0 | MW37: 0.0 | MX37: 0.0 | MY37: 0.0 | MZ37: 0.0 | NA37: 0.0 | NB37: 0.0 | NC37: 0.0 | ND37: 0.0 | NE37: 0.0 | NF37: 0.0 | NG37: 0.0 | NH37: 0.0 | NI37: 0.0 | NJ37: 0.0 | NK37: 0.0 | NL37: 0.0 | NM37: 0.0 | NN37: 0.0 | NO37: 0.0 | NP37: 0.0 | NQ37: 0.0 | NR37: 0.0 | NS37: 0.0 | NT37: 0.0 | NU37: 0.0 | NV37: 0.0 | NW37: =SUM(NW12:NW35) -> 0.0 | NX37: 0.0 | NY37: 0.0 | NZ37: 0.0 | OA37: 0.0 | OB37: 0.0 | OC37: 0.0 | OD37: 0.0 | OE37: 0.0 | OF37: 0.0 | OG37: 0.0 | OH37: 0.0 | OI37: 0.0 | OJ37: 0.0 | OK37: 0.0 | OL37: 0.0 | OM37: 0.0 | ON37: 0.0 | OO37: 0.0 | OP37: 0.0 | OQ37: 0.0 | OR37: 0.0 | OS37: 0.0 | OT37: 0.0 | OU37: 0.0 | OV37: 0.0 | OW37: 0.0 | OX37: 0.0 | OY37: 0.0 | OZ37: 0.0 | PA37: 0.0 | PB37: 0.0 | PC37: 0.0 | PD37: 0.0 | PE37: 0.0 | PF37: 0.0 | PG37: 0.0 | PH37: 0.0 | PI37: 0.0 | PJ37: 0.0 | PK37: 0.0 | PL37: 0.0 | PM37: 0.0 | PN37: 0.0 | PO37: 0.0 | PP37: 0.0 | PQ37: 0.0 | PR37: 0.0 | PS37: 0.0 | PT37: 0.0 | PU37: 0.0 | PV37: 0.0 | PW37: 0.0 | PX37: 0.0 | PY37: 0.0 | PZ37: 0.0 | QA37: 0.0 | QB37: 0.0 | QC37: 0.0 | QD37: 0.0 | QE37: 0.0 | QF37: 0.0 | QG37: 0.0 | QH37: 0.0 | QI37: =SUM(QI12:QI35) -> 0.0 | QJ37: 0.0 | QK37: 0.0 | QL37: 0.0 | QM37: 0.0 | QN37: 0.0 | QO37: 0.0 | QP37: 0.0 | QQ37: 0.0 | QR37: 0.0 | QS37: 0.0 | QT37: 0.0 | QU37: 0.0 | QV37: 0.0 | QW37: 0.0 | QX37: 0.0 | QY37: 0.0 | QZ37: 0.0 | RA37: 0.0 | RB37: 0.0 | RC37: 0.0 | RD37: 0.0 | RE37: 0.0 | RF37: 0.0 | RG37: 0.0 | RH37: 0.0 | RI37: 0.0 | RJ37: 0.0 | RK37: 0.0 | RL37: 0.0 | RM37: 0.0 | RN37: 0.0 | RO37: 0.0 | RP37: 0.0 | RQ37: 0.0 | RR37: 0.0 | RS37: 0.0 | RT37: 0.0 | RU37: 0.0 | RV37: 0.0 | RW37: 0.0 | RX37: 0.0 | RY37: 0.0 | RZ37: 0.0 | SA37: 0.0 | SB37: 0.0 | SC37: 0.0 | SD37: 0.0 | SE37: 0.0 | SF37: 0.0 | SG37: 0.0 | SH37: 0.0 | SI37: 0.0 | SJ37: 0.0 | SK37: 0.0 | SL37: 0.0 | SM37: 0.0 | SN37: 0.0 | SO37: 0.0 | SP37: 0.0 | SQ37: 0.0 | SR37: 0.0 | SS37: 0.0 | ST37: 0.0 | SU37: =SUM(SU12:SU35) -> 0.0 | SV37: 0.0 | SW37: 0.0 | SX37: 0.0 | SY37: 0.0 | SZ37: 0.0 | TA37: 0.0 | TB37: 0.0 | TC37: 0.0 | TD37: 0.0 | TE37: 0.0 | TF37: 0.0 | TG37: 0.0 | TH37: 0.0 | TI37: 0.0 | TJ37: 0.0 | TK37: 0.0 | TL37: 0.0 | TM37: 0.0 | TN37: 0.0 | TO37: 0.0 | TP37: 0.0 | TQ37: 0.0 | TR37: 0.0 | TS37: 0.0 | TT37: 0.0 | TU37: 0.0 | TV37: 0.0 | TW37: 0.0 | TX37: 0.0 | TY37: 0.0 | TZ37: 0.0 | UA37: 0.0 | UB37: 0.0 | UC37: 0.0 | UD37: 0.0 | UE37: 0.0 | UF37: 0.0 | UG37: 0.0 | UH37: 0.0 | UI37: 0.0 | UJ37: 0.0 | UK37: 0.0 | UL37: 0.0 | UM37: 0.0 | UN37: 0.0 | UO37: 0.0 | UP37: 0.0 | UQ37: 0.0 | UR37: 0.0 | US37: 0.0 | UT37: 0.0 | UU37: 0.0 | UV37: 0.0 | UW37: 0.0 | UX37: 0.0 | UY37: 0.0 | UZ37: 0.0 | VA37: 0.0 | VB37: 0.0 | VC37: 0.0 | VD37: 0.0 | VE37: 0.0 | VF37: 0.0 | VG37: =SUM(VG12:VG35) -> 0.0 | VH37: 0.0 | VI37: 0.0 | VJ37: 0.0 | VK37: 0.0 | VL37: 0.0 | VM37: 0.0 | VN37: 0.0 | VO37: 0.0 | VP37: 0.0 | VQ37: 0.0 | VR37: 0.0 | VS37: 0.0 | VT37: 0.0 | VU37: 0.0 | VV37: 0.0 | VW37: 0.0 | VX37: 0.0 | VY37: 0.0 | VZ37: 0.0 | WA37: 0.0 | WB37: 0.0 | WC37: 0.0 | WD37: 0.0 | WE37: 0.0 | WF37: 0.0 | WG37: 0.0 | WH37: 0.0 | WI37: 0.0 | WJ37: 0.0 | WK37: 0.0 | WL37: 0.0 | WM37: 0.0 | WN37: 0.0 | WO37: 0.0 | WP37: 0.0 | WQ37: 0.0 | WR37: 0.0 | WS37: 0.0 | WT37: 0.0 | WU37: 0.0 | WV37: 0.0 | WW37: 0.0 | WX37: 0.0 | WY37: 0.0 | WZ37: 0.0 | XA37: 0.0 | XB37: 0.0 | XC37: 0.0 | XD37: 0.0 | XE37: 0.0 | XF37: 0.0 | XG37: 0.0 | XH37: 0.0 | XI37: 0.0 | XJ37: 0.0 | XK37: 0.0 | XL37: 0.0 | XM37: 0.0 | XN37: 0.0 | XO37: 0.0 | XP37: 0.0 | XQ37: 0.0 | XR37: 0.0 | XS37: =SUM(XS12:XS35) -> 0.0 | XT37: 0.0 | XU37: 0.0 | XV37: 0.0 | XW37: 0.0 | XX37: 0.0 | XY37: 0.0 | XZ37: 0.0 | YA37: 0.0 | YB37: 0.0 | YC37: 0.0 | YD37: 0.0 | YE37: 0.0 | YF37: 0.0 | YG37: 0.0 | YH37: 0.0 | YI37: 0.0 | YJ37: 0.0 | YK37: 0.0 | YL37: 0.0 | YM37: 0.0 | YN37: 0.0 | YO37: 0.0 | YP37: 0.0 | YQ37: 0.0 | YR37: 0.0 | YS37: 0.0 | YT37: 0.0 | YU37: 0.0 | YV37: 0.0 | YW37: 0.0 | YX37: 0.0 | YY37: 0.0 | YZ37: 0.0 | ZA37: 0.0 | ZB37: 0.0 | ZC37: 0.0 | ZD37: 0.0 | ZE37: 0.0 | ZF37: 0.0 | ZG37: 0.0 | ZH37: 0.0 | ZI37: 0.0 | ZJ37: 0.0 | ZK37: 0.0 | ZL37: 0.0 | ZM37: 0.0 | ZN37: 0.0 | ZO37: 0.0 | ZP37: 0.0 | ZQ37: 0.0 | ZR37: 0.0 | ZS37: 0.0 | ZT37: 0.0 | ZU37: 0.0 | ZV37: 0.0 | ZW37: 0.0 | ZX37: 0.0 | ZY37: 0.0 | ZZ37: 0.0 | AAA37: 0.0 | AAB37: 0.0 | AAC37: 0.0 | AAD37: 0.0 | AAE37: =SUM(AAE12:AAE35) -> 0.0 | AAF37: 0.0 | AAG37: 0.0 | AAH37: 0.0 | AAI37: 0.0 | AAJ37: 0.0 | AAK37: 0.0 | AAL37: 0.0 | AAM37: 0.0 | AAN37: 0.0 | AAO37: 0.0 | AAP37: 0.0 | AAQ37: 0.0 | AAR37: 0.0 | AAS37: 0.0 | AAT37: 0.0 | AAU37: 0.0 | AAV37: 0.0 | AAW37: 0.0 | AAX37: 0.0 | AAY37: 0.0 | AAZ37: 0.0 | ABA37: 0.0 | ABB37: 0.0 | ABC37: 0.0 | ABD37: 0.0 | ABE37: 0.0 | ABF37: 0.0 | ABG37: 0.0 | ABH37: 0.0 | ABI37: 0.0 | ABJ37: 0.0 | ABK37: 0.0 | ABL37: 0.0 | ABM37: 0.0 | ABN37: 0.0 | ABO37: 0.0 | ABP37: 0.0 | ABQ37: 0.0 | ABR37: 0.0 | ABS37: 0.0 | ABT37: 0.0 | ABU37: 0.0 | ABV37: 0.0 | ABW37: 0.0 | ABX37: 0.0 | ABY37: 0.0 | ABZ37: 0.0 | ACA37: 0.0 | ACB37: 0.0 | ACC37: 0.0 | ACD37: 0.0 | ACE37: 0.0 | ACF37: 0.0 | ACG37: 0.0 | ACH37: 0.0 | ACI37: 0.0 | ACJ37: 0.0 | ACK37: 0.0 | ACL37: 0.0 | ACM37: 0.0 | ACN37: 0.0 | ACO37: 0.0 | ACP37: 0.0 | ACQ37: =SUM(ACQ12:ACQ35) -> 0.0 | ACR37: 0.0 | ACS37: 0.0 | ACT37: 0.0 | ACU37: 0.0 | ACV37: 0.0 | ACW37: 0.0 | ACX37: 0.0 | ACY37: 0.0 | ACZ37: 0.0 | ADA37: 0.0 | ADB37: 0.0 | ADC37: 0.0 | ADD37: 0.0 | ADE37: 0.0 | ADF37: 0.0 | ADG37: 0.0 | ADH37: 0.0 | ADI37: 0.0 | ADJ37: 0.0 | ADK37: 0.0 | ADL37: 0.0 | ADM37: 0.0 | ADN37: 0.0 | ADO37: 0.0 | ADP37: 0.0 | ADQ37: 0.0 | ADR37: 0.0 | ADS37: 0.0 | ADT37: 0.0 | ADU37: 0.0 | ADV37: 0.0 | ADW37: 0.0 | ADX37: 0.0 | ADY37: 0.0 | ADZ37: 0.0 | AEA37: 0.0 | AEB37: 0.0 | AEC37: 0.0 | AED37: 0.0 | AEE37: 0.0 | AEF37: 0.0 | AEG37: 0.0 | AEH37: 0.0 | AEI37: 0.0 | AEJ37: 0.0 | AEK37: 0.0 | AEL37: 0.0 | AEM37: 0.0 | AEN37: 0.0 | AEO37: 0.0 | AEP37: 0.0 | AEQ37: 0.0 | AER37: 0.0 | AES37: 0.0 | AET37: 0.0 | AEU37: 0.0 | AEV37: 0.0 | AEW37: 0.0 | AEX37: 0.0 | AEY37: 0.0 | AEZ37: 0.0 | AFA37: 0.0 | AFB37: 0.0 | AFC37: =SUM(AFC12:AFC35) -> 0.0 | AFD37: 0.0 | AFE37: 0.0 | AFF37: 0.0 | AFG37: 0.0 | AFH37: 0.0 | AFI37: 0.0 | AFJ37: 0.0 | AFK37: 0.0 | AFL37: 0.0 | AFM37: 0.0 | AFN37: 0.0 | AFO37: 0.0 | AFP37: 0.0 | AFQ37: 0.0 | AFR37: 0.0 | AFS37: 0.0 | AFT37: 0.0 | AFU37: 0.0 | AFV37: 0.0 | AFW37: 0.0 | AFX37: 0.0 | AFY37: 0.0 | AFZ37: 0.0 | AGA37: 0.0 | AGB37: 0.0 | AGC37: 0.0 | AGD37: 0.0 | AGE37: 0.0 | AGF37: 0.0 | AGG37: 0.0 | AGH37: 0.0 | AGI37: 0.0 | AGJ37: 0.0 | AGK37: 0.0 | AGL37: 0.0 | AGM37: 0.0 | AGN37: 0.0 | AGO37: 0.0 | AGP37: 0.0 | AGQ37: 0.0 | AGR37: 0.0 | AGS37: 0.0 | AGT37: 0.0 | AGU37: 0.0 | AGV37: 0.0 | AGW37: 0.0 | AGX37: 0.0 | AGY37: 0.0 | AGZ37: 0.0 | AHA37: 0.0 | AHB37: 0.0 | AHC37: 0.0 | AHD37: 0.0 | AHE37: 0.0 | AHF37: 0.0 | AHG37: 0.0 | AHH37: 0.0 | AHI37: 0.0 | AHJ37: 0.0 | AHK37: 0.0 | AHL37: 0.0 | AHM37: 0.0 | AHN37: 0.0 | AHO37: =SUM(AHO12:AHO35) -> 0.0 | AHP37: 0.0 | AHQ37: 0.0 | AHR37: 0.0 | AHS37: 0.0 | AHT37: 0.0 | AHU37: 0.0 | AHV37: 0.0 | AHW37: 0.0 | AHX37: 0.0 | AHY37: 0.0 | AHZ37: 0.0 | AIA37: 0.0 | AIB37: 0.0 | AIC37: 0.0 | AID37: 0.0 | AIE37: 0.0 | AIF37: 0.0 | AIG37: 0.0 | AIH37: 0.0 | AII37: 0.0 | AIJ37: 0.0 | AIK37: 0.0 | AIL37: 0.0 | AIM37: 0.0 | AIN37: 0.0 | AIO37: 0.0 | AIP37: 0.0 | AIQ37: 0.0 | AIR37: 0.0 | AIS37: 0.0 | AIT37: 0.0 | AIU37: 0.0 | AIV37: 0.0 | AIW37: 0.0 | AIX37: 0.0 | AIY37: 0.0 | AIZ37: 0.0 | AJA37: 0.0 | AJB37: 0.0 | AJC37: 0.0 | AJD37: 0.0 | AJE37: 0.0 | AJF37: 0.0 | AJG37: 0.0 | AJH37: 0.0 | AJI37: 0.0 | AJJ37: 0.0 | AJK37: 0.0 | AJL37: 0.0 | AJM37: 0.0 | AJN37: 0.0 | AJO37: 0.0 | AJP37: 0.0 | AJQ37: 0.0 | AJR37: 0.0 | AJS37: 0.0 | AJT37: 0.0 | AJU37: 0.0 | AJV37: 0.0 | AJW37: 0.0 | AJX37: 0.0 | AJY37: 0.0 | AJZ37: 0.0 | AKA37: =SUM(AKA12:AKA35) -> 0.0 | AKB37: 0.0 | AKC37: 0.0 | AKD37: 0.0 | AKE37: 0.0 | AKF37: 0.0 | AKG37: 0.0 | AKH37: 0.0 | AKI37: 0.0 | AKJ37: 0.0 | AKK37: 0.0 | AKL37: 0.0 | AKM37: 0.0 | AKN37: 0.0 | AKO37: 0.0 | AKP37: 0.0 | AKQ37: 0.0 | AKR37: 0.0 | AKS37: 0.0 | AKT37: 0.0 | AKU37: 0.0 | AKV37: 0.0 | AKW37: 0.0 | AKX37: 0.0 | AKY37: 0.0 | AKZ37: 0.0 | ALA37: 0.0 | ALB37: 0.0 | ALC37: 0.0 | ALD37: 0.0 | ALE37: 0.0 | ALF37: 0.0 | ALG37: 0.0 | ALH37: 0.0 | ALI37: 0.0 | ALJ37: 0.0 | ALK37: 0.0 | ALL37: 0.0 | ALM37: 0.0 | ALN37: 0.0 | ALO37: 0.0 | ALP37: 0.0 | ALQ37: 0.0 | ALR37: 0.0 | ALS37: 0.0 | ALT37: 0.0 | ALU37: 0.0 | ALV37: 0.0 | ALW37: 0.0 | ALX37: 0.0 | ALY37: 0.0 | ALZ37: 0.0 | AMA37: 0.0 | AMB37: 0.0 | AMC37: 0.0 | AMD37: 0.0 | AME37: 0.0 | AMF37: 0.0 | AMG37: 0.0 | AMH37: 0.0 | AMI37: 0.0 | AMJ37: 0.0 | AMK37: 0.0 | AML37: 0.0 | AMM37: =SUM(AMM12:AMM35) -> 0.0 | AMN37: 0.0 | AMO37: 0.0 | AMP37: 0.0 | AMQ37: 0.0 | AMR37: 0.0 | AMS37: 0.0 | AMT37: 0.0 | AMU37: 0.0 | AMV37: 0.0 | AMW37: 0.0 | AMX37: 0.0 | AMY37: 0.0 | AMZ37: 0.0 | ANA37: 0.0 | ANB37: 0.0 | ANC37: 0.0 | AND37: 0.0 | ANE37: 0.0 | ANF37: 0.0 | ANG37: 0.0 | ANH37: 0.0 | ANI37: 0.0 | ANJ37: 0.0 | ANK37: 0.0 | ANL37: 0.0 | ANM37: 0.0 | ANN37: 0.0 | ANO37: 0.0 | ANP37: 0.0 | ANQ37: 0.0 | ANR37: 0.0 | ANS37: 0.0 | ANT37: 0.0 | ANU37: 0.0 | ANV37: 0.0 | ANW37: 0.0 | ANX37: 0.0 | ANY37: 0.0 | ANZ37: 0.0 | AOA37: 0.0 | AOB37: 0.0 | AOC37: 0.0 | AOD37: 0.0 | AOE37: 0.0 | AOF37: 0.0 | AOG37: 0.0 | AOH37: 0.0 | AOI37: 0.0 | AOJ37: 0.0 | AOK37: 0.0 | AOL37: 0.0 | AOM37: 0.0 | AON37: 0.0 | AOO37: 0.0 | AOP37: 0.0 | AOQ37: 0.0 | AOR37: 0.0 | AOS37: 0.0 | AOT37: 0.0 | AOU37: 0.0 | AOV37: 0.0 | AOW37: 0.0 | AOX37: 0.0 | AOY37: =SUM(AOY12:AOY35) -> 0.0 | AOZ37: 0.0 | APA37: 0.0 | APB37: 0.0 | APC37: 0.0 | APD37: 0.0 | APE37: 0.0 | APF37: 0.0 | APG37: 0.0 | APH37: 0.0 | API37: 0.0 | APJ37: 0.0 | APK37: 0.0 | APL37: 0.0 | APM37: 0.0 | APN37: 0.0 | APO37: 0.0 | APP37: 0.0 | APQ37: 0.0 | APR37: 0.0 | APS37: 0.0 | APT37: 0.0 | APU37: 0.0 | APV37: 0.0 | APW37: 0.0 | APX37: 0.0 | APY37: 0.0 | APZ37: 0.0 | AQA37: 0.0 | AQB37: 0.0 | AQC37: 0.0 | AQD37: 0.0 | AQE37: 0.0 | AQF37: 0.0 | AQG37: 0.0 | AQH37: 0.0 | AQI37: 0.0 | AQJ37: 0.0 | AQK37: 0.0 | AQL37: 0.0 | AQM37: 0.0 | AQN37: 0.0 | AQO37: 0.0 | AQP37: 0.0 | AQQ37: 0.0 | AQR37: 0.0 | AQS37: 0.0 | AQT37: 0.0 | AQU37: 0.0 | AQV37: 0.0 | AQW37: 0.0 | AQX37: 0.0 | AQY37: 0.0 | AQZ37: 0.0 | ARA37: 0.0 | ARB37: 0.0 | ARC37: 0.0 | ARD37: 0.0 | ARE37: 0.0 | ARF37: 0.0 | ARG37: 0.0 | ARH37: 0.0 | ARI37: 0.0 | ARJ37: 0.0 | ARK37: =SUM(ARK12:ARK35) -> 0.0 | ARL37: 0.0 | ARM37: 0.0 | ARN37: 0.0 | ARO37: 0.0 | ARP37: 0.0 | ARQ37: 0.0 | ARR37: 0.0 | ARS37: 0.0 | ART37: 0.0 | ARU37: 0.0 | ARV37: 0.0 | ARW37: 0.0 | ARX37: 0.0 | ARY37: 0.0 | ARZ37: 0.0 | ASA37: 0.0 | ASB37: 0.0 | ASC37: 0.0 | ASD37: 0.0 | ASE37: 0.0 | ASF37: 0.0 | ASG37: 0.0 | ASH37: 0.0 | ASI37: 0.0 | ASJ37: 0.0 | ASK37: 0.0 | ASL37: 0.0 | ASM37: 0.0 | ASN37: 0.0 | ASO37: 0.0 | ASP37: 0.0 | ASQ37: 0.0 | ASR37: 0.0 | ASS37: 0.0 | AST37: 0.0 | ASU37: 0.0 | ASV37: 0.0 | ASW37: 0.0 | ASX37: 0.0 | ASY37: 0.0 | ASZ37: 0.0 | ATA37: 0.0 | ATB37: 0.0 | ATC37: 0.0 | ATD37: 0.0 | ATE37: 0.0 | ATF37: 0.0 | ATG37: 0.0 | ATH37: 0.0 | ATI37: 0.0 | ATJ37: 0.0 | ATK37: 0.0 | ATL37: 0.0 | ATM37: 0.0 | ATN37: 0.0 | ATO37: 0.0 | ATP37: 0.0 | ATQ37: 0.0 | ATR37: 0.0 | ATS37: 0.0 | ATT37: 0.0 | ATU37: 0.0 | ATV37: 0.0 | ATW37: =SUM(ATW12:ATW35) -> 0.0 | ATX37: 0.0 | ATY37: 0.0 | ATZ37: 0.0 | AUA37: 0.0 | AUB37: 0.0 | AUC37: 0.0 | AUD37: 0.0 | AUE37: 0.0 | AUF37: 0.0 | AUG37: 0.0 | AUH37: 0.0 | AUI37: 0.0 | AUJ37: 0.0 | AUK37: 0.0 | AUL37: 0.0 | AUM37: 0.0 | AUN37: 0.0 | AUO37: 0.0 | AUP37: 0.0 | AUQ37: 0.0 | AUR37: 0.0 | AUS37: 0.0 | AUT37: 0.0 | AUU37: 0.0 | AUV37: 0.0 | AUW37: 0.0 | AUX37: 0.0 | AUY37: 0.0 | AUZ37: 0.0 | AVA37: 0.0 | AVB37: 0.0 | AVC37: 0.0 | AVD37: 0.0 | AVE37: 0.0 | AVF37: 0.0 | AVG37: 0.0 | AVH37: 0.0 | AVI37: 0.0 | AVJ37: 0.0 | AVK37: 0.0 | AVL37: 0.0 | AVM37: 0.0 | AVN37: 0.0 | AVO37: 0.0 | AVP37: 0.0 | AVQ37: 0.0 | AVR37: 0.0 | AVS37: 0.0 | AVT37: 0.0 | AVU37: 0.0 | AVV37: 0.0 | AVW37: 0.0 | AVX37: 0.0 | AVY37: 0.0 | AVZ37: 0.0 | AWA37: 0.0 | AWB37: 0.0 | AWC37: 0.0 | AWD37: 0.0 | AWE37: 0.0 | AWF37: 0.0 | AWG37: 0.0 | AWH37: 0.0 | AWI37: =SUM(AWI12:AWI35) -> 0.0 | AWJ37: 0.0 | AWK37: 0.0 | AWL37: 0.0 | AWM37: 0.0 | AWN37: 0.0 | AWO37: 0.0 | AWP37: 0.0 | AWQ37: 0.0 | AWR37: 0.0 | AWS37: 0.0 | AWT37: 0.0 | AWU37: 0.0 | AWV37: 0.0 | AWW37: 0.0 | AWX37: 0.0 | AWY37: 0.0 | AWZ37: 0.0 | AXA37: 0.0 | AXB37: 0.0 | AXC37: 0.0 | AXD37: 0.0 | AXE37: 0.0 | AXF37: 0.0 | AXG37: 0.0 | AXH37: 0.0 | AXI37: 0.0 | AXJ37: 0.0 | AXK37: 0.0 | AXL37: 0.0 | AXM37: 0.0 | AXN37: 0.0 | AXO37: 0.0 | AXP37: 0.0 | AXQ37: 0.0 | AXR37: 0.0 | AXS37: 0.0 | AXT37: 0.0 | AXU37: 0.0 | AXV37: 0.0 | AXW37: 0.0 | AXX37: 0.0 | AXY37: 0.0 | AXZ37: 0.0 | AYA37: 0.0 | AYB37: 0.0 | AYC37: 0.0 | AYD37: 0.0 | AYE37: 0.0 | AYF37: 0.0 | AYG37: 0.0 | AYH37: 0.0 | AYI37: 0.0 | AYJ37: 0.0 | AYK37: 0.0 | AYL37: 0.0 | AYM37: 0.0 | AYN37: 0.0 | AYO37: 0.0 | AYP37: 0.0 | AYQ37: 0.0 | AYR37: 0.0 | AYS37: 0.0 | AYT37: 0.0 | AYU37: =SUM(AYU12:AYU35) -> 0.0 | AYV37: 0.0 | AYW37: 0.0 | AYX37: 0.0 | AYY37: 0.0 | AYZ37: 0.0 | AZA37: 0.0 | AZB37: 0.0 | AZC37: 0.0 | AZD37: 0.0 | AZE37: 0.0 | AZF37: 0.0 | AZG37: 0.0 | AZH37: 0.0 | AZI37: 0.0 | AZJ37: 0.0 | AZK37: 0.0 | AZL37: 0.0 | AZM37: 0.0 | AZN37: 0.0 | AZO37: 0.0 | AZP37: 0.0 | AZQ37: 0.0 | AZR37: 0.0 | AZS37: 0.0 | AZT37: 0.0 | AZU37: 0.0 | AZV37: 0.0 | AZW37: 0.0 | AZX37: 0.0 | AZY37: 0.0 | AZZ37: 0.0 | BAA37: 0.0 | BAB37: 0.0 | BAC37: 0.0 | BAD37: 0.0 | BAE37: 0.0 | BAF37: 0.0 | BAG37: 0.0 | BAH37: 0.0 | BAI37: 0.0 | BAJ37: 0.0 | BAK37: 0.0 | BAL37: 0.0 | BAM37: 0.0 | BAN37: 0.0 | BAO37: 0.0 | BAP37: 0.0 | BAQ37: 0.0 | BAR37: 0.0 | BAS37: 0.0 | BAT37: 0.0 | BAU37: 0.0 | BAV37: 0.0 | BAW37: 0.0 | BAX37: 0.0 | BAY37: 0.0 | BAZ37: 0.0 | BBA37: 0.0 | BBB37: 0.0 | BBC37: 0.0 | BBD37: 0.0 | BBE37: 0.0 | BBF37: 0.0 | BBG37: =SUM(BBG12:BBG35) -> 0.0 | BBH37: 0.0 | BBI37: 0.0 | BBJ37: 0.0 | BBK37: 0.0 | BBL37: 0.0 | BBM37: 0.0 | BBN37: 0.0 | BBO37: 0.0 | BBP37: 0.0 | BBQ37: 0.0 | BBR37: 0.0 | BBS37: 0.0 | BBT37: 0.0 | BBU37: 0.0 | BBV37: 0.0 | BBW37: 0.0 | BBX37: 0.0 | BBY37: 0.0 | BBZ37: 0.0 | BCA37: 0.0 | BCB37: 0.0 | BCC37: 0.0 | BCD37: 0.0 | BCE37: 0.0 | BCF37: 0.0 | BCG37: 0.0 | BCH37: 0.0 | BCI37: 0.0 | BCJ37: 0.0 | BCK37: 0.0 | BCL37: 0.0 | BCM37: 0.0 | BCN37: 0.0 | BCO37: 0.0 | BCP37: 0.0 | BCQ37: 0.0 | BCR37: 0.0 | BCS37: 0.0 | BCT37: 0.0 | BCU37: 0.0 | BCV37: 0.0 | BCW37: 0.0 | BCX37: 0.0 | BCY37: 0.0 | BCZ37: 0.0 | BDA37: 0.0 | BDB37: 0.0 | BDC37: 0.0 | BDD37: 0.0 | BDE37: 0.0 | BDF37: 0.0 | BDG37: 0.0 | BDH37: 0.0 | BDI37: 0.0 | BDJ37: 0.0 | BDK37: 0.0 | BDL37: 0.0 | BDM37: 0.0 | BDN37: 0.0 | BDO37: 0.0 | BDP37: 0.0 | BDQ37: 0.0 | BDR37: 0.0 | BDS37: =SUM(BDS12:BDS35) -> 0.0 | BDT37: 0.0 | BDU37: 0.0 | BDV37: 0.0 | BDW37: 0.0 | BDX37: 0.0 | BDY37: 0.0 | BDZ37: 0.0 | BEA37: 0.0 | BEB37: 0.0 | BEC37: 0.0 | BED37: 0.0 | BEE37: 0.0 | BEF37: 0.0 | BEG37: 0.0 | BEH37: 0.0 | BEI37: 0.0 | BEJ37: 0.0 | BEK37: 0.0 | BEL37: 0.0 | BEM37: 0.0 | BEN37: 0.0 | BEO37: 0.0 | BEP37: 0.0 | BEQ37: 0.0 | BER37: 0.0 | BES37: 0.0 | BET37: 0.0 | BEU37: 0.0 | BEV37: 0.0 | BEW37: 0.0 | BEX37: 0.0 | BEY37: 0.0 | BEZ37: 0.0 | BFA37: 0.0 | BFB37: 0.0 | BFC37: 0.0 | BFD37: 0.0 | BFE37: 0.0 | BFF37: 0.0 | BFG37: 0.0 | BFH37: 0.0 | BFI37: 0.0 | BFJ37: 0.0 | BFK37: 0.0 | BFL37: 0.0 | BFM37: 0.0 | BFN37: 0.0 | BFO37: 0.0 | BFP37: 0.0 | BFQ37: 0.0 | BFR37: 0.0 | BFS37: 0.0 | BFT37: 0.0 | BFU37: 0.0 | BFV37: 0.0 | BFW37: 0.0 | BFX37: 0.0 | BFY37: 0.0 | BFZ37: 0.0 | BGA37: 0.0 | BGB37: 0.0 | BGC37: 0.0 | BGD37: 0.0 | BGE37: =SUM(BGE12:BGE35) -> 0.0 | BGF37: 0.0 | BGG37: 0.0 | BGH37: 0.0 | BGI37: 0.0 | BGJ37: 0.0 | BGK37: 0.0 | BGL37: 0.0 | BGM37: 0.0 | BGN37: 0.0 | BGO37: 0.0 | BGP37: 0.0 | BGQ37: 0.0 | BGR37: 0.0 | BGS37: 0.0 | BGT37: 0.0 | BGU37: 0.0 | BGV37: 0.0 | BGW37: 0.0 | BGX37: 0.0 | BGY37: 0.0 | BGZ37: 0.0 | BHA37: 0.0 | BHB37: 0.0 | BHC37: 0.0 | BHD37: 0.0 | BHE37: 0.0 | BHF37: 0.0 | BHG37: 0.0 | BHH37: 0.0 | BHI37: 0.0 | BHJ37: 0.0 | BHK37: 0.0 | BHL37: 0.0 | BHM37: 0.0 | BHN37: 0.0 | BHO37: 0.0 | BHP37: 0.0 | BHQ37: 0.0 | BHR37: 0.0 | BHS37: 0.0 | BHT37: 0.0 | BHU37: 0.0 | BHV37: 0.0 | BHW37: 0.0 | BHX37: 0.0 | BHY37: 0.0 | BHZ37: 0.0 | BIA37: 0.0 | BIB37: 0.0 | BIC37: 0.0 | BID37: 0.0 | BIE37: 0.0 | BIF37: 0.0 | BIG37: 0.0 | BIH37: 0.0 | BII37: 0.0 | BIJ37: 0.0 | BIK37: 0.0 | BIL37: 0.0 | BIM37: 0.0 | BIN37: 0.0 | BIO37: 0.0 | BIP37: 0.0 | BIQ37: =SUM(BIQ12:BIQ35) -> 0.0 | BIR37: 0.0 | BIS37: 0.0 | BIT37: 0.0 | BIU37: 0.0 | BIV37: 0.0 | BIW37: 0.0 | BIX37: 0.0 | BIY37: 0.0 | BIZ37: 0.0 | BJA37: 0.0 | BJB37: 0.0 | BJC37: 0.0 | BJD37: 0.0 | BJE37: 0.0 | BJF37: 0.0 | BJG37: 0.0 | BJH37: 0.0 | BJI37: 0.0 | BJJ37: 0.0 | BJK37: 0.0 | BJL37: 0.0 | BJM37: 0.0 | BJN37: 0.0 | BJO37: 0.0 | BJP37: 0.0 | BJQ37: 0.0 | BJR37: 0.0 | BJS37: 0.0 | BJT37: 0.0 | BJU37: 0.0 | BJV37: 0.0 | BJW37: 0.0 | BJX37: 0.0 | BJY37: 0.0 | BJZ37: 0.0 | BKA37: 0.0 | BKB37: 0.0 | BKC37: 0.0 | BKD37: 0.0 | BKE37: 0.0 | BKF37: 0.0 | BKG37: 0.0 | BKH37: 0.0 | BKI37: 0.0 | BKJ37: 0.0 | BKK37: 0.0 | BKL37: 0.0 | BKM37: 0.0 | BKN37: 0.0 | BKO37: 0.0 | BKP37: 0.0 | BKQ37: 0.0 | BKR37: 0.0 | BKS37: 0.0 | BKT37: 0.0 | BKU37: 0.0 | BKV37: 0.0 | BKW37: 0.0 | BKX37: 0.0 | BKY37: 0.0 | BKZ37: 0.0 | BLA37: 0.0 | BLB37: 0.0 | BLC37: =SUM(BLC12:BLC35) -> 0.0 | BLD37: 0.0 | BLE37: 0.0 | BLF37: 0.0 | BLG37: 0.0 | BLH37: 0.0 | BLI37: 0.0 | BLJ37: 0.0 | BLK37: 0.0 | BLL37: 0.0 | BLM37: 0.0 | BLN37: 0.0 | BLO37: 0.0 | BLP37: 0.0 | BLQ37: 0.0 | BLR37: 0.0 | BLS37: 0.0 | BLT37: 0.0 | BLU37: 0.0 | BLV37: 0.0 | BLW37: 0.0 | BLX37: 0.0 | BLY37: 0.0 | BLZ37: 0.0 | BMA37: 0.0 | BMB37: 0.0 | BMC37: 0.0 | BMD37: 0.0 | BME37: 0.0 | BMF37: 0.0 | BMG37: 0.0 | BMH37: 0.0 | BMI37: 0.0 | BMJ37: 0.0 | BMK37: 0.0 | BML37: 0.0 | BMM37: 0.0 | BMN37: 0.0 | BMO37: 0.0 | BMP37: 0.0 | BMQ37: 0.0 | BMR37: 0.0 | BMS37: 0.0 | BMT37: 0.0 | BMU37: 0.0 | BMV37: 0.0 | BMW37: 0.0 | BMX37: 0.0 | BMY37: 0.0 | BMZ37: 0.0 | BNA37: 0.0 | BNB37: 0.0 | BNC37: 0.0 | BND37: 0.0 | BNE37: 0.0 | BNF37: 0.0 | BNG37: 0.0 | BNH37: 0.0 | BNI37: 0.0 | BNJ37: 0.0 | BNK37: 0.0 | BNL37: 0.0 | BNM37: 0.0 | BNN37: 0.0 | BNO37: =SUM(BNO12:BNO35) -> 0.0 | BNP37: 0.0 | BNQ37: 0.0 | BNR37: 0.0 | BNS37: 0.0 | BNT37: 0.0 | BNU37: 0.0 | BNV37: 0.0 | BNW37: 0.0 | BNX37: 0.0 | BNY37: 0.0 | BNZ37: 0.0 | BOA37: 0.0 | BOB37: 0.0 | BOC37: 0.0 | BOD37: 0.0 | BOE37: 0.0 | BOF37: 0.0 | BOG37: 0.0 | BOH37: 0.0 | BOI37: 0.0 | BOJ37: 0.0 | BOK37: 0.0 | BOL37: 0.0 | BOM37: 0.0 | BON37: 0.0 | BOO37: 0.0 | BOP37: 0.0 | BOQ37: 0.0 | BOR37: 0.0 | BOS37: 0.0 | BOT37: 0.0 | BOU37: 0.0 | BOV37: 0.0 | BOW37: 0.0 | BOX37: 0.0 | BOY37: 0.0 | BOZ37: 0.0 | BPA37: 0.0 | BPB37: 0.0 | BPC37: 0.0 | BPD37: 0.0 | BPE37: 0.0 | BPF37: 0.0 | BPG37: 0.0 | BPH37: 0.0 | BPI37: 0.0 | BPJ37: 0.0 | BPK37: 0.0 | BPL37: 0.0 | BPM37: 0.0 | BPN37: 0.0 | BPO37: 0.0 | BPP37: 0.0 | BPQ37: 0.0 | BPR37: 0.0 | BPS37: 0.0 | BPT37: 0.0 | BPU37: 0.0 | BPV37: 0.0 | BPW37: 0.0 | BPX37: 0.0 | BPY37: 0.0 | BPZ37: 0.0 | BQA37: =SUM(BQA12:BQA35) -> 0.0 | BQB37: 0.0 | BQC37: 0.0 | BQD37: 0.0 | BQE37: 0.0 | BQF37: 0.0 | BQG37: 0.0 | BQH37: 0.0 | BQI37: 0.0 | BQJ37: 0.0 | BQK37: 0.0 | BQL37: 0.0 | BQM37: 0.0 | BQN37: 0.0 | BQO37: 0.0 | BQP37: 0.0 | BQQ37: 0.0 | BQR37: 0.0 | BQS37: 0.0 | BQT37: 0.0 | BQU37: 0.0 | BQV37: 0.0 | BQW37: 0.0 | BQX37: 0.0 | BQY37: 0.0 | BQZ37: 0.0 | BRA37: 0.0 | BRB37: 0.0 | BRC37: 0.0 | BRD37: 0.0 | BRE37: 0.0 | BRF37: 0.0 | BRG37: 0.0 | BRH37: 0.0 | BRI37: 0.0 | BRJ37: 0.0 | BRK37: 0.0 | BRL37: 0.0 | BRM37: 0.0 | BRN37: 0.0 | BRO37: 0.0 | BRP37: 0.0 | BRQ37: 0.0 | BRR37: 0.0 | BRS37: 0.0 | BRT37: 0.0 | BRU37: 0.0 | BRV37: 0.0 | BRW37: 0.0 | BRX37: 0.0 | BRY37: 0.0 | BRZ37: 0.0 | BSA37: 0.0 | BSB37: 0.0 | BSC37: 0.0 | BSD37: 0.0 | BSE37: 0.0 | BSF37: 0.0 | BSG37: 0.0 | BSH37: 0.0 | BSI37: 0.0 | BSJ37: 0.0 | BSK37: 0.0 | BSL37: 0.0 | BSM37: =SUM(BSM12:BSM35) -> 0.0 | BSN37: 0.0 | BSO37: 0.0 | BSP37: 0.0 | BSQ37: 0.0 | BSR37: 0.0 | BSS37: 0.0 | BST37: 0.0 | BSU37: 0.0 | BSV37: 0.0 | BSW37: 0.0 | BSX37: 0.0 | BSY37: 0.0 | BSZ37: 0.0 | BTA37: 0.0 | BTB37: 0.0 | BTC37: 0.0 | BTD37: 0.0 | BTE37: 0.0 | BTF37: 0.0 | BTG37: 0.0 | BTH37: 0.0 | BTI37: 0.0 | BTJ37: 0.0 | BTK37: 0.0 | BTL37: 0.0 | BTM37: 0.0 | BTN37: 0.0 | BTO37: 0.0 | BTP37: 0.0 | BTQ37: 0.0 | BTR37: 0.0 | BTS37: 0.0 | BTT37: 0.0 | BTU37: 0.0 | BTV37: 0.0 | BTW37: 0.0 | BTX37: 0.0 | BTY37: 0.0 | BTZ37: 0.0 | BUA37: 0.0 | BUB37: 0.0 | BUC37: 0.0 | BUD37: 0.0 | BUE37: 0.0 | BUF37: 0.0 | BUG37: 0.0 | BUH37: 0.0 | BUI37: 0.0 | BUJ37: 0.0 | BUK37: 0.0 | BUL37: 0.0 | BUM37: 0.0 | BUN37: 0.0 | BUO37: 0.0 | BUP37: 0.0 | BUQ37: 0.0 | BUR37: 0.0 | BUS37: 0.0 | BUT37: 0.0 | BUU37: 0.0 | BUV37: 0.0 | BUW37: 0.0 | BUX37: 0.0 | BUY37: =SUM(BUY12:BUY35) -> 0.0 | BUZ37: 0.0 | BVA37: 0.0 | BVB37: 0.0 | BVC37: 0.0 | BVD37: 0.0 | BVE37: 0.0 | BVF37: 0.0 | BVG37: 0.0 | BVH37: 0.0 | BVI37: 0.0 | BVJ37: 0.0 | BVK37: 0.0 | BVL37: 0.0 | BVM37: 0.0 | BVN37: 0.0 | BVO37: 0.0 | BVP37: 0.0 | BVQ37: 0.0 | BVR37: 0.0 | BVS37: 0.0 | BVT37: 0.0 | BVU37: 0.0 | BVV37: 0.0 | BVW37: 0.0 | BVX37: 0.0 | BVY37: 0.0 | BVZ37: 0.0 | BWA37: 0.0 | BWB37: 0.0 | BWC37: 0.0 | BWD37: 0.0 | BWE37: 0.0 | BWF37: 0.0 | BWG37: 0.0 | BWH37: 0.0 | BWI37: 0.0 | BWJ37: 0.0 | BWK37: 0.0 | BWL37: 0.0 | BWM37: 0.0 | BWN37: 0.0 | BWO37: 0.0 | BWP37: 0.0 | BWQ37: 0.0 | BWR37: 0.0 | BWS37: 0.0 | BWT37: 0.0 | BWU37: 0.0 | BWV37: 0.0 | BWW37: 0.0 | BWX37: 0.0 | BWY37: 0.0 | BWZ37: 0.0 | BXA37: 0.0 | BXB37: 0.0 | BXC37: 0.0 | BXD37: 0.0 | BXE37: 0.0 | BXF37: 0.0 | BXG37: 0.0 | BXH37: 0.0 | BXI37: 0.0 | BXJ37: 0.0 | BXK37: =SUM(BXK12:BXK35) -> 0.0 | BXL37: 0.0 | BXM37: 0.0 | BXN37: 0.0 | BXO37: 0.0 | BXP37: 0.0 | BXQ37: 0.0 | BXR37: 0.0 | BXS37: 0.0 | BXT37: 0.0 | BXU37: 0.0 | BXV37: 0.0 | BXW37: 0.0 | BXX37: 0.0 | BXY37: 0.0 | BXZ37: 0.0 | BYA37: 0.0 | BYB37: 0.0 | BYC37: 0.0 | BYD37: 0.0 | BYE37: 0.0 | BYF37: 0.0 | BYG37: 0.0 | BYH37: 0.0 | BYI37: 0.0 | BYJ37: 0.0 | BYK37: 0.0 | BYL37: 0.0 | BYM37: 0.0 | BYN37: 0.0 | BYO37: 0.0 | BYP37: 0.0 | BYQ37: 0.0 | BYR37: 0.0 | BYS37: 0.0 | BYT37: 0.0 | BYU37: 0.0 | BYV37: 0.0 | BYW37: 0.0 | BYX37: 0.0 | BYY37: 0.0 | BYZ37: 0.0 | BZA37: 0.0 | BZB37: 0.0 | BZC37: 0.0 | BZD37: 0.0 | BZE37: 0.0 | BZF37: 0.0 | BZG37: 0.0 | BZH37: 0.0 | BZI37: 0.0 | BZJ37: 0.0 | BZK37: 0.0 | BZL37: 0.0 | BZM37: 0.0 | BZN37: 0.0 | BZO37: 0.0 | BZP37: 0.0 | BZQ37: 0.0 | BZR37: 0.0 | BZS37: 0.0 | BZT37: 0.0 | BZU37: 0.0 | BZV37: 0.0 | BZW37: =SUM(BZW12:BZW35) -> 0.0 | BZX37: 0.0 | BZY37: 0.0 | BZZ37: 0.0 | CAA37: 0.0 | CAB37: 0.0 | CAC37: 0.0 | CAD37: 0.0 | CAE37: 0.0 | CAF37: 0.0 | CAG37: 0.0 | CAH37: 0.0 | CAI37: 0.0 | CAJ37: 0.0 | CAK37: 0.0 | CAL37: 0.0 | CAM37: 0.0 | CAN37: 0.0 | CAO37: 0.0 | CAP37: 0.0 | CAQ37: 0.0 | CAR37: 0.0 | CAS37: 0.0 | CAT37: 0.0 | CAU37: 0.0 | CAV37: 0.0 | CAW37: 0.0 | CAX37: 0.0 | CAY37: 0.0 | CAZ37: 0.0 | CBA37: 0.0 | CBB37: 0.0 | CBC37: 0.0 | CBD37: 0.0 | CBE37: 0.0 | CBF37: 0.0 | CBG37: 0.0 | CBH37: 0.0 | CBI37: 0.0 | CBJ37: 0.0 | CBK37: 0.0 | CBL37: 0.0 | CBM37: 0.0 | CBN37: 0.0 | CBO37: 0.0 | CBP37: 0.0 | CBQ37: 0.0 | CBR37: 0.0 | CBS37: 0.0 | CBT37: 0.0 | CBU37: 0.0 | CBV37: 0.0 | CBW37: 0.0 | CBX37: 0.0 | CBY37: 0.0 | CBZ37: 0.0 | CCA37: 0.0 | CCB37: 0.0 | CCC37: 0.0 | CCD37: 0.0 | CCE37: 0.0 | CCF37: 0.0 | CCG37: 0.0 | CCH37: 0.0 | CCI37: =SUM(CCI12:CCI35) -> 0.0 | CCJ37: 0.0 | CCK37: 0.0 | CCL37: 0.0 | CCM37: 0.0 | CCN37: 0.0 | CCO37: 0.0 | CCP37: 0.0 | CCQ37: 0.0 | CCR37: 0.0 | CCS37: 0.0 | CCT37: 0.0 | CCU37: 0.0 | CCV37: 0.0 | CCW37: 0.0 | CCX37: 0.0 | CCY37: 0.0 | CCZ37: 0.0 | CDA37: 0.0 | CDB37: 0.0 | CDC37: 0.0 | CDD37: 0.0 | CDE37: 0.0 | CDF37: 0.0 | CDG37: 0.0 | CDH37: 0.0 | CDI37: 0.0 | CDJ37: 0.0 | CDK37: 0.0 | CDL37: 0.0 | CDM37: 0.0 | CDN37: 0.0 | CDO37: 0.0 | CDP37: 0.0 | CDQ37: 0.0 | CDR37: 0.0 | CDS37: 0.0 | CDT37: 0.0 | CDU37: 0.0 | CDV37: 0.0 | CDW37: 0.0 | CDX37: 0.0 | CDY37: 0.0 | CDZ37: 0.0 | CEA37: 0.0 | CEB37: 0.0 | CEC37: 0.0 | CED37: 0.0 | CEE37: 0.0 | CEF37: 0.0 | CEG37: 0.0 | CEH37: 0.0 | CEI37: 0.0 | CEJ37: 0.0 | CEK37: 0.0 | CEL37: 0.0 | CEM37: 0.0 | CEN37: 0.0 | CEO37: 0.0 | CEP37: 0.0 | CEQ37: 0.0 | CER37: 0.0 | CES37: 0.0 | CET37: 0.0 | CEU37: =SUM(CEU12:CEU35) -> 0.0 | CEV37: 0.0 | CEW37: 0.0 | CEX37: 0.0 | CEY37: 0.0 | CEZ37: 0.0 | CFA37: 0.0 | CFB37: 0.0 | CFC37: 0.0 | CFD37: 0.0 | CFE37: 0.0 | CFF37: 0.0 | CFG37: 0.0 | CFH37: 0.0 | CFI37: 0.0 | CFJ37: 0.0 | CFK37: 0.0 | CFL37: 0.0 | CFM37: 0.0 | CFN37: 0.0 | CFO37: 0.0 | CFP37: 0.0 | CFQ37: 0.0 | CFR37: 0.0 | CFS37: 0.0 | CFT37: 0.0 | CFU37: 0.0 | CFV37: 0.0 | CFW37: 0.0 | CFX37: 0.0 | CFY37: 0.0 | CFZ37: 0.0 | CGA37: 0.0 | CGB37: 0.0 | CGC37: 0.0 | CGD37: 0.0 | CGE37: 0.0 | CGF37: 0.0 | CGG37: 0.0 | CGH37: 0.0 | CGI37: 0.0 | CGJ37: 0.0 | CGK37: 0.0 | CGL37: 0.0 | CGM37: 0.0 | CGN37: 0.0 | CGO37: 0.0 | CGP37: 0.0 | CGQ37: 0.0 | CGR37: 0.0 | CGS37: 0.0 | CGT37: 0.0 | CGU37: 0.0 | CGV37: 0.0 | CGW37: 0.0 | CGX37: 0.0 | CGY37: 0.0 | CGZ37: 0.0 | CHA37: 0.0 | CHB37: 0.0 | CHC37: 0.0 | CHD37: 0.0 | CHE37: 0.0 | CHF37: 0.0 | CHG37: =SUM(CHG12:CHG35) -> 0.0 | CHH37: 0.0 | CHI37: 0.0 | CHJ37: 0.0 | CHK37: 0.0 | CHL37: 0.0 | CHM37: 0.0 | CHN37: 0.0 | CHO37: 0.0 | CHP37: 0.0 | CHQ37: 0.0 | CHR37: 0.0 | CHS37: 0.0 | CHT37: 0.0 | CHU37: 0.0 | CHV37: 0.0 | CHW37: 0.0 | CHX37: 0.0 | CHY37: 0.0 | CHZ37: 0.0 | CIA37: 0.0 | CIB37: 0.0 | CIC37: 0.0 | CID37: 0.0 | CIE37: 0.0 | CIF37: 0.0 | CIG37: 0.0 | CIH37: 0.0 | CII37: 0.0 | CIJ37: 0.0 | CIK37: 0.0 | CIL37: 0.0 | CIM37: 0.0 | CIN37: 0.0 | CIO37: 0.0 | CIP37: 0.0 | CIQ37: 0.0 | CIR37: 0.0 | CIS37: 0.0 | CIT37: 0.0 | CIU37: 0.0 | CIV37: 0.0 | CIW37: 0.0 | CIX37: 0.0 | CIY37: 0.0 | CIZ37: 0.0 | CJA37: 0.0 | CJB37: 0.0 | CJC37: 0.0 | CJD37: 0.0 | CJE37: 0.0 | CJF37: 0.0 | CJG37: 0.0 | CJH37: 0.0 | CJI37: 0.0 | CJJ37: 0.0 | CJK37: 0.0 | CJL37: 0.0 | CJM37: 0.0 | CJN37: 0.0 | CJO37: 0.0 | CJP37: 0.0 | CJQ37: 0.0 | CJR37: 0.0 | CJS37: =SUM(CJS12:CJS35) -> 0.0 | CJT37: 0.0 | CJU37: 0.0 | CJV37: 0.0 | CJW37: 0.0 | CJX37: 0.0 | CJY37: 0.0 | CJZ37: 0.0 | CKA37: 0.0 | CKB37: 0.0 | CKC37: 0.0 | CKD37: 0.0 | CKE37: 0.0 | CKF37: 0.0 | CKG37: 0.0 | CKH37: 0.0 | CKI37: 0.0 | CKJ37: 0.0 | CKK37: 0.0 | CKL37: 0.0 | CKM37: 0.0 | CKN37: 0.0 | CKO37: 0.0 | CKP37: 0.0 | CKQ37: 0.0 | CKR37: 0.0 | CKS37: 0.0 | CKT37: 0.0 | CKU37: 0.0 | CKV37: 0.0 | CKW37: 0.0 | CKX37: 0.0 | CKY37: 0.0 | CKZ37: 0.0 | CLA37: 0.0 | CLB37: 0.0 | CLC37: 0.0 | CLD37: 0.0 | CLE37: 0.0 | CLF37: 0.0 | CLG37: 0.0 | CLH37: 0.0 | CLI37: 0.0 | CLJ37: 0.0 | CLK37: 0.0 | CLL37: 0.0 | CLM37: 0.0 | CLN37: 0.0 | CLO37: 0.0 | CLP37: 0.0 | CLQ37: 0.0 | CLR37: 0.0 | CLS37: 0.0 | CLT37: 0.0 | CLU37: 0.0 | CLV37: 0.0 | CLW37: 0.0 | CLX37: 0.0 | CLY37: 0.0 | CLZ37: 0.0 | CMA37: 0.0 | CMB37: 0.0 | CMC37: 0.0 | CMD37: 0.0 | CME37: =SUM(CME12:CME35) -> 0.0 | CMF37: 0.0 | CMG37: 0.0 | CMH37: 0.0 | CMI37: 0.0 | CMJ37: 0.0 | CMK37: 0.0 | CML37: 0.0 | CMM37: 0.0 | CMN37: 0.0 | CMO37: 0.0 | CMP37: 0.0 | CMQ37: 0.0 | CMR37: 0.0 | CMS37: 0.0 | CMT37: 0.0 | CMU37: 0.0 | CMV37: 0.0 | CMW37: 0.0 | CMX37: 0.0 | CMY37: 0.0 | CMZ37: 0.0 | CNA37: 0.0 | CNB37: 0.0 | CNC37: 0.0 | CND37: 0.0 | CNE37: 0.0 | CNF37: 0.0 | CNG37: 0.0 | CNH37: 0.0 | CNI37: 0.0 | CNJ37: 0.0 | CNK37: 0.0 | CNL37: 0.0 | CNM37: 0.0 | CNN37: 0.0 | CNO37: 0.0 | CNP37: 0.0 | CNQ37: 0.0 | CNR37: 0.0 | CNS37: 0.0 | CNT37: 0.0 | CNU37: 0.0 | CNV37: 0.0 | CNW37: 0.0 | CNX37: 0.0 | CNY37: 0.0 | CNZ37: 0.0 | COA37: 0.0 | COB37: 0.0 | COC37: 0.0 | COD37: 0.0 | COE37: 0.0 | COF37: 0.0 | COG37: 0.0 | COH37: 0.0 | COI37: 0.0 | COJ37: 0.0 | COK37: 0.0 | COL37: 0.0 | COM37: 0.0 | CON37: 0.0 | COO37: 0.0 | COP37: 0.0 | COQ37: =SUM(COQ12:COQ35) -> 0.0 | COR37: 0.0 | COS37: 0.0 | COT37: 0.0 | COU37: 0.0 | COV37: 0.0 | COW37: 0.0 | COX37: 0.0 | COY37: 0.0 | COZ37: 0.0 | CPA37: 0.0 | CPB37: 0.0 | CPC37: 0.0 | CPD37: 0.0 | CPE37: 0.0 | CPF37: 0.0 | CPG37: 0.0 | CPH37: 0.0 | CPI37: 0.0 | CPJ37: 0.0 | CPK37: 0.0 | CPL37: 0.0 | CPM37: 0.0 | CPN37: 0.0 | CPO37: 0.0 | CPP37: 0.0 | CPQ37: 0.0 | CPR37: 0.0 | CPS37: 0.0 | CPT37: 0.0 | CPU37: 0.0 | CPV37: 0.0 | CPW37: 0.0 | CPX37: 0.0 | CPY37: 0.0 | CPZ37: 0.0 | CQA37: 0.0 | CQB37: 0.0 | CQC37: 0.0 | CQD37: 0.0 | CQE37: 0.0 | CQF37: 0.0 | CQG37: 0.0 | CQH37: 0.0 | CQI37: 0.0 | CQJ37: 0.0 | CQK37: 0.0 | CQL37: 0.0 | CQM37: 0.0 | CQN37: 0.0 | CQO37: 0.0 | CQP37: 0.0 | CQQ37: 0.0 | CQR37: 0.0 | CQS37: 0.0 | CQT37: 0.0 | CQU37: 0.0 | CQV37: 0.0 | CQW37: 0.0 | CQX37: 0.0 | CQY37: 0.0 | CQZ37: 0.0 | CRA37: 0.0 | CRB37: 0.0 | CRC37: =SUM(CRC12:CRC35) -> 0.0 | CRD37: 0.0 | CRE37: 0.0 | CRF37: 0.0 | CRG37: 0.0 | CRH37: 0.0 | CRI37: 0.0 | CRJ37: 0.0 | CRK37: 0.0 | CRL37: 0.0 | CRM37: 0.0 | CRN37: 0.0 | CRO37: 0.0 | CRP37: 0.0 | CRQ37: 0.0 | CRR37: 0.0 | CRS37: 0.0 | CRT37: 0.0 | CRU37: 0.0 | CRV37: 0.0 | CRW37: 0.0 | CRX37: 0.0 | CRY37: 0.0 | CRZ37: 0.0 | CSA37: 0.0 | CSB37: 0.0 | CSC37: 0.0 | CSD37: 0.0 | CSE37: 0.0 | CSF37: 0.0 | CSG37: 0.0 | CSH37: 0.0 | CSI37: 0.0 | CSJ37: 0.0 | CSK37: 0.0 | CSL37: 0.0 | CSM37: 0.0 | CSN37: 0.0 | CSO37: 0.0 | CSP37: 0.0 | CSQ37: 0.0 | CSR37: 0.0 | CSS37: 0.0 | CST37: 0.0 | CSU37: 0.0 | CSV37: 0.0 | CSW37: 0.0 | CSX37: 0.0 | CSY37: 0.0 | CSZ37: 0.0 | CTA37: 0.0 | CTB37: 0.0 | CTC37: 0.0 | CTD37: 0.0 | CTE37: 0.0 | CTF37: 0.0 | CTG37: 0.0 | CTH37: 0.0 | CTI37: 0.0 | CTJ37: 0.0 | CTK37: 0.0 | CTL37: 0.0 | CTM37: 0.0 | CTN37: 0.0 | CTO37: =SUM(CTO12:CTO35) -> 0.0 | CTP37: 0.0 | CTQ37: 0.0 | CTR37: 0.0 | CTS37: 0.0 | CTT37: 0.0 | CTU37: 0.0 | CTV37: 0.0 | CTW37: 0.0 | CTX37: 0.0 | CTY37: 0.0 | CTZ37: 0.0 | CUA37: 0.0 | CUB37: 0.0 | CUC37: 0.0 | CUD37: 0.0 | CUE37: 0.0 | CUF37: 0.0 | CUG37: 0.0 | CUH37: 0.0 | CUI37: 0.0 | CUJ37: 0.0 | CUK37: 0.0 | CUL37: 0.0 | CUM37: 0.0 | CUN37: 0.0 | CUO37: 0.0 | CUP37: 0.0 | CUQ37: 0.0 | CUR37: 0.0 | CUS37: 0.0 | CUT37: 0.0 | CUU37: 0.0 | CUV37: 0.0 | CUW37: 0.0 | CUX37: 0.0 | CUY37: 0.0 | CUZ37: 0.0 | CVA37: 0.0 | CVB37: 0.0 | CVC37: 0.0 | CVD37: 0.0 | CVE37: 0.0 | CVF37: 0.0 | CVG37: 0.0 | CVH37: 0.0 | CVI37: 0.0 | CVJ37: 0.0 | CVK37: 0.0 | CVL37: 0.0 | CVM37: 0.0 | CVN37: 0.0 | CVO37: 0.0 | CVP37: 0.0 | CVQ37: 0.0 | CVR37: 0.0 | CVS37: 0.0 | CVT37: 0.0 | CVU37: 0.0 | CVV37: 0.0 | CVW37: 0.0 | CVX37: 0.0 | CVY37: 0.0 | CVZ37: 0.0 | CWA37: =SUM(CWA12:CWA35) -> 0.0 | CWB37: 0.0 | CWC37: 0.0 | CWD37: 0.0 | CWE37: 0.0 | CWF37: 0.0 | CWG37: 0.0 | CWH37: 0.0 | CWI37: 0.0 | CWJ37: 0.0 | CWK37: 0.0 | CWL37: 0.0 | CWM37: 0.0 | CWN37: 0.0 | CWO37: 0.0 | CWP37: 0.0 | CWQ37: 0.0 | CWR37: 0.0 | CWS37: 0.0 | CWT37: 0.0 | CWU37: 0.0 | CWV37: 0.0 | CWW37: 0.0 | CWX37: 0.0 | CWY37: 0.0 | CWZ37: 0.0 | CXA37: 0.0 | CXB37: 0.0 | CXC37: 0.0 | CXD37: 0.0 | CXE37: 0.0 | CXF37: 0.0 | CXG37: 0.0 | CXH37: 0.0 | CXI37: 0.0 | CXJ37: 0.0 | CXK37: 0.0 | CXL37: 0.0 | CXM37: 0.0 | CXN37: 0.0 | CXO37: 0.0 | CXP37: 0.0 | CXQ37: 0.0 | CXR37: 0.0 | CXS37: 0.0 | CXT37: 0.0 | CXU37: 0.0 | CXV37: 0.0 | CXW37: 0.0 | CXX37: 0.0 | CXY37: 0.0 | CXZ37: 0.0 | CYA37: 0.0 | CYB37: 0.0 | CYC37: 0.0 | CYD37: 0.0 | CYE37: 0.0 | CYF37: 0.0 | CYG37: 0.0 | CYH37: 0.0 | CYI37: 0.0 | CYJ37: 0.0 | CYK37: 0.0 | CYL37: 0.0 | CYM37: =SUM(CYM12:CYM35) -> 0.0 | CYN37: 0.0 | CYO37: 0.0 | CYP37: 0.0 | CYQ37: 0.0 | CYR37: 0.0 | CYS37: 0.0 | CYT37: 0.0 | CYU37: 0.0 | CYV37: 0.0 | CYW37: 0.0 | CYX37: 0.0 | CYY37: 0.0 | CYZ37: 0.0 | CZA37: 0.0 | CZB37: 0.0 | CZC37: 0.0 | CZD37: 0.0 | CZE37: 0.0 | CZF37: 0.0 | CZG37: 0.0 | CZH37: 0.0 | CZI37: 0.0 | CZJ37: 0.0 | CZK37: 0.0 | CZL37: 0.0 | CZM37: 0.0 | CZN37: 0.0 | CZO37: 0.0 | CZP37: 0.0 | CZQ37: 0.0 | CZR37: 0.0 | CZS37: 0.0 | CZT37: 0.0 | CZU37: 0.0 | CZV37: 0.0 | CZW37: 0.0 | CZX37: 0.0 | CZY37: 0.0 | CZZ37: 0.0 | DAA37: 0.0 | DAB37: 0.0 | DAC37: 0.0 | DAD37: 0.0 | DAE37: 0.0 | DAF37: 0.0 | DAG37: 0.0 | DAH37: 0.0 | DAI37: 0.0 | DAJ37: 0.0 | DAK37: 0.0 | DAL37: 0.0 | DAM37: 0.0 | DAN37: 0.0 | DAO37: 0.0 | DAP37: 0.0 | DAQ37: 0.0 | DAR37: 0.0 | DAS37: 0.0 | DAT37: 0.0 | DAU37: 0.0 | DAV37: 0.0 | DAW37: 0.0 | DAX37: 0.0 | DAY37: =SUM(DAY12:DAY35) -> 0.0 | DAZ37: 0.0 | DBA37: 0.0 | DBB37: 0.0 | DBC37: 0.0 | DBD37: 0.0 | DBE37: 0.0 | DBF37: 0.0 | DBG37: 0.0 | DBH37: 0.0 | DBI37: 0.0 | DBJ37: 0.0 | DBK37: 0.0 | DBL37: 0.0 | DBM37: 0.0 | DBN37: 0.0 | DBO37: 0.0 | DBP37: 0.0 | DBQ37: 0.0 | DBR37: 0.0 | DBS37: 0.0 | DBT37: 0.0 | DBU37: 0.0 | DBV37: 0.0 | DBW37: 0.0 | DBX37: 0.0 | DBY37: 0.0 | DBZ37: 0.0 | DCA37: 0.0 | DCB37: 0.0 | DCC37: 0.0 | DCD37: 0.0 | DCE37: 0.0 | DCF37: 0.0 | DCG37: 0.0 | DCH37: 0.0 | DCI37: 0.0 | DCJ37: 0.0 | DCK37: 0.0 | DCL37: 0.0 | DCM37: 0.0 | DCN37: 0.0 | DCO37: 0.0 | DCP37: 0.0 | DCQ37: 0.0 | DCR37: 0.0 | DCS37: 0.0 | DCT37: 0.0 | DCU37: 0.0 | DCV37: 0.0 | DCW37: 0.0 | DCX37: 0.0 | DCY37: 0.0 | DCZ37: 0.0 | DDA37: 0.0 | DDB37: 0.0 | DDC37: 0.0 | DDD37: 0.0 | DDE37: 0.0 | DDF37: 0.0 | DDG37: 0.0 | DDH37: 0.0 | DDI37: 0.0 | DDJ37: 0.0 | DDK37: =SUM(DDK12:DDK35) -> 0.0 | DDL37: 0.0 | DDM37: 0.0 | DDN37: 0.0 | DDO37: 0.0 | DDP37: 0.0 | DDQ37: 0.0 | DDR37: 0.0 | DDS37: 0.0 | DDT37: 0.0 | DDU37: 0.0 | DDV37: 0.0 | DDW37: 0.0 | DDX37: 0.0 | DDY37: 0.0 | DDZ37: 0.0 | DEA37: 0.0 | DEB37: 0.0 | DEC37: 0.0 | DED37: 0.0 | DEE37: 0.0 | DEF37: 0.0 | DEG37: 0.0 | DEH37: 0.0 | DEI37: 0.0 | DEJ37: 0.0 | DEK37: 0.0 | DEL37: 0.0 | DEM37: 0.0 | DEN37: 0.0 | DEO37: 0.0 | DEP37: 0.0 | DEQ37: 0.0 | DER37: 0.0 | DES37: 0.0 | DET37: 0.0 | DEU37: 0.0 | DEV37: 0.0 | DEW37: 0.0 | DEX37: 0.0 | DEY37: 0.0 | DEZ37: 0.0 | DFA37: 0.0 | DFB37: 0.0 | DFC37: 0.0 | DFD37: 0.0 | DFE37: 0.0 | DFF37: 0.0 | DFG37: 0.0 | DFH37: 0.0 | DFI37: 0.0 | DFJ37: 0.0 | DFK37: 0.0 | DFL37: 0.0 | DFM37: 0.0 | DFN37: 0.0 | DFO37: 0.0 | DFP37: 0.0 | DFQ37: 0.0 | DFR37: 0.0 | DFS37: 0.0 | DFT37: 0.0 | DFU37: 0.0 | DFV37: 0.0 | DFW37: =SUM(DFW12:DFW35) -> 0.0 | DFX37: 0.0 | DFY37: 0.0 | DFZ37: 0.0 | DGA37: 0.0 | DGB37: 0.0 | DGC37: 0.0 | DGD37: 0.0 | DGE37: 0.0 | DGF37: 0.0 | DGG37: 0.0 | DGH37: 0.0 | DGI37: 0.0 | DGJ37: 0.0 | DGK37: 0.0 | DGL37: 0.0 | DGM37: 0.0 | DGN37: 0.0 | DGO37: 0.0 | DGP37: 0.0 | DGQ37: 0.0 | DGR37: 0.0 | DGS37: 0.0 | DGT37: 0.0 | DGU37: 0.0 | DGV37: 0.0 | DGW37: 0.0 | DGX37: 0.0 | DGY37: 0.0 | DGZ37: 0.0 | DHA37: 0.0 | DHB37: 0.0 | DHC37: 0.0 | DHD37: 0.0 | DHE37: 0.0 | DHF37: 0.0 | DHG37: 0.0 | DHH37: 0.0 | DHI37: 0.0 | DHJ37: 0.0 | DHK37: 0.0 | DHL37: 0.0 | DHM37: 0.0 | DHN37: 0.0 | DHO37: 0.0 | DHP37: 0.0 | DHQ37: 0.0 | DHR37: 0.0 | DHS37: 0.0 | DHT37: 0.0 | DHU37: 0.0 | DHV37: 0.0 | DHW37: 0.0 | DHX37: 0.0 | DHY37: 0.0 | DHZ37: 0.0 | DIA37: 0.0 | DIB37: 0.0 | DIC37: 0.0 | DID37: 0.0 | DIE37: 0.0 | DIF37: 0.0 | DIG37: 0.0 | DIH37: 0.0 | DII37: =SUM(DII12:DII35) -> 0.0 | DIJ37: 0.0 | DIK37: 0.0 | DIL37: 0.0 | DIM37: 0.0 | DIN37: 0.0 | DIO37: 0.0 | DIP37: 0.0 | DIQ37: 0.0 | DIR37: 0.0 | DIS37: 0.0 | DIT37: 0.0 | DIU37: 0.0 | DIV37: 0.0 | DIW37: 0.0 | DIX37: 0.0 | DIY37: 0.0 | DIZ37: 0.0 | DJA37: 0.0 | DJB37: 0.0 | DJC37: 0.0 | DJD37: 0.0 | DJE37: 0.0 | DJF37: 0.0 | DJG37: 0.0 | DJH37: 0.0 | DJI37: 0.0 | DJJ37: 0.0 | DJK37: 0.0 | DJL37: 0.0 | DJM37: 0.0 | DJN37: 0.0 | DJO37: 0.0 | DJP37: 0.0 | DJQ37: 0.0 | DJR37: 0.0 | DJS37: 0.0 | DJT37: 0.0 | DJU37: 0.0 | DJV37: 0.0 | DJW37: 0.0 | DJX37: 0.0 | DJY37: 0.0 | DJZ37: 0.0 | DKA37: 0.0 | DKB37: 0.0 | DKC37: 0.0 | DKD37: 0.0 | DKE37: 0.0 | DKF37: 0.0 | DKG37: 0.0 | DKH37: 0.0 | DKI37: 0.0 | DKJ37: 0.0 | DKK37: 0.0 | DKL37: 0.0 | DKM37: 0.0 | DKN37: 0.0 | DKO37: 0.0 | DKP37: 0.0 | DKQ37: 0.0 | DKR37: 0.0 | DKS37: 0.0 | DKT37: 0.0 | DKU37: =SUM(DKU12:DKU35) -> 0.0 | DKV37: 0.0 | DKW37: 0.0 | DKX37: 0.0 | DKY37: 0.0 | DKZ37: 0.0 | DLA37: 0.0 | DLB37: 0.0 | DLC37: 0.0 | DLD37: 0.0 | DLE37: 0.0 | DLF37: 0.0 | DLG37: 0.0 | DLH37: 0.0 | DLI37: 0.0 | DLJ37: 0.0 | DLK37: 0.0 | DLL37: 0.0 | DLM37: 0.0 | DLN37: 0.0 | DLO37: 0.0 | DLP37: 0.0 | DLQ37: 0.0 | DLR37: 0.0 | DLS37: 0.0 | DLT37: 0.0 | DLU37: 0.0 | DLV37: 0.0 | DLW37: 0.0 | DLX37: 0.0 | DLY37: 0.0 | DLZ37: 0.0 | DMA37: 0.0 | DMB37: 0.0 | DMC37: 0.0 | DMD37: 0.0 | DME37: 0.0 | DMF37: 0.0 | DMG37: 0.0 | DMH37: 0.0 | DMI37: 0.0 | DMJ37: 0.0 | DMK37: 0.0 | DML37: 0.0 | DMM37: 0.0 | DMN37: 0.0 | DMO37: 0.0 | DMP37: 0.0 | DMQ37: 0.0 | DMR37: 0.0 | DMS37: 0.0 | DMT37: 0.0 | DMU37: 0.0 | DMV37: 0.0 | DMW37: 0.0 | DMX37: 0.0 | DMY37: 0.0 | DMZ37: 0.0 | DNA37: 0.0 | DNB37: 0.0 | DNC37: 0.0 | DND37: 0.0 | DNE37: 0.0 | DNF37: 0.0 | DNG37: =SUM(DNG12:DNG35) -> 0.0 | DNH37: 0.0 | DNI37: 0.0 | DNJ37: 0.0 | DNK37: 0.0 | DNL37: 0.0 | DNM37: 0.0 | DNN37: 0.0 | DNO37: 0.0 | DNP37: 0.0 | DNQ37: 0.0 | DNR37: 0.0 | DNS37: 0.0 | DNT37: 0.0 | DNU37: 0.0 | DNV37: 0.0 | DNW37: 0.0 | DNX37: 0.0 | DNY37: 0.0 | DNZ37: 0.0 | DOA37: 0.0 | DOB37: 0.0 | DOC37: 0.0 | DOD37: 0.0 | DOE37: 0.0 | DOF37: 0.0 | DOG37: 0.0 | DOH37: 0.0 | DOI37: 0.0 | DOJ37: 0.0 | DOK37: 0.0 | DOL37: 0.0 | DOM37: 0.0 | DON37: 0.0 | DOO37: 0.0 | DOP37: 0.0 | DOQ37: 0.0 | DOR37: 0.0 | DOS37: 0.0 | DOT37: 0.0 | DOU37: 0.0 | DOV37: 0.0 | DOW37: 0.0 | DOX37: 0.0 | DOY37: 0.0 | DOZ37: 0.0 | DPA37: 0.0 | DPB37: 0.0 | DPC37: 0.0 | DPD37: 0.0 | DPE37: 0.0 | DPF37: 0.0 | DPG37: 0.0 | DPH37: 0.0 | DPI37: 0.0 | DPJ37: 0.0 | DPK37: 0.0 | DPL37: 0.0 | DPM37: 0.0 | DPN37: 0.0 | DPO37: 0.0 | DPP37: 0.0 | DPQ37: 0.0 | DPR37: 0.0 | DPS37: =SUM(DPS12:DPS35) -> 0.0 | DPT37: 0.0 | DPU37: 0.0 | DPV37: 0.0 | DPW37: 0.0 | DPX37: 0.0 | DPY37: 0.0 | DPZ37: 0.0 | DQA37: 0.0 | DQB37: 0.0 | DQC37: 0.0 | DQD37: 0.0 | DQE37: 0.0 | DQF37: 0.0 | DQG37: 0.0 | DQH37: 0.0 | DQI37: 0.0 | DQJ37: 0.0 | DQK37: 0.0 | DQL37: 0.0 | DQM37: 0.0 | DQN37: 0.0 | DQO37: 0.0 | DQP37: 0.0 | DQQ37: 0.0 | DQR37: 0.0 | DQS37: 0.0 | DQT37: 0.0 | DQU37: 0.0 | DQV37: 0.0 | DQW37: 0.0 | DQX37: 0.0 | DQY37: 0.0 | DQZ37: 0.0 | DRA37: 0.0 | DRB37: 0.0 | DRC37: 0.0 | DRD37: 0.0 | DRE37: 0.0 | DRF37: 0.0 | DRG37: 0.0 | DRH37: 0.0 | DRI37: 0.0 | DRJ37: 0.0 | DRK37: 0.0 | DRL37: 0.0 | DRM37: 0.0 | DRN37: 0.0 | DRO37: 0.0 | DRP37: 0.0 | DRQ37: 0.0 | DRR37: 0.0 | DRS37: 0.0 | DRT37: 0.0 | DRU37: 0.0 | DRV37: 0.0 | DRW37: 0.0 | DRX37: 0.0 | DRY37: 0.0 | DRZ37: 0.0 | DSA37: 0.0 | DSB37: 0.0 | DSC37: 0.0 | DSD37: 0.0 | DSE37: =SUM(DSE12:DSE35) -> 0.0 | DSF37: 0.0 | DSG37: 0.0 | DSH37: 0.0 | DSI37: 0.0 | DSJ37: 0.0 | DSK37: 0.0 | DSL37: 0.0 | DSM37: 0.0 | DSN37: 0.0 | DSO37: 0.0 | DSP37: 0.0 | DSQ37: 0.0 | DSR37: 0.0 | DSS37: 0.0 | DST37: 0.0 | DSU37: 0.0 | DSV37: 0.0 | DSW37: 0.0 | DSX37: 0.0 | DSY37: 0.0 | DSZ37: 0.0 | DTA37: 0.0 | DTB37: 0.0 | DTC37: 0.0 | DTD37: 0.0 | DTE37: 0.0 | DTF37: 0.0 | DTG37: 0.0 | DTH37: 0.0 | DTI37: 0.0 | DTJ37: 0.0 | DTK37: 0.0 | DTL37: 0.0 | DTM37: 0.0 | DTN37: 0.0 | DTO37: 0.0 | DTP37: 0.0 | DTQ37: 0.0 | DTR37: 0.0 | DTS37: 0.0 | DTT37: 0.0 | DTU37: 0.0 | DTV37: 0.0 | DTW37: 0.0 | DTX37: 0.0 | DTY37: 0.0 | DTZ37: 0.0 | DUA37: 0.0 | DUB37: 0.0 | DUC37: 0.0 | DUD37: 0.0 | DUE37: 0.0 | DUF37: 0.0 | DUG37: 0.0 | DUH37: 0.0 | DUI37: 0.0 | DUJ37: 0.0 | DUK37: 0.0 | DUL37: 0.0 | DUM37: 0.0 | DUN37: 0.0 | DUO37: 0.0 | DUP37: 0.0 | DUQ37: =SUM(DUQ12:DUQ35) -> 0.0 | DUR37: 0.0 | DUS37: 0.0 | DUT37: 0.0 | DUU37: 0.0 | DUV37: 0.0 | DUW37: 0.0 | DUX37: 0.0 | DUY37: 0.0 | DUZ37: 0.0 | DVA37: 0.0 | DVB37: 0.0 | DVC37: 0.0 | DVD37: 0.0 | DVE37: 0.0 | DVF37: 0.0 | DVG37: 0.0 | DVH37: 0.0 | DVI37: 0.0 | DVJ37: 0.0 | DVK37: 0.0 | DVL37: 0.0 | DVM37: 0.0 | DVN37: 0.0 | DVO37: 0.0 | DVP37: 0.0 | DVQ37: 0.0 | DVR37: 0.0 | DVS37: 0.0 | DVT37: 0.0 | DVU37: 0.0 | DVV37: 0.0 | DVW37: 0.0 | DVX37: 0.0 | DVY37: 0.0 | DVZ37: 0.0 | DWA37: 0.0 | DWB37: 0.0 | DWC37: 0.0 | DWD37: 0.0 | DWE37: 0.0 | DWF37: 0.0 | DWG37: 0.0 | DWH37: 0.0 | DWI37: 0.0 | DWJ37: 0.0 | DWK37: 0.0 | DWL37: 0.0 | DWM37: 0.0 | DWN37: 0.0 | DWO37: 0.0 | DWP37: 0.0 | DWQ37: 0.0 | DWR37: 0.0 | DWS37: 0.0 | DWT37: 0.0 | DWU37: 0.0 | DWV37: 0.0 | DWW37: 0.0 | DWX37: 0.0 | DWY37: 0.0 | DWZ37: 0.0 | DXA37: 0.0 | DXB37: 0.0 | DXC37: =SUM(DXC12:DXC35) -> 0.0 | DXD37: 0.0 | DXE37: 0.0 | DXF37: 0.0 | DXG37: 0.0 | DXH37: 0.0 | DXI37: 0.0 | DXJ37: 0.0 | DXK37: 0.0 | DXL37: 0.0 | DXM37: 0.0 | DXN37: 0.0 | DXO37: 0.0 | DXP37: 0.0 | DXQ37: 0.0 | DXR37: 0.0 | DXS37: 0.0 | DXT37: 0.0 | DXU37: 0.0 | DXV37: 0.0 | DXW37: 0.0 | DXX37: 0.0 | DXY37: 0.0 | DXZ37: 0.0 | DYA37: 0.0 | DYB37: 0.0 | DYC37: 0.0 | DYD37: 0.0 | DYE37: 0.0 | DYF37: 0.0 | DYG37: 0.0 | DYH37: 0.0 | DYI37: 0.0 | DYJ37: 0.0 | DYK37: 0.0 | DYL37: 0.0 | DYM37: 0.0 | DYN37: 0.0 | DYO37: 0.0 | DYP37: 0.0 | DYQ37: 0.0 | DYR37: 0.0 | DYS37: 0.0 | DYT37: 0.0 | DYU37: 0.0 | DYV37: 0.0 | DYW37: 0.0 | DYX37: 0.0 | DYY37: 0.0 | DYZ37: 0.0 | DZA37: 0.0 | DZB37: 0.0 | DZC37: 0.0 | DZD37: 0.0 | DZE37: 0.0 | DZF37: 0.0 | DZG37: 0.0 | DZH37: 0.0 | DZI37: 0.0 | DZJ37: 0.0 | DZK37: 0.0 | DZL37: 0.0 | DZM37: 0.0 | DZN37: 0.0 | DZO37: =SUM(DZO12:DZO35) -> 0.0 | DZP37: 0.0 | DZQ37: 0.0 | DZR37: 0.0 | DZS37: 0.0 | DZT37: 0.0 | DZU37: 0.0 | DZV37: 0.0 | DZW37: 0.0 | DZX37: 0.0 | DZY37: 0.0 | DZZ37: 0.0 | EAA37: 0.0 | EAB37: 0.0 | EAC37: 0.0 | EAD37: 0.0 | EAE37: 0.0 | EAF37: 0.0 | EAG37: 0.0 | EAH37: 0.0 | EAI37: 0.0 | EAJ37: 0.0 | EAK37: 0.0 | EAL37: 0.0 | EAM37: 0.0 | EAN37: 0.0 | EAO37: 0.0 | EAP37: 0.0 | EAQ37: 0.0 | EAR37: 0.0 | EAS37: 0.0 | EAT37: 0.0 | EAU37: 0.0 | EAV37: 0.0 | EAW37: 0.0 | EAX37: 0.0 | EAY37: 0.0 | EAZ37: 0.0 | EBA37: 0.0 | EBB37: 0.0 | EBC37: 0.0 | EBD37: 0.0 | EBE37: 0.0 | EBF37: 0.0 | EBG37: 0.0 | EBH37: 0.0 | EBI37: 0.0 | EBJ37: 0.0 | EBK37: 0.0 | EBL37: 0.0 | EBM37: 0.0 | EBN37: 0.0 | EBO37: 0.0 | EBP37: 0.0 | EBQ37: 0.0 | EBR37: 0.0 | EBS37: 0.0 | EBT37: 0.0 | EBU37: 0.0 | EBV37: 0.0 | EBW37: 0.0 | EBX37: 0.0 | EBY37: 0.0 | EBZ37: 0.0 | ECA37: =SUM(ECA12:ECA35) -> 0.0 | ECB37: 0.0 | ECC37: 0.0 | ECD37: 0.0 | ECE37: 0.0 | ECF37: 0.0 | ECG37: 0.0 | ECH37: 0.0 | ECI37: 0.0 | ECJ37: 0.0 | ECK37: 0.0 | ECL37: 0.0 | ECM37: 0.0 | ECN37: 0.0 | ECO37: 0.0 | ECP37: 0.0 | ECQ37: 0.0 | ECR37: 0.0 | ECS37: 0.0 | ECT37: 0.0 | ECU37: 0.0 | ECV37: 0.0 | ECW37: 0.0 | ECX37: 0.0 | ECY37: 0.0 | ECZ37: 0.0 | EDA37: 0.0 | EDB37: 0.0 | EDC37: 0.0 | EDD37: 0.0 | EDE37: 0.0 | EDF37: 0.0 | EDG37: 0.0 | EDH37: 0.0 | EDI37: 0.0 | EDJ37: 0.0 | EDK37: 0.0 | EDL37: 0.0 | EDM37: 0.0 | EDN37: 0.0 | EDO37: 0.0 | EDP37: 0.0 | EDQ37: 0.0 | EDR37: 0.0 | EDS37: 0.0 | EDT37: 0.0 | EDU37: 0.0 | EDV37: 0.0 | EDW37: 0.0 | EDX37: 0.0 | EDY37: 0.0 | EDZ37: 0.0 | EEA37: 0.0 | EEB37: 0.0 | EEC37: 0.0 | EED37: 0.0 | EEE37: 0.0 | EEF37: 0.0 | EEG37: 0.0 | EEH37: 0.0 | EEI37: 0.0 | EEJ37: 0.0 | EEK37: 0.0 | EEL37: 0.0 | EEM37: =SUM(EEM12:EEM35) -> 0.0 | EEN37: 0.0 | EEO37: 0.0 | EEP37: 0.0 | EEQ37: 0.0 | EER37: 0.0 | EES37: 0.0 | EET37: 0.0 | EEU37: 0.0 | EEV37: 0.0 | EEW37: 0.0 | EEX37: 0.0 | EEY37: 0.0 | EEZ37: 0.0 | EFA37: 0.0 | EFB37: 0.0 | EFC37: 0.0 | EFD37: 0.0 | EFE37: 0.0 | EFF37: 0.0 | EFG37: 0.0 | EFH37: 0.0 | EFI37: 0.0 | EFJ37: 0.0 | EFK37: 0.0 | EFL37: 0.0 | EFM37: 0.0 | EFN37: 0.0 | EFO37: 0.0 | EFP37: 0.0 | EFQ37: 0.0 | EFR37: 0.0 | EFS37: 0.0 | EFT37: 0.0 | EFU37: 0.0 | EFV37: 0.0 | EFW37: 0.0 | EFX37: 0.0 | EFY37: 0.0 | EFZ37: 0.0 | EGA37: 0.0 | EGB37: 0.0 | EGC37: 0.0 | EGD37: 0.0 | EGE37: 0.0 | EGF37: 0.0 | EGG37: 0.0 | EGH37: 0.0 | EGI37: 0.0 | EGJ37: 0.0 | EGK37: 0.0 | EGL37: 0.0 | EGM37: 0.0 | EGN37: 0.0 | EGO37: 0.0 | EGP37: 0.0 | EGQ37: 0.0 | EGR37: 0.0 | EGS37: 0.0 | EGT37: 0.0 | EGU37: 0.0 | EGV37: 0.0 | EGW37: 0.0 | EGX37: 0.0 | EGY37: =SUM(EGY12:EGY35) -> 0.0 | EGZ37: 0.0 | EHA37: 0.0 | EHB37: 0.0 | EHC37: 0.0 | EHD37: 0.0 | EHE37: 0.0 | EHF37: 0.0 | EHG37: 0.0 | EHH37: 0.0 | EHI37: 0.0 | EHJ37: 0.0 | EHK37: 0.0 | EHL37: 0.0 | EHM37: 0.0 | EHN37: 0.0 | EHO37: 0.0 | EHP37: 0.0 | EHQ37: 0.0 | EHR37: 0.0 | EHS37: 0.0 | EHT37: 0.0 | EHU37: 0.0 | EHV37: 0.0 | EHW37: 0.0 | EHX37: 0.0 | EHY37: 0.0 | EHZ37: 0.0 | EIA37: 0.0 | EIB37: 0.0 | EIC37: 0.0 | EID37: 0.0 | EIE37: 0.0 | EIF37: 0.0 | EIG37: 0.0 | EIH37: 0.0 | EII37: 0.0 | EIJ37: 0.0 | EIK37: 0.0 | EIL37: 0.0 | EIM37: 0.0 | EIN37: 0.0 | EIO37: 0.0 | EIP37: 0.0 | EIQ37: 0.0 | EIR37: 0.0 | EIS37: 0.0 | EIT37: 0.0 | EIU37: 0.0 | EIV37: 0.0 | EIW37: 0.0 | EIX37: 0.0 | EIY37: 0.0 | EIZ37: 0.0 | EJA37: 0.0 | EJB37: 0.0 | EJC37: 0.0 | EJD37: 0.0 | EJE37: 0.0 | EJF37: 0.0 | EJG37: 0.0 | EJH37: 0.0 | EJI37: 0.0 | EJJ37: 0.0 | EJK37: =SUM(EJK12:EJK35) -> 0.0 | EJL37: 0.0 | EJM37: 0.0 | EJN37: 0.0 | EJO37: 0.0 | EJP37: 0.0 | EJQ37: 0.0 | EJR37: 0.0 | EJS37: 0.0 | EJT37: 0.0 | EJU37: 0.0 | EJV37: 0.0 | EJW37: 0.0 | EJX37: 0.0 | EJY37: 0.0 | EJZ37: 0.0 | EKA37: 0.0 | EKB37: 0.0 | EKC37: 0.0 | EKD37: 0.0 | EKE37: 0.0 | EKF37: 0.0 | EKG37: 0.0 | EKH37: 0.0 | EKI37: 0.0 | EKJ37: 0.0 | EKK37: 0.0 | EKL37: 0.0 | EKM37: 0.0 | EKN37: 0.0 | EKO37: 0.0 | EKP37: 0.0 | EKQ37: 0.0 | EKR37: 0.0 | EKS37: 0.0 | EKT37: 0.0 | EKU37: 0.0 | EKV37: 0.0 | EKW37: 0.0 | EKX37: 0.0 | EKY37: 0.0 | EKZ37: 0.0 | ELA37: 0.0 | ELB37: 0.0 | ELC37: 0.0 | ELD37: 0.0 | ELE37: 0.0 | ELF37: 0.0 | ELG37: 0.0 | ELH37: 0.0 | ELI37: 0.0 | ELJ37: 0.0 | ELK37: 0.0 | ELL37: 0.0 | ELM37: 0.0 | ELN37: 0.0 | ELO37: 0.0 | ELP37: 0.0 | ELQ37: 0.0 | ELR37: 0.0 | ELS37: 0.0 | ELT37: 0.0 | ELU37: 0.0 | ELV37: 0.0 | ELW37: =SUM(ELW12:ELW35) -> 0.0 | ELX37: 0.0 | ELY37: 0.0 | ELZ37: 0.0 | EMA37: 0.0 | EMB37: 0.0 | EMC37: 0.0 | EMD37: 0.0 | EME37: 0.0 | EMF37: 0.0 | EMG37: 0.0 | EMH37: 0.0 | EMI37: 0.0 | EMJ37: 0.0 | EMK37: 0.0 | EML37: 0.0 | EMM37: 0.0 | EMN37: 0.0 | EMO37: 0.0 | EMP37: 0.0 | EMQ37: 0.0 | EMR37: 0.0 | EMS37: 0.0 | EMT37: 0.0 | EMU37: 0.0 | EMV37: 0.0 | EMW37: 0.0 | EMX37: 0.0 | EMY37: 0.0 | EMZ37: 0.0 | ENA37: 0.0 | ENB37: 0.0 | ENC37: 0.0 | END37: 0.0 | ENE37: 0.0 | ENF37: 0.0 | ENG37: 0.0 | ENH37: 0.0 | ENI37: 0.0 | ENJ37: 0.0 | ENK37: 0.0 | ENL37: 0.0 | ENM37: 0.0 | ENN37: 0.0 | ENO37: 0.0 | ENP37: 0.0 | ENQ37: 0.0 | ENR37: 0.0 | ENS37: 0.0 | ENT37: 0.0 | ENU37: 0.0 | ENV37: 0.0 | ENW37: 0.0 | ENX37: 0.0 | ENY37: 0.0 | ENZ37: 0.0 | EOA37: 0.0 | EOB37: 0.0 | EOC37: 0.0 | EOD37: 0.0 | EOE37: 0.0 | EOF37: 0.0 | EOG37: 0.0 | EOH37: 0.0 | EOI37: =SUM(EOI12:EOI35) -> 0.0 | EOJ37: 0.0 | EOK37: 0.0 | EOL37: 0.0 | EOM37: 0.0 | EON37: 0.0 | EOO37: 0.0 | EOP37: 0.0 | EOQ37: 0.0 | EOR37: 0.0 | EOS37: 0.0 | EOT37: 0.0 | EOU37: 0.0 | EOV37: 0.0 | EOW37: 0.0 | EOX37: 0.0 | EOY37: 0.0 | EOZ37: 0.0 | EPA37: 0.0 | EPB37: 0.0 | EPC37: 0.0 | EPD37: 0.0 | EPE37: 0.0 | EPF37: 0.0 | EPG37: 0.0 | EPH37: 0.0 | EPI37: 0.0 | EPJ37: 0.0 | EPK37: 0.0 | EPL37: 0.0 | EPM37: 0.0 | EPN37: 0.0 | EPO37: 0.0 | EPP37: 0.0 | EPQ37: 0.0 | EPR37: 0.0 | EPS37: 0.0 | EPT37: 0.0 | EPU37: 0.0 | EPV37: 0.0 | EPW37: 0.0 | EPX37: 0.0 | EPY37: 0.0 | EPZ37: 0.0 | EQA37: 0.0 | EQB37: 0.0 | EQC37: 0.0 | EQD37: 0.0 | EQE37: 0.0 | EQF37: 0.0 | EQG37: 0.0 | EQH37: 0.0 | EQI37: 0.0 | EQJ37: 0.0 | EQK37: 0.0 | EQL37: 0.0 | EQM37: 0.0 | EQN37: 0.0 | EQO37: 0.0 | EQP37: 0.0 | EQQ37: 0.0 | EQR37: 0.0 | EQS37: 0.0 | EQT37: 0.0 | EQU37: =SUM(EQU12:EQU35) -> 0.0 | EQV37: 0.0 | EQW37: 0.0 | EQX37: 0.0 | EQY37: 0.0 | EQZ37: 0.0 | ERA37: 0.0 | ERB37: 0.0 | ERC37: 0.0 | ERD37: 0.0 | ERE37: 0.0 | ERF37: 0.0 | ERG37: 0.0 | ERH37: 0.0 | ERI37: 0.0 | ERJ37: 0.0 | ERK37: 0.0 | ERL37: 0.0 | ERM37: 0.0 | ERN37: 0.0 | ERO37: 0.0 | ERP37: 0.0 | ERQ37: 0.0 | ERR37: 0.0 | ERS37: 0.0 | ERT37: 0.0 | ERU37: 0.0 | ERV37: 0.0 | ERW37: 0.0 | ERX37: 0.0 | ERY37: 0.0 | ERZ37: 0.0 | ESA37: 0.0 | ESB37: 0.0 | ESC37: 0.0 | ESD37: 0.0 | ESE37: 0.0 | ESF37: 0.0 | ESG37: 0.0 | ESH37: 0.0 | ESI37: 0.0 | ESJ37: 0.0 | ESK37: 0.0 | ESL37: 0.0 | ESM37: 0.0 | ESN37: 0.0 | ESO37: 0.0 | ESP37: 0.0 | ESQ37: 0.0 | ESR37: 0.0 | ESS37: 0.0 | EST37: 0.0 | ESU37: 0.0 | ESV37: 0.0 | ESW37: 0.0 | ESX37: 0.0 | ESY37: 0.0 | ESZ37: 0.0 | ETA37: 0.0 | ETB37: 0.0 | ETC37: 0.0 | ETD37: 0.0 | ETE37: 0.0 | ETF37: 0.0 | ETG37: =SUM(ETG12:ETG35) -> 0.0 | ETH37: 0.0 | ETI37: 0.0 | ETJ37: 0.0 | ETK37: 0.0 | ETL37: 0.0 | ETM37: 0.0 | ETN37: 0.0 | ETO37: 0.0 | ETP37: 0.0 | ETQ37: 0.0 | ETR37: 0.0 | ETS37: 0.0 | ETT37: 0.0 | ETU37: 0.0 | ETV37: 0.0 | ETW37: 0.0 | ETX37: 0.0 | ETY37: 0.0 | ETZ37: 0.0 | EUA37: 0.0 | EUB37: 0.0 | EUC37: 0.0 | EUD37: 0.0 | EUE37: 0.0 | EUF37: 0.0 | EUG37: 0.0 | EUH37: 0.0 | EUI37: 0.0 | EUJ37: 0.0 | EUK37: 0.0 | EUL37: 0.0 | EUM37: 0.0 | EUN37: 0.0 | EUO37: 0.0 | EUP37: 0.0 | EUQ37: 0.0 | EUR37: 0.0 | EUS37: 0.0 | EUT37: 0.0 | EUU37: 0.0 | EUV37: 0.0 | EUW37: 0.0 | EUX37: 0.0 | EUY37: 0.0 | EUZ37: 0.0 | EVA37: 0.0 | EVB37: 0.0 | EVC37: 0.0 | EVD37: 0.0 | EVE37: 0.0 | EVF37: 0.0 | EVG37: 0.0 | EVH37: 0.0 | EVI37: 0.0 | EVJ37: 0.0 | EVK37: 0.0 | EVL37: 0.0 | EVM37: 0.0 | EVN37: 0.0 | EVO37: 0.0 | EVP37: 0.0 | EVQ37: 0.0 | EVR37: 0.0 | EVS37: =SUM(EVS12:EVS35) -> 0.0 | EVT37: 0.0 | EVU37: 0.0 | EVV37: 0.0 | EVW37: 0.0 | EVX37: 0.0 | EVY37: 0.0 | EVZ37: 0.0 | EWA37: 0.0 | EWB37: 0.0 | EWC37: 0.0 | EWD37: 0.0 | EWE37: 0.0 | EWF37: 0.0 | EWG37: 0.0 | EWH37: 0.0 | EWI37: 0.0 | EWJ37: 0.0 | EWK37: 0.0 | EWL37: 0.0 | EWM37: 0.0 | EWN37: 0.0 | EWO37: 0.0 | EWP37: 0.0 | EWQ37: 0.0 | EWR37: 0.0 | EWS37: 0.0 | EWT37: 0.0 | EWU37: 0.0 | EWV37: 0.0 | EWW37: 0.0 | EWX37: 0.0 | EWY37: 0.0 | EWZ37: 0.0 | EXA37: 0.0 | EXB37: 0.0 | EXC37: 0.0 | EXD37: 0.0 | EXE37: 0.0 | EXF37: 0.0 | EXG37: 0.0 | EXH37: 0.0 | EXI37: 0.0 | EXJ37: 0.0 | EXK37: 0.0 | EXL37: 0.0 | EXM37: 0.0 | EXN37: 0.0 | EXO37: 0.0 | EXP37: 0.0 | EXQ37: 0.0 | EXR37: 0.0 | EXS37: 0.0 | EXT37: 0.0 | EXU37: 0.0 | EXV37: 0.0 | EXW37: 0.0 | EXX37: 0.0 | EXY37: 0.0 | EXZ37: 0.0 | EYA37: 0.0 | EYB37: 0.0 | EYC37: 0.0 | EYD37: 0.0 | EYE37: =SUM(EYE12:EYE35) -> 0.0 | EYF37: 0.0 | EYG37: 0.0 | EYH37: 0.0 | EYI37: 0.0 | EYJ37: 0.0 | EYK37: 0.0 | EYL37: 0.0 | EYM37: 0.0 | EYN37: 0.0 | EYO37: 0.0 | EYP37: 0.0 | EYQ37: 0.0 | EYR37: 0.0 | EYS37: 0.0 | EYT37: 0.0 | EYU37: 0.0 | EYV37: 0.0 | EYW37: 0.0 | EYX37: 0.0 | EYY37: 0.0 | EYZ37: 0.0 | EZA37: 0.0 | EZB37: 0.0 | EZC37: 0.0 | EZD37: 0.0 | EZE37: 0.0 | EZF37: 0.0 | EZG37: 0.0 | EZH37: 0.0 | EZI37: 0.0 | EZJ37: 0.0 | EZK37: 0.0 | EZL37: 0.0 | EZM37: 0.0 | EZN37: 0.0 | EZO37: 0.0 | EZP37: 0.0 | EZQ37: 0.0 | EZR37: 0.0 | EZS37: 0.0 | EZT37: 0.0 | EZU37: 0.0 | EZV37: 0.0 | EZW37: 0.0 | EZX37: 0.0 | EZY37: 0.0 | EZZ37: 0.0 | FAA37: 0.0 | FAB37: 0.0 | FAC37: 0.0 | FAD37: 0.0 | FAE37: 0.0 | FAF37: 0.0 | FAG37: 0.0 | FAH37: 0.0 | FAI37: 0.0 | FAJ37: 0.0 | FAK37: 0.0 | FAL37: 0.0 | FAM37: 0.0 | FAN37: 0.0 | FAO37: 0.0 | FAP37: 0.0 | FAQ37: =SUM(FAQ12:FAQ35) -> 0.0 | FAR37: 0.0 | FAS37: 0.0 | FAT37: 0.0 | FAU37: 0.0 | FAV37: 0.0 | FAW37: 0.0 | FAX37: 0.0 | FAY37: 0.0 | FAZ37: 0.0 | FBA37: 0.0 | FBB37: 0.0 | FBC37: 0.0 | FBD37: 0.0 | FBE37: 0.0 | FBF37: 0.0 | FBG37: 0.0 | FBH37: 0.0 | FBI37: 0.0 | FBJ37: 0.0 | FBK37: 0.0 | FBL37: 0.0 | FBM37: 0.0 | FBN37: 0.0 | FBO37: 0.0 | FBP37: 0.0 | FBQ37: 0.0 | FBR37: 0.0 | FBS37: 0.0 | FBT37: 0.0 | FBU37: 0.0 | FBV37: 0.0 | FBW37: 0.0 | FBX37: 0.0 | FBY37: 0.0 | FBZ37: 0.0 | FCA37: 0.0 | FCB37: 0.0 | FCC37: 0.0 | FCD37: 0.0 | FCE37: 0.0 | FCF37: 0.0 | FCG37: 0.0 | FCH37: 0.0 | FCI37: 0.0 | FCJ37: 0.0 | FCK37: 0.0 | FCL37: 0.0 | FCM37: 0.0 | FCN37: 0.0 | FCO37: 0.0 | FCP37: 0.0 | FCQ37: 0.0 | FCR37: 0.0 | FCS37: 0.0 | FCT37: 0.0 | FCU37: 0.0 | FCV37: 0.0 | FCW37: 0.0 | FCX37: 0.0 | FCY37: 0.0 | FCZ37: 0.0 | FDA37: 0.0 | FDB37: 0.0 | FDC37: =SUM(FDC12:FDC35) -> 0.0 | FDD37: 0.0 | FDE37: 0.0 | FDF37: 0.0 | FDG37: 0.0 | FDH37: 0.0 | FDI37: 0.0 | FDJ37: 0.0 | FDK37: 0.0 | FDL37: 0.0 | FDM37: 0.0 | FDN37: 0.0 | FDO37: 0.0 | FDP37: 0.0 | FDQ37: 0.0 | FDR37: 0.0 | FDS37: 0.0 | FDT37: 0.0 | FDU37: 0.0 | FDV37: 0.0 | FDW37: 0.0 | FDX37: 0.0 | FDY37: 0.0 | FDZ37: 0.0 | FEA37: 0.0 | FEB37: 0.0 | FEC37: 0.0 | FED37: 0.0 | FEE37: 0.0 | FEF37: 0.0 | FEG37: 0.0 | FEH37: 0.0 | FEI37: 0.0 | FEJ37: 0.0 | FEK37: 0.0 | FEL37: 0.0 | FEM37: 0.0 | FEN37: 0.0 | FEO37: 0.0 | FEP37: 0.0 | FEQ37: 0.0 | FER37: 0.0 | FES37: 0.0 | FET37: 0.0 | FEU37: 0.0 | FEV37: 0.0 | FEW37: 0.0 | FEX37: 0.0 | FEY37: 0.0 | FEZ37: 0.0 | FFA37: 0.0 | FFB37: 0.0 | FFC37: 0.0 | FFD37: 0.0 | FFE37: 0.0 | FFF37: 0.0 | FFG37: 0.0 | FFH37: 0.0 | FFI37: 0.0 | FFJ37: 0.0 | FFK37: 0.0 | FFL37: 0.0 | FFM37: 0.0 | FFN37: 0.0 | FFO37: =SUM(FFO12:FFO35) -> 0.0 | FFP37: 0.0 | FFQ37: 0.0 | FFR37: 0.0 | FFS37: 0.0 | FFT37: 0.0 | FFU37: 0.0 | FFV37: 0.0 | FFW37: 0.0 | FFX37: 0.0 | FFY37: 0.0 | FFZ37: 0.0 | FGA37: 0.0 | FGB37: 0.0 | FGC37: 0.0 | FGD37: 0.0 | FGE37: 0.0 | FGF37: 0.0 | FGG37: 0.0 | FGH37: 0.0 | FGI37: 0.0 | FGJ37: 0.0 | FGK37: 0.0 | FGL37: 0.0 | FGM37: 0.0 | FGN37: 0.0 | FGO37: 0.0 | FGP37: 0.0 | FGQ37: 0.0 | FGR37: 0.0 | FGS37: 0.0 | FGT37: 0.0 | FGU37: 0.0 | FGV37: 0.0 | FGW37: 0.0 | FGX37: 0.0 | FGY37: 0.0 | FGZ37: 0.0 | FHA37: 0.0 | FHB37: 0.0 | FHC37: 0.0 | FHD37: 0.0 | FHE37: 0.0 | FHF37: 0.0 | FHG37: 0.0 | FHH37: 0.0 | FHI37: 0.0 | FHJ37: 0.0 | FHK37: 0.0 | FHL37: 0.0 | FHM37: 0.0 | FHN37: 0.0 | FHO37: 0.0 | FHP37: 0.0 | FHQ37: 0.0 | FHR37: 0.0 | FHS37: 0.0 | FHT37: 0.0 | FHU37: 0.0 | FHV37: 0.0 | FHW37: 0.0 | FHX37: 0.0 | FHY37: 0.0 | FHZ37: 0.0 | FIA37: =SUM(FIA12:FIA35) -> 0.0 | FIB37: 0.0 | FIC37: 0.0 | FID37: 0.0 | FIE37: 0.0 | FIF37: 0.0 | FIG37: 0.0 | FIH37: 0.0 | FII37: 0.0 | FIJ37: 0.0 | FIK37: 0.0 | FIL37: 0.0 | FIM37: 0.0 | FIN37: 0.0 | FIO37: 0.0 | FIP37: 0.0 | FIQ37: 0.0 | FIR37: 0.0 | FIS37: 0.0 | FIT37: 0.0 | FIU37: 0.0 | FIV37: 0.0 | FIW37: 0.0 | FIX37: 0.0 | FIY37: 0.0 | FIZ37: 0.0 | FJA37: 0.0 | FJB37: 0.0 | FJC37: 0.0 | FJD37: 0.0 | FJE37: 0.0 | FJF37: 0.0 | FJG37: 0.0 | FJH37: 0.0 | FJI37: 0.0 | FJJ37: 0.0 | FJK37: 0.0 | FJL37: 0.0 | FJM37: 0.0 | FJN37: 0.0 | FJO37: 0.0 | FJP37: 0.0 | FJQ37: 0.0 | FJR37: 0.0 | FJS37: 0.0 | FJT37: 0.0 | FJU37: 0.0 | FJV37: 0.0 | FJW37: 0.0 | FJX37: 0.0 | FJY37: 0.0 | FJZ37: 0.0 | FKA37: 0.0 | FKB37: 0.0 | FKC37: 0.0 | FKD37: 0.0 | FKE37: 0.0 | FKF37: 0.0 | FKG37: 0.0 | FKH37: 0.0 | FKI37: 0.0 | FKJ37: 0.0 | FKK37: 0.0 | FKL37: 0.0 | FKM37: =SUM(FKM12:FKM35) -> 0.0 | FKN37: 0.0 | FKO37: 0.0 | FKP37: 0.0 | FKQ37: 0.0 | FKR37: 0.0 | FKS37: 0.0 | FKT37: 0.0 | FKU37: 0.0 | FKV37: 0.0 | FKW37: 0.0 | FKX37: 0.0 | FKY37: 0.0 | FKZ37: 0.0 | FLA37: 0.0 | FLB37: 0.0 | FLC37: 0.0 | FLD37: 0.0 | FLE37: 0.0 | FLF37: 0.0 | FLG37: 0.0 | FLH37: 0.0 | FLI37: 0.0 | FLJ37: 0.0 | FLK37: 0.0 | FLL37: 0.0 | FLM37: 0.0 | FLN37: 0.0 | FLO37: 0.0 | FLP37: 0.0 | FLQ37: 0.0 | FLR37: 0.0 | FLS37: 0.0 | FLT37: 0.0 | FLU37: 0.0 | FLV37: 0.0 | FLW37: 0.0 | FLX37: 0.0 | FLY37: 0.0 | FLZ37: 0.0 | FMA37: 0.0 | FMB37: 0.0 | FMC37: 0.0 | FMD37: 0.0 | FME37: 0.0 | FMF37: 0.0 | FMG37: 0.0 | FMH37: 0.0 | FMI37: 0.0 | FMJ37: 0.0 | FMK37: 0.0 | FML37: 0.0 | FMM37: 0.0 | FMN37: 0.0 | FMO37: 0.0 | FMP37: 0.0 | FMQ37: 0.0 | FMR37: 0.0 | FMS37: 0.0 | FMT37: 0.0 | FMU37: 0.0 | FMV37: 0.0 | FMW37: 0.0 | FMX37: 0.0 | FMY37: =SUM(FMY12:FMY35) -> 0.0 | FMZ37: 0.0 | FNA37: 0.0 | FNB37: 0.0 | FNC37: 0.0 | FND37: 0.0 | FNE37: 0.0 | FNF37: 0.0 | FNG37: 0.0 | FNH37: 0.0 | FNI37: 0.0 | FNJ37: 0.0 | FNK37: 0.0 | FNL37: 0.0 | FNM37: 0.0 | FNN37: 0.0 | FNO37: 0.0 | FNP37: 0.0 | FNQ37: 0.0 | FNR37: 0.0 | FNS37: 0.0 | FNT37: 0.0 | FNU37: 0.0 | FNV37: 0.0 | FNW37: 0.0 | FNX37: 0.0 | FNY37: 0.0 | FNZ37: 0.0 | FOA37: 0.0 | FOB37: 0.0 | FOC37: 0.0 | FOD37: 0.0 | FOE37: 0.0 | FOF37: 0.0 | FOG37: 0.0 | FOH37: 0.0 | FOI37: 0.0 | FOJ37: 0.0 | FOK37: 0.0 | FOL37: 0.0 | FOM37: 0.0 | FON37: 0.0 | FOO37: 0.0 | FOP37: 0.0 | FOQ37: 0.0 | FOR37: 0.0 | FOS37: 0.0 | FOT37: 0.0 | FOU37: 0.0 | FOV37: 0.0 | FOW37: 0.0 | FOX37: 0.0 | FOY37: 0.0 | FOZ37: 0.0 | FPA37: 0.0 | FPB37: 0.0 | FPC37: 0.0 | FPD37: 0.0 | FPE37: 0.0 | FPF37: 0.0 | FPG37: 0.0 | FPH37: 0.0 | FPI37: 0.0 | FPJ37: 0.0 | FPK37: =SUM(FPK12:FPK35) -> 0.0 | FPL37: 0.0 | FPM37: 0.0 | FPN37: 0.0 | FPO37: 0.0 | FPP37: 0.0 | FPQ37: 0.0 | FPR37: 0.0 | FPS37: 0.0 | FPT37: 0.0 | FPU37: 0.0 | FPV37: 0.0 | FPW37: 0.0 | FPX37: 0.0 | FPY37: 0.0 | FPZ37: 0.0 | FQA37: 0.0 | FQB37: 0.0 | FQC37: 0.0 | FQD37: 0.0 | FQE37: 0.0 | FQF37: 0.0 | FQG37: 0.0 | FQH37: 0.0 | FQI37: 0.0 | FQJ37: 0.0 | FQK37: 0.0 | FQL37: 0.0 | FQM37: 0.0 | FQN37: 0.0 | FQO37: 0.0 | FQP37: 0.0 | FQQ37: 0.0 | FQR37: 0.0 | FQS37: 0.0 | FQT37: 0.0 | FQU37: 0.0 | FQV37: 0.0 | FQW37: 0.0 | FQX37: 0.0 | FQY37: 0.0 | FQZ37: 0.0 | FRA37: 0.0 | FRB37: 0.0 | FRC37: 0.0 | FRD37: 0.0 | FRE37: 0.0 | FRF37: 0.0 | FRG37: 0.0 | FRH37: 0.0 | FRI37: 0.0 | FRJ37: 0.0 | FRK37: 0.0 | FRL37: 0.0 | FRM37: 0.0 | FRN37: 0.0 | FRO37: 0.0 | FRP37: 0.0 | FRQ37: 0.0 | FRR37: 0.0 | FRS37: 0.0 | FRT37: 0.0 | FRU37: 0.0 | FRV37: 0.0 | FRW37: =SUM(FRW12:FRW35) -> 0.0 | FRX37: 0.0 | FRY37: 0.0 | FRZ37: 0.0 | FSA37: 0.0 | FSB37: 0.0 | FSC37: 0.0 | FSD37: 0.0 | FSE37: 0.0 | FSF37: 0.0 | FSG37: 0.0 | FSH37: 0.0 | FSI37: 0.0 | FSJ37: 0.0 | FSK37: 0.0 | FSL37: 0.0 | FSM37: 0.0 | FSN37: 0.0 | FSO37: 0.0 | FSP37: 0.0 | FSQ37: 0.0 | FSR37: 0.0 | FSS37: 0.0 | FST37: 0.0 | FSU37: 0.0 | FSV37: 0.0 | FSW37: 0.0 | FSX37: 0.0 | FSY37: 0.0 | FSZ37: 0.0 | FTA37: 0.0 | FTB37: 0.0 | FTC37: 0.0 | FTD37: 0.0 | FTE37: 0.0 | FTF37: 0.0 | FTG37: 0.0 | FTH37: 0.0 | FTI37: 0.0 | FTJ37: 0.0 | FTK37: 0.0 | FTL37: 0.0 | FTM37: 0.0 | FTN37: 0.0 | FTO37: 0.0 | FTP37: 0.0 | FTQ37: 0.0 | FTR37: 0.0 | FTS37: 0.0 | FTT37: 0.0 | FTU37: 0.0 | FTV37: 0.0 | FTW37: 0.0 | FTX37: 0.0 | FTY37: 0.0 | FTZ37: 0.0 | FUA37: 0.0 | FUB37: 0.0 | FUC37: 0.0 | FUD37: 0.0 | FUE37: 0.0 | FUF37: 0.0 | FUG37: 0.0 | FUH37: 0.0 | FUI37: =SUM(FUI12:FUI35) -> 0.0 | FUJ37: 0.0 | FUK37: 0.0 | FUL37: 0.0 | FUM37: 0.0 | FUN37: 0.0 | FUO37: 0.0 | FUP37: 0.0 | FUQ37: 0.0 | FUR37: 0.0 | FUS37: 0.0 | FUT37: 0.0 | FUU37: 0.0 | FUV37: 0.0 | FUW37: 0.0 | FUX37: 0.0 | FUY37: 0.0 | FUZ37: 0.0 | FVA37: 0.0 | FVB37: 0.0 | FVC37: 0.0 | FVD37: 0.0 | FVE37: 0.0 | FVF37: 0.0 | FVG37: 0.0 | FVH37: 0.0 | FVI37: 0.0 | FVJ37: 0.0 | FVK37: 0.0 | FVL37: 0.0 | FVM37: 0.0 | FVN37: 0.0 | FVO37: 0.0 | FVP37: 0.0 | FVQ37: 0.0 | FVR37: 0.0 | FVS37: 0.0 | FVT37: 0.0 | FVU37: 0.0 | FVV37: 0.0 | FVW37: 0.0 | FVX37: 0.0 | FVY37: 0.0 | FVZ37: 0.0 | FWA37: 0.0 | FWB37: 0.0 | FWC37: 0.0 | FWD37: 0.0 | FWE37: 0.0 | FWF37: 0.0 | FWG37: 0.0 | FWH37: 0.0 | FWI37: 0.0 | FWJ37: 0.0 | FWK37: 0.0 | FWL37: 0.0 | FWM37: 0.0 | FWN37: 0.0 | FWO37: 0.0 | FWP37: 0.0 | FWQ37: 0.0 | FWR37: 0.0 | FWS37: 0.0 | FWT37: 0.0 | FWU37: =SUM(FWU12:FWU35) -> 0.0 | FWV37: 0.0 | FWW37: 0.0 | FWX37: 0.0 | FWY37: 0.0 | FWZ37: 0.0 | FXA37: 0.0 | FXB37: 0.0 | FXC37: 0.0 | FXD37: 0.0 | FXE37: 0.0 | FXF37: 0.0 | FXG37: 0.0 | FXH37: 0.0 | FXI37: 0.0 | FXJ37: 0.0 | FXK37: 0.0 | FXL37: 0.0 | FXM37: 0.0 | FXN37: 0.0 | FXO37: 0.0 | FXP37: 0.0 | FXQ37: 0.0 | FXR37: 0.0 | FXS37: 0.0 | FXT37: 0.0 | FXU37: 0.0 | FXV37: 0.0 | FXW37: 0.0 | FXX37: 0.0 | FXY37: 0.0 | FXZ37: 0.0 | FYA37: 0.0 | FYB37: 0.0 | FYC37: 0.0 | FYD37: 0.0 | FYE37: 0.0 | FYF37: 0.0 | FYG37: 0.0 | FYH37: 0.0 | FYI37: 0.0 | FYJ37: 0.0 | FYK37: 0.0 | FYL37: 0.0 | FYM37: 0.0 | FYN37: 0.0 | FYO37: 0.0 | FYP37: 0.0 | FYQ37: 0.0 | FYR37: 0.0 | FYS37: 0.0 | FYT37: 0.0 | FYU37: 0.0 | FYV37: 0.0 | FYW37: 0.0 | FYX37: 0.0 | FYY37: 0.0 | FYZ37: 0.0 | FZA37: 0.0 | FZB37: 0.0 | FZC37: 0.0 | FZD37: 0.0 | FZE37: 0.0 | FZF37: 0.0 | FZG37: =SUM(FZG12:FZG35) -> 0.0 | FZH37: 0.0 | FZI37: 0.0 | FZJ37: 0.0 | FZK37: 0.0 | FZL37: 0.0 | FZM37: 0.0 | FZN37: 0.0 | FZO37: 0.0 | FZP37: 0.0 | FZQ37: 0.0 | FZR37: 0.0 | FZS37: 0.0 | FZT37: 0.0 | FZU37: 0.0 | FZV37: 0.0 | FZW37: 0.0 | FZX37: 0.0 | FZY37: 0.0 | FZZ37: 0.0 | GAA37: 0.0 | GAB37: 0.0 | GAC37: 0.0 | GAD37: 0.0 | GAE37: 0.0 | GAF37: 0.0 | GAG37: 0.0 | GAH37: 0.0 | GAI37: 0.0 | GAJ37: 0.0 | GAK37: 0.0 | GAL37: 0.0 | GAM37: 0.0 | GAN37: 0.0 | GAO37: 0.0 | GAP37: 0.0 | GAQ37: 0.0 | GAR37: 0.0 | GAS37: 0.0 | GAT37: 0.0 | GAU37: 0.0 | GAV37: 0.0 | GAW37: 0.0 | GAX37: 0.0 | GAY37: 0.0 | GAZ37: 0.0 | GBA37: 0.0 | GBB37: 0.0 | GBC37: 0.0 | GBD37: 0.0 | GBE37: 0.0 | GBF37: 0.0 | GBG37: 0.0 | GBH37: 0.0 | GBI37: 0.0 | GBJ37: 0.0 | GBK37: 0.0 | GBL37: 0.0 | GBM37: 0.0 | GBN37: 0.0 | GBO37: 0.0 | GBP37: 0.0 | GBQ37: 0.0 | GBR37: 0.0 | GBS37: =SUM(GBS12:GBS35) -> 0.0 | GBT37: 0.0 | GBU37: 0.0 | GBV37: 0.0 | GBW37: 0.0 | GBX37: 0.0 | GBY37: 0.0 | GBZ37: 0.0 | GCA37: 0.0 | GCB37: 0.0 | GCC37: 0.0 | GCD37: 0.0 | GCE37: 0.0 | GCF37: 0.0 | GCG37: 0.0 | GCH37: 0.0 | GCI37: 0.0 | GCJ37: 0.0 | GCK37: 0.0 | GCL37: 0.0 | GCM37: 0.0 | GCN37: 0.0 | GCO37: 0.0 | GCP37: 0.0 | GCQ37: 0.0 | GCR37: 0.0 | GCS37: 0.0 | GCT37: 0.0 | GCU37: 0.0 | GCV37: 0.0 | GCW37: 0.0 | GCX37: 0.0 | GCY37: 0.0 | GCZ37: 0.0 | GDA37: 0.0 | GDB37: 0.0 | GDC37: 0.0 | GDD37: 0.0 | GDE37: 0.0 | GDF37: 0.0 | GDG37: 0.0 | GDH37: 0.0 | GDI37: 0.0 | GDJ37: 0.0 | GDK37: 0.0 | GDL37: 0.0 | GDM37: 0.0 | GDN37: 0.0 | GDO37: 0.0 | GDP37: 0.0 | GDQ37: 0.0 | GDR37: 0.0 | GDS37: 0.0 | GDT37: 0.0 | GDU37: 0.0 | GDV37: 0.0 | GDW37: 0.0 | GDX37: 0.0 | GDY37: 0.0 | GDZ37: 0.0 | GEA37: 0.0 | GEB37: 0.0 | GEC37: 0.0 | GED37: 0.0 | GEE37: =SUM(GEE12:GEE35) -> 0.0 | GEF37: 0.0 | GEG37: 0.0 | GEH37: 0.0 | GEI37: 0.0 | GEJ37: 0.0 | GEK37: 0.0 | GEL37: 0.0 | GEM37: 0.0 | GEN37: 0.0 | GEO37: 0.0 | GEP37: 0.0 | GEQ37: 0.0 | GER37: 0.0 | GES37: 0.0 | GET37: 0.0 | GEU37: 0.0 | GEV37: 0.0 | GEW37: 0.0 | GEX37: 0.0 | GEY37: 0.0 | GEZ37: 0.0 | GFA37: 0.0 | GFB37: 0.0 | GFC37: 0.0 | GFD37: 0.0 | GFE37: 0.0 | GFF37: 0.0 | GFG37: 0.0 | GFH37: 0.0 | GFI37: 0.0 | GFJ37: 0.0 | GFK37: 0.0 | GFL37: 0.0 | GFM37: 0.0 | GFN37: 0.0 | GFO37: 0.0 | GFP37: 0.0 | GFQ37: 0.0 | GFR37: 0.0 | GFS37: 0.0 | GFT37: 0.0 | GFU37: 0.0 | GFV37: 0.0 | GFW37: 0.0 | GFX37: 0.0 | GFY37: 0.0 | GFZ37: 0.0 | GGA37: 0.0 | GGB37: 0.0 | GGC37: 0.0 | GGD37: 0.0 | GGE37: 0.0 | GGF37: 0.0 | GGG37: 0.0 | GGH37: 0.0 | GGI37: 0.0 | GGJ37: 0.0 | GGK37: 0.0 | GGL37: 0.0 | GGM37: 0.0 | GGN37: 0.0 | GGO37: 0.0 | GGP37: 0.0 | GGQ37: =SUM(GGQ12:GGQ35) -> 0.0 | GGR37: 0.0 | GGS37: 0.0 | GGT37: 0.0 | GGU37: 0.0 | GGV37: 0.0 | GGW37: 0.0 | GGX37: 0.0 | GGY37: 0.0 | GGZ37: 0.0 | GHA37: 0.0 | GHB37: 0.0 | GHC37: 0.0 | GHD37: 0.0 | GHE37: 0.0 | GHF37: 0.0 | GHG37: 0.0 | GHH37: 0.0 | GHI37: 0.0 | GHJ37: 0.0 | GHK37: 0.0 | GHL37: 0.0 | GHM37: 0.0 | GHN37: 0.0 | GHO37: 0.0 | GHP37: 0.0 | GHQ37: 0.0 | GHR37: 0.0 | GHS37: 0.0 | GHT37: 0.0 | GHU37: 0.0 | GHV37: 0.0 | GHW37: 0.0 | GHX37: 0.0 | GHY37: 0.0 | GHZ37: 0.0 | GIA37: 0.0 | GIB37: 0.0 | GIC37: 0.0 | GID37: 0.0 | GIE37: 0.0 | GIF37: 0.0 | GIG37: 0.0 | GIH37: 0.0 | GII37: 0.0 | GIJ37: 0.0 | GIK37: 0.0 | GIL37: 0.0 | GIM37: 0.0 | GIN37: 0.0 | GIO37: 0.0 | GIP37: 0.0 | GIQ37: 0.0 | GIR37: 0.0 | GIS37: 0.0 | GIT37: 0.0 | GIU37: 0.0 | GIV37: 0.0 | GIW37: 0.0 | GIX37: 0.0 | GIY37: 0.0 | GIZ37: 0.0 | GJA37: 0.0 | GJB37: 0.0 | GJC37: =SUM(GJC12:GJC35) -> 0.0 | GJD37: 0.0 | GJE37: 0.0 | GJF37: 0.0 | GJG37: 0.0 | GJH37: 0.0 | GJI37: 0.0 | GJJ37: 0.0 | GJK37: 0.0 | GJL37: 0.0 | GJM37: 0.0 | GJN37: 0.0 | GJO37: 0.0 | GJP37: 0.0 | GJQ37: 0.0 | GJR37: 0.0 | GJS37: 0.0 | GJT37: 0.0 | GJU37: 0.0 | GJV37: 0.0 | GJW37: 0.0 | GJX37: 0.0 | GJY37: 0.0 | GJZ37: 0.0 | GKA37: 0.0 | GKB37: 0.0 | GKC37: 0.0 | GKD37: 0.0 | GKE37: 0.0 | GKF37: 0.0 | GKG37: 0.0 | GKH37: 0.0 | GKI37: 0.0 | GKJ37: 0.0 | GKK37: 0.0 | GKL37: 0.0 | GKM37: 0.0 | GKN37: 0.0 | GKO37: 0.0 | GKP37: 0.0 | GKQ37: 0.0 | GKR37: 0.0 | GKS37: 0.0 | GKT37: 0.0 | GKU37: 0.0 | GKV37: 0.0 | GKW37: 0.0 | GKX37: 0.0 | GKY37: 0.0 | GKZ37: 0.0 | GLA37: 0.0 | GLB37: 0.0 | GLC37: 0.0 | GLD37: 0.0 | GLE37: 0.0 | GLF37: 0.0 | GLG37: 0.0 | GLH37: 0.0 | GLI37: 0.0 | GLJ37: 0.0 | GLK37: 0.0 | GLL37: 0.0 | GLM37: 0.0 | GLN37: 0.0 | GLO37: =SUM(GLO12:GLO35) -> 0.0 | GLP37: 0.0 | GLQ37: 0.0 | GLR37: 0.0 | GLS37: 0.0 | GLT37: 0.0 | GLU37: 0.0 | GLV37: 0.0 | GLW37: 0.0 | GLX37: 0.0 | GLY37: 0.0 | GLZ37: 0.0 | GMA37: 0.0 | GMB37: 0.0 | GMC37: 0.0 | GMD37: 0.0 | GME37: 0.0 | GMF37: 0.0 | GMG37: 0.0 | GMH37: 0.0 | GMI37: 0.0 | GMJ37: 0.0 | GMK37: 0.0 | GML37: 0.0 | GMM37: 0.0 | GMN37: 0.0 | GMO37: 0.0 | GMP37: 0.0 | GMQ37: 0.0 | GMR37: 0.0 | GMS37: 0.0 | GMT37: 0.0 | GMU37: 0.0 | GMV37: 0.0 | GMW37: 0.0 | GMX37: 0.0 | GMY37: 0.0 | GMZ37: 0.0 | GNA37: 0.0 | GNB37: 0.0 | GNC37: 0.0 | GND37: 0.0 | GNE37: 0.0 | GNF37: 0.0 | GNG37: 0.0 | GNH37: 0.0 | GNI37: 0.0 | GNJ37: 0.0 | GNK37: 0.0 | GNL37: 0.0 | GNM37: 0.0 | GNN37: 0.0 | GNO37: 0.0 | GNP37: 0.0 | GNQ37: 0.0 | GNR37: 0.0 | GNS37: 0.0 | GNT37: 0.0 | GNU37: 0.0 | GNV37: 0.0 | GNW37: 0.0 | GNX37: 0.0 | GNY37: 0.0 | GNZ37: 0.0 | GOA37: =SUM(GOA12:GOA35) -> 0.0 | GOB37: 0.0 | GOC37: 0.0 | GOD37: 0.0 | GOE37: 0.0 | GOF37: 0.0 | GOG37: 0.0 | GOH37: 0.0 | GOI37: 0.0 | GOJ37: 0.0 | GOK37: 0.0 | GOL37: 0.0 | GOM37: 0.0 | GON37: 0.0 | GOO37: 0.0 | GOP37: 0.0 | GOQ37: 0.0 | GOR37: 0.0 | GOS37: 0.0 | GOT37: 0.0 | GOU37: 0.0 | GOV37: 0.0 | GOW37: 0.0 | GOX37: 0.0 | GOY37: 0.0 | GOZ37: 0.0 | GPA37: 0.0 | GPB37: 0.0 | GPC37: 0.0 | GPD37: 0.0 | GPE37: 0.0 | GPF37: 0.0 | GPG37: 0.0 | GPH37: 0.0 | GPI37: 0.0 | GPJ37: 0.0 | GPK37: 0.0 | GPL37: 0.0 | GPM37: 0.0 | GPN37: 0.0 | GPO37: 0.0 | GPP37: 0.0 | GPQ37: 0.0 | GPR37: 0.0 | GPS37: 0.0 | GPT37: 0.0 | GPU37: 0.0 | GPV37: 0.0 | GPW37: 0.0 | GPX37: 0.0 | GPY37: 0.0 | GPZ37: 0.0 | GQA37: 0.0 | GQB37: 0.0 | GQC37: 0.0 | GQD37: 0.0 | GQE37: 0.0 | GQF37: 0.0 | GQG37: 0.0 | GQH37: 0.0 | GQI37: 0.0 | GQJ37: 0.0 | GQK37: 0.0 | GQL37: 0.0 | GQM37: =SUM(GQM12:GQM35) -> 0.0 | GQN37: 0.0 | GQO37: 0.0 | GQP37: 0.0 | GQQ37: 0.0 | GQR37: 0.0 | GQS37: 0.0 | GQT37: 0.0 | GQU37: 0.0 | GQV37: 0.0 | GQW37: 0.0 | GQX37: 0.0 | GQY37: 0.0 | GQZ37: 0.0 | GRA37: 0.0 | GRB37: 0.0 | GRC37: 0.0 | GRD37: 0.0 | GRE37: 0.0 | GRF37: 0.0 | GRG37: 0.0 | GRH37: 0.0 | GRI37: 0.0 | GRJ37: 0.0 | GRK37: 0.0 | GRL37: 0.0 | GRM37: 0.0 | GRN37: 0.0 | GRO37: 0.0 | GRP37: 0.0 | GRQ37: 0.0 | GRR37: 0.0 | GRS37: 0.0 | GRT37: 0.0 | GRU37: 0.0 | GRV37: 0.0 | GRW37: 0.0 | GRX37: 0.0 | GRY37: 0.0 | GRZ37: 0.0 | GSA37: 0.0 | GSB37: 0.0 | GSC37: 0.0 | GSD37: 0.0 | GSE37: 0.0 | GSF37: 0.0 | GSG37: 0.0 | GSH37: 0.0 | GSI37: 0.0 | GSJ37: 0.0 | GSK37: 0.0 | GSL37: 0.0 | GSM37: 0.0 | GSN37: 0.0 | GSO37: 0.0 | GSP37: 0.0 | GSQ37: 0.0 | GSR37: 0.0 | GSS37: 0.0 | GST37: 0.0 | GSU37: 0.0 | GSV37: 0.0 | GSW37: 0.0 | GSX37: 0.0 | GSY37: =SUM(GSY12:GSY35) -> 0.0 | GSZ37: 0.0 | GTA37: 0.0 | GTB37: 0.0 | GTC37: 0.0 | GTD37: 0.0 | GTE37: 0.0 | GTF37: 0.0 | GTG37: 0.0 | GTH37: 0.0 | GTI37: 0.0 | GTJ37: 0.0 | GTK37: 0.0 | GTL37: 0.0 | GTM37: 0.0 | GTN37: 0.0 | GTO37: 0.0 | GTP37: 0.0 | GTQ37: 0.0 | GTR37: 0.0 | GTS37: 0.0 | GTT37: 0.0 | GTU37: 0.0 | GTV37: 0.0 | GTW37: 0.0 | GTX37: 0.0 | GTY37: 0.0 | GTZ37: 0.0 | GUA37: 0.0 | GUB37: 0.0 | GUC37: 0.0 | GUD37: 0.0 | GUE37: 0.0 | GUF37: 0.0 | GUG37: 0.0 | GUH37: 0.0 | GUI37: 0.0 | GUJ37: 0.0 | GUK37: 0.0 | GUL37: 0.0 | GUM37: 0.0 | GUN37: 0.0 | GUO37: 0.0 | GUP37: 0.0 | GUQ37: 0.0 | GUR37: 0.0 | GUS37: 0.0 | GUT37: 0.0 | GUU37: 0.0 | GUV37: 0.0 | GUW37: 0.0 | GUX37: 0.0 | GUY37: 0.0 | GUZ37: 0.0 | GVA37: 0.0 | GVB37: 0.0 | GVC37: 0.0 | GVD37: 0.0 | GVE37: 0.0 | GVF37: 0.0 | GVG37: 0.0 | GVH37: 0.0 | GVI37: 0.0 | GVJ37: 0.0 | GVK37: =SUM(GVK12:GVK35) -> 0.0 | GVL37: 0.0 | GVM37: 0.0 | GVN37: 0.0 | GVO37: 0.0 | GVP37: 0.0 | GVQ37: 0.0 | GVR37: 0.0 | GVS37: 0.0 | GVT37: 0.0 | GVU37: 0.0 | GVV37: 0.0 | GVW37: 0.0 | GVX37: 0.0 | GVY37: 0.0 | GVZ37: 0.0 | GWA37: 0.0 | GWB37: 0.0 | GWC37: 0.0 | GWD37: 0.0 | GWE37: 0.0 | GWF37: 0.0 | GWG37: 0.0 | GWH37: 0.0 | GWI37: 0.0 | GWJ37: 0.0 | GWK37: 0.0 | GWL37: 0.0 | GWM37: 0.0 | GWN37: 0.0 | GWO37: 0.0 | GWP37: 0.0 | GWQ37: 0.0 | GWR37: 0.0 | GWS37: 0.0 | GWT37: 0.0 | GWU37: 0.0 | GWV37: 0.0 | GWW37: 0.0 | GWX37: 0.0 | GWY37: 0.0 | GWZ37: 0.0 | GXA37: 0.0 | GXB37: 0.0 | GXC37: 0.0 | GXD37: 0.0 | GXE37: 0.0 | GXF37: 0.0 | GXG37: 0.0 | GXH37: 0.0 | GXI37: 0.0 | GXJ37: 0.0 | GXK37: 0.0 | GXL37: 0.0 | GXM37: 0.0 | GXN37: 0.0 | GXO37: 0.0 | GXP37: 0.0 | GXQ37: 0.0 | GXR37: 0.0 | GXS37: 0.0 | GXT37: 0.0 | GXU37: 0.0 | GXV37: 0.0 | GXW37: =SUM(GXW12:GXW35) -> 0.0 | GXX37: 0.0 | GXY37: 0.0 | GXZ37: 0.0 | GYA37: 0.0 | GYB37: 0.0 | GYC37: 0.0 | GYD37: 0.0 | GYE37: 0.0 | GYF37: 0.0 | GYG37: 0.0 | GYH37: 0.0 | GYI37: 0.0 | GYJ37: 0.0 | GYK37: 0.0 | GYL37: 0.0 | GYM37: 0.0 | GYN37: 0.0 | GYO37: 0.0 | GYP37: 0.0 | GYQ37: 0.0 | GYR37: 0.0 | GYS37: 0.0 | GYT37: 0.0 | GYU37: 0.0 | GYV37: 0.0 | GYW37: 0.0 | GYX37: 0.0 | GYY37: 0.0 | GYZ37: 0.0 | GZA37: 0.0 | GZB37: 0.0 | GZC37: 0.0 | GZD37: 0.0 | GZE37: 0.0 | GZF37: 0.0 | GZG37: 0.0 | GZH37: 0.0 | GZI37: 0.0 | GZJ37: 0.0 | GZK37: 0.0 | GZL37: 0.0 | GZM37: 0.0 | GZN37: 0.0 | GZO37: 0.0 | GZP37: 0.0 | GZQ37: 0.0 | GZR37: 0.0 | GZS37: 0.0 | GZT37: 0.0 | GZU37: 0.0 | GZV37: 0.0 | GZW37: 0.0 | GZX37: 0.0 | GZY37: 0.0 | GZZ37: 0.0 | HAA37: 0.0 | HAB37: 0.0 | HAC37: 0.0 | HAD37: 0.0 | HAE37: 0.0 | HAF37: 0.0 | HAG37: 0.0 | HAH37: 0.0 | HAI37: =SUM(HAI12:HAI35) -> 0.0 | HAJ37: 0.0 | HAK37: 0.0 | HAL37: 0.0 | HAM37: 0.0 | HAN37: 0.0 | HAO37: 0.0 | HAP37: 0.0 | HAQ37: 0.0 | HAR37: 0.0 | HAS37: 0.0 | HAT37: 0.0 | HAU37: 0.0 | HAV37: 0.0 | HAW37: 0.0 | HAX37: 0.0 | HAY37: 0.0 | HAZ37: 0.0 | HBA37: 0.0 | HBB37: 0.0 | HBC37: 0.0 | HBD37: 0.0 | HBE37: 0.0 | HBF37: 0.0 | HBG37: 0.0 | HBH37: 0.0 | HBI37: 0.0 | HBJ37: 0.0 | HBK37: 0.0 | HBL37: 0.0 | HBM37: 0.0 | HBN37: 0.0 | HBO37: 0.0 | HBP37: 0.0 | HBQ37: 0.0 | HBR37: 0.0 | HBS37: 0.0 | HBT37: 0.0 | HBU37: 0.0 | HBV37: 0.0 | HBW37: 0.0 | HBX37: 0.0 | HBY37: 0.0 | HBZ37: 0.0 | HCA37: 0.0 | HCB37: 0.0 | HCC37: 0.0 | HCD37: 0.0 | HCE37: 0.0 | HCF37: 0.0 | HCG37: 0.0 | HCH37: 0.0 | HCI37: 0.0 | HCJ37: 0.0 | HCK37: 0.0 | HCL37: 0.0 | HCM37: 0.0 | HCN37: 0.0 | HCO37: 0.0 | HCP37: 0.0 | HCQ37: 0.0 | HCR37: 0.0 | HCS37: 0.0 | HCT37: 0.0 | HCU37: =SUM(HCU12:HCU35) -> 0.0 | HCV37: 0.0 | HCW37: 0.0 | HCX37: 0.0 | HCY37: 0.0 | HCZ37: 0.0 | HDA37: 0.0 | HDB37: 0.0 | HDC37: 0.0 | HDD37: 0.0 | HDE37: 0.0 | HDF37: 0.0 | HDG37: 0.0 | HDH37: 0.0 | HDI37: 0.0 | HDJ37: 0.0 | HDK37: 0.0 | HDL37: 0.0 | HDM37: 0.0 | HDN37: 0.0 | HDO37: 0.0 | HDP37: 0.0 | HDQ37: 0.0 | HDR37: 0.0 | HDS37: 0.0 | HDT37: 0.0 | HDU37: 0.0 | HDV37: 0.0 | HDW37: 0.0 | HDX37: 0.0 | HDY37: 0.0 | HDZ37: 0.0 | HEA37: 0.0 | HEB37: 0.0 | HEC37: 0.0 | HED37: 0.0 | HEE37: 0.0 | HEF37: 0.0 | HEG37: 0.0 | HEH37: 0.0 | HEI37: 0.0 | HEJ37: 0.0 | HEK37: 0.0 | HEL37: 0.0 | HEM37: 0.0 | HEN37: 0.0 | HEO37: 0.0 | HEP37: 0.0 | HEQ37: 0.0 | HER37: 0.0 | HES37: 0.0 | HET37: 0.0 | HEU37: 0.0 | HEV37: 0.0 | HEW37: 0.0 | HEX37: 0.0 | HEY37: 0.0 | HEZ37: 0.0 | HFA37: 0.0 | HFB37: 0.0 | HFC37: 0.0 | HFD37: 0.0 | HFE37: 0.0 | HFF37: 0.0 | HFG37: =SUM(HFG12:HFG35) -> 0.0 | HFH37: 0.0 | HFI37: 0.0 | HFJ37: 0.0 | HFK37: 0.0 | HFL37: 0.0 | HFM37: 0.0 | HFN37: 0.0 | HFO37: 0.0 | HFP37: 0.0 | HFQ37: 0.0 | HFR37: 0.0 | HFS37: 0.0 | HFT37: 0.0 | HFU37: 0.0 | HFV37: 0.0 | HFW37: 0.0 | HFX37: 0.0 | HFY37: 0.0 | HFZ37: 0.0 | HGA37: 0.0 | HGB37: 0.0 | HGC37: 0.0 | HGD37: 0.0 | HGE37: 0.0 | HGF37: 0.0 | HGG37: 0.0 | HGH37: 0.0 | HGI37: 0.0 | HGJ37: 0.0 | HGK37: 0.0 | HGL37: 0.0 | HGM37: 0.0 | HGN37: 0.0 | HGO37: 0.0 | HGP37: 0.0 | HGQ37: 0.0 | HGR37: 0.0 | HGS37: 0.0 | HGT37: 0.0 | HGU37: 0.0 | HGV37: 0.0 | HGW37: 0.0 | HGX37: 0.0 | HGY37: 0.0 | HGZ37: 0.0 | HHA37: 0.0 | HHB37: 0.0 | HHC37: 0.0 | HHD37: 0.0 | HHE37: 0.0 | HHF37: 0.0 | HHG37: 0.0 | HHH37: 0.0 | HHI37: 0.0 | HHJ37: 0.0 | HHK37: 0.0 | HHL37: 0.0 | HHM37: 0.0 | HHN37: 0.0 | HHO37: 0.0 | HHP37: 0.0 | HHQ37: 0.0 | HHR37: 0.0 | HHS37: =SUM(HHS12:HHS35) -> 0.0 | HHT37: 0.0 | HHU37: 0.0 | HHV37: 0.0 | HHW37: 0.0 | HHX37: 0.0 | HHY37: 0.0 | HHZ37: 0.0 | HIA37: 0.0 | HIB37: 0.0 | HIC37: 0.0 | HID37: 0.0 | HIE37: 0.0 | HIF37: 0.0 | HIG37: 0.0 | HIH37: 0.0 | HII37: 0.0 | HIJ37: 0.0 | HIK37: 0.0 | HIL37: 0.0 | HIM37: 0.0 | HIN37: 0.0 | HIO37: 0.0 | HIP37: 0.0 | HIQ37: 0.0 | HIR37: 0.0 | HIS37: 0.0 | HIT37: 0.0 | HIU37: 0.0 | HIV37: 0.0 | HIW37: 0.0 | HIX37: 0.0 | HIY37: 0.0 | HIZ37: 0.0 | HJA37: 0.0 | HJB37: 0.0 | HJC37: 0.0 | HJD37: 0.0 | HJE37: 0.0 | HJF37: 0.0 | HJG37: 0.0 | HJH37: 0.0 | HJI37: 0.0 | HJJ37: 0.0 | HJK37: 0.0 | HJL37: 0.0 | HJM37: 0.0 | HJN37: 0.0 | HJO37: 0.0 | HJP37: 0.0 | HJQ37: 0.0 | HJR37: 0.0 | HJS37: 0.0 | HJT37: 0.0 | HJU37: 0.0 | HJV37: 0.0 | HJW37: 0.0 | HJX37: 0.0 | HJY37: 0.0 | HJZ37: 0.0 | HKA37: 0.0 | HKB37: 0.0 | HKC37: 0.0 | HKD37: 0.0 | HKE37: =SUM(HKE12:HKE35) -> 0.0 | HKF37: 0.0 | HKG37: 0.0 | HKH37: 0.0 | HKI37: 0.0 | HKJ37: 0.0 | HKK37: 0.0 | HKL37: 0.0 | HKM37: 0.0 | HKN37: 0.0 | HKO37: 0.0 | HKP37: 0.0 | HKQ37: 0.0 | HKR37: 0.0 | HKS37: 0.0 | HKT37: 0.0 | HKU37: 0.0 | HKV37: 0.0 | HKW37: 0.0 | HKX37: 0.0 | HKY37: 0.0 | HKZ37: 0.0 | HLA37: 0.0 | HLB37: 0.0 | HLC37: 0.0 | HLD37: 0.0 | HLE37: 0.0 | HLF37: 0.0 | HLG37: 0.0 | HLH37: 0.0 | HLI37: 0.0 | HLJ37: 0.0 | HLK37: 0.0 | HLL37: 0.0 | HLM37: 0.0 | HLN37: 0.0 | HLO37: 0.0 | HLP37: 0.0 | HLQ37: 0.0 | HLR37: 0.0 | HLS37: 0.0 | HLT37: 0.0 | HLU37: 0.0 | HLV37: 0.0 | HLW37: 0.0 | HLX37: 0.0 | HLY37: 0.0 | HLZ37: 0.0 | HMA37: 0.0 | HMB37: 0.0 | HMC37: 0.0 | HMD37: 0.0 | HME37: 0.0 | HMF37: 0.0 | HMG37: 0.0 | HMH37: 0.0 | HMI37: 0.0 | HMJ37: 0.0 | HMK37: 0.0 | HML37: 0.0 | HMM37: 0.0 | HMN37: 0.0 | HMO37: 0.0 | HMP37: 0.0 | HMQ37: =SUM(HMQ12:HMQ35) -> 0.0 | HMR37: 0.0 | HMS37: 0.0 | HMT37: 0.0 | HMU37: 0.0 | HMV37: 0.0 | HMW37: 0.0 | HMX37: 0.0 | HMY37: 0.0 | HMZ37: 0.0 | HNA37: 0.0 | HNB37: 0.0 | HNC37: 0.0 | HND37: 0.0 | HNE37: 0.0 | HNF37: 0.0 | HNG37: 0.0 | HNH37: 0.0 | HNI37: 0.0 | HNJ37: 0.0 | HNK37: 0.0 | HNL37: 0.0 | HNM37: 0.0 | HNN37: 0.0 | HNO37: 0.0 | HNP37: 0.0 | HNQ37: 0.0 | HNR37: 0.0 | HNS37: 0.0 | HNT37: 0.0 | HNU37: 0.0 | HNV37: 0.0 | HNW37: 0.0 | HNX37: 0.0 | HNY37: 0.0 | HNZ37: 0.0 | HOA37: 0.0 | HOB37: 0.0 | HOC37: 0.0 | HOD37: 0.0 | HOE37: 0.0 | HOF37: 0.0 | HOG37: 0.0 | HOH37: 0.0 | HOI37: 0.0 | HOJ37: 0.0 | HOK37: 0.0 | HOL37: 0.0 | HOM37: 0.0 | HON37: 0.0 | HOO37: 0.0 | HOP37: 0.0 | HOQ37: 0.0 | HOR37: 0.0 | HOS37: 0.0 | HOT37: 0.0 | HOU37: 0.0 | HOV37: 0.0 | HOW37: 0.0 | HOX37: 0.0 | HOY37: 0.0 | HOZ37: 0.0 | HPA37: 0.0 | HPB37: 0.0 | HPC37: =SUM(HPC12:HPC35) -> 0.0 | HPD37: 0.0 | HPE37: 0.0 | HPF37: 0.0 | HPG37: 0.0 | HPH37: 0.0 | HPI37: 0.0 | HPJ37: 0.0 | HPK37: 0.0 | HPL37: 0.0 | HPM37: 0.0 | HPN37: 0.0 | HPO37: 0.0 | HPP37: 0.0 | HPQ37: 0.0 | HPR37: 0.0 | HPS37: 0.0 | HPT37: 0.0 | HPU37: 0.0 | HPV37: 0.0 | HPW37: 0.0 | HPX37: 0.0 | HPY37: 0.0 | HPZ37: 0.0 | HQA37: 0.0 | HQB37: 0.0 | HQC37: 0.0 | HQD37: 0.0 | HQE37: 0.0 | HQF37: 0.0 | HQG37: 0.0 | HQH37: 0.0 | HQI37: 0.0 | HQJ37: 0.0 | HQK37: 0.0 | HQL37: 0.0 | HQM37: 0.0 | HQN37: 0.0 | HQO37: 0.0 | HQP37: 0.0 | HQQ37: 0.0 | HQR37: 0.0 | HQS37: 0.0 | HQT37: 0.0 | HQU37: 0.0 | HQV37: 0.0 | HQW37: 0.0 | HQX37: 0.0 | HQY37: 0.0 | HQZ37: 0.0 | HRA37: 0.0 | HRB37: 0.0 | HRC37: 0.0 | HRD37: 0.0 | HRE37: 0.0 | HRF37: 0.0 | HRG37: 0.0 | HRH37: 0.0 | HRI37: 0.0 | HRJ37: 0.0 | HRK37: 0.0 | HRL37: 0.0 | HRM37: 0.0 | HRN37: 0.0 | HRO37: =SUM(HRO12:HRO35) -> 0.0 | HRP37: 0.0 | HRQ37: 0.0 | HRR37: 0.0 | HRS37: 0.0 | HRT37: 0.0 | HRU37: 0.0 | HRV37: 0.0 | HRW37: 0.0 | HRX37: 0.0 | HRY37: 0.0 | HRZ37: 0.0 | HSA37: 0.0 | HSB37: 0.0 | HSC37: 0.0 | HSD37: 0.0 | HSE37: 0.0 | HSF37: 0.0 | HSG37: 0.0 | HSH37: 0.0 | HSI37: 0.0 | HSJ37: 0.0 | HSK37: 0.0 | HSL37: 0.0 | HSM37: 0.0 | HSN37: 0.0 | HSO37: 0.0 | HSP37: 0.0 | HSQ37: 0.0 | HSR37: 0.0 | HSS37: 0.0 | HST37: 0.0 | HSU37: 0.0 | HSV37: 0.0 | HSW37: 0.0 | HSX37: 0.0 | HSY37: 0.0 | HSZ37: 0.0 | HTA37: 0.0 | HTB37: 0.0 | HTC37: 0.0 | HTD37: 0.0 | HTE37: 0.0 | HTF37: 0.0 | HTG37: 0.0 | HTH37: 0.0 | HTI37: 0.0 | HTJ37: 0.0 | HTK37: 0.0 | HTL37: 0.0 | HTM37: 0.0 | HTN37: 0.0 | HTO37: 0.0 | HTP37: 0.0 | HTQ37: 0.0 | HTR37: 0.0 | HTS37: 0.0 | HTT37: 0.0 | HTU37: 0.0 | HTV37: 0.0 | HTW37: 0.0 | HTX37: 0.0 | HTY37: 0.0 | HTZ37: 0.0 | HUA37: =SUM(HUA12:HUA35) -> 0.0 | HUB37: 0.0 | HUC37: 0.0 | HUD37: 0.0 | HUE37: 0.0 | HUF37: 0.0 | HUG37: 0.0 | HUH37: 0.0 | HUI37: 0.0 | HUJ37: 0.0 | HUK37: 0.0 | HUL37: 0.0 | HUM37: 0.0 | HUN37: 0.0 | HUO37: 0.0 | HUP37: 0.0 | HUQ37: 0.0 | HUR37: 0.0 | HUS37: 0.0 | HUT37: 0.0 | HUU37: 0.0 | HUV37: 0.0 | HUW37: 0.0 | HUX37: 0.0 | HUY37: 0.0 | HUZ37: 0.0 | HVA37: 0.0 | HVB37: 0.0 | HVC37: 0.0 | HVD37: 0.0 | HVE37: 0.0 | HVF37: 0.0 | HVG37: 0.0 | HVH37: 0.0 | HVI37: 0.0 | HVJ37: 0.0 | HVK37: 0.0 | HVL37: 0.0 | HVM37: 0.0 | HVN37: 0.0 | HVO37: 0.0 | HVP37: 0.0 | HVQ37: 0.0 | HVR37: 0.0 | HVS37: 0.0 | HVT37: 0.0 | HVU37: 0.0 | HVV37: 0.0 | HVW37: 0.0 | HVX37: 0.0 | HVY37: 0.0 | HVZ37: 0.0 | HWA37: 0.0 | HWB37: 0.0 | HWC37: 0.0 | HWD37: 0.0 | HWE37: 0.0 | HWF37: 0.0 | HWG37: 0.0 | HWH37: 0.0 | HWI37: 0.0 | HWJ37: 0.0 | HWK37: 0.0 | HWL37: 0.0 | HWM37: =SUM(HWM12:HWM35) -> 0.0 | HWN37: 0.0 | HWO37: 0.0 | HWP37: 0.0 | HWQ37: 0.0 | HWR37: 0.0 | HWS37: 0.0 | HWT37: 0.0 | HWU37: 0.0 | HWV37: 0.0 | HWW37: 0.0 | HWX37: 0.0 | HWY37: 0.0 | HWZ37: 0.0 | HXA37: 0.0 | HXB37: 0.0 | HXC37: 0.0 | HXD37: 0.0 | HXE37: 0.0 | HXF37: 0.0 | HXG37: 0.0 | HXH37: 0.0 | HXI37: 0.0 | HXJ37: 0.0 | HXK37: 0.0 | HXL37: 0.0 | HXM37: 0.0 | HXN37: 0.0 | HXO37: 0.0 | HXP37: 0.0 | HXQ37: 0.0 | HXR37: 0.0 | HXS37: 0.0 | HXT37: 0.0 | HXU37: 0.0 | HXV37: 0.0 | HXW37: 0.0 | HXX37: 0.0 | HXY37: 0.0 | HXZ37: 0.0 | HYA37: 0.0 | HYB37: 0.0 | HYC37: 0.0 | HYD37: 0.0 | HYE37: 0.0 | HYF37: 0.0 | HYG37: 0.0 | HYH37: 0.0 | HYI37: 0.0 | HYJ37: 0.0 | HYK37: 0.0 | HYL37: 0.0 | HYM37: 0.0 | HYN37: 0.0 | HYO37: 0.0 | HYP37: 0.0 | HYQ37: 0.0 | HYR37: 0.0 | HYS37: 0.0 | HYT37: 0.0 | HYU37: 0.0 | HYV37: 0.0 | HYW37: 0.0 | HYX37: 0.0 | HYY37: =SUM(HYY12:HYY35) -> 0.0 | HYZ37: 0.0 | HZA37: 0.0 | HZB37: 0.0 | HZC37: 0.0 | HZD37: 0.0 | HZE37: 0.0 | HZF37: 0.0 | HZG37: 0.0 | HZH37: 0.0 | HZI37: 0.0 | HZJ37: 0.0 | HZK37: 0.0 | HZL37: 0.0 | HZM37: 0.0 | HZN37: 0.0 | HZO37: 0.0 | HZP37: 0.0 | HZQ37: 0.0 | HZR37: 0.0 | HZS37: 0.0 | HZT37: 0.0 | HZU37: 0.0 | HZV37: 0.0 | HZW37: 0.0 | HZX37: 0.0 | HZY37: 0.0 | HZZ37: 0.0 | IAA37: 0.0 | IAB37: 0.0 | IAC37: 0.0 | IAD37: 0.0 | IAE37: 0.0 | IAF37: 0.0 | IAG37: 0.0 | IAH37: 0.0 | IAI37: 0.0 | IAJ37: 0.0 | IAK37: 0.0 | IAL37: 0.0 | IAM37: 0.0 | IAN37: 0.0 | IAO37: 0.0 | IAP37: 0.0 | IAQ37: 0.0 | IAR37: 0.0 | IAS37: 0.0 | IAT37: 0.0 | IAU37: 0.0 | IAV37: 0.0 | IAW37: 0.0 | IAX37: 0.0 | IAY37: 0.0 | IAZ37: 0.0 | IBA37: 0.0 | IBB37: 0.0 | IBC37: 0.0 | IBD37: 0.0 | IBE37: 0.0 | IBF37: 0.0 | IBG37: 0.0 | IBH37: 0.0 | IBI37: 0.0 | IBJ37: 0.0 | IBK37: =SUM(IBK12:IBK35) -> 0.0 | IBL37: 0.0 | IBM37: 0.0 | IBN37: 0.0 | IBO37: 0.0 | IBP37: 0.0 | IBQ37: 0.0 | IBR37: 0.0 | IBS37: 0.0 | IBT37: 0.0 | IBU37: 0.0 | IBV37: 0.0 | IBW37: 0.0 | IBX37: 0.0 | IBY37: 0.0 | IBZ37: 0.0 | ICA37: 0.0 | ICB37: 0.0 | ICC37: 0.0 | ICD37: 0.0 | ICE37: 0.0 | ICF37: 0.0 | ICG37: 0.0 | ICH37: 0.0 | ICI37: 0.0 | ICJ37: 0.0 | ICK37: 0.0 | ICL37: 0.0 | ICM37: 0.0 | ICN37: 0.0 | ICO37: 0.0 | ICP37: 0.0 | ICQ37: 0.0 | ICR37: 0.0 | ICS37: 0.0 | ICT37: 0.0 | ICU37: 0.0 | ICV37: 0.0 | ICW37: 0.0 | ICX37: 0.0 | ICY37: 0.0 | ICZ37: 0.0 | IDA37: 0.0 | IDB37: 0.0 | IDC37: 0.0 | IDD37: 0.0 | IDE37: 0.0 | IDF37: 0.0 | IDG37: 0.0 | IDH37: 0.0 | IDI37: 0.0 | IDJ37: 0.0 | IDK37: 0.0 | IDL37: 0.0 | IDM37: 0.0 | IDN37: 0.0 | IDO37: 0.0 | IDP37: 0.0 | IDQ37: 0.0 | IDR37: 0.0 | IDS37: 0.0 | IDT37: 0.0 | IDU37: 0.0 | IDV37: 0.0 | IDW37: =SUM(IDW12:IDW35) -> 0.0 | IDX37: 0.0 | IDY37: 0.0 | IDZ37: 0.0 | IEA37: 0.0 | IEB37: 0.0 | IEC37: 0.0 | IED37: 0.0 | IEE37: 0.0 | IEF37: 0.0 | IEG37: 0.0 | IEH37: 0.0 | IEI37: 0.0 | IEJ37: 0.0 | IEK37: 0.0 | IEL37: 0.0 | IEM37: 0.0 | IEN37: 0.0 | IEO37: 0.0 | IEP37: 0.0 | IEQ37: 0.0 | IER37: 0.0 | IES37: 0.0 | IET37: 0.0 | IEU37: 0.0 | IEV37: 0.0 | IEW37: 0.0 | IEX37: 0.0 | IEY37: 0.0 | IEZ37: 0.0 | IFA37: 0.0 | IFB37: 0.0 | IFC37: 0.0 | IFD37: 0.0 | IFE37: 0.0 | IFF37: 0.0 | IFG37: 0.0 | IFH37: 0.0 | IFI37: 0.0 | IFJ37: 0.0 | IFK37: 0.0 | IFL37: 0.0 | IFM37: 0.0 | IFN37: 0.0 | IFO37: 0.0 | IFP37: 0.0 | IFQ37: 0.0 | IFR37: 0.0 | IFS37: 0.0 | IFT37: 0.0 | IFU37: 0.0 | IFV37: 0.0 | IFW37: 0.0 | IFX37: 0.0 | IFY37: 0.0 | IFZ37: 0.0 | IGA37: 0.0 | IGB37: 0.0 | IGC37: 0.0 | IGD37: 0.0 | IGE37: 0.0 | IGF37: 0.0 | IGG37: 0.0 | IGH37: 0.0 | IGI37: =SUM(IGI12:IGI35) -> 0.0 | IGJ37: 0.0 | IGK37: 0.0 | IGL37: 0.0 | IGM37: 0.0 | IGN37: 0.0 | IGO37: 0.0 | IGP37: 0.0 | IGQ37: 0.0 | IGR37: 0.0 | IGS37: 0.0 | IGT37: 0.0 | IGU37: 0.0 | IGV37: 0.0 | IGW37: 0.0 | IGX37: 0.0 | IGY37: 0.0 | IGZ37: 0.0 | IHA37: 0.0 | IHB37: 0.0 | IHC37: 0.0 | IHD37: 0.0 | IHE37: 0.0 | IHF37: 0.0 | IHG37: 0.0 | IHH37: 0.0 | IHI37: 0.0 | IHJ37: 0.0 | IHK37: 0.0 | IHL37: 0.0 | IHM37: 0.0 | IHN37: 0.0 | IHO37: 0.0 | IHP37: 0.0 | IHQ37: 0.0 | IHR37: 0.0 | IHS37: 0.0 | IHT37: 0.0 | IHU37: 0.0 | IHV37: 0.0 | IHW37: 0.0 | IHX37: 0.0 | IHY37: 0.0 | IHZ37: 0.0 | IIA37: 0.0 | IIB37: 0.0 | IIC37: 0.0 | IID37: 0.0 | IIE37: 0.0 | IIF37: 0.0 | IIG37: 0.0 | IIH37: 0.0 | III37: 0.0 | IIJ37: 0.0 | IIK37: 0.0 | IIL37: 0.0 | IIM37: 0.0 | IIN37: 0.0 | IIO37: 0.0 | IIP37: 0.0 | IIQ37: 0.0 | IIR37: 0.0 | IIS37: 0.0 | IIT37: 0.0 | IIU37: =SUM(IIU12:IIU35) -> 0.0 | IIV37: 0.0 | IIW37: 0.0 | IIX37: 0.0 | IIY37: 0.0 | IIZ37: 0.0 | IJA37: 0.0 | IJB37: 0.0 | IJC37: 0.0 | IJD37: 0.0 | IJE37: 0.0 | IJF37: 0.0 | IJG37: 0.0 | IJH37: 0.0 | IJI37: 0.0 | IJJ37: 0.0 | IJK37: 0.0 | IJL37: 0.0 | IJM37: 0.0 | IJN37: 0.0 | IJO37: 0.0 | IJP37: 0.0 | IJQ37: 0.0 | IJR37: 0.0 | IJS37: 0.0 | IJT37: 0.0 | IJU37: 0.0 | IJV37: 0.0 | IJW37: 0.0 | IJX37: 0.0 | IJY37: 0.0 | IJZ37: 0.0 | IKA37: 0.0 | IKB37: 0.0 | IKC37: 0.0 | IKD37: 0.0 | IKE37: 0.0 | IKF37: 0.0 | IKG37: 0.0 | IKH37: 0.0 | IKI37: 0.0 | IKJ37: 0.0 | IKK37: 0.0 | IKL37: 0.0 | IKM37: 0.0 | IKN37: 0.0 | IKO37: 0.0 | IKP37: 0.0 | IKQ37: 0.0 | IKR37: 0.0 | IKS37: 0.0 | IKT37: 0.0 | IKU37: 0.0 | IKV37: 0.0 | IKW37: 0.0 | IKX37: 0.0 | IKY37: 0.0 | IKZ37: 0.0 | ILA37: 0.0 | ILB37: 0.0 | ILC37: 0.0 | ILD37: 0.0 | ILE37: 0.0 | ILF37: 0.0 | ILG37: =SUM(ILG12:ILG35) -> 0.0 | ILH37: 0.0 | ILI37: 0.0 | ILJ37: 0.0 | ILK37: 0.0 | ILL37: 0.0 | ILM37: 0.0 | ILN37: 0.0 | ILO37: 0.0 | ILP37: 0.0 | ILQ37: 0.0 | ILR37: 0.0 | ILS37: 0.0 | ILT37: 0.0 | ILU37: 0.0 | ILV37: 0.0 | ILW37: 0.0 | ILX37: 0.0 | ILY37: 0.0 | ILZ37: 0.0 | IMA37: 0.0 | IMB37: 0.0 | IMC37: 0.0 | IMD37: 0.0 | IME37: 0.0 | IMF37: 0.0 | IMG37: 0.0 | IMH37: 0.0 | IMI37: 0.0 | IMJ37: 0.0 | IMK37: 0.0 | IML37: 0.0 | IMM37: 0.0 | IMN37: 0.0 | IMO37: 0.0 | IMP37: 0.0 | IMQ37: 0.0 | IMR37: 0.0 | IMS37: 0.0 | IMT37: 0.0 | IMU37: 0.0 | IMV37: 0.0 | IMW37: 0.0 | IMX37: 0.0 | IMY37: 0.0 | IMZ37: 0.0 | INA37: 0.0 | INB37: 0.0 | INC37: 0.0 | IND37: 0.0 | INE37: 0.0 | INF37: 0.0 | ING37: 0.0 | INH37: 0.0 | INI37: 0.0 | INJ37: 0.0 | INK37: 0.0 | INL37: 0.0 | INM37: 0.0 | INN37: 0.0 | INO37: 0.0 | INP37: 0.0 | INQ37: 0.0 | INR37: 0.0 | INS37: =SUM(INS12:INS35) -> 0.0 | INT37: 0.0 | INU37: 0.0 | INV37: 0.0 | INW37: 0.0 | INX37: 0.0 | INY37: 0.0 | INZ37: 0.0 | IOA37: 0.0 | IOB37: 0.0 | IOC37: 0.0 | IOD37: 0.0 | IOE37: 0.0 | IOF37: 0.0 | IOG37: 0.0 | IOH37: 0.0 | IOI37: 0.0 | IOJ37: 0.0 | IOK37: 0.0 | IOL37: 0.0 | IOM37: 0.0 | ION37: 0.0 | IOO37: 0.0 | IOP37: 0.0 | IOQ37: 0.0 | IOR37: 0.0 | IOS37: 0.0 | IOT37: 0.0 | IOU37: 0.0 | IOV37: 0.0 | IOW37: 0.0 | IOX37: 0.0 | IOY37: 0.0 | IOZ37: 0.0 | IPA37: 0.0 | IPB37: 0.0 | IPC37: 0.0 | IPD37: 0.0 | IPE37: 0.0 | IPF37: 0.0 | IPG37: 0.0 | IPH37: 0.0 | IPI37: 0.0 | IPJ37: 0.0 | IPK37: 0.0 | IPL37: 0.0 | IPM37: 0.0 | IPN37: 0.0 | IPO37: 0.0 | IPP37: 0.0 | IPQ37: 0.0 | IPR37: 0.0 | IPS37: 0.0 | IPT37: 0.0 | IPU37: 0.0 | IPV37: 0.0 | IPW37: 0.0 | IPX37: 0.0 | IPY37: 0.0 | IPZ37: 0.0 | IQA37: 0.0 | IQB37: 0.0 | IQC37: 0.0 | IQD37: 0.0 | IQE37: =SUM(IQE12:IQE35) -> 0.0 | IQF37: 0.0 | IQG37: 0.0 | IQH37: 0.0 | IQI37: 0.0 | IQJ37: 0.0 | IQK37: 0.0 | IQL37: 0.0 | IQM37: 0.0 | IQN37: 0.0 | IQO37: 0.0 | IQP37: 0.0 | IQQ37: 0.0 | IQR37: 0.0 | IQS37: 0.0 | IQT37: 0.0 | IQU37: 0.0 | IQV37: 0.0 | IQW37: 0.0 | IQX37: 0.0 | IQY37: 0.0 | IQZ37: 0.0 | IRA37: 0.0 | IRB37: 0.0 | IRC37: 0.0 | IRD37: 0.0 | IRE37: 0.0 | IRF37: 0.0 | IRG37: 0.0 | IRH37: 0.0 | IRI37: 0.0 | IRJ37: 0.0 | IRK37: 0.0 | IRL37: 0.0 | IRM37: 0.0 | IRN37: 0.0 | IRO37: 0.0 | IRP37: 0.0 | IRQ37: 0.0 | IRR37: 0.0 | IRS37: 0.0 | IRT37: 0.0 | IRU37: 0.0 | IRV37: 0.0 | IRW37: 0.0 | IRX37: 0.0 | IRY37: 0.0 | IRZ37: 0.0 | ISA37: 0.0 | ISB37: 0.0 | ISC37: 0.0 | ISD37: 0.0 | ISE37: 0.0 | ISF37: 0.0 | ISG37: 0.0 | ISH37: 0.0 | ISI37: 0.0 | ISJ37: 0.0 | ISK37: 0.0 | ISL37: 0.0 | ISM37: 0.0 | ISN37: 0.0 | ISO37: 0.0 | ISP37: 0.0 | ISQ37: =SUM(ISQ12:ISQ35) -> 0.0 | ISR37: 0.0 | ISS37: 0.0 | IST37: 0.0 | ISU37: 0.0 | ISV37: 0.0 | ISW37: 0.0 | ISX37: 0.0 | ISY37: 0.0 | ISZ37: 0.0 | ITA37: 0.0 | ITB37: 0.0 | ITC37: 0.0 | ITD37: 0.0 | ITE37: 0.0 | ITF37: 0.0 | ITG37: 0.0 | ITH37: 0.0 | ITI37: 0.0 | ITJ37: 0.0 | ITK37: 0.0 | ITL37: 0.0 | ITM37: 0.0 | ITN37: 0.0 | ITO37: 0.0 | ITP37: 0.0 | ITQ37: 0.0 | ITR37: 0.0 | ITS37: 0.0 | ITT37: 0.0 | ITU37: 0.0 | ITV37: 0.0 | ITW37: 0.0 | ITX37: 0.0 | ITY37: 0.0 | ITZ37: 0.0 | IUA37: 0.0 | IUB37: 0.0 | IUC37: 0.0 | IUD37: 0.0 | IUE37: 0.0 | IUF37: 0.0 | IUG37: 0.0 | IUH37: 0.0 | IUI37: 0.0 | IUJ37: 0.0 | IUK37: 0.0 | IUL37: 0.0 | IUM37: 0.0 | IUN37: 0.0 | IUO37: 0.0 | IUP37: 0.0 | IUQ37: 0.0 | IUR37: 0.0 | IUS37: 0.0 | IUT37: 0.0 | IUU37: 0.0 | IUV37: 0.0 | IUW37: 0.0 | IUX37: 0.0 | IUY37: 0.0 | IUZ37: 0.0 | IVA37: 0.0 | IVB37: 0.0 | IVC37: =SUM(IVC12:IVC35) -> 0.0 | IVD37: 0.0 | IVE37: 0.0 | IVF37: 0.0 | IVG37: 0.0 | IVH37: 0.0 | IVI37: 0.0 | IVJ37: 0.0 | IVK37: 0.0 | IVL37: 0.0 | IVM37: 0.0 | IVN37: 0.0 | IVO37: 0.0 | IVP37: 0.0 | IVQ37: 0.0 | IVR37: 0.0 | IVS37: 0.0 | IVT37: 0.0 | IVU37: 0.0 | IVV37: 0.0 | IVW37: 0.0 | IVX37: 0.0 | IVY37: 0.0 | IVZ37: 0.0 | IWA37: 0.0 | IWB37: 0.0 | IWC37: 0.0 | IWD37: 0.0 | IWE37: 0.0 | IWF37: 0.0 | IWG37: 0.0 | IWH37: 0.0 | IWI37: 0.0 | IWJ37: 0.0 | IWK37: 0.0 | IWL37: 0.0 | IWM37: 0.0 | IWN37: 0.0 | IWO37: 0.0 | IWP37: 0.0 | IWQ37: 0.0 | IWR37: 0.0 | IWS37: 0.0 | IWT37: 0.0 | IWU37: 0.0 | IWV37: 0.0 | IWW37: 0.0 | IWX37: 0.0 | IWY37: 0.0 | IWZ37: 0.0 | IXA37: 0.0 | IXB37: 0.0 | IXC37: 0.0 | IXD37: 0.0 | IXE37: 0.0 | IXF37: 0.0 | IXG37: 0.0 | IXH37: 0.0 | IXI37: 0.0 | IXJ37: 0.0 | IXK37: 0.0 | IXL37: 0.0 | IXM37: 0.0 | IXN37: 0.0 | IXO37: =SUM(IXO12:IXO35) -> 0.0 | IXP37: 0.0 | IXQ37: 0.0 | IXR37: 0.0 | IXS37: 0.0 | IXT37: 0.0 | IXU37: 0.0 | IXV37: 0.0 | IXW37: 0.0 | IXX37: 0.0 | IXY37: 0.0 | IXZ37: 0.0 | IYA37: 0.0 | IYB37: 0.0 | IYC37: 0.0 | IYD37: 0.0 | IYE37: 0.0 | IYF37: 0.0 | IYG37: 0.0 | IYH37: 0.0 | IYI37: 0.0 | IYJ37: 0.0 | IYK37: 0.0 | IYL37: 0.0 | IYM37: 0.0 | IYN37: 0.0 | IYO37: 0.0 | IYP37: 0.0 | IYQ37: 0.0 | IYR37: 0.0 | IYS37: 0.0 | IYT37: 0.0 | IYU37: 0.0 | IYV37: 0.0 | IYW37: 0.0 | IYX37: 0.0 | IYY37: 0.0 | IYZ37: 0.0 | IZA37: 0.0 | IZB37: 0.0 | IZC37: 0.0 | IZD37: 0.0 | IZE37: 0.0 | IZF37: 0.0 | IZG37: 0.0 | IZH37: 0.0 | IZI37: 0.0 | IZJ37: 0.0 | IZK37: 0.0 | IZL37: 0.0 | IZM37: 0.0 | IZN37: 0.0 | IZO37: 0.0 | IZP37: 0.0 | IZQ37: 0.0 | IZR37: 0.0 | IZS37: 0.0 | IZT37: 0.0 | IZU37: 0.0 | IZV37: 0.0 | IZW37: 0.0 | IZX37: 0.0 | IZY37: 0.0 | IZZ37: 0.0 | JAA37: =SUM(JAA12:JAA35) -> 0.0 | JAB37: 0.0 | JAC37: 0.0 | JAD37: 0.0 | JAE37: 0.0 | JAF37: 0.0 | JAG37: 0.0 | JAH37: 0.0 | JAI37: 0.0 | JAJ37: 0.0 | JAK37: 0.0 | JAL37: 0.0 | JAM37: 0.0 | JAN37: 0.0 | JAO37: 0.0 | JAP37: 0.0 | JAQ37: 0.0 | JAR37: 0.0 | JAS37: 0.0 | JAT37: 0.0 | JAU37: 0.0 | JAV37: 0.0 | JAW37: 0.0 | JAX37: 0.0 | JAY37: 0.0 | JAZ37: 0.0 | JBA37: 0.0 | JBB37: 0.0 | JBC37: 0.0 | JBD37: 0.0 | JBE37: 0.0 | JBF37: 0.0 | JBG37: 0.0 | JBH37: 0.0 | JBI37: 0.0 | JBJ37: 0.0 | JBK37: 0.0 | JBL37: 0.0 | JBM37: 0.0 | JBN37: 0.0 | JBO37: 0.0 | JBP37: 0.0 | JBQ37: 0.0 | JBR37: 0.0 | JBS37: 0.0 | JBT37: 0.0 | JBU37: 0.0 | JBV37: 0.0 | JBW37: 0.0 | JBX37: 0.0 | JBY37: 0.0 | JBZ37: 0.0 | JCA37: 0.0 | JCB37: 0.0 | JCC37: 0.0 | JCD37: 0.0 | JCE37: 0.0 | JCF37: 0.0 | JCG37: 0.0 | JCH37: 0.0 | JCI37: 0.0 | JCJ37: 0.0 | JCK37: 0.0 | JCL37: 0.0 | JCM37: =SUM(JCM12:JCM35) -> 0.0 | JCN37: 0.0 | JCO37: 0.0 | JCP37: 0.0 | JCQ37: 0.0 | JCR37: 0.0 | JCS37: 0.0 | JCT37: 0.0 | JCU37: 0.0 | JCV37: 0.0 | JCW37: 0.0 | JCX37: 0.0 | JCY37: 0.0 | JCZ37: 0.0 | JDA37: 0.0 | JDB37: 0.0 | JDC37: 0.0 | JDD37: 0.0 | JDE37: 0.0 | JDF37: 0.0 | JDG37: 0.0 | JDH37: 0.0 | JDI37: 0.0 | JDJ37: 0.0 | JDK37: 0.0 | JDL37: 0.0 | JDM37: 0.0 | JDN37: 0.0 | JDO37: 0.0 | JDP37: 0.0 | JDQ37: 0.0 | JDR37: 0.0 | JDS37: 0.0 | JDT37: 0.0 | JDU37: 0.0 | JDV37: 0.0 | JDW37: 0.0 | JDX37: 0.0 | JDY37: 0.0 | JDZ37: 0.0 | JEA37: 0.0 | JEB37: 0.0 | JEC37: 0.0 | JED37: 0.0 | JEE37: 0.0 | JEF37: 0.0 | JEG37: 0.0 | JEH37: 0.0 | JEI37: 0.0 | JEJ37: 0.0 | JEK37: 0.0 | JEL37: 0.0 | JEM37: 0.0 | JEN37: 0.0 | JEO37: 0.0 | JEP37: 0.0 | JEQ37: 0.0 | JER37: 0.0 | JES37: 0.0 | JET37: 0.0 | JEU37: 0.0 | JEV37: 0.0 | JEW37: 0.0 | JEX37: 0.0 | JEY37: =SUM(JEY12:JEY35) -> 0.0 | JEZ37: 0.0 | JFA37: 0.0 | JFB37: 0.0 | JFC37: 0.0 | JFD37: 0.0 | JFE37: 0.0 | JFF37: 0.0 | JFG37: 0.0 | JFH37: 0.0 | JFI37: 0.0 | JFJ37: 0.0 | JFK37: 0.0 | JFL37: 0.0 | JFM37: 0.0 | JFN37: 0.0 | JFO37: 0.0 | JFP37: 0.0 | JFQ37: 0.0 | JFR37: 0.0 | JFS37: 0.0 | JFT37: 0.0 | JFU37: 0.0 | JFV37: 0.0 | JFW37: 0.0 | JFX37: 0.0 | JFY37: 0.0 | JFZ37: 0.0 | JGA37: 0.0 | JGB37: 0.0 | JGC37: 0.0 | JGD37: 0.0 | JGE37: 0.0 | JGF37: 0.0 | JGG37: 0.0 | JGH37: 0.0 | JGI37: 0.0 | JGJ37: 0.0 | JGK37: 0.0 | JGL37: 0.0 | JGM37: 0.0 | JGN37: 0.0 | JGO37: 0.0 | JGP37: 0.0 | JGQ37: 0.0 | JGR37: 0.0 | JGS37: 0.0 | JGT37: 0.0 | JGU37: 0.0 | JGV37: 0.0 | JGW37: 0.0 | JGX37: 0.0 | JGY37: 0.0 | JGZ37: 0.0 | JHA37: 0.0 | JHB37: 0.0 | JHC37: 0.0 | JHD37: 0.0 | JHE37: 0.0 | JHF37: 0.0 | JHG37: 0.0 | JHH37: 0.0 | JHI37: 0.0 | JHJ37: 0.0 | JHK37: =SUM(JHK12:JHK35) -> 0.0 | JHL37: 0.0 | JHM37: 0.0 | JHN37: 0.0 | JHO37: 0.0 | JHP37: 0.0 | JHQ37: 0.0 | JHR37: 0.0 | JHS37: 0.0 | JHT37: 0.0 | JHU37: 0.0 | JHV37: 0.0 | JHW37: 0.0 | JHX37: 0.0 | JHY37: 0.0 | JHZ37: 0.0 | JIA37: 0.0 | JIB37: 0.0 | JIC37: 0.0 | JID37: 0.0 | JIE37: 0.0 | JIF37: 0.0 | JIG37: 0.0 | JIH37: 0.0 | JII37: 0.0 | JIJ37: 0.0 | JIK37: 0.0 | JIL37: 0.0 | JIM37: 0.0 | JIN37: 0.0 | JIO37: 0.0 | JIP37: 0.0 | JIQ37: 0.0 | JIR37: 0.0 | JIS37: 0.0 | JIT37: 0.0 | JIU37: 0.0 | JIV37: 0.0 | JIW37: 0.0 | JIX37: 0.0 | JIY37: 0.0 | JIZ37: 0.0 | JJA37: 0.0 | JJB37: 0.0 | JJC37: 0.0 | JJD37: 0.0 | JJE37: 0.0 | JJF37: 0.0 | JJG37: 0.0 | JJH37: 0.0 | JJI37: 0.0 | JJJ37: 0.0 | JJK37: 0.0 | JJL37: 0.0 | JJM37: 0.0 | JJN37: 0.0 | JJO37: 0.0 | JJP37: 0.0 | JJQ37: 0.0 | JJR37: 0.0 | JJS37: 0.0 | JJT37: 0.0 | JJU37: 0.0 | JJV37: 0.0 | JJW37: =SUM(JJW12:JJW35) -> 0.0 | JJX37: 0.0 | JJY37: 0.0 | JJZ37: 0.0 | JKA37: 0.0 | JKB37: 0.0 | JKC37: 0.0 | JKD37: 0.0 | JKE37: 0.0 | JKF37: 0.0 | JKG37: 0.0 | JKH37: 0.0 | JKI37: 0.0 | JKJ37: 0.0 | JKK37: 0.0 | JKL37: 0.0 | JKM37: 0.0 | JKN37: 0.0 | JKO37: 0.0 | JKP37: 0.0 | JKQ37: 0.0 | JKR37: 0.0 | JKS37: 0.0 | JKT37: 0.0 | JKU37: 0.0 | JKV37: 0.0 | JKW37: 0.0 | JKX37: 0.0 | JKY37: 0.0 | JKZ37: 0.0 | JLA37: 0.0 | JLB37: 0.0 | JLC37: 0.0 | JLD37: 0.0 | JLE37: 0.0 | JLF37: 0.0 | JLG37: 0.0 | JLH37: 0.0 | JLI37: 0.0 | JLJ37: 0.0 | JLK37: 0.0 | JLL37: 0.0 | JLM37: 0.0 | JLN37: 0.0 | JLO37: 0.0 | JLP37: 0.0 | JLQ37: 0.0 | JLR37: 0.0 | JLS37: 0.0 | JLT37: 0.0 | JLU37: 0.0 | JLV37: 0.0 | JLW37: 0.0 | JLX37: 0.0 | JLY37: 0.0 | JLZ37: 0.0 | JMA37: 0.0 | JMB37: 0.0 | JMC37: 0.0 | JMD37: 0.0 | JME37: 0.0 | JMF37: 0.0 | JMG37: 0.0 | JMH37: 0.0 | JMI37: =SUM(JMI12:JMI35) -> 0.0 | JMJ37: 0.0 | JMK37: 0.0 | JML37: 0.0 | JMM37: 0.0 | JMN37: 0.0 | JMO37: 0.0 | JMP37: 0.0 | JMQ37: 0.0 | JMR37: 0.0 | JMS37: 0.0 | JMT37: 0.0 | JMU37: 0.0 | JMV37: 0.0 | JMW37: 0.0 | JMX37: 0.0 | JMY37: 0.0 | JMZ37: 0.0 | JNA37: 0.0 | JNB37: 0.0 | JNC37: 0.0 | JND37: 0.0 | JNE37: 0.0 | JNF37: 0.0 | JNG37: 0.0 | JNH37: 0.0 | JNI37: 0.0 | JNJ37: 0.0 | JNK37: 0.0 | JNL37: 0.0 | JNM37: 0.0 | JNN37: 0.0 | JNO37: 0.0 | JNP37: 0.0 | JNQ37: 0.0 | JNR37: 0.0 | JNS37: 0.0 | JNT37: 0.0 | JNU37: 0.0 | JNV37: 0.0 | JNW37: 0.0 | JNX37: 0.0 | JNY37: 0.0 | JNZ37: 0.0 | JOA37: 0.0 | JOB37: 0.0 | JOC37: 0.0 | JOD37: 0.0 | JOE37: 0.0 | JOF37: 0.0 | JOG37: 0.0 | JOH37: 0.0 | JOI37: 0.0 | JOJ37: 0.0 | JOK37: 0.0 | JOL37: 0.0 | JOM37: 0.0 | JON37: 0.0 | JOO37: 0.0 | JOP37: 0.0 | JOQ37: 0.0 | JOR37: 0.0 | JOS37: 0.0 | JOT37: 0.0 | JOU37: =SUM(JOU12:JOU35) -> 0.0 | JOV37: 0.0 | JOW37: 0.0 | JOX37: 0.0 | JOY37: 0.0 | JOZ37: 0.0 | JPA37: 0.0 | JPB37: 0.0 | JPC37: 0.0 | JPD37: 0.0 | JPE37: 0.0 | JPF37: 0.0 | JPG37: 0.0 | JPH37: 0.0 | JPI37: 0.0 | JPJ37: 0.0 | JPK37: 0.0 | JPL37: 0.0 | JPM37: 0.0 | JPN37: 0.0 | JPO37: 0.0 | JPP37: 0.0 | JPQ37: 0.0 | JPR37: 0.0 | JPS37: 0.0 | JPT37: 0.0 | JPU37: 0.0 | JPV37: 0.0 | JPW37: 0.0 | JPX37: 0.0 | JPY37: 0.0 | JPZ37: 0.0 | JQA37: 0.0 | JQB37: 0.0 | JQC37: 0.0 | JQD37: 0.0 | JQE37: 0.0 | JQF37: 0.0 | JQG37: 0.0 | JQH37: 0.0 | JQI37: 0.0 | JQJ37: 0.0 | JQK37: 0.0 | JQL37: 0.0 | JQM37: 0.0 | JQN37: 0.0 | JQO37: 0.0 | JQP37: 0.0 | JQQ37: 0.0 | JQR37: 0.0 | JQS37: 0.0 | JQT37: 0.0 | JQU37: 0.0 | JQV37: 0.0 | JQW37: 0.0 | JQX37: 0.0 | JQY37: 0.0 | JQZ37: 0.0 | JRA37: 0.0 | JRB37: 0.0 | JRC37: 0.0 | JRD37: 0.0 | JRE37: 0.0 | JRF37: 0.0 | JRG37: =SUM(JRG12:JRG35) -> 0.0 | JRH37: 0.0 | JRI37: 0.0 | JRJ37: 0.0 | JRK37: 0.0 | JRL37: 0.0 | JRM37: 0.0 | JRN37: 0.0 | JRO37: 0.0 | JRP37: 0.0 | JRQ37: 0.0 | JRR37: 0.0 | JRS37: 0.0 | JRT37: 0.0 | JRU37: 0.0 | JRV37: 0.0 | JRW37: 0.0 | JRX37: 0.0 | JRY37: 0.0 | JRZ37: 0.0 | JSA37: 0.0 | JSB37: 0.0 | JSC37: 0.0 | JSD37: 0.0 | JSE37: 0.0 | JSF37: 0.0 | JSG37: 0.0 | JSH37: 0.0 | JSI37: 0.0 | JSJ37: 0.0 | JSK37: 0.0 | JSL37: 0.0 | JSM37: 0.0 | JSN37: 0.0 | JSO37: 0.0 | JSP37: 0.0 | JSQ37: 0.0 | JSR37: 0.0 | JSS37: 0.0 | JST37: 0.0 | JSU37: 0.0 | JSV37: 0.0 | JSW37: 0.0 | JSX37: 0.0 | JSY37: 0.0 | JSZ37: 0.0 | JTA37: 0.0 | JTB37: 0.0 | JTC37: 0.0 | JTD37: 0.0 | JTE37: 0.0 | JTF37: 0.0 | JTG37: 0.0 | JTH37: 0.0 | JTI37: 0.0 | JTJ37: 0.0 | JTK37: 0.0 | JTL37: 0.0 | JTM37: 0.0 | JTN37: 0.0 | JTO37: 0.0 | JTP37: 0.0 | JTQ37: 0.0 | JTR37: 0.0 | JTS37: =SUM(JTS12:JTS35) -> 0.0 | JTT37: 0.0 | JTU37: 0.0 | JTV37: 0.0 | JTW37: 0.0 | JTX37: 0.0 | JTY37: 0.0 | JTZ37: 0.0 | JUA37: 0.0 | JUB37: 0.0 | JUC37: 0.0 | JUD37: 0.0 | JUE37: 0.0 | JUF37: 0.0 | JUG37: 0.0 | JUH37: 0.0 | JUI37: 0.0 | JUJ37: 0.0 | JUK37: 0.0 | JUL37: 0.0 | JUM37: 0.0 | JUN37: 0.0 | JUO37: 0.0 | JUP37: 0.0 | JUQ37: 0.0 | JUR37: 0.0 | JUS37: 0.0 | JUT37: 0.0 | JUU37: 0.0 | JUV37: 0.0 | JUW37: 0.0 | JUX37: 0.0 | JUY37: 0.0 | JUZ37: 0.0 | JVA37: 0.0 | JVB37: 0.0 | JVC37: 0.0 | JVD37: 0.0 | JVE37: 0.0 | JVF37: 0.0 | JVG37: 0.0 | JVH37: 0.0 | JVI37: 0.0 | JVJ37: 0.0 | JVK37: 0.0 | JVL37: 0.0 | JVM37: 0.0 | JVN37: 0.0 | JVO37: 0.0 | JVP37: 0.0 | JVQ37: 0.0 | JVR37: 0.0 | JVS37: 0.0 | JVT37: 0.0 | JVU37: 0.0 | JVV37: 0.0 | JVW37: 0.0 | JVX37: 0.0 | JVY37: 0.0 | JVZ37: 0.0 | JWA37: 0.0 | JWB37: 0.0 | JWC37: 0.0 | JWD37: 0.0 | JWE37: =SUM(JWE12:JWE35) -> 0.0 | JWF37: 0.0 | JWG37: 0.0 | JWH37: 0.0 | JWI37: 0.0 | JWJ37: 0.0 | JWK37: 0.0 | JWL37: 0.0 | JWM37: 0.0 | JWN37: 0.0 | JWO37: 0.0 | JWP37: 0.0 | JWQ37: 0.0 | JWR37: 0.0 | JWS37: 0.0 | JWT37: 0.0 | JWU37: 0.0 | JWV37: 0.0 | JWW37: 0.0 | JWX37: 0.0 | JWY37: 0.0 | JWZ37: 0.0 | JXA37: 0.0 | JXB37: 0.0 | JXC37: 0.0 | JXD37: 0.0 | JXE37: 0.0 | JXF37: 0.0 | JXG37: 0.0 | JXH37: 0.0 | JXI37: 0.0 | JXJ37: 0.0 | JXK37: 0.0 | JXL37: 0.0 | JXM37: 0.0 | JXN37: 0.0 | JXO37: 0.0 | JXP37: 0.0 | JXQ37: 0.0 | JXR37: 0.0 | JXS37: 0.0 | JXT37: 0.0 | JXU37: 0.0 | JXV37: 0.0 | JXW37: 0.0 | JXX37: 0.0 | JXY37: 0.0 | JXZ37: 0.0 | JYA37: 0.0 | JYB37: 0.0 | JYC37: 0.0 | JYD37: 0.0 | JYE37: 0.0 | JYF37: 0.0 | JYG37: 0.0 | JYH37: 0.0 | JYI37: 0.0 | JYJ37: 0.0 | JYK37: 0.0 | JYL37: 0.0 | JYM37: 0.0 | JYN37: 0.0 | JYO37: 0.0 | JYP37: 0.0 | JYQ37: =SUM(JYQ12:JYQ35) -> 0.0 | JYR37: 0.0 | JYS37: 0.0 | JYT37: 0.0 | JYU37: 0.0 | JYV37: 0.0 | JYW37: 0.0 | JYX37: 0.0 | JYY37: 0.0 | JYZ37: 0.0 | JZA37: 0.0 | JZB37: 0.0 | JZC37: 0.0 | JZD37: 0.0 | JZE37: 0.0 | JZF37: 0.0 | JZG37: 0.0 | JZH37: 0.0 | JZI37: 0.0 | JZJ37: 0.0 | JZK37: 0.0 | JZL37: 0.0 | JZM37: 0.0 | JZN37: 0.0 | JZO37: 0.0 | JZP37: 0.0 | JZQ37: 0.0 | JZR37: 0.0 | JZS37: 0.0 | JZT37: 0.0 | JZU37: 0.0 | JZV37: 0.0 | JZW37: 0.0 | JZX37: 0.0 | JZY37: 0.0 | JZZ37: 0.0 | KAA37: 0.0 | KAB37: 0.0 | KAC37: 0.0 | KAD37: 0.0 | KAE37: 0.0 | KAF37: 0.0 | KAG37: 0.0 | KAH37: 0.0 | KAI37: 0.0 | KAJ37: 0.0 | KAK37: 0.0 | KAL37: 0.0 | KAM37: 0.0 | KAN37: 0.0 | KAO37: 0.0 | KAP37: 0.0 | KAQ37: 0.0 | KAR37: 0.0 | KAS37: 0.0 | KAT37: 0.0 | KAU37: 0.0 | KAV37: 0.0 | KAW37: 0.0 | KAX37: 0.0 | KAY37: 0.0 | KAZ37: 0.0 | KBA37: 0.0 | KBB37: 0.0 | KBC37: =SUM(KBC12:KBC35) -> 0.0 | KBD37: 0.0 | KBE37: 0.0 | KBF37: 0.0 | KBG37: 0.0 | KBH37: 0.0 | KBI37: 0.0 | KBJ37: 0.0 | KBK37: 0.0 | KBL37: 0.0 | KBM37: 0.0 | KBN37: 0.0 | KBO37: 0.0 | KBP37: 0.0 | KBQ37: 0.0 | KBR37: 0.0 | KBS37: 0.0 | KBT37: 0.0 | KBU37: 0.0 | KBV37: 0.0 | KBW37: 0.0 | KBX37: 0.0 | KBY37: 0.0 | KBZ37: 0.0 | KCA37: 0.0 | KCB37: 0.0 | KCC37: 0.0 | KCD37: 0.0 | KCE37: 0.0 | KCF37: 0.0 | KCG37: 0.0 | KCH37: 0.0 | KCI37: 0.0 | KCJ37: 0.0 | KCK37: 0.0 | KCL37: 0.0 | KCM37: 0.0 | KCN37: 0.0 | KCO37: 0.0 | KCP37: 0.0 | KCQ37: 0.0 | KCR37: 0.0 | KCS37: 0.0 | KCT37: 0.0 | KCU37: 0.0 | KCV37: 0.0 | KCW37: 0.0 | KCX37: 0.0 | KCY37: 0.0 | KCZ37: 0.0 | KDA37: 0.0 | KDB37: 0.0 | KDC37: 0.0 | KDD37: 0.0 | KDE37: 0.0 | KDF37: 0.0 | KDG37: 0.0 | KDH37: 0.0 | KDI37: 0.0 | KDJ37: 0.0 | KDK37: 0.0 | KDL37: 0.0 | KDM37: 0.0 | KDN37: 0.0 | KDO37: =SUM(KDO12:KDO35) -> 0.0 | KDP37: 0.0 | KDQ37: 0.0 | KDR37: 0.0 | KDS37: 0.0 | KDT37: 0.0 | KDU37: 0.0 | KDV37: 0.0 | KDW37: 0.0 | KDX37: 0.0 | KDY37: 0.0 | KDZ37: 0.0 | KEA37: 0.0 | KEB37: 0.0 | KEC37: 0.0 | KED37: 0.0 | KEE37: 0.0 | KEF37: 0.0 | KEG37: 0.0 | KEH37: 0.0 | KEI37: 0.0 | KEJ37: 0.0 | KEK37: 0.0 | KEL37: 0.0 | KEM37: 0.0 | KEN37: 0.0 | KEO37: 0.0 | KEP37: 0.0 | KEQ37: 0.0 | KER37: 0.0 | KES37: 0.0 | KET37: 0.0 | KEU37: 0.0 | KEV37: 0.0 | KEW37: 0.0 | KEX37: 0.0 | KEY37: 0.0 | KEZ37: 0.0 | KFA37: 0.0 | KFB37: 0.0 | KFC37: 0.0 | KFD37: 0.0 | KFE37: 0.0 | KFF37: 0.0 | KFG37: 0.0 | KFH37: 0.0 | KFI37: 0.0 | KFJ37: 0.0 | KFK37: 0.0 | KFL37: 0.0 | KFM37: 0.0 | KFN37: 0.0 | KFO37: 0.0 | KFP37: 0.0 | KFQ37: 0.0 | KFR37: 0.0 | KFS37: 0.0 | KFT37: 0.0 | KFU37: 0.0 | KFV37: 0.0 | KFW37: 0.0 | KFX37: 0.0 | KFY37: 0.0 | KFZ37: 0.0 | KGA37: =SUM(KGA12:KGA35) -> 0.0 | KGB37: 0.0 | KGC37: 0.0 | KGD37: 0.0 | KGE37: 0.0 | KGF37: 0.0 | KGG37: 0.0 | KGH37: 0.0 | KGI37: 0.0 | KGJ37: 0.0 | KGK37: 0.0 | KGL37: 0.0 | KGM37: 0.0 | KGN37: 0.0 | KGO37: 0.0 | KGP37: 0.0 | KGQ37: 0.0 | KGR37: 0.0 | KGS37: 0.0 | KGT37: 0.0 | KGU37: 0.0 | KGV37: 0.0 | KGW37: 0.0 | KGX37: 0.0 | KGY37: 0.0 | KGZ37: 0.0 | KHA37: 0.0 | KHB37: 0.0 | KHC37: 0.0 | KHD37: 0.0 | KHE37: 0.0 | KHF37: 0.0 | KHG37: 0.0 | KHH37: 0.0 | KHI37: 0.0 | KHJ37: 0.0 | KHK37: 0.0 | KHL37: 0.0 | KHM37: 0.0 | KHN37: 0.0 | KHO37: 0.0 | KHP37: 0.0 | KHQ37: 0.0 | KHR37: 0.0 | KHS37: 0.0 | KHT37: 0.0 | KHU37: 0.0 | KHV37: 0.0 | KHW37: 0.0 | KHX37: 0.0 | KHY37: 0.0 | KHZ37: 0.0 | KIA37: 0.0 | KIB37: 0.0 | KIC37: 0.0 | KID37: 0.0 | KIE37: 0.0 | KIF37: 0.0 | KIG37: 0.0 | KIH37: 0.0 | KII37: 0.0 | KIJ37: 0.0 | KIK37: 0.0 | KIL37: 0.0 | KIM37: =SUM(KIM12:KIM35) -> 0.0 | KIN37: 0.0 | KIO37: 0.0 | KIP37: 0.0 | KIQ37: 0.0 | KIR37: 0.0 | KIS37: 0.0 | KIT37: 0.0 | KIU37: 0.0 | KIV37: 0.0 | KIW37: 0.0 | KIX37: 0.0 | KIY37: 0.0 | KIZ37: 0.0 | KJA37: 0.0 | KJB37: 0.0 | KJC37: 0.0 | KJD37: 0.0 | KJE37: 0.0 | KJF37: 0.0 | KJG37: 0.0 | KJH37: 0.0 | KJI37: 0.0 | KJJ37: 0.0 | KJK37: 0.0 | KJL37: 0.0 | KJM37: 0.0 | KJN37: 0.0 | KJO37: 0.0 | KJP37: 0.0 | KJQ37: 0.0 | KJR37: 0.0 | KJS37: 0.0 | KJT37: 0.0 | KJU37: 0.0 | KJV37: 0.0 | KJW37: 0.0 | KJX37: 0.0 | KJY37: 0.0 | KJZ37: 0.0 | KKA37: 0.0 | KKB37: 0.0 | KKC37: 0.0 | KKD37: 0.0 | KKE37: 0.0 | KKF37: 0.0 | KKG37: 0.0 | KKH37: 0.0 | KKI37: 0.0 | KKJ37: 0.0 | KKK37: 0.0 | KKL37: 0.0 | KKM37: 0.0 | KKN37: 0.0 | KKO37: 0.0 | KKP37: 0.0 | KKQ37: 0.0 | KKR37: 0.0 | KKS37: 0.0 | KKT37: 0.0 | KKU37: 0.0 | KKV37: 0.0 | KKW37: 0.0 | KKX37: 0.0 | KKY37: =SUM(KKY12:KKY35) -> 0.0 | KKZ37: 0.0 | KLA37: 0.0 | KLB37: 0.0 | KLC37: 0.0 | KLD37: 0.0 | KLE37: 0.0 | KLF37: 0.0 | KLG37: 0.0 | KLH37: 0.0 | KLI37: 0.0 | KLJ37: 0.0 | KLK37: 0.0 | KLL37: 0.0 | KLM37: 0.0 | KLN37: 0.0 | KLO37: 0.0 | KLP37: 0.0 | KLQ37: 0.0 | KLR37: 0.0 | KLS37: 0.0 | KLT37: 0.0 | KLU37: 0.0 | KLV37: 0.0 | KLW37: 0.0 | KLX37: 0.0 | KLY37: 0.0 | KLZ37: 0.0 | KMA37: 0.0 | KMB37: 0.0 | KMC37: 0.0 | KMD37: 0.0 | KME37: 0.0 | KMF37: 0.0 | KMG37: 0.0 | KMH37: 0.0 | KMI37: 0.0 | KMJ37: 0.0 | KMK37: 0.0 | KML37: 0.0 | KMM37: 0.0 | KMN37: 0.0 | KMO37: 0.0 | KMP37: 0.0 | KMQ37: 0.0 | KMR37: 0.0 | KMS37: 0.0 | KMT37: 0.0 | KMU37: 0.0 | KMV37: 0.0 | KMW37: 0.0 | KMX37: 0.0 | KMY37: 0.0 | KMZ37: 0.0 | KNA37: 0.0 | KNB37: 0.0 | KNC37: 0.0 | KND37: 0.0 | KNE37: 0.0 | KNF37: 0.0 | KNG37: 0.0 | KNH37: 0.0 | KNI37: 0.0 | KNJ37: 0.0 | KNK37: =SUM(KNK12:KNK35) -> 0.0 | KNL37: 0.0 | KNM37: 0.0 | KNN37: 0.0 | KNO37: 0.0 | KNP37: 0.0 | KNQ37: 0.0 | KNR37: 0.0 | KNS37: 0.0 | KNT37: 0.0 | KNU37: 0.0 | KNV37: 0.0 | KNW37: 0.0 | KNX37: 0.0 | KNY37: 0.0 | KNZ37: 0.0 | KOA37: 0.0 | KOB37: 0.0 | KOC37: 0.0 | KOD37: 0.0 | KOE37: 0.0 | KOF37: 0.0 | KOG37: 0.0 | KOH37: 0.0 | KOI37: 0.0 | KOJ37: 0.0 | KOK37: 0.0 | KOL37: 0.0 | KOM37: 0.0 | KON37: 0.0 | KOO37: 0.0 | KOP37: 0.0 | KOQ37: 0.0 | KOR37: 0.0 | KOS37: 0.0 | KOT37: 0.0 | KOU37: 0.0 | KOV37: 0.0 | KOW37: 0.0 | KOX37: 0.0 | KOY37: 0.0 | KOZ37: 0.0 | KPA37: 0.0 | KPB37: 0.0 | KPC37: 0.0 | KPD37: 0.0 | KPE37: 0.0 | KPF37: 0.0 | KPG37: 0.0 | KPH37: 0.0 | KPI37: 0.0 | KPJ37: 0.0 | KPK37: 0.0 | KPL37: 0.0 | KPM37: 0.0 | KPN37: 0.0 | KPO37: 0.0 | KPP37: 0.0 | KPQ37: 0.0 | KPR37: 0.0 | KPS37: 0.0 | KPT37: 0.0 | KPU37: 0.0 | KPV37: 0.0 | KPW37: =SUM(KPW12:KPW35) -> 0.0 | KPX37: 0.0 | KPY37: 0.0 | KPZ37: 0.0 | KQA37: 0.0 | KQB37: 0.0 | KQC37: 0.0 | KQD37: 0.0 | KQE37: 0.0 | KQF37: 0.0 | KQG37: 0.0 | KQH37: 0.0 | KQI37: 0.0 | KQJ37: 0.0 | KQK37: 0.0 | KQL37: 0.0 | KQM37: 0.0 | KQN37: 0.0 | KQO37: 0.0 | KQP37: 0.0 | KQQ37: 0.0 | KQR37: 0.0 | KQS37: 0.0 | KQT37: 0.0 | KQU37: 0.0 | KQV37: 0.0 | KQW37: 0.0 | KQX37: 0.0 | KQY37: 0.0 | KQZ37: 0.0 | KRA37: 0.0 | KRB37: 0.0 | KRC37: 0.0 | KRD37: 0.0 | KRE37: 0.0 | KRF37: 0.0 | KRG37: 0.0 | KRH37: 0.0 | KRI37: 0.0 | KRJ37: 0.0 | KRK37: 0.0 | KRL37: 0.0 | KRM37: 0.0 | KRN37: 0.0 | KRO37: 0.0 | KRP37: 0.0 | KRQ37: 0.0 | KRR37: 0.0 | KRS37: 0.0 | KRT37: 0.0 | KRU37: 0.0 | KRV37: 0.0 | KRW37: 0.0 | KRX37: 0.0 | KRY37: 0.0 | KRZ37: 0.0 | KSA37: 0.0 | KSB37: 0.0 | KSC37: 0.0 | KSD37: 0.0 | KSE37: 0.0 | KSF37: 0.0 | KSG37: 0.0 | KSH37: 0.0 | KSI37: =SUM(KSI12:KSI35) -> 0.0 | KSJ37: 0.0 | KSK37: 0.0 | KSL37: 0.0 | KSM37: 0.0 | KSN37: 0.0 | KSO37: 0.0 | KSP37: 0.0 | KSQ37: 0.0 | KSR37: 0.0 | KSS37: 0.0 | KST37: 0.0 | KSU37: 0.0 | KSV37: 0.0 | KSW37: 0.0 | KSX37: 0.0 | KSY37: 0.0 | KSZ37: 0.0 | KTA37: 0.0 | KTB37: 0.0 | KTC37: 0.0 | KTD37: 0.0 | KTE37: 0.0 | KTF37: 0.0 | KTG37: 0.0 | KTH37: 0.0 | KTI37: 0.0 | KTJ37: 0.0 | KTK37: 0.0 | KTL37: 0.0 | KTM37: 0.0 | KTN37: 0.0 | KTO37: 0.0 | KTP37: 0.0 | KTQ37: 0.0 | KTR37: 0.0 | KTS37: 0.0 | KTT37: 0.0 | KTU37: 0.0 | KTV37: 0.0 | KTW37: 0.0 | KTX37: 0.0 | KTY37: 0.0 | KTZ37: 0.0 | KUA37: 0.0 | KUB37: 0.0 | KUC37: 0.0 | KUD37: 0.0 | KUE37: 0.0 | KUF37: 0.0 | KUG37: 0.0 | KUH37: 0.0 | KUI37: 0.0 | KUJ37: 0.0 | KUK37: 0.0 | KUL37: 0.0 | KUM37: 0.0 | KUN37: 0.0 | KUO37: 0.0 | KUP37: 0.0 | KUQ37: 0.0 | KUR37: 0.0 | KUS37: 0.0 | KUT37: 0.0 | KUU37: =SUM(KUU12:KUU35) -> 0.0 | KUV37: 0.0 | KUW37: 0.0 | KUX37: 0.0 | KUY37: 0.0 | KUZ37: 0.0 | KVA37: 0.0 | KVB37: 0.0 | KVC37: 0.0 | KVD37: 0.0 | KVE37: 0.0 | KVF37: 0.0 | KVG37: 0.0 | KVH37: 0.0 | KVI37: 0.0 | KVJ37: 0.0 | KVK37: 0.0 | KVL37: 0.0 | KVM37: 0.0 | KVN37: 0.0 | KVO37: 0.0 | KVP37: 0.0 | KVQ37: 0.0 | KVR37: 0.0 | KVS37: 0.0 | KVT37: 0.0 | KVU37: 0.0 | KVV37: 0.0 | KVW37: 0.0 | KVX37: 0.0 | KVY37: 0.0 | KVZ37: 0.0 | KWA37: 0.0 | KWB37: 0.0 | KWC37: 0.0 | KWD37: 0.0 | KWE37: 0.0 | KWF37: 0.0 | KWG37: 0.0 | KWH37: 0.0 | KWI37: 0.0 | KWJ37: 0.0 | KWK37: 0.0 | KWL37: 0.0 | KWM37: 0.0 | KWN37: 0.0 | KWO37: 0.0 | KWP37: 0.0 | KWQ37: 0.0 | KWR37: 0.0 | KWS37: 0.0 | KWT37: 0.0 | KWU37: 0.0 | KWV37: 0.0 | KWW37: 0.0 | KWX37: 0.0 | KWY37: 0.0 | KWZ37: 0.0 | KXA37: 0.0 | KXB37: 0.0 | KXC37: 0.0 | KXD37: 0.0 | KXE37: 0.0 | KXF37: 0.0 | KXG37: =SUM(KXG12:KXG35) -> 0.0 | KXH37: 0.0 | KXI37: 0.0 | KXJ37: 0.0 | KXK37: 0.0 | KXL37: 0.0 | KXM37: 0.0 | KXN37: 0.0 | KXO37: 0.0 | KXP37: 0.0 | KXQ37: 0.0 | KXR37: 0.0 | KXS37: 0.0 | KXT37: 0.0 | KXU37: 0.0 | KXV37: 0.0 | KXW37: 0.0 | KXX37: 0.0 | KXY37: 0.0 | KXZ37: 0.0 | KYA37: 0.0 | KYB37: 0.0 | KYC37: 0.0 | KYD37: 0.0 | KYE37: 0.0 | KYF37: 0.0 | KYG37: 0.0 | KYH37: 0.0 | KYI37: 0.0 | KYJ37: 0.0 | KYK37: 0.0 | KYL37: 0.0 | KYM37: 0.0 | KYN37: 0.0 | KYO37: 0.0 | KYP37: 0.0 | KYQ37: 0.0 | KYR37: 0.0 | KYS37: 0.0 | KYT37: 0.0 | KYU37: 0.0 | KYV37: 0.0 | KYW37: 0.0 | KYX37: 0.0 | KYY37: 0.0 | KYZ37: 0.0 | KZA37: 0.0 | KZB37: 0.0 | KZC37: 0.0 | KZD37: 0.0 | KZE37: 0.0 | KZF37: 0.0 | KZG37: 0.0 | KZH37: 0.0 | KZI37: 0.0 | KZJ37: 0.0 | KZK37: 0.0 | KZL37: 0.0 | KZM37: 0.0 | KZN37: 0.0 | KZO37: 0.0 | KZP37: 0.0 | KZQ37: 0.0 | KZR37: 0.0 | KZS37: =SUM(KZS12:KZS35) -> 0.0 | KZT37: 0.0 | KZU37: 0.0 | KZV37: 0.0 | KZW37: 0.0 | KZX37: 0.0 | KZY37: 0.0 | KZZ37: 0.0 | LAA37: 0.0 | LAB37: 0.0 | LAC37: 0.0 | LAD37: 0.0 | LAE37: 0.0 | LAF37: 0.0 | LAG37: 0.0 | LAH37: 0.0 | LAI37: 0.0 | LAJ37: 0.0 | LAK37: 0.0 | LAL37: 0.0 | LAM37: 0.0 | LAN37: 0.0 | LAO37: 0.0 | LAP37: 0.0 | LAQ37: 0.0 | LAR37: 0.0 | LAS37: 0.0 | LAT37: 0.0 | LAU37: 0.0 | LAV37: 0.0 | LAW37: 0.0 | LAX37: 0.0 | LAY37: 0.0 | LAZ37: 0.0 | LBA37: 0.0 | LBB37: 0.0 | LBC37: 0.0 | LBD37: 0.0 | LBE37: 0.0 | LBF37: 0.0 | LBG37: 0.0 | LBH37: 0.0 | LBI37: 0.0 | LBJ37: 0.0 | LBK37: 0.0 | LBL37: 0.0 | LBM37: 0.0 | LBN37: 0.0 | LBO37: 0.0 | LBP37: 0.0 | LBQ37: 0.0 | LBR37: 0.0 | LBS37: 0.0 | LBT37: 0.0 | LBU37: 0.0 | LBV37: 0.0 | LBW37: 0.0 | LBX37: 0.0 | LBY37: 0.0 | LBZ37: 0.0 | LCA37: 0.0 | LCB37: 0.0 | LCC37: 0.0 | LCD37: 0.0 | LCE37: =SUM(LCE12:LCE35) -> 0.0 | LCF37: 0.0 | LCG37: 0.0 | LCH37: 0.0 | LCI37: 0.0 | LCJ37: 0.0 | LCK37: 0.0 | LCL37: 0.0 | LCM37: 0.0 | LCN37: 0.0 | LCO37: 0.0 | LCP37: 0.0 | LCQ37: 0.0 | LCR37: 0.0 | LCS37: 0.0 | LCT37: 0.0 | LCU37: 0.0 | LCV37: 0.0 | LCW37: 0.0 | LCX37: 0.0 | LCY37: 0.0 | LCZ37: 0.0 | LDA37: 0.0 | LDB37: 0.0 | LDC37: 0.0 | LDD37: 0.0 | LDE37: 0.0 | LDF37: 0.0 | LDG37: 0.0 | LDH37: 0.0 | LDI37: 0.0 | LDJ37: 0.0 | LDK37: 0.0 | LDL37: 0.0 | LDM37: 0.0 | LDN37: 0.0 | LDO37: 0.0 | LDP37: 0.0 | LDQ37: 0.0 | LDR37: 0.0 | LDS37: 0.0 | LDT37: 0.0 | LDU37: 0.0 | LDV37: 0.0 | LDW37: 0.0 | LDX37: 0.0 | LDY37: 0.0 | LDZ37: 0.0 | LEA37: 0.0 | LEB37: 0.0 | LEC37: 0.0 | LED37: 0.0 | LEE37: 0.0 | LEF37: 0.0 | LEG37: 0.0 | LEH37: 0.0 | LEI37: 0.0 | LEJ37: 0.0 | LEK37: 0.0 | LEL37: 0.0 | LEM37: 0.0 | LEN37: 0.0 | LEO37: 0.0 | LEP37: 0.0 | LEQ37: =SUM(LEQ12:LEQ35) -> 0.0 | LER37: 0.0 | LES37: 0.0 | LET37: 0.0 | LEU37: 0.0 | LEV37: 0.0 | LEW37: 0.0 | LEX37: 0.0 | LEY37: 0.0 | LEZ37: 0.0 | LFA37: 0.0 | LFB37: 0.0 | LFC37: 0.0 | LFD37: 0.0 | LFE37: 0.0 | LFF37: 0.0 | LFG37: 0.0 | LFH37: 0.0 | LFI37: 0.0 | LFJ37: 0.0 | LFK37: 0.0 | LFL37: 0.0 | LFM37: 0.0 | LFN37: 0.0 | LFO37: 0.0 | LFP37: 0.0 | LFQ37: 0.0 | LFR37: 0.0 | LFS37: 0.0 | LFT37: 0.0 | LFU37: 0.0 | LFV37: 0.0 | LFW37: 0.0 | LFX37: 0.0 | LFY37: 0.0 | LFZ37: 0.0 | LGA37: 0.0 | LGB37: 0.0 | LGC37: 0.0 | LGD37: 0.0 | LGE37: 0.0 | LGF37: 0.0 | LGG37: 0.0 | LGH37: 0.0 | LGI37: 0.0 | LGJ37: 0.0 | LGK37: 0.0 | LGL37: 0.0 | LGM37: 0.0 | LGN37: 0.0 | LGO37: 0.0 | LGP37: 0.0 | LGQ37: 0.0 | LGR37: 0.0 | LGS37: 0.0 | LGT37: 0.0 | LGU37: 0.0 | LGV37: 0.0 | LGW37: 0.0 | LGX37: 0.0 | LGY37: 0.0 | LGZ37: 0.0 | LHA37: 0.0 | LHB37: 0.0 | LHC37: =SUM(LHC12:LHC35) -> 0.0 | LHD37: 0.0 | LHE37: 0.0 | LHF37: 0.0 | LHG37: 0.0 | LHH37: 0.0 | LHI37: 0.0 | LHJ37: 0.0 | LHK37: 0.0 | LHL37: 0.0 | LHM37: 0.0 | LHN37: 0.0 | LHO37: 0.0 | LHP37: 0.0 | LHQ37: 0.0 | LHR37: 0.0 | LHS37: 0.0 | LHT37: 0.0 | LHU37: 0.0 | LHV37: 0.0 | LHW37: 0.0 | LHX37: 0.0 | LHY37: 0.0 | LHZ37: 0.0 | LIA37: 0.0 | LIB37: 0.0 | LIC37: 0.0 | LID37: 0.0 | LIE37: 0.0 | LIF37: 0.0 | LIG37: 0.0 | LIH37: 0.0 | LII37: 0.0 | LIJ37: 0.0 | LIK37: 0.0 | LIL37: 0.0 | LIM37: 0.0 | LIN37: 0.0 | LIO37: 0.0 | LIP37: 0.0 | LIQ37: 0.0 | LIR37: 0.0 | LIS37: 0.0 | LIT37: 0.0 | LIU37: 0.0 | LIV37: 0.0 | LIW37: 0.0 | LIX37: 0.0 | LIY37: 0.0 | LIZ37: 0.0 | LJA37: 0.0 | LJB37: 0.0 | LJC37: 0.0 | LJD37: 0.0 | LJE37: 0.0 | LJF37: 0.0 | LJG37: 0.0 | LJH37: 0.0 | LJI37: 0.0 | LJJ37: 0.0 | LJK37: 0.0 | LJL37: 0.0 | LJM37: 0.0 | LJN37: 0.0 | LJO37: =SUM(LJO12:LJO35) -> 0.0 | LJP37: 0.0 | LJQ37: 0.0 | LJR37: 0.0 | LJS37: 0.0 | LJT37: 0.0 | LJU37: 0.0 | LJV37: 0.0 | LJW37: 0.0 | LJX37: 0.0 | LJY37: 0.0 | LJZ37: 0.0 | LKA37: 0.0 | LKB37: 0.0 | LKC37: 0.0 | LKD37: 0.0 | LKE37: 0.0 | LKF37: 0.0 | LKG37: 0.0 | LKH37: 0.0 | LKI37: 0.0 | LKJ37: 0.0 | LKK37: 0.0 | LKL37: 0.0 | LKM37: 0.0 | LKN37: 0.0 | LKO37: 0.0 | LKP37: 0.0 | LKQ37: 0.0 | LKR37: 0.0 | LKS37: 0.0 | LKT37: 0.0 | LKU37: 0.0 | LKV37: 0.0 | LKW37: 0.0 | LKX37: 0.0 | LKY37: 0.0 | LKZ37: 0.0 | LLA37: 0.0 | LLB37: 0.0 | LLC37: 0.0 | LLD37: 0.0 | LLE37: 0.0 | LLF37: 0.0 | LLG37: 0.0 | LLH37: 0.0 | LLI37: 0.0 | LLJ37: 0.0 | LLK37: 0.0 | LLL37: 0.0 | LLM37: 0.0 | LLN37: 0.0 | LLO37: 0.0 | LLP37: 0.0 | LLQ37: 0.0 | LLR37: 0.0 | LLS37: 0.0 | LLT37: 0.0 | LLU37: 0.0 | LLV37: 0.0 | LLW37: 0.0 | LLX37: 0.0 | LLY37: 0.0 | LLZ37: 0.0 | LMA37: =SUM(LMA12:LMA35) -> 0.0 | LMB37: 0.0 | LMC37: 0.0 | LMD37: 0.0 | LME37: 0.0 | LMF37: 0.0 | LMG37: 0.0 | LMH37: 0.0 | LMI37: 0.0 | LMJ37: 0.0 | LMK37: 0.0 | LML37: 0.0 | LMM37: 0.0 | LMN37: 0.0 | LMO37: 0.0 | LMP37: 0.0 | LMQ37: 0.0 | LMR37: 0.0 | LMS37: 0.0 | LMT37: 0.0 | LMU37: 0.0 | LMV37: 0.0 | LMW37: 0.0 | LMX37: 0.0 | LMY37: 0.0 | LMZ37: 0.0 | LNA37: 0.0 | LNB37: 0.0 | LNC37: 0.0 | LND37: 0.0 | LNE37: 0.0 | LNF37: 0.0 | LNG37: 0.0 | LNH37: 0.0 | LNI37: 0.0 | LNJ37: 0.0 | LNK37: 0.0 | LNL37: 0.0 | LNM37: 0.0 | LNN37: 0.0 | LNO37: 0.0 | LNP37: 0.0 | LNQ37: 0.0 | LNR37: 0.0 | LNS37: 0.0 | LNT37: 0.0 | LNU37: 0.0 | LNV37: 0.0 | LNW37: 0.0 | LNX37: 0.0 | LNY37: 0.0 | LNZ37: 0.0 | LOA37: 0.0 | LOB37: 0.0 | LOC37: 0.0 | LOD37: 0.0 | LOE37: 0.0 | LOF37: 0.0 | LOG37: 0.0 | LOH37: 0.0 | LOI37: 0.0 | LOJ37: 0.0 | LOK37: 0.0 | LOL37: 0.0 | LOM37: =SUM(LOM12:LOM35) -> 0.0 | LON37: 0.0 | LOO37: 0.0 | LOP37: 0.0 | LOQ37: 0.0 | LOR37: 0.0 | LOS37: 0.0 | LOT37: 0.0 | LOU37: 0.0 | LOV37: 0.0 | LOW37: 0.0 | LOX37: 0.0 | LOY37: 0.0 | LOZ37: 0.0 | LPA37: 0.0 | LPB37: 0.0 | LPC37: 0.0 | LPD37: 0.0 | LPE37: 0.0 | LPF37: 0.0 | LPG37: 0.0 | LPH37: 0.0 | LPI37: 0.0 | LPJ37: 0.0 | LPK37: 0.0 | LPL37: 0.0 | LPM37: 0.0 | LPN37: 0.0 | LPO37: 0.0 | LPP37: 0.0 | LPQ37: 0.0 | LPR37: 0.0 | LPS37: 0.0 | LPT37: 0.0 | LPU37: 0.0 | LPV37: 0.0 | LPW37: 0.0 | LPX37: 0.0 | LPY37: 0.0 | LPZ37: 0.0 | LQA37: 0.0 | LQB37: 0.0 | LQC37: 0.0 | LQD37: 0.0 | LQE37: 0.0 | LQF37: 0.0 | LQG37: 0.0 | LQH37: 0.0 | LQI37: 0.0 | LQJ37: 0.0 | LQK37: 0.0 | LQL37: 0.0 | LQM37: 0.0 | LQN37: 0.0 | LQO37: 0.0 | LQP37: 0.0 | LQQ37: 0.0 | LQR37: 0.0 | LQS37: 0.0 | LQT37: 0.0 | LQU37: 0.0 | LQV37: 0.0 | LQW37: 0.0 | LQX37: 0.0 | LQY37: =SUM(LQY12:LQY35) -> 0.0 | LQZ37: 0.0 | LRA37: 0.0 | LRB37: 0.0 | LRC37: 0.0 | LRD37: 0.0 | LRE37: 0.0 | LRF37: 0.0 | LRG37: 0.0 | LRH37: 0.0 | LRI37: 0.0 | LRJ37: 0.0 | LRK37: 0.0 | LRL37: 0.0 | LRM37: 0.0 | LRN37: 0.0 | LRO37: 0.0 | LRP37: 0.0 | LRQ37: 0.0 | LRR37: 0.0 | LRS37: 0.0 | LRT37: 0.0 | LRU37: 0.0 | LRV37: 0.0 | LRW37: 0.0 | LRX37: 0.0 | LRY37: 0.0 | LRZ37: 0.0 | LSA37: 0.0 | LSB37: 0.0 | LSC37: 0.0 | LSD37: 0.0 | LSE37: 0.0 | LSF37: 0.0 | LSG37: 0.0 | LSH37: 0.0 | LSI37: 0.0 | LSJ37: 0.0 | LSK37: 0.0 | LSL37: 0.0 | LSM37: 0.0 | LSN37: 0.0 | LSO37: 0.0 | LSP37: 0.0 | LSQ37: 0.0 | LSR37: 0.0 | LSS37: 0.0 | LST37: 0.0 | LSU37: 0.0 | LSV37: 0.0 | LSW37: 0.0 | LSX37: 0.0 | LSY37: 0.0 | LSZ37: 0.0 | LTA37: 0.0 | LTB37: 0.0 | LTC37: 0.0 | LTD37: 0.0 | LTE37: 0.0 | LTF37: 0.0 | LTG37: 0.0 | LTH37: 0.0 | LTI37: 0.0 | LTJ37: 0.0 | LTK37: =SUM(LTK12:LTK35) -> 0.0 | LTL37: 0.0 | LTM37: 0.0 | LTN37: 0.0 | LTO37: 0.0 | LTP37: 0.0 | LTQ37: 0.0 | LTR37: 0.0 | LTS37: 0.0 | LTT37: 0.0 | LTU37: 0.0 | LTV37: 0.0 | LTW37: 0.0 | LTX37: 0.0 | LTY37: 0.0 | LTZ37: 0.0 | LUA37: 0.0 | LUB37: 0.0 | LUC37: 0.0 | LUD37: 0.0 | LUE37: 0.0 | LUF37: 0.0 | LUG37: 0.0 | LUH37: 0.0 | LUI37: 0.0 | LUJ37: 0.0 | LUK37: 0.0 | LUL37: 0.0 | LUM37: 0.0 | LUN37: 0.0 | LUO37: 0.0 | LUP37: 0.0 | LUQ37: 0.0 | LUR37: 0.0 | LUS37: 0.0 | LUT37: 0.0 | LUU37: 0.0 | LUV37: 0.0 | LUW37: 0.0 | LUX37: 0.0 | LUY37: 0.0 | LUZ37: 0.0 | LVA37: 0.0 | LVB37: 0.0 | LVC37: 0.0 | LVD37: 0.0 | LVE37: 0.0 | LVF37: 0.0 | LVG37: 0.0 | LVH37: 0.0 | LVI37: 0.0 | LVJ37: 0.0 | LVK37: 0.0 | LVL37: 0.0 | LVM37: 0.0 | LVN37: 0.0 | LVO37: 0.0 | LVP37: 0.0 | LVQ37: 0.0 | LVR37: 0.0 | LVS37: 0.0 | LVT37: 0.0 | LVU37: 0.0 | LVV37: 0.0 | LVW37: =SUM(LVW12:LVW35) -> 0.0 | LVX37: 0.0 | LVY37: 0.0 | LVZ37: 0.0 | LWA37: 0.0 | LWB37: 0.0 | LWC37: 0.0 | LWD37: 0.0 | LWE37: 0.0 | LWF37: 0.0 | LWG37: 0.0 | LWH37: 0.0 | LWI37: 0.0 | LWJ37: 0.0 | LWK37: 0.0 | LWL37: 0.0 | LWM37: 0.0 | LWN37: 0.0 | LWO37: 0.0 | LWP37: 0.0 | LWQ37: 0.0 | LWR37: 0.0 | LWS37: 0.0 | LWT37: 0.0 | LWU37: 0.0 | LWV37: 0.0 | LWW37: 0.0 | LWX37: 0.0 | LWY37: 0.0 | LWZ37: 0.0 | LXA37: 0.0 | LXB37: 0.0 | LXC37: 0.0 | LXD37: 0.0 | LXE37: 0.0 | LXF37: 0.0 | LXG37: 0.0 | LXH37: 0.0 | LXI37: 0.0 | LXJ37: 0.0 | LXK37: 0.0 | LXL37: 0.0 | LXM37: 0.0 | LXN37: 0.0 | LXO37: 0.0 | LXP37: 0.0 | LXQ37: 0.0 | LXR37: 0.0 | LXS37: 0.0 | LXT37: 0.0 | LXU37: 0.0 | LXV37: 0.0 | LXW37: 0.0 | LXX37: 0.0 | LXY37: 0.0 | LXZ37: 0.0 | LYA37: 0.0 | LYB37: 0.0 | LYC37: 0.0 | LYD37: 0.0 | LYE37: 0.0 | LYF37: 0.0 | LYG37: 0.0 | LYH37: 0.0 | LYI37: =SUM(LYI12:LYI35) -> 0.0 | LYJ37: 0.0 | LYK37: 0.0 | LYL37: 0.0 | LYM37: 0.0 | LYN37: 0.0 | LYO37: 0.0 | LYP37: 0.0 | LYQ37: 0.0 | LYR37: 0.0 | LYS37: 0.0 | LYT37: 0.0 | LYU37: 0.0 | LYV37: 0.0 | LYW37: 0.0 | LYX37: 0.0 | LYY37: 0.0 | LYZ37: 0.0 | LZA37: 0.0 | LZB37: 0.0 | LZC37: 0.0 | LZD37: 0.0 | LZE37: 0.0 | LZF37: 0.0 | LZG37: 0.0 | LZH37: 0.0 | LZI37: 0.0 | LZJ37: 0.0 | LZK37: 0.0 | LZL37: 0.0 | LZM37: 0.0 | LZN37: 0.0 | LZO37: 0.0 | LZP37: 0.0 | LZQ37: 0.0 | LZR37: 0.0 | LZS37: 0.0 | LZT37: 0.0 | LZU37: 0.0 | LZV37: 0.0 | LZW37: 0.0 | LZX37: 0.0 | LZY37: 0.0 | LZZ37: 0.0 | MAA37: 0.0 | MAB37: 0.0 | MAC37: 0.0 | MAD37: 0.0 | MAE37: 0.0 | MAF37: 0.0 | MAG37: 0.0 | MAH37: 0.0 | MAI37: 0.0 | MAJ37: 0.0 | MAK37: 0.0 | MAL37: 0.0 | MAM37: 0.0 | MAN37: 0.0 | MAO37: 0.0 | MAP37: 0.0 | MAQ37: 0.0 | MAR37: 0.0 | MAS37: 0.0 | MAT37: 0.0 | MAU37: =SUM(MAU12:MAU35) -> 0.0 | MAV37: 0.0 | MAW37: 0.0 | MAX37: 0.0 | MAY37: 0.0 | MAZ37: 0.0 | MBA37: 0.0 | MBB37: 0.0 | MBC37: 0.0 | MBD37: 0.0 | MBE37: 0.0 | MBF37: 0.0 | MBG37: 0.0 | MBH37: 0.0 | MBI37: 0.0 | MBJ37: 0.0 | MBK37: 0.0 | MBL37: 0.0 | MBM37: 0.0 | MBN37: 0.0 | MBO37: 0.0 | MBP37: 0.0 | MBQ37: 0.0 | MBR37: 0.0 | MBS37: 0.0 | MBT37: 0.0 | MBU37: 0.0 | MBV37: 0.0 | MBW37: 0.0 | MBX37: 0.0 | MBY37: 0.0 | MBZ37: 0.0 | MCA37: 0.0 | MCB37: 0.0 | MCC37: 0.0 | MCD37: 0.0 | MCE37: 0.0 | MCF37: 0.0 | MCG37: 0.0 | MCH37: 0.0 | MCI37: 0.0 | MCJ37: 0.0 | MCK37: 0.0 | MCL37: 0.0 | MCM37: 0.0 | MCN37: 0.0 | MCO37: 0.0 | MCP37: 0.0 | MCQ37: 0.0 | MCR37: 0.0 | MCS37: 0.0 | MCT37: 0.0 | MCU37: 0.0 | MCV37: 0.0 | MCW37: 0.0 | MCX37: 0.0 | MCY37: 0.0 | MCZ37: 0.0 | MDA37: 0.0 | MDB37: 0.0 | MDC37: 0.0 | MDD37: 0.0 | MDE37: 0.0 | MDF37: 0.0 | MDG37: =SUM(MDG12:MDG35) -> 0.0 | MDH37: 0.0 | MDI37: 0.0 | MDJ37: 0.0 | MDK37: 0.0 | MDL37: 0.0 | MDM37: 0.0 | MDN37: 0.0 | MDO37: 0.0 | MDP37: 0.0 | MDQ37: 0.0 | MDR37: 0.0 | MDS37: 0.0 | MDT37: 0.0 | MDU37: 0.0 | MDV37: 0.0 | MDW37: 0.0 | MDX37: 0.0 | MDY37: 0.0 | MDZ37: 0.0 | MEA37: 0.0 | MEB37: 0.0 | MEC37: 0.0 | MED37: 0.0 | MEE37: 0.0 | MEF37: 0.0 | MEG37: 0.0 | MEH37: 0.0 | MEI37: 0.0 | MEJ37: 0.0 | MEK37: 0.0 | MEL37: 0.0 | MEM37: 0.0 | MEN37: 0.0 | MEO37: 0.0 | MEP37: 0.0 | MEQ37: 0.0 | MER37: 0.0 | MES37: 0.0 | MET37: 0.0 | MEU37: 0.0 | MEV37: 0.0 | MEW37: 0.0 | MEX37: 0.0 | MEY37: 0.0 | MEZ37: 0.0 | MFA37: 0.0 | MFB37: 0.0 | MFC37: 0.0 | MFD37: 0.0 | MFE37: 0.0 | MFF37: 0.0 | MFG37: 0.0 | MFH37: 0.0 | MFI37: 0.0 | MFJ37: 0.0 | MFK37: 0.0 | MFL37: 0.0 | MFM37: 0.0 | MFN37: 0.0 | MFO37: 0.0 | MFP37: 0.0 | MFQ37: 0.0 | MFR37: 0.0 | MFS37: =SUM(MFS12:MFS35) -> 0.0 | MFT37: 0.0 | MFU37: 0.0 | MFV37: 0.0 | MFW37: 0.0 | MFX37: 0.0 | MFY37: 0.0 | MFZ37: 0.0 | MGA37: 0.0 | MGB37: 0.0 | MGC37: 0.0 | MGD37: 0.0 | MGE37: 0.0 | MGF37: 0.0 | MGG37: 0.0 | MGH37: 0.0 | MGI37: 0.0 | MGJ37: 0.0 | MGK37: 0.0 | MGL37: 0.0 | MGM37: 0.0 | MGN37: 0.0 | MGO37: 0.0 | MGP37: 0.0 | MGQ37: 0.0 | MGR37: 0.0 | MGS37: 0.0 | MGT37: 0.0 | MGU37: 0.0 | MGV37: 0.0 | MGW37: 0.0 | MGX37: 0.0 | MGY37: 0.0 | MGZ37: 0.0 | MHA37: 0.0 | MHB37: 0.0 | MHC37: 0.0 | MHD37: 0.0 | MHE37: 0.0 | MHF37: 0.0 | MHG37: 0.0 | MHH37: 0.0 | MHI37: 0.0 | MHJ37: 0.0 | MHK37: 0.0 | MHL37: 0.0 | MHM37: 0.0 | MHN37: 0.0 | MHO37: 0.0 | MHP37: 0.0 | MHQ37: 0.0 | MHR37: 0.0 | MHS37: 0.0 | MHT37: 0.0 | MHU37: 0.0 | MHV37: 0.0 | MHW37: 0.0 | MHX37: 0.0 | MHY37: 0.0 | MHZ37: 0.0 | MIA37: 0.0 | MIB37: 0.0 | MIC37: 0.0 | MID37: 0.0 | MIE37: =SUM(MIE12:MIE35) -> 0.0 | MIF37: 0.0 | MIG37: 0.0 | MIH37: 0.0 | MII37: 0.0 | MIJ37: 0.0 | MIK37: 0.0 | MIL37: 0.0 | MIM37: 0.0 | MIN37: 0.0 | MIO37: 0.0 | MIP37: 0.0 | MIQ37: 0.0 | MIR37: 0.0 | MIS37: 0.0 | MIT37: 0.0 | MIU37: 0.0 | MIV37: 0.0 | MIW37: 0.0 | MIX37: 0.0 | MIY37: 0.0 | MIZ37: 0.0 | MJA37: 0.0 | MJB37: 0.0 | MJC37: 0.0 | MJD37: 0.0 | MJE37: 0.0 | MJF37: 0.0 | MJG37: 0.0 | MJH37: 0.0 | MJI37: 0.0 | MJJ37: 0.0 | MJK37: 0.0 | MJL37: 0.0 | MJM37: 0.0 | MJN37: 0.0 | MJO37: 0.0 | MJP37: 0.0 | MJQ37: 0.0 | MJR37: 0.0 | MJS37: 0.0 | MJT37: 0.0 | MJU37: 0.0 | MJV37: 0.0 | MJW37: 0.0 | MJX37: 0.0 | MJY37: 0.0 | MJZ37: 0.0 | MKA37: 0.0 | MKB37: 0.0 | MKC37: 0.0 | MKD37: 0.0 | MKE37: 0.0 | MKF37: 0.0 | MKG37: 0.0 | MKH37: 0.0 | MKI37: 0.0 | MKJ37: 0.0 | MKK37: 0.0 | MKL37: 0.0 | MKM37: 0.0 | MKN37: 0.0 | MKO37: 0.0 | MKP37: 0.0 | MKQ37: =SUM(MKQ12:MKQ35) -> 0.0 | MKR37: 0.0 | MKS37: 0.0 | MKT37: 0.0 | MKU37: 0.0 | MKV37: 0.0 | MKW37: 0.0 | MKX37: 0.0 | MKY37: 0.0 | MKZ37: 0.0 | MLA37: 0.0 | MLB37: 0.0 | MLC37: 0.0 | MLD37: 0.0 | MLE37: 0.0 | MLF37: 0.0 | MLG37: 0.0 | MLH37: 0.0 | MLI37: 0.0 | MLJ37: 0.0 | MLK37: 0.0 | MLL37: 0.0 | MLM37: 0.0 | MLN37: 0.0 | MLO37: 0.0 | MLP37: 0.0 | MLQ37: 0.0 | MLR37: 0.0 | MLS37: 0.0 | MLT37: 0.0 | MLU37: 0.0 | MLV37: 0.0 | MLW37: 0.0 | MLX37: 0.0 | MLY37: 0.0 | MLZ37: 0.0 | MMA37: 0.0 | MMB37: 0.0 | MMC37: 0.0 | MMD37: 0.0 | MME37: 0.0 | MMF37: 0.0 | MMG37: 0.0 | MMH37: 0.0 | MMI37: 0.0 | MMJ37: 0.0 | MMK37: 0.0 | MML37: 0.0 | MMM37: 0.0 | MMN37: 0.0 | MMO37: 0.0 | MMP37: 0.0 | MMQ37: 0.0 | MMR37: 0.0 | MMS37: 0.0 | MMT37: 0.0 | MMU37: 0.0 | MMV37: 0.0 | MMW37: 0.0 | MMX37: 0.0 | MMY37: 0.0 | MMZ37: 0.0 | MNA37: 0.0 | MNB37: 0.0 | MNC37: =SUM(MNC12:MNC35) -> 0.0 | MND37: 0.0 | MNE37: 0.0 | MNF37: 0.0 | MNG37: 0.0 | MNH37: 0.0 | MNI37: 0.0 | MNJ37: 0.0 | MNK37: 0.0 | MNL37: 0.0 | MNM37: 0.0 | MNN37: 0.0 | MNO37: 0.0 | MNP37: 0.0 | MNQ37: 0.0 | MNR37: 0.0 | MNS37: 0.0 | MNT37: 0.0 | MNU37: 0.0 | MNV37: 0.0 | MNW37: 0.0 | MNX37: 0.0 | MNY37: 0.0 | MNZ37: 0.0 | MOA37: 0.0 | MOB37: 0.0 | MOC37: 0.0 | MOD37: 0.0 | MOE37: 0.0 | MOF37: 0.0 | MOG37: 0.0 | MOH37: 0.0 | MOI37: 0.0 | MOJ37: 0.0 | MOK37: 0.0 | MOL37: 0.0 | MOM37: 0.0 | MON37: 0.0 | MOO37: 0.0 | MOP37: 0.0 | MOQ37: 0.0 | MOR37: 0.0 | MOS37: 0.0 | MOT37: 0.0 | MOU37: 0.0 | MOV37: 0.0 | MOW37: 0.0 | MOX37: 0.0 | MOY37: 0.0 | MOZ37: 0.0 | MPA37: 0.0 | MPB37: 0.0 | MPC37: 0.0 | MPD37: 0.0 | MPE37: 0.0 | MPF37: 0.0 | MPG37: 0.0 | MPH37: 0.0 | MPI37: 0.0 | MPJ37: 0.0 | MPK37: 0.0 | MPL37: 0.0 | MPM37: 0.0 | MPN37: 0.0 | MPO37: =SUM(MPO12:MPO35) -> 0.0 | MPP37: 0.0 | MPQ37: 0.0 | MPR37: 0.0 | MPS37: 0.0 | MPT37: 0.0 | MPU37: 0.0 | MPV37: 0.0 | MPW37: 0.0 | MPX37: 0.0 | MPY37: 0.0 | MPZ37: 0.0 | MQA37: 0.0 | MQB37: 0.0 | MQC37: 0.0 | MQD37: 0.0 | MQE37: 0.0 | MQF37: 0.0 | MQG37: 0.0 | MQH37: 0.0 | MQI37: 0.0 | MQJ37: 0.0 | MQK37: 0.0 | MQL37: 0.0 | MQM37: 0.0 | MQN37: 0.0 | MQO37: 0.0 | MQP37: 0.0 | MQQ37: 0.0 | MQR37: 0.0 | MQS37: 0.0 | MQT37: 0.0 | MQU37: 0.0 | MQV37: 0.0 | MQW37: 0.0 | MQX37: 0.0 | MQY37: 0.0 | MQZ37: 0.0 | MRA37: 0.0 | MRB37: 0.0 | MRC37: 0.0 | MRD37: 0.0 | MRE37: 0.0 | MRF37: 0.0 | MRG37: 0.0 | MRH37: 0.0 | MRI37: 0.0 | MRJ37: 0.0 | MRK37: 0.0 | MRL37: 0.0 | MRM37: 0.0 | MRN37: 0.0 | MRO37: 0.0 | MRP37: 0.0 | MRQ37: 0.0 | MRR37: 0.0 | MRS37: 0.0 | MRT37: 0.0 | MRU37: 0.0 | MRV37: 0.0 | MRW37: 0.0 | MRX37: 0.0 | MRY37: 0.0 | MRZ37: 0.0 | MSA37: =SUM(MSA12:MSA35) -> 0.0 | MSB37: 0.0 | MSC37: 0.0 | MSD37: 0.0 | MSE37: 0.0 | MSF37: 0.0 | MSG37: 0.0 | MSH37: 0.0 | MSI37: 0.0 | MSJ37: 0.0 | MSK37: 0.0 | MSL37: 0.0 | MSM37: 0.0 | MSN37: 0.0 | MSO37: 0.0 | MSP37: 0.0 | MSQ37: 0.0 | MSR37: 0.0 | MSS37: 0.0 | MST37: 0.0 | MSU37: 0.0 | MSV37: 0.0 | MSW37: 0.0 | MSX37: 0.0 | MSY37: 0.0 | MSZ37: 0.0 | MTA37: 0.0 | MTB37: 0.0 | MTC37: 0.0 | MTD37: 0.0 | MTE37: 0.0 | MTF37: 0.0 | MTG37: 0.0 | MTH37: 0.0 | MTI37: 0.0 | MTJ37: 0.0 | MTK37: 0.0 | MTL37: 0.0 | MTM37: 0.0 | MTN37: 0.0 | MTO37: 0.0 | MTP37: 0.0 | MTQ37: 0.0 | MTR37: 0.0 | MTS37: 0.0 | MTT37: 0.0 | MTU37: 0.0 | MTV37: 0.0 | MTW37: 0.0 | MTX37: 0.0 | MTY37: 0.0 | MTZ37: 0.0 | MUA37: 0.0 | MUB37: 0.0 | MUC37: 0.0 | MUD37: 0.0 | MUE37: 0.0 | MUF37: 0.0 | MUG37: 0.0 | MUH37: 0.0 | MUI37: 0.0 | MUJ37: 0.0 | MUK37: 0.0 | MUL37: 0.0 | MUM37: =SUM(MUM12:MUM35) -> 0.0 | MUN37: 0.0 | MUO37: 0.0 | MUP37: 0.0 | MUQ37: 0.0 | MUR37: 0.0 | MUS37: 0.0 | MUT37: 0.0 | MUU37: 0.0 | MUV37: 0.0 | MUW37: 0.0 | MUX37: 0.0 | MUY37: 0.0 | MUZ37: 0.0 | MVA37: 0.0 | MVB37: 0.0 | MVC37: 0.0 | MVD37: 0.0 | MVE37: 0.0 | MVF37: 0.0 | MVG37: 0.0 | MVH37: 0.0 | MVI37: 0.0 | MVJ37: 0.0 | MVK37: 0.0 | MVL37: 0.0 | MVM37: 0.0 | MVN37: 0.0 | MVO37: 0.0 | MVP37: 0.0 | MVQ37: 0.0 | MVR37: 0.0 | MVS37: 0.0 | MVT37: 0.0 | MVU37: 0.0 | MVV37: 0.0 | MVW37: 0.0 | MVX37: 0.0 | MVY37: 0.0 | MVZ37: 0.0 | MWA37: 0.0 | MWB37: 0.0 | MWC37: 0.0 | MWD37: 0.0 | MWE37: 0.0 | MWF37: 0.0 | MWG37: 0.0 | MWH37: 0.0 | MWI37: 0.0 | MWJ37: 0.0 | MWK37: 0.0 | MWL37: 0.0 | MWM37: 0.0 | MWN37: 0.0 | MWO37: 0.0 | MWP37: 0.0 | MWQ37: 0.0 | MWR37: 0.0 | MWS37: 0.0 | MWT37: 0.0 | MWU37: 0.0 | MWV37: 0.0 | MWW37: 0.0 | MWX37: 0.0 | MWY37: =SUM(MWY12:MWY35) -> 0.0 | MWZ37: 0.0 | MXA37: 0.0 | MXB37: 0.0 | MXC37: 0.0 | MXD37: 0.0 | MXE37: 0.0 | MXF37: 0.0 | MXG37: 0.0 | MXH37: 0.0 | MXI37: 0.0 | MXJ37: 0.0 | MXK37: 0.0 | MXL37: 0.0 | MXM37: 0.0 | MXN37: 0.0 | MXO37: 0.0 | MXP37: 0.0 | MXQ37: 0.0 | MXR37: 0.0 | MXS37: 0.0 | MXT37: 0.0 | MXU37: 0.0 | MXV37: 0.0 | MXW37: 0.0 | MXX37: 0.0 | MXY37: 0.0 | MXZ37: 0.0 | MYA37: 0.0 | MYB37: 0.0 | MYC37: 0.0 | MYD37: 0.0 | MYE37: 0.0 | MYF37: 0.0 | MYG37: 0.0 | MYH37: 0.0 | MYI37: 0.0 | MYJ37: 0.0 | MYK37: 0.0 | MYL37: 0.0 | MYM37: 0.0 | MYN37: 0.0 | MYO37: 0.0 | MYP37: 0.0 | MYQ37: 0.0 | MYR37: 0.0 | MYS37: 0.0 | MYT37: 0.0 | MYU37: 0.0 | MYV37: 0.0 | MYW37: 0.0 | MYX37: 0.0 | MYY37: 0.0 | MYZ37: 0.0 | MZA37: 0.0 | MZB37: 0.0 | MZC37: 0.0 | MZD37: 0.0 | MZE37: 0.0 | MZF37: 0.0 | MZG37: 0.0 | MZH37: 0.0 | MZI37: 0.0 | MZJ37: 0.0 | MZK37: =SUM(MZK12:MZK35) -> 0.0 | MZL37: 0.0 | MZM37: 0.0 | MZN37: 0.0 | MZO37: 0.0 | MZP37: 0.0 | MZQ37: 0.0 | MZR37: 0.0 | MZS37: 0.0 | MZT37: 0.0 | MZU37: 0.0 | MZV37: 0.0 | MZW37: 0.0 | MZX37: 0.0 | MZY37: 0.0 | MZZ37: 0.0 | NAA37: 0.0 | NAB37: 0.0 | NAC37: 0.0 | NAD37: 0.0 | NAE37: 0.0 | NAF37: 0.0 | NAG37: 0.0 | NAH37: 0.0 | NAI37: 0.0 | NAJ37: 0.0 | NAK37: 0.0 | NAL37: 0.0 | NAM37: 0.0 | NAN37: 0.0 | NAO37: 0.0 | NAP37: 0.0 | NAQ37: 0.0 | NAR37: 0.0 | NAS37: 0.0 | NAT37: 0.0 | NAU37: 0.0 | NAV37: 0.0 | NAW37: 0.0 | NAX37: 0.0 | NAY37: 0.0 | NAZ37: 0.0 | NBA37: 0.0 | NBB37: 0.0 | NBC37: 0.0 | NBD37: 0.0 | NBE37: 0.0 | NBF37: 0.0 | NBG37: 0.0 | NBH37: 0.0 | NBI37: 0.0 | NBJ37: 0.0 | NBK37: 0.0 | NBL37: 0.0 | NBM37: 0.0 | NBN37: 0.0 | NBO37: 0.0 | NBP37: 0.0 | NBQ37: 0.0 | NBR37: 0.0 | NBS37: 0.0 | NBT37: 0.0 | NBU37: 0.0 | NBV37: 0.0 | NBW37: =SUM(NBW12:NBW35) -> 0.0 | NBX37: 0.0 | NBY37: 0.0 | NBZ37: 0.0 | NCA37: 0.0 | NCB37: 0.0 | NCC37: 0.0 | NCD37: 0.0 | NCE37: 0.0 | NCF37: 0.0 | NCG37: 0.0 | NCH37: 0.0 | NCI37: 0.0 | NCJ37: 0.0 | NCK37: 0.0 | NCL37: 0.0 | NCM37: 0.0 | NCN37: 0.0 | NCO37: 0.0 | NCP37: 0.0 | NCQ37: 0.0 | NCR37: 0.0 | NCS37: 0.0 | NCT37: 0.0 | NCU37: 0.0 | NCV37: 0.0 | NCW37: 0.0 | NCX37: 0.0 | NCY37: 0.0 | NCZ37: 0.0 | NDA37: 0.0 | NDB37: 0.0 | NDC37: 0.0 | NDD37: 0.0 | NDE37: 0.0 | NDF37: 0.0 | NDG37: 0.0 | NDH37: 0.0 | NDI37: 0.0 | NDJ37: 0.0 | NDK37: 0.0 | NDL37: 0.0 | NDM37: 0.0 | NDN37: 0.0 | NDO37: 0.0 | NDP37: 0.0 | NDQ37: 0.0 | NDR37: 0.0 | NDS37: 0.0 | NDT37: 0.0 | NDU37: 0.0 | NDV37: 0.0 | NDW37: 0.0 | NDX37: 0.0 | NDY37: 0.0 | NDZ37: 0.0 | NEA37: 0.0 | NEB37: 0.0 | NEC37: 0.0 | NED37: 0.0 | NEE37: 0.0 | NEF37: 0.0 | NEG37: 0.0 | NEH37: 0.0 | NEI37: =SUM(NEI12:NEI35) -> 0.0 | NEJ37: 0.0 | NEK37: 0.0 | NEL37: 0.0 | NEM37: 0.0 | NEN37: 0.0 | NEO37: 0.0 | NEP37: 0.0 | NEQ37: 0.0 | NER37: 0.0 | NES37: 0.0 | NET37: 0.0 | NEU37: 0.0 | NEV37: 0.0 | NEW37: 0.0 | NEX37: 0.0 | NEY37: 0.0 | NEZ37: 0.0 | NFA37: 0.0 | NFB37: 0.0 | NFC37: 0.0 | NFD37: 0.0 | NFE37: 0.0 | NFF37: 0.0 | NFG37: 0.0 | NFH37: 0.0 | NFI37: 0.0 | NFJ37: 0.0 | NFK37: 0.0 | NFL37: 0.0 | NFM37: 0.0 | NFN37: 0.0 | NFO37: 0.0 | NFP37: 0.0 | NFQ37: 0.0 | NFR37: 0.0 | NFS37: 0.0 | NFT37: 0.0 | NFU37: 0.0 | NFV37: 0.0 | NFW37: 0.0 | NFX37: 0.0 | NFY37: 0.0 | NFZ37: 0.0 | NGA37: 0.0 | NGB37: 0.0 | NGC37: 0.0 | NGD37: 0.0 | NGE37: 0.0 | NGF37: 0.0 | NGG37: 0.0 | NGH37: 0.0 | NGI37: 0.0 | NGJ37: 0.0 | NGK37: 0.0 | NGL37: 0.0 | NGM37: 0.0 | NGN37: 0.0 | NGO37: 0.0 | NGP37: 0.0 | NGQ37: 0.0 | NGR37: 0.0 | NGS37: 0.0 | NGT37: 0.0 | NGU37: =SUM(NGU12:NGU35) -> 0.0 | NGV37: 0.0 | NGW37: 0.0 | NGX37: 0.0 | NGY37: 0.0 | NGZ37: 0.0 | NHA37: 0.0 | NHB37: 0.0 | NHC37: 0.0 | NHD37: 0.0 | NHE37: 0.0 | NHF37: 0.0 | NHG37: 0.0 | NHH37: 0.0 | NHI37: 0.0 | NHJ37: 0.0 | NHK37: 0.0 | NHL37: 0.0 | NHM37: 0.0 | NHN37: 0.0 | NHO37: 0.0 | NHP37: 0.0 | NHQ37: 0.0 | NHR37: 0.0 | NHS37: 0.0 | NHT37: 0.0 | NHU37: 0.0 | NHV37: 0.0 | NHW37: 0.0 | NHX37: 0.0 | NHY37: 0.0 | NHZ37: 0.0 | NIA37: 0.0 | NIB37: 0.0 | NIC37: 0.0 | NID37: 0.0 | NIE37: 0.0 | NIF37: 0.0 | NIG37: 0.0 | NIH37: 0.0 | NII37: 0.0 | NIJ37: 0.0 | NIK37: 0.0 | NIL37: 0.0 | NIM37: 0.0 | NIN37: 0.0 | NIO37: 0.0 | NIP37: 0.0 | NIQ37: 0.0 | NIR37: 0.0 | NIS37: 0.0 | NIT37: 0.0 | NIU37: 0.0 | NIV37: 0.0 | NIW37: 0.0 | NIX37: 0.0 | NIY37: 0.0 | NIZ37: 0.0 | NJA37: 0.0 | NJB37: 0.0 | NJC37: 0.0 | NJD37: 0.0 | NJE37: 0.0 | NJF37: 0.0 | NJG37: =SUM(NJG12:NJG35) -> 0.0 | NJH37: 0.0 | NJI37: 0.0 | NJJ37: 0.0 | NJK37: 0.0 | NJL37: 0.0 | NJM37: 0.0 | NJN37: 0.0 | NJO37: 0.0 | NJP37: 0.0 | NJQ37: 0.0 | NJR37: 0.0 | NJS37: 0.0 | NJT37: 0.0 | NJU37: 0.0 | NJV37: 0.0 | NJW37: 0.0 | NJX37: 0.0 | NJY37: 0.0 | NJZ37: 0.0 | NKA37: 0.0 | NKB37: 0.0 | NKC37: 0.0 | NKD37: 0.0 | NKE37: 0.0 | NKF37: 0.0 | NKG37: 0.0 | NKH37: 0.0 | NKI37: 0.0 | NKJ37: 0.0 | NKK37: 0.0 | NKL37: 0.0 | NKM37: 0.0 | NKN37: 0.0 | NKO37: 0.0 | NKP37: 0.0 | NKQ37: 0.0 | NKR37: 0.0 | NKS37: 0.0 | NKT37: 0.0 | NKU37: 0.0 | NKV37: 0.0 | NKW37: 0.0 | NKX37: 0.0 | NKY37: 0.0 | NKZ37: 0.0 | NLA37: 0.0 | NLB37: 0.0 | NLC37: 0.0 | NLD37: 0.0 | NLE37: 0.0 | NLF37: 0.0 | NLG37: 0.0 | NLH37: 0.0 | NLI37: 0.0 | NLJ37: 0.0 | NLK37: 0.0 | NLL37: 0.0 | NLM37: 0.0 | NLN37: 0.0 | NLO37: 0.0 | NLP37: 0.0 | NLQ37: 0.0 | NLR37: 0.0 | NLS37: =SUM(NLS12:NLS35) -> 0.0 | NLT37: 0.0 | NLU37: 0.0 | NLV37: 0.0 | NLW37: 0.0 | NLX37: 0.0 | NLY37: 0.0 | NLZ37: 0.0 | NMA37: 0.0 | NMB37: 0.0 | NMC37: 0.0 | NMD37: 0.0 | NME37: 0.0 | NMF37: 0.0 | NMG37: 0.0 | NMH37: 0.0 | NMI37: 0.0 | NMJ37: 0.0 | NMK37: 0.0 | NML37: 0.0 | NMM37: 0.0 | NMN37: 0.0 | NMO37: 0.0 | NMP37: 0.0 | NMQ37: 0.0 | NMR37: 0.0 | NMS37: 0.0 | NMT37: 0.0 | NMU37: 0.0 | NMV37: 0.0 | NMW37: 0.0 | NMX37: 0.0 | NMY37: 0.0 | NMZ37: 0.0 | NNA37: 0.0 | NNB37: 0.0 | NNC37: 0.0 | NND37: 0.0 | NNE37: 0.0 | NNF37: 0.0 | NNG37: 0.0 | NNH37: 0.0 | NNI37: 0.0 | NNJ37: 0.0 | NNK37: 0.0 | NNL37: 0.0 | NNM37: 0.0 | NNN37: 0.0 | NNO37: 0.0 | NNP37: 0.0 | NNQ37: 0.0 | NNR37: 0.0 | NNS37: 0.0 | NNT37: 0.0 | NNU37: 0.0 | NNV37: 0.0 | NNW37: 0.0 | NNX37: 0.0 | NNY37: 0.0 | NNZ37: 0.0 | NOA37: 0.0 | NOB37: 0.0 | NOC37: 0.0 | NOD37: 0.0 | NOE37: =SUM(NOE12:NOE35) -> 0.0 | NOF37: 0.0 | NOG37: 0.0 | NOH37: 0.0 | NOI37: 0.0 | NOJ37: 0.0 | NOK37: 0.0 | NOL37: 0.0 | NOM37: 0.0 | NON37: 0.0 | NOO37: 0.0 | NOP37: 0.0 | NOQ37: 0.0 | NOR37: 0.0 | NOS37: 0.0 | NOT37: 0.0 | NOU37: 0.0 | NOV37: 0.0 | NOW37: 0.0 | NOX37: 0.0 | NOY37: 0.0 | NOZ37: 0.0 | NPA37: 0.0 | NPB37: 0.0 | NPC37: 0.0 | NPD37: 0.0 | NPE37: 0.0 | NPF37: 0.0 | NPG37: 0.0 | NPH37: 0.0 | NPI37: 0.0 | NPJ37: 0.0 | NPK37: 0.0 | NPL37: 0.0 | NPM37: 0.0 | NPN37: 0.0 | NPO37: 0.0 | NPP37: 0.0 | NPQ37: 0.0 | NPR37: 0.0 | NPS37: 0.0 | NPT37: 0.0 | NPU37: 0.0 | NPV37: 0.0 | NPW37: 0.0 | NPX37: 0.0 | NPY37: 0.0 | NPZ37: 0.0 | NQA37: 0.0 | NQB37: 0.0 | NQC37: 0.0 | NQD37: 0.0 | NQE37: 0.0 | NQF37: 0.0 | NQG37: 0.0 | NQH37: 0.0 | NQI37: 0.0 | NQJ37: 0.0 | NQK37: 0.0 | NQL37: 0.0 | NQM37: 0.0 | NQN37: 0.0 | NQO37: 0.0 | NQP37: 0.0 | NQQ37: =SUM(NQQ12:NQQ35) -> 0.0 | NQR37: 0.0 | NQS37: 0.0 | NQT37: 0.0 | NQU37: 0.0 | NQV37: 0.0 | NQW37: 0.0 | NQX37: 0.0 | NQY37: 0.0 | NQZ37: 0.0 | NRA37: 0.0 | NRB37: 0.0 | NRC37: 0.0 | NRD37: 0.0 | NRE37: 0.0 | NRF37: 0.0 | NRG37: 0.0 | NRH37: 0.0 | NRI37: 0.0 | NRJ37: 0.0 | NRK37: 0.0 | NRL37: 0.0 | NRM37: 0.0 | NRN37: 0.0 | NRO37: 0.0 | NRP37: 0.0 | NRQ37: 0.0 | NRR37: 0.0 | NRS37: 0.0 | NRT37: 0.0 | NRU37: 0.0 | NRV37: 0.0 | NRW37: 0.0 | NRX37: 0.0 | NRY37: 0.0 | NRZ37: 0.0 | NSA37: 0.0 | NSB37: 0.0 | NSC37: 0.0 | NSD37: 0.0 | NSE37: 0.0 | NSF37: 0.0 | NSG37: 0.0 | NSH37: 0.0 | NSI37: 0.0 | NSJ37: 0.0 | NSK37: 0.0 | NSL37: 0.0 | NSM37: 0.0 | NSN37: 0.0 | NSO37: 0.0 | NSP37: 0.0 | NSQ37: 0.0 | NSR37: 0.0 | NSS37: 0.0 | NST37: 0.0 | NSU37: 0.0 | NSV37: 0.0 | NSW37: 0.0 | NSX37: 0.0 | NSY37: 0.0 | NSZ37: 0.0 | NTA37: 0.0 | NTB37: 0.0 | NTC37: =SUM(NTC12:NTC35) -> 0.0 | NTD37: 0.0 | NTE37: 0.0 | NTF37: 0.0 | NTG37: 0.0 | NTH37: 0.0 | NTI37: 0.0 | NTJ37: 0.0 | NTK37: 0.0 | NTL37: 0.0 | NTM37: 0.0 | NTN37: 0.0 | NTO37: 0.0 | NTP37: 0.0 | NTQ37: 0.0 | NTR37: 0.0 | NTS37: 0.0 | NTT37: 0.0 | NTU37: 0.0 | NTV37: 0.0 | NTW37: 0.0 | NTX37: 0.0 | NTY37: 0.0 | NTZ37: 0.0 | NUA37: 0.0 | NUB37: 0.0 | NUC37: 0.0 | NUD37: 0.0 | NUE37: 0.0 | NUF37: 0.0 | NUG37: 0.0 | NUH37: 0.0 | NUI37: 0.0 | NUJ37: 0.0 | NUK37: 0.0 | NUL37: 0.0 | NUM37: 0.0 | NUN37: 0.0 | NUO37: 0.0 | NUP37: 0.0 | NUQ37: 0.0 | NUR37: 0.0 | NUS37: 0.0 | NUT37: 0.0 | NUU37: 0.0 | NUV37: 0.0 | NUW37: 0.0 | NUX37: 0.0 | NUY37: 0.0 | NUZ37: 0.0 | NVA37: 0.0 | NVB37: 0.0 | NVC37: 0.0 | NVD37: 0.0 | NVE37: 0.0 | NVF37: 0.0 | NVG37: 0.0 | NVH37: 0.0 | NVI37: 0.0 | NVJ37: 0.0 | NVK37: 0.0 | NVL37: 0.0 | NVM37: 0.0 | NVN37: 0.0 | NVO37: =SUM(NVO12:NVO35) -> 0.0 | NVP37: 0.0 | NVQ37: 0.0 | NVR37: 0.0 | NVS37: 0.0 | NVT37: 0.0 | NVU37: 0.0 | NVV37: 0.0 | NVW37: 0.0 | NVX37: 0.0 | NVY37: 0.0 | NVZ37: 0.0 | NWA37: 0.0 | NWB37: 0.0 | NWC37: 0.0 | NWD37: 0.0 | NWE37: 0.0 | NWF37: 0.0 | NWG37: 0.0 | NWH37: 0.0 | NWI37: 0.0 | NWJ37: 0.0 | NWK37: 0.0 | NWL37: 0.0 | NWM37: 0.0 | NWN37: 0.0 | NWO37: 0.0 | NWP37: 0.0 | NWQ37: 0.0 | NWR37: 0.0 | NWS37: 0.0 | NWT37: 0.0 | NWU37: 0.0 | NWV37: 0.0 | NWW37: 0.0 | NWX37: 0.0 | NWY37: 0.0 | NWZ37: 0.0 | NXA37: 0.0 | NXB37: 0.0 | NXC37: 0.0 | NXD37: 0.0 | NXE37: 0.0 | NXF37: 0.0 | NXG37: 0.0 | NXH37: 0.0 | NXI37: 0.0 | NXJ37: 0.0 | NXK37: 0.0 | NXL37: 0.0 | NXM37: 0.0 | NXN37: 0.0 | NXO37: 0.0 | NXP37: 0.0 | NXQ37: 0.0 | NXR37: 0.0 | NXS37: 0.0 | NXT37: 0.0 | NXU37: 0.0 | NXV37: 0.0 | NXW37: 0.0 | NXX37: 0.0 | NXY37: 0.0 | NXZ37: 0.0 | NYA37: =SUM(NYA12:NYA35) -> 0.0 | NYB37: 0.0 | NYC37: 0.0 | NYD37: 0.0 | NYE37: 0.0 | NYF37: 0.0 | NYG37: 0.0 | NYH37: 0.0 | NYI37: 0.0 | NYJ37: 0.0 | NYK37: 0.0 | NYL37: 0.0 | NYM37: 0.0 | NYN37: 0.0 | NYO37: 0.0 | NYP37: 0.0 | NYQ37: 0.0 | NYR37: 0.0 | NYS37: 0.0 | NYT37: 0.0 | NYU37: 0.0 | NYV37: 0.0 | NYW37: 0.0 | NYX37: 0.0 | NYY37: 0.0 | NYZ37: 0.0 | NZA37: 0.0 | NZB37: 0.0 | NZC37: 0.0 | NZD37: 0.0 | NZE37: 0.0 | NZF37: 0.0 | NZG37: 0.0 | NZH37: 0.0 | NZI37: 0.0 | NZJ37: 0.0 | NZK37: 0.0 | NZL37: 0.0 | NZM37: 0.0 | NZN37: 0.0 | NZO37: 0.0 | NZP37: 0.0 | NZQ37: 0.0 | NZR37: 0.0 | NZS37: 0.0 | NZT37: 0.0 | NZU37: 0.0 | NZV37: 0.0 | NZW37: 0.0 | NZX37: 0.0 | NZY37: 0.0 | NZZ37: 0.0 | OAA37: 0.0 | OAB37: 0.0 | OAC37: 0.0 | OAD37: 0.0 | OAE37: 0.0 | OAF37: 0.0 | OAG37: 0.0 | OAH37: 0.0 | OAI37: 0.0 | OAJ37: 0.0 | OAK37: 0.0 | OAL37: 0.0 | OAM37: =SUM(OAM12:OAM35) -> 0.0 | OAN37: 0.0 | OAO37: 0.0 | OAP37: 0.0 | OAQ37: 0.0 | OAR37: 0.0 | OAS37: 0.0 | OAT37: 0.0 | OAU37: 0.0 | OAV37: 0.0 | OAW37: 0.0 | OAX37: 0.0 | OAY37: 0.0 | OAZ37: 0.0 | OBA37: 0.0 | OBB37: 0.0 | OBC37: 0.0 | OBD37: 0.0 | OBE37: 0.0 | OBF37: 0.0 | OBG37: 0.0 | OBH37: 0.0 | OBI37: 0.0 | OBJ37: 0.0 | OBK37: 0.0 | OBL37: 0.0 | OBM37: 0.0 | OBN37: 0.0 | OBO37: 0.0 | OBP37: 0.0 | OBQ37: 0.0 | OBR37: 0.0 | OBS37: 0.0 | OBT37: 0.0 | OBU37: 0.0 | OBV37: 0.0 | OBW37: 0.0 | OBX37: 0.0 | OBY37: 0.0 | OBZ37: 0.0 | OCA37: 0.0 | OCB37: 0.0 | OCC37: 0.0 | OCD37: 0.0 | OCE37: 0.0 | OCF37: 0.0 | OCG37: 0.0 | OCH37: 0.0 | OCI37: 0.0 | OCJ37: 0.0 | OCK37: 0.0 | OCL37: 0.0 | OCM37: 0.0 | OCN37: 0.0 | OCO37: 0.0 | OCP37: 0.0 | OCQ37: 0.0 | OCR37: 0.0 | OCS37: 0.0 | OCT37: 0.0 | OCU37: 0.0 | OCV37: 0.0 | OCW37: 0.0 | OCX37: 0.0 | OCY37: =SUM(OCY12:OCY35) -> 0.0 | OCZ37: 0.0 | ODA37: 0.0 | ODB37: 0.0 | ODC37: 0.0 | ODD37: 0.0 | ODE37: 0.0 | ODF37: 0.0 | ODG37: 0.0 | ODH37: 0.0 | ODI37: 0.0 | ODJ37: 0.0 | ODK37: 0.0 | ODL37: 0.0 | ODM37: 0.0 | ODN37: 0.0 | ODO37: 0.0 | ODP37: 0.0 | ODQ37: 0.0 | ODR37: 0.0 | ODS37: 0.0 | ODT37: 0.0 | ODU37: 0.0 | ODV37: 0.0 | ODW37: 0.0 | ODX37: 0.0 | ODY37: 0.0 | ODZ37: 0.0 | OEA37: 0.0 | OEB37: 0.0 | OEC37: 0.0 | OED37: 0.0 | OEE37: 0.0 | OEF37: 0.0 | OEG37: 0.0 | OEH37: 0.0 | OEI37: 0.0 | OEJ37: 0.0 | OEK37: 0.0 | OEL37: 0.0 | OEM37: 0.0 | OEN37: 0.0 | OEO37: 0.0 | OEP37: 0.0 | OEQ37: 0.0 | OER37: 0.0 | OES37: 0.0 | OET37: 0.0 | OEU37: 0.0 | OEV37: 0.0 | OEW37: 0.0 | OEX37: 0.0 | OEY37: 0.0 | OEZ37: 0.0 | OFA37: 0.0 | OFB37: 0.0 | OFC37: 0.0 | OFD37: 0.0 | OFE37: 0.0 | OFF37: 0.0 | OFG37: 0.0 | OFH37: 0.0 | OFI37: 0.0 | OFJ37: 0.0 | OFK37: =SUM(OFK12:OFK35) -> 0.0 | OFL37: 0.0 | OFM37: 0.0 | OFN37: 0.0 | OFO37: 0.0 | OFP37: 0.0 | OFQ37: 0.0 | OFR37: 0.0 | OFS37: 0.0 | OFT37: 0.0 | OFU37: 0.0 | OFV37: 0.0 | OFW37: 0.0 | OFX37: 0.0 | OFY37: 0.0 | OFZ37: 0.0 | OGA37: 0.0 | OGB37: 0.0 | OGC37: 0.0 | OGD37: 0.0 | OGE37: 0.0 | OGF37: 0.0 | OGG37: 0.0 | OGH37: 0.0 | OGI37: 0.0 | OGJ37: 0.0 | OGK37: 0.0 | OGL37: 0.0 | OGM37: 0.0 | OGN37: 0.0 | OGO37: 0.0 | OGP37: 0.0 | OGQ37: 0.0 | OGR37: 0.0 | OGS37: 0.0 | OGT37: 0.0 | OGU37: 0.0 | OGV37: 0.0 | OGW37: 0.0 | OGX37: 0.0 | OGY37: 0.0 | OGZ37: 0.0 | OHA37: 0.0 | OHB37: 0.0 | OHC37: 0.0 | OHD37: 0.0 | OHE37: 0.0 | OHF37: 0.0 | OHG37: 0.0 | OHH37: 0.0 | OHI37: 0.0 | OHJ37: 0.0 | OHK37: 0.0 | OHL37: 0.0 | OHM37: 0.0 | OHN37: 0.0 | OHO37: 0.0 | OHP37: 0.0 | OHQ37: 0.0 | OHR37: 0.0 | OHS37: 0.0 | OHT37: 0.0 | OHU37: 0.0 | OHV37: 0.0 | OHW37: =SUM(OHW12:OHW35) -> 0.0 | OHX37: 0.0 | OHY37: 0.0 | OHZ37: 0.0 | OIA37: 0.0 | OIB37: 0.0 | OIC37: 0.0 | OID37: 0.0 | OIE37: 0.0 | OIF37: 0.0 | OIG37: 0.0 | OIH37: 0.0 | OII37: 0.0 | OIJ37: 0.0 | OIK37: 0.0 | OIL37: 0.0 | OIM37: 0.0 | OIN37: 0.0 | OIO37: 0.0 | OIP37: 0.0 | OIQ37: 0.0 | OIR37: 0.0 | OIS37: 0.0 | OIT37: 0.0 | OIU37: 0.0 | OIV37: 0.0 | OIW37: 0.0 | OIX37: 0.0 | OIY37: 0.0 | OIZ37: 0.0 | OJA37: 0.0 | OJB37: 0.0 | OJC37: 0.0 | OJD37: 0.0 | OJE37: 0.0 | OJF37: 0.0 | OJG37: 0.0 | OJH37: 0.0 | OJI37: 0.0 | OJJ37: 0.0 | OJK37: 0.0 | OJL37: 0.0 | OJM37: 0.0 | OJN37: 0.0 | OJO37: 0.0 | OJP37: 0.0 | OJQ37: 0.0 | OJR37: 0.0 | OJS37: 0.0 | OJT37: 0.0 | OJU37: 0.0 | OJV37: 0.0 | OJW37: 0.0 | OJX37: 0.0 | OJY37: 0.0 | OJZ37: 0.0 | OKA37: 0.0 | OKB37: 0.0 | OKC37: 0.0 | OKD37: 0.0 | OKE37: 0.0 | OKF37: 0.0 | OKG37: 0.0 | OKH37: 0.0 | OKI37: =SUM(OKI12:OKI35) -> 0.0 | OKJ37: 0.0 | OKK37: 0.0 | OKL37: 0.0 | OKM37: 0.0 | OKN37: 0.0 | OKO37: 0.0 | OKP37: 0.0 | OKQ37: 0.0 | OKR37: 0.0 | OKS37: 0.0 | OKT37: 0.0 | OKU37: 0.0 | OKV37: 0.0 | OKW37: 0.0 | OKX37: 0.0 | OKY37: 0.0 | OKZ37: 0.0 | OLA37: 0.0 | OLB37: 0.0 | OLC37: 0.0 | OLD37: 0.0 | OLE37: 0.0 | OLF37: 0.0 | OLG37: 0.0 | OLH37: 0.0 | OLI37: 0.0 | OLJ37: 0.0 | OLK37: 0.0 | OLL37: 0.0 | OLM37: 0.0 | OLN37: 0.0 | OLO37: 0.0 | OLP37: 0.0 | OLQ37: 0.0 | OLR37: 0.0 | OLS37: 0.0 | OLT37: 0.0 | OLU37: 0.0 | OLV37: 0.0 | OLW37: 0.0 | OLX37: 0.0 | OLY37: 0.0 | OLZ37: 0.0 | OMA37: 0.0 | OMB37: 0.0 | OMC37: 0.0 | OMD37: 0.0 | OME37: 0.0 | OMF37: 0.0 | OMG37: 0.0 | OMH37: 0.0 | OMI37: 0.0 | OMJ37: 0.0 | OMK37: 0.0 | OML37: 0.0 | OMM37: 0.0 | OMN37: 0.0 | OMO37: 0.0 | OMP37: 0.0 | OMQ37: 0.0 | OMR37: 0.0 | OMS37: 0.0 | OMT37: 0.0 | OMU37: =SUM(OMU12:OMU35) -> 0.0 | OMV37: 0.0 | OMW37: 0.0 | OMX37: 0.0 | OMY37: 0.0 | OMZ37: 0.0 | ONA37: 0.0 | ONB37: 0.0 | ONC37: 0.0 | OND37: 0.0 | ONE37: 0.0 | ONF37: 0.0 | ONG37: 0.0 | ONH37: 0.0 | ONI37: 0.0 | ONJ37: 0.0 | ONK37: 0.0 | ONL37: 0.0 | ONM37: 0.0 | ONN37: 0.0 | ONO37: 0.0 | ONP37: 0.0 | ONQ37: 0.0 | ONR37: 0.0 | ONS37: 0.0 | ONT37: 0.0 | ONU37: 0.0 | ONV37: 0.0 | ONW37: 0.0 | ONX37: 0.0 | ONY37: 0.0 | ONZ37: 0.0 | OOA37: 0.0 | OOB37: 0.0 | OOC37: 0.0 | OOD37: 0.0 | OOE37: 0.0 | OOF37: 0.0 | OOG37: 0.0 | OOH37: 0.0 | OOI37: 0.0 | OOJ37: 0.0 | OOK37: 0.0 | OOL37: 0.0 | OOM37: 0.0 | OON37: 0.0 | OOO37: 0.0 | OOP37: 0.0 | OOQ37: 0.0 | OOR37: 0.0 | OOS37: 0.0 | OOT37: 0.0 | OOU37: 0.0 | OOV37: 0.0 | OOW37: 0.0 | OOX37: 0.0 | OOY37: 0.0 | OOZ37: 0.0 | OPA37: 0.0 | OPB37: 0.0 | OPC37: 0.0 | OPD37: 0.0 | OPE37: 0.0 | OPF37: 0.0 | OPG37: =SUM(OPG12:OPG35) -> 0.0 | OPH37: 0.0 | OPI37: 0.0 | OPJ37: 0.0 | OPK37: 0.0 | OPL37: 0.0 | OPM37: 0.0 | OPN37: 0.0 | OPO37: 0.0 | OPP37: 0.0 | OPQ37: 0.0 | OPR37: 0.0 | OPS37: 0.0 | OPT37: 0.0 | OPU37: 0.0 | OPV37: 0.0 | OPW37: 0.0 | OPX37: 0.0 | OPY37: 0.0 | OPZ37: 0.0 | OQA37: 0.0 | OQB37: 0.0 | OQC37: 0.0 | OQD37: 0.0 | OQE37: 0.0 | OQF37: 0.0 | OQG37: 0.0 | OQH37: 0.0 | OQI37: 0.0 | OQJ37: 0.0 | OQK37: 0.0 | OQL37: 0.0 | OQM37: 0.0 | OQN37: 0.0 | OQO37: 0.0 | OQP37: 0.0 | OQQ37: 0.0 | OQR37: 0.0 | OQS37: 0.0 | OQT37: 0.0 | OQU37: 0.0 | OQV37: 0.0 | OQW37: 0.0 | OQX37: 0.0 | OQY37: 0.0 | OQZ37: 0.0 | ORA37: 0.0 | ORB37: 0.0 | ORC37: 0.0 | ORD37: 0.0 | ORE37: 0.0 | ORF37: 0.0 | ORG37: 0.0 | ORH37: 0.0 | ORI37: 0.0 | ORJ37: 0.0 | ORK37: 0.0 | ORL37: 0.0 | ORM37: 0.0 | ORN37: 0.0 | ORO37: 0.0 | ORP37: 0.0 | ORQ37: 0.0 | ORR37: 0.0 | ORS37: =SUM(ORS12:ORS35) -> 0.0 | ORT37: 0.0 | ORU37: 0.0 | ORV37: 0.0 | ORW37: 0.0 | ORX37: 0.0 | ORY37: 0.0 | ORZ37: 0.0 | OSA37: 0.0 | OSB37: 0.0 | OSC37: 0.0 | OSD37: 0.0 | OSE37: 0.0 | OSF37: 0.0 | OSG37: 0.0 | OSH37: 0.0 | OSI37: 0.0 | OSJ37: 0.0 | OSK37: 0.0 | OSL37: 0.0 | OSM37: 0.0 | OSN37: 0.0 | OSO37: 0.0 | OSP37: 0.0 | OSQ37: 0.0 | OSR37: 0.0 | OSS37: 0.0 | OST37: 0.0 | OSU37: 0.0 | OSV37: 0.0 | OSW37: 0.0 | OSX37: 0.0 | OSY37: 0.0 | OSZ37: 0.0 | OTA37: 0.0 | OTB37: 0.0 | OTC37: 0.0 | OTD37: 0.0 | OTE37: 0.0 | OTF37: 0.0 | OTG37: 0.0 | OTH37: 0.0 | OTI37: 0.0 | OTJ37: 0.0 | OTK37: 0.0 | OTL37: 0.0 | OTM37: 0.0 | OTN37: 0.0 | OTO37: 0.0 | OTP37: 0.0 | OTQ37: 0.0 | OTR37: 0.0 | OTS37: 0.0 | OTT37: 0.0 | OTU37: 0.0 | OTV37: 0.0 | OTW37: 0.0 | OTX37: 0.0 | OTY37: 0.0 | OTZ37: 0.0 | OUA37: 0.0 | OUB37: 0.0 | OUC37: 0.0 | OUD37: 0.0 | OUE37: =SUM(OUE12:OUE35) -> 0.0 | OUF37: 0.0 | OUG37: 0.0 | OUH37: 0.0 | OUI37: 0.0 | OUJ37: 0.0 | OUK37: 0.0 | OUL37: 0.0 | OUM37: 0.0 | OUN37: 0.0 | OUO37: 0.0 | OUP37: 0.0 | OUQ37: 0.0 | OUR37: 0.0 | OUS37: 0.0 | OUT37: 0.0 | OUU37: 0.0 | OUV37: 0.0 | OUW37: 0.0 | OUX37: 0.0 | OUY37: 0.0 | OUZ37: 0.0 | OVA37: 0.0 | OVB37: 0.0 | OVC37: 0.0 | OVD37: 0.0 | OVE37: 0.0 | OVF37: 0.0 | OVG37: 0.0 | OVH37: 0.0 | OVI37: 0.0 | OVJ37: 0.0 | OVK37: 0.0 | OVL37: 0.0 | OVM37: 0.0 | OVN37: 0.0 | OVO37: 0.0 | OVP37: 0.0 | OVQ37: 0.0 | OVR37: 0.0 | OVS37: 0.0 | OVT37: 0.0 | OVU37: 0.0 | OVV37: 0.0 | OVW37: 0.0 | OVX37: 0.0 | OVY37: 0.0 | OVZ37: 0.0 | OWA37: 0.0 | OWB37: 0.0 | OWC37: 0.0 | OWD37: 0.0 | OWE37: 0.0 | OWF37: 0.0 | OWG37: 0.0 | OWH37: 0.0 | OWI37: 0.0 | OWJ37: 0.0 | OWK37: 0.0 | OWL37: 0.0 | OWM37: 0.0 | OWN37: 0.0 | OWO37: 0.0 | OWP37: 0.0 | OWQ37: =SUM(OWQ12:OWQ35) -> 0.0 | OWR37: 0.0 | OWS37: 0.0 | OWT37: 0.0 | OWU37: 0.0 | OWV37: 0.0 | OWW37: 0.0 | OWX37: 0.0 | OWY37: 0.0 | OWZ37: 0.0 | OXA37: 0.0 | OXB37: 0.0 | OXC37: 0.0 | OXD37: 0.0 | OXE37: 0.0 | OXF37: 0.0 | OXG37: 0.0 | OXH37: 0.0 | OXI37: 0.0 | OXJ37: 0.0 | OXK37: 0.0 | OXL37: 0.0 | OXM37: 0.0 | OXN37: 0.0 | OXO37: 0.0 | OXP37: 0.0 | OXQ37: 0.0 | OXR37: 0.0 | OXS37: 0.0 | OXT37: 0.0 | OXU37: 0.0 | OXV37: 0.0 | OXW37: 0.0 | OXX37: 0.0 | OXY37: 0.0 | OXZ37: 0.0 | OYA37: 0.0 | OYB37: 0.0 | OYC37: 0.0 | OYD37: 0.0 | OYE37: 0.0 | OYF37: 0.0 | OYG37: 0.0 | OYH37: 0.0 | OYI37: 0.0 | OYJ37: 0.0 | OYK37: 0.0 | OYL37: 0.0 | OYM37: 0.0 | OYN37: 0.0 | OYO37: 0.0 | OYP37: 0.0 | OYQ37: 0.0 | OYR37: 0.0 | OYS37: 0.0 | OYT37: 0.0 | OYU37: 0.0 | OYV37: 0.0 | OYW37: 0.0 | OYX37: 0.0 | OYY37: 0.0 | OYZ37: 0.0 | OZA37: 0.0 | OZB37: 0.0 | OZC37: =SUM(OZC12:OZC35) -> 0.0 | OZD37: 0.0 | OZE37: 0.0 | OZF37: 0.0 | OZG37: 0.0 | OZH37: 0.0 | OZI37: 0.0 | OZJ37: 0.0 | OZK37: 0.0 | OZL37: 0.0 | OZM37: 0.0 | OZN37: 0.0 | OZO37: 0.0 | OZP37: 0.0 | OZQ37: 0.0 | OZR37: 0.0 | OZS37: 0.0 | OZT37: 0.0 | OZU37: 0.0 | OZV37: 0.0 | OZW37: 0.0 | OZX37: 0.0 | OZY37: 0.0 | OZZ37: 0.0 | PAA37: 0.0 | PAB37: 0.0 | PAC37: 0.0 | PAD37: 0.0 | PAE37: 0.0 | PAF37: 0.0 | PAG37: 0.0 | PAH37: 0.0 | PAI37: 0.0 | PAJ37: 0.0 | PAK37: 0.0 | PAL37: 0.0 | PAM37: 0.0 | PAN37: 0.0 | PAO37: 0.0 | PAP37: 0.0 | PAQ37: 0.0 | PAR37: 0.0 | PAS37: 0.0 | PAT37: 0.0 | PAU37: 0.0 | PAV37: 0.0 | PAW37: 0.0 | PAX37: 0.0 | PAY37: 0.0 | PAZ37: 0.0 | PBA37: 0.0 | PBB37: 0.0 | PBC37: 0.0 | PBD37: 0.0 | PBE37: 0.0 | PBF37: 0.0 | PBG37: 0.0 | PBH37: 0.0 | PBI37: 0.0 | PBJ37: 0.0 | PBK37: 0.0 | PBL37: 0.0 | PBM37: 0.0 | PBN37: 0.0 | PBO37: =SUM(PBO12:PBO35) -> 0.0 | PBP37: 0.0 | PBQ37: 0.0 | PBR37: 0.0 | PBS37: 0.0 | PBT37: 0.0 | PBU37: 0.0 | PBV37: 0.0 | PBW37: 0.0 | PBX37: 0.0 | PBY37: 0.0 | PBZ37: 0.0 | PCA37: 0.0 | PCB37: 0.0 | PCC37: 0.0 | PCD37: 0.0 | PCE37: 0.0 | PCF37: 0.0 | PCG37: 0.0 | PCH37: 0.0 | PCI37: 0.0 | PCJ37: 0.0 | PCK37: 0.0 | PCL37: 0.0 | PCM37: 0.0 | PCN37: 0.0 | PCO37: 0.0 | PCP37: 0.0 | PCQ37: 0.0 | PCR37: 0.0 | PCS37: 0.0 | PCT37: 0.0 | PCU37: 0.0 | PCV37: 0.0 | PCW37: 0.0 | PCX37: 0.0 | PCY37: 0.0 | PCZ37: 0.0 | PDA37: 0.0 | PDB37: 0.0 | PDC37: 0.0 | PDD37: 0.0 | PDE37: 0.0 | PDF37: 0.0 | PDG37: 0.0 | PDH37: 0.0 | PDI37: 0.0 | PDJ37: 0.0 | PDK37: 0.0 | PDL37: 0.0 | PDM37: 0.0 | PDN37: 0.0 | PDO37: 0.0 | PDP37: 0.0 | PDQ37: 0.0 | PDR37: 0.0 | PDS37: 0.0 | PDT37: 0.0 | PDU37: 0.0 | PDV37: 0.0 | PDW37: 0.0 | PDX37: 0.0 | PDY37: 0.0 | PDZ37: 0.0 | PEA37: =SUM(PEA12:PEA35) -> 0.0 | PEB37: 0.0 | PEC37: 0.0 | PED37: 0.0 | PEE37: 0.0 | PEF37: 0.0 | PEG37: 0.0 | PEH37: 0.0 | PEI37: 0.0 | PEJ37: 0.0 | PEK37: 0.0 | PEL37: 0.0 | PEM37: 0.0 | PEN37: 0.0 | PEO37: 0.0 | PEP37: 0.0 | PEQ37: 0.0 | PER37: 0.0 | PES37: 0.0 | PET37: 0.0 | PEU37: 0.0 | PEV37: 0.0 | PEW37: 0.0 | PEX37: 0.0 | PEY37: 0.0 | PEZ37: 0.0 | PFA37: 0.0 | PFB37: 0.0 | PFC37: 0.0 | PFD37: 0.0 | PFE37: 0.0 | PFF37: 0.0 | PFG37: 0.0 | PFH37: 0.0 | PFI37: 0.0 | PFJ37: 0.0 | PFK37: 0.0 | PFL37: 0.0 | PFM37: 0.0 | PFN37: 0.0 | PFO37: 0.0 | PFP37: 0.0 | PFQ37: 0.0 | PFR37: 0.0 | PFS37: 0.0 | PFT37: 0.0 | PFU37: 0.0 | PFV37: 0.0 | PFW37: 0.0 | PFX37: 0.0 | PFY37: 0.0 | PFZ37: 0.0 | PGA37: 0.0 | PGB37: 0.0 | PGC37: 0.0 | PGD37: 0.0 | PGE37: 0.0 | PGF37: 0.0 | PGG37: 0.0 | PGH37: 0.0 | PGI37: 0.0 | PGJ37: 0.0 | PGK37: 0.0 | PGL37: 0.0 | PGM37: =SUM(PGM12:PGM35) -> 0.0 | PGN37: 0.0 | PGO37: 0.0 | PGP37: 0.0 | PGQ37: 0.0 | PGR37: 0.0 | PGS37: 0.0 | PGT37: 0.0 | PGU37: 0.0 | PGV37: 0.0 | PGW37: 0.0 | PGX37: 0.0 | PGY37: 0.0 | PGZ37: 0.0 | PHA37: 0.0 | PHB37: 0.0 | PHC37: 0.0 | PHD37: 0.0 | PHE37: 0.0 | PHF37: 0.0 | PHG37: 0.0 | PHH37: 0.0 | PHI37: 0.0 | PHJ37: 0.0 | PHK37: 0.0 | PHL37: 0.0 | PHM37: 0.0 | PHN37: 0.0 | PHO37: 0.0 | PHP37: 0.0 | PHQ37: 0.0 | PHR37: 0.0 | PHS37: 0.0 | PHT37: 0.0 | PHU37: 0.0 | PHV37: 0.0 | PHW37: 0.0 | PHX37: 0.0 | PHY37: 0.0 | PHZ37: 0.0 | PIA37: 0.0 | PIB37: 0.0 | PIC37: 0.0 | PID37: 0.0 | PIE37: 0.0 | PIF37: 0.0 | PIG37: 0.0 | PIH37: 0.0 | PII37: 0.0 | PIJ37: 0.0 | PIK37: 0.0 | PIL37: 0.0 | PIM37: 0.0 | PIN37: 0.0 | PIO37: 0.0 | PIP37: 0.0 | PIQ37: 0.0 | PIR37: 0.0 | PIS37: 0.0 | PIT37: 0.0 | PIU37: 0.0 | PIV37: 0.0 | PIW37: 0.0 | PIX37: 0.0 | PIY37: =SUM(PIY12:PIY35) -> 0.0 | PIZ37: 0.0 | PJA37: 0.0 | PJB37: 0.0 | PJC37: 0.0 | PJD37: 0.0 | PJE37: 0.0 | PJF37: 0.0 | PJG37: 0.0 | PJH37: 0.0 | PJI37: 0.0 | PJJ37: 0.0 | PJK37: 0.0 | PJL37: 0.0 | PJM37: 0.0 | PJN37: 0.0 | PJO37: 0.0 | PJP37: 0.0 | PJQ37: 0.0 | PJR37: 0.0 | PJS37: 0.0 | PJT37: 0.0 | PJU37: 0.0 | PJV37: 0.0 | PJW37: 0.0 | PJX37: 0.0 | PJY37: 0.0 | PJZ37: 0.0 | PKA37: 0.0 | PKB37: 0.0 | PKC37: 0.0 | PKD37: 0.0 | PKE37: 0.0 | PKF37: 0.0 | PKG37: 0.0 | PKH37: 0.0 | PKI37: 0.0 | PKJ37: 0.0 | PKK37: 0.0 | PKL37: 0.0 | PKM37: 0.0 | PKN37: 0.0 | PKO37: 0.0 | PKP37: 0.0 | PKQ37: 0.0 | PKR37: 0.0 | PKS37: 0.0 | PKT37: 0.0 | PKU37: 0.0 | PKV37: 0.0 | PKW37: 0.0 | PKX37: 0.0 | PKY37: 0.0 | PKZ37: 0.0 | PLA37: 0.0 | PLB37: 0.0 | PLC37: 0.0 | PLD37: 0.0 | PLE37: 0.0 | PLF37: 0.0 | PLG37: 0.0 | PLH37: 0.0 | PLI37: 0.0 | PLJ37: 0.0 | PLK37: =SUM(PLK12:PLK35) -> 0.0 | PLL37: 0.0 | PLM37: 0.0 | PLN37: 0.0 | PLO37: 0.0 | PLP37: 0.0 | PLQ37: 0.0 | PLR37: 0.0 | PLS37: 0.0 | PLT37: 0.0 | PLU37: 0.0 | PLV37: 0.0 | PLW37: 0.0 | PLX37: 0.0 | PLY37: 0.0 | PLZ37: 0.0 | PMA37: 0.0 | PMB37: 0.0 | PMC37: 0.0 | PMD37: 0.0 | PME37: 0.0 | PMF37: 0.0 | PMG37: 0.0 | PMH37: 0.0 | PMI37: 0.0 | PMJ37: 0.0 | PMK37: 0.0 | PML37: 0.0 | PMM37: 0.0 | PMN37: 0.0 | PMO37: 0.0 | PMP37: 0.0 | PMQ37: 0.0 | PMR37: 0.0 | PMS37: 0.0 | PMT37: 0.0 | PMU37: 0.0 | PMV37: 0.0 | PMW37: 0.0 | PMX37: 0.0 | PMY37: 0.0 | PMZ37: 0.0 | PNA37: 0.0 | PNB37: 0.0 | PNC37: 0.0 | PND37: 0.0 | PNE37: 0.0 | PNF37: 0.0 | PNG37: 0.0 | PNH37: 0.0 | PNI37: 0.0 | PNJ37: 0.0 | PNK37: 0.0 | PNL37: 0.0 | PNM37: 0.0 | PNN37: 0.0 | PNO37: 0.0 | PNP37: 0.0 | PNQ37: 0.0 | PNR37: 0.0 | PNS37: 0.0 | PNT37: 0.0 | PNU37: 0.0 | PNV37: 0.0 | PNW37: =SUM(PNW12:PNW35) -> 0.0 | PNX37: 0.0 | PNY37: 0.0 | PNZ37: 0.0 | POA37: 0.0 | POB37: 0.0 | POC37: 0.0 | POD37: 0.0 | POE37: 0.0 | POF37: 0.0 | POG37: 0.0 | POH37: 0.0 | POI37: 0.0 | POJ37: 0.0 | POK37: 0.0 | POL37: 0.0 | POM37: 0.0 | PON37: 0.0 | POO37: 0.0 | POP37: 0.0 | POQ37: 0.0 | POR37: 0.0 | POS37: 0.0 | POT37: 0.0 | POU37: 0.0 | POV37: 0.0 | POW37: 0.0 | POX37: 0.0 | POY37: 0.0 | POZ37: 0.0 | PPA37: 0.0 | PPB37: 0.0 | PPC37: 0.0 | PPD37: 0.0 | PPE37: 0.0 | PPF37: 0.0 | PPG37: 0.0 | PPH37: 0.0 | PPI37: 0.0 | PPJ37: 0.0 | PPK37: 0.0 | PPL37: 0.0 | PPM37: 0.0 | PPN37: 0.0 | PPO37: 0.0 | PPP37: 0.0 | PPQ37: 0.0 | PPR37: 0.0 | PPS37: 0.0 | PPT37: 0.0 | PPU37: 0.0 | PPV37: 0.0 | PPW37: 0.0 | PPX37: 0.0 | PPY37: 0.0 | PPZ37: 0.0 | PQA37: 0.0 | PQB37: 0.0 | PQC37: 0.0 | PQD37: 0.0 | PQE37: 0.0 | PQF37: 0.0 | PQG37: 0.0 | PQH37: 0.0 | PQI37: =SUM(PQI12:PQI35) -> 0.0 | PQJ37: 0.0 | PQK37: 0.0 | PQL37: 0.0 | PQM37: 0.0 | PQN37: 0.0 | PQO37: 0.0 | PQP37: 0.0 | PQQ37: 0.0 | PQR37: 0.0 | PQS37: 0.0 | PQT37: 0.0 | PQU37: 0.0 | PQV37: 0.0 | PQW37: 0.0 | PQX37: 0.0 | PQY37: 0.0 | PQZ37: 0.0 | PRA37: 0.0 | PRB37: 0.0 | PRC37: 0.0 | PRD37: 0.0 | PRE37: 0.0 | PRF37: 0.0 | PRG37: 0.0 | PRH37: 0.0 | PRI37: 0.0 | PRJ37: 0.0 | PRK37: 0.0 | PRL37: 0.0 | PRM37: 0.0 | PRN37: 0.0 | PRO37: 0.0 | PRP37: 0.0 | PRQ37: 0.0 | PRR37: 0.0 | PRS37: 0.0 | PRT37: 0.0 | PRU37: 0.0 | PRV37: 0.0 | PRW37: 0.0 | PRX37: 0.0 | PRY37: 0.0 | PRZ37: 0.0 | PSA37: 0.0 | PSB37: 0.0 | PSC37: 0.0 | PSD37: 0.0 | PSE37: 0.0 | PSF37: 0.0 | PSG37: 0.0 | PSH37: 0.0 | PSI37: 0.0 | PSJ37: 0.0 | PSK37: 0.0 | PSL37: 0.0 | PSM37: 0.0 | PSN37: 0.0 | PSO37: 0.0 | PSP37: 0.0 | PSQ37: 0.0 | PSR37: 0.0 | PSS37: 0.0 | PST37: 0.0 | PSU37: =SUM(PSU12:PSU35) -> 0.0 | PSV37: 0.0 | PSW37: 0.0 | PSX37: 0.0 | PSY37: 0.0 | PSZ37: 0.0 | PTA37: 0.0 | PTB37: 0.0 | PTC37: 0.0 | PTD37: 0.0 | PTE37: 0.0 | PTF37: 0.0 | PTG37: 0.0 | PTH37: 0.0 | PTI37: 0.0 | PTJ37: 0.0 | PTK37: 0.0 | PTL37: 0.0 | PTM37: 0.0 | PTN37: 0.0 | PTO37: 0.0 | PTP37: 0.0 | PTQ37: 0.0 | PTR37: 0.0 | PTS37: 0.0 | PTT37: 0.0 | PTU37: 0.0 | PTV37: 0.0 | PTW37: 0.0 | PTX37: 0.0 | PTY37: 0.0 | PTZ37: 0.0 | PUA37: 0.0 | PUB37: 0.0 | PUC37: 0.0 | PUD37: 0.0 | PUE37: 0.0 | PUF37: 0.0 | PUG37: 0.0 | PUH37: 0.0 | PUI37: 0.0 | PUJ37: 0.0 | PUK37: 0.0 | PUL37: 0.0 | PUM37: 0.0 | PUN37: 0.0 | PUO37: 0.0 | PUP37: 0.0 | PUQ37: 0.0 | PUR37: 0.0 | PUS37: 0.0 | PUT37: 0.0 | PUU37: 0.0 | PUV37: 0.0 | PUW37: 0.0 | PUX37: 0.0 | PUY37: 0.0 | PUZ37: 0.0 | PVA37: 0.0 | PVB37: 0.0 | PVC37: 0.0 | PVD37: 0.0 | PVE37: 0.0 | PVF37: 0.0 | PVG37: =SUM(PVG12:PVG35) -> 0.0 | PVH37: 0.0 | PVI37: 0.0 | PVJ37: 0.0 | PVK37: 0.0 | PVL37: 0.0 | PVM37: 0.0 | PVN37: 0.0 | PVO37: 0.0 | PVP37: 0.0 | PVQ37: 0.0 | PVR37: 0.0 | PVS37: 0.0 | PVT37: 0.0 | PVU37: 0.0 | PVV37: 0.0 | PVW37: 0.0 | PVX37: 0.0 | PVY37: 0.0 | PVZ37: 0.0 | PWA37: 0.0 | PWB37: 0.0 | PWC37: 0.0 | PWD37: 0.0 | PWE37: 0.0 | PWF37: 0.0 | PWG37: 0.0 | PWH37: 0.0 | PWI37: 0.0 | PWJ37: 0.0 | PWK37: 0.0 | PWL37: 0.0 | PWM37: 0.0 | PWN37: 0.0 | PWO37: 0.0 | PWP37: 0.0 | PWQ37: 0.0 | PWR37: 0.0 | PWS37: 0.0 | PWT37: 0.0 | PWU37: 0.0 | PWV37: 0.0 | PWW37: 0.0 | PWX37: 0.0 | PWY37: 0.0 | PWZ37: 0.0 | PXA37: 0.0 | PXB37: 0.0 | PXC37: 0.0 | PXD37: 0.0 | PXE37: 0.0 | PXF37: 0.0 | PXG37: 0.0 | PXH37: 0.0 | PXI37: 0.0 | PXJ37: 0.0 | PXK37: 0.0 | PXL37: 0.0 | PXM37: 0.0 | PXN37: 0.0 | PXO37: 0.0 | PXP37: 0.0 | PXQ37: 0.0 | PXR37: 0.0 | PXS37: =SUM(PXS12:PXS35) -> 0.0 | PXT37: 0.0 | PXU37: 0.0 | PXV37: 0.0 | PXW37: 0.0 | PXX37: 0.0 | PXY37: 0.0 | PXZ37: 0.0 | PYA37: 0.0 | PYB37: 0.0 | PYC37: 0.0 | PYD37: 0.0 | PYE37: 0.0 | PYF37: 0.0 | PYG37: 0.0 | PYH37: 0.0 | PYI37: 0.0 | PYJ37: 0.0 | PYK37: 0.0 | PYL37: 0.0 | PYM37: 0.0 | PYN37: 0.0 | PYO37: 0.0 | PYP37: 0.0 | PYQ37: 0.0 | PYR37: 0.0 | PYS37: 0.0 | PYT37: 0.0 | PYU37: 0.0 | PYV37: 0.0 | PYW37: 0.0 | PYX37: 0.0 | PYY37: 0.0 | PYZ37: 0.0 | PZA37: 0.0 | PZB37: 0.0 | PZC37: 0.0 | PZD37: 0.0 | PZE37: 0.0 | PZF37: 0.0 | PZG37: 0.0 | PZH37: 0.0 | PZI37: 0.0 | PZJ37: 0.0 | PZK37: 0.0 | PZL37: 0.0 | PZM37: 0.0 | PZN37: 0.0 | PZO37: 0.0 | PZP37: 0.0 | PZQ37: 0.0 | PZR37: 0.0 | PZS37: 0.0 | PZT37: 0.0 | PZU37: 0.0 | PZV37: 0.0 | PZW37: 0.0 | PZX37: 0.0 | PZY37: 0.0 | PZZ37: 0.0 | QAA37: 0.0 | QAB37: 0.0 | QAC37: 0.0 | QAD37: 0.0 | QAE37: =SUM(QAE12:QAE35) -> 0.0 | QAF37: 0.0 | QAG37: 0.0 | QAH37: 0.0 | QAI37: 0.0 | QAJ37: 0.0 | QAK37: 0.0 | QAL37: 0.0 | QAM37: 0.0 | QAN37: 0.0 | QAO37: 0.0 | QAP37: 0.0 | QAQ37: 0.0 | QAR37: 0.0 | QAS37: 0.0 | QAT37: 0.0 | QAU37: 0.0 | QAV37: 0.0 | QAW37: 0.0 | QAX37: 0.0 | QAY37: 0.0 | QAZ37: 0.0 | QBA37: 0.0 | QBB37: 0.0 | QBC37: 0.0 | QBD37: 0.0 | QBE37: 0.0 | QBF37: 0.0 | QBG37: 0.0 | QBH37: 0.0 | QBI37: 0.0 | QBJ37: 0.0 | QBK37: 0.0 | QBL37: 0.0 | QBM37: 0.0 | QBN37: 0.0 | QBO37: 0.0 | QBP37: 0.0 | QBQ37: 0.0 | QBR37: 0.0 | QBS37: 0.0 | QBT37: 0.0 | QBU37: 0.0 | QBV37: 0.0 | QBW37: 0.0 | QBX37: 0.0 | QBY37: 0.0 | QBZ37: 0.0 | QCA37: 0.0 | QCB37: 0.0 | QCC37: 0.0 | QCD37: 0.0 | QCE37: 0.0 | QCF37: 0.0 | QCG37: 0.0 | QCH37: 0.0 | QCI37: 0.0 | QCJ37: 0.0 | QCK37: 0.0 | QCL37: 0.0 | QCM37: 0.0 | QCN37: 0.0 | QCO37: 0.0 | QCP37: 0.0 | QCQ37: =SUM(QCQ12:QCQ35) -> 0.0 | QCR37: 0.0 | QCS37: 0.0 | QCT37: 0.0 | QCU37: 0.0 | QCV37: 0.0 | QCW37: 0.0 | QCX37: 0.0 | QCY37: 0.0 | QCZ37: 0.0 | QDA37: 0.0 | QDB37: 0.0 | QDC37: 0.0 | QDD37: 0.0 | QDE37: 0.0 | QDF37: 0.0 | QDG37: 0.0 | QDH37: 0.0 | QDI37: 0.0 | QDJ37: 0.0 | QDK37: 0.0 | QDL37: 0.0 | QDM37: 0.0 | QDN37: 0.0 | QDO37: 0.0 | QDP37: 0.0 | QDQ37: 0.0 | QDR37: 0.0 | QDS37: 0.0 | QDT37: 0.0 | QDU37: 0.0 | QDV37: 0.0 | QDW37: 0.0 | QDX37: 0.0 | QDY37: 0.0 | QDZ37: 0.0 | QEA37: 0.0 | QEB37: 0.0 | QEC37: 0.0 | QED37: 0.0 | QEE37: 0.0 | QEF37: 0.0 | QEG37: 0.0 | QEH37: 0.0 | QEI37: 0.0 | QEJ37: 0.0 | QEK37: 0.0 | QEL37: 0.0 | QEM37: 0.0 | QEN37: 0.0 | QEO37: 0.0 | QEP37: 0.0 | QEQ37: 0.0 | QER37: 0.0 | QES37: 0.0 | QET37: 0.0 | QEU37: 0.0 | QEV37: 0.0 | QEW37: 0.0 | QEX37: 0.0 | QEY37: 0.0 | QEZ37: 0.0 | QFA37: 0.0 | QFB37: 0.0 | QFC37: =SUM(QFC12:QFC35) -> 0.0 | QFD37: 0.0 | QFE37: 0.0 | QFF37: 0.0 | QFG37: 0.0 | QFH37: 0.0 | QFI37: 0.0 | QFJ37: 0.0 | QFK37: 0.0 | QFL37: 0.0 | QFM37: 0.0 | QFN37: 0.0 | QFO37: 0.0 | QFP37: 0.0 | QFQ37: 0.0 | QFR37: 0.0 | QFS37: 0.0 | QFT37: 0.0 | QFU37: 0.0 | QFV37: 0.0 | QFW37: 0.0 | QFX37: 0.0 | QFY37: 0.0 | QFZ37: 0.0 | QGA37: 0.0 | QGB37: 0.0 | QGC37: 0.0 | QGD37: 0.0 | QGE37: 0.0 | QGF37: 0.0 | QGG37: 0.0 | QGH37: 0.0 | QGI37: 0.0 | QGJ37: 0.0 | QGK37: 0.0 | QGL37: 0.0 | QGM37: 0.0 | QGN37: 0.0 | QGO37: 0.0 | QGP37: 0.0 | QGQ37: 0.0 | QGR37: 0.0 | QGS37: 0.0 | QGT37: 0.0 | QGU37: 0.0 | QGV37: 0.0 | QGW37: 0.0 | QGX37: 0.0 | QGY37: 0.0 | QGZ37: 0.0 | QHA37: 0.0 | QHB37: 0.0 | QHC37: 0.0 | QHD37: 0.0 | QHE37: 0.0 | QHF37: 0.0 | QHG37: 0.0 | QHH37: 0.0 | QHI37: 0.0 | QHJ37: 0.0 | QHK37: 0.0 | QHL37: 0.0 | QHM37: 0.0 | QHN37: 0.0 | QHO37: =SUM(QHO12:QHO35) -> 0.0 | QHP37: 0.0 | QHQ37: 0.0 | QHR37: 0.0 | QHS37: 0.0 | QHT37: 0.0 | QHU37: 0.0 | QHV37: 0.0 | QHW37: 0.0 | QHX37: 0.0 | QHY37: 0.0 | QHZ37: 0.0 | QIA37: 0.0 | QIB37: 0.0 | QIC37: 0.0 | QID37: 0.0 | QIE37: 0.0 | QIF37: 0.0 | QIG37: 0.0 | QIH37: 0.0 | QII37: 0.0 | QIJ37: 0.0 | QIK37: 0.0 | QIL37: 0.0 | QIM37: 0.0 | QIN37: 0.0 | QIO37: 0.0 | QIP37: 0.0 | QIQ37: 0.0 | QIR37: 0.0 | QIS37: 0.0 | QIT37: 0.0 | QIU37: 0.0 | QIV37: 0.0 | QIW37: 0.0 | QIX37: 0.0 | QIY37: 0.0 | QIZ37: 0.0 | QJA37: 0.0 | QJB37: 0.0 | QJC37: 0.0 | QJD37: 0.0 | QJE37: 0.0 | QJF37: 0.0 | QJG37: 0.0 | QJH37: 0.0 | QJI37: 0.0 | QJJ37: 0.0 | QJK37: 0.0 | QJL37: 0.0 | QJM37: 0.0 | QJN37: 0.0 | QJO37: 0.0 | QJP37: 0.0 | QJQ37: 0.0 | QJR37: 0.0 | QJS37: 0.0 | QJT37: 0.0 | QJU37: 0.0 | QJV37: 0.0 | QJW37: 0.0 | QJX37: 0.0 | QJY37: 0.0 | QJZ37: 0.0 | QKA37: =SUM(QKA12:QKA35) -> 0.0 | QKB37: 0.0 | QKC37: 0.0 | QKD37: 0.0 | QKE37: 0.0 | QKF37: 0.0 | QKG37: 0.0 | QKH37: 0.0 | QKI37: 0.0 | QKJ37: 0.0 | QKK37: 0.0 | QKL37: 0.0 | QKM37: 0.0 | QKN37: 0.0 | QKO37: 0.0 | QKP37: 0.0 | QKQ37: 0.0 | QKR37: 0.0 | QKS37: 0.0 | QKT37: 0.0 | QKU37: 0.0 | QKV37: 0.0 | QKW37: 0.0 | QKX37: 0.0 | QKY37: 0.0 | QKZ37: 0.0 | QLA37: 0.0 | QLB37: 0.0 | QLC37: 0.0 | QLD37: 0.0 | QLE37: 0.0 | QLF37: 0.0 | QLG37: 0.0 | QLH37: 0.0 | QLI37: 0.0 | QLJ37: 0.0 | QLK37: 0.0 | QLL37: 0.0 | QLM37: 0.0 | QLN37: 0.0 | QLO37: 0.0 | QLP37: 0.0 | QLQ37: 0.0 | QLR37: 0.0 | QLS37: 0.0 | QLT37: 0.0 | QLU37: 0.0 | QLV37: 0.0 | QLW37: 0.0 | QLX37: 0.0 | QLY37: 0.0 | QLZ37: 0.0 | QMA37: 0.0 | QMB37: 0.0 | QMC37: 0.0 | QMD37: 0.0 | QME37: 0.0 | QMF37: 0.0 | QMG37: 0.0 | QMH37: 0.0 | QMI37: 0.0 | QMJ37: 0.0 | QMK37: 0.0 | QML37: 0.0 | QMM37: =SUM(QMM12:QMM35) -> 0.0 | QMN37: 0.0 | QMO37: 0.0 | QMP37: 0.0 | QMQ37: 0.0 | QMR37: 0.0 | QMS37: 0.0 | QMT37: 0.0 | QMU37: 0.0 | QMV37: 0.0 | QMW37: 0.0 | QMX37: 0.0 | QMY37: 0.0 | QMZ37: 0.0 | QNA37: 0.0 | QNB37: 0.0 | QNC37: 0.0 | QND37: 0.0 | QNE37: 0.0 | QNF37: 0.0 | QNG37: 0.0 | QNH37: 0.0 | QNI37: 0.0 | QNJ37: 0.0 | QNK37: 0.0 | QNL37: 0.0 | QNM37: 0.0 | QNN37: 0.0 | QNO37: 0.0 | QNP37: 0.0 | QNQ37: 0.0 | QNR37: 0.0 | QNS37: 0.0 | QNT37: 0.0 | QNU37: 0.0 | QNV37: 0.0 | QNW37: 0.0 | QNX37: 0.0 | QNY37: 0.0 | QNZ37: 0.0 | QOA37: 0.0 | QOB37: 0.0 | QOC37: 0.0 | QOD37: 0.0 | QOE37: 0.0 | QOF37: 0.0 | QOG37: 0.0 | QOH37: 0.0 | QOI37: 0.0 | QOJ37: 0.0 | QOK37: 0.0 | QOL37: 0.0 | QOM37: 0.0 | QON37: 0.0 | QOO37: 0.0 | QOP37: 0.0 | QOQ37: 0.0 | QOR37: 0.0 | QOS37: 0.0 | QOT37: 0.0 | QOU37: 0.0 | QOV37: 0.0 | QOW37: 0.0 | QOX37: 0.0 | QOY37: =SUM(QOY12:QOY35) -> 0.0 | QOZ37: 0.0 | QPA37: 0.0 | QPB37: 0.0 | QPC37: 0.0 | QPD37: 0.0 | QPE37: 0.0 | QPF37: 0.0 | QPG37: 0.0 | QPH37: 0.0 | QPI37: 0.0 | QPJ37: 0.0 | QPK37: 0.0 | QPL37: 0.0 | QPM37: 0.0 | QPN37: 0.0 | QPO37: 0.0 | QPP37: 0.0 | QPQ37: 0.0 | QPR37: 0.0 | QPS37: 0.0 | QPT37: 0.0 | QPU37: 0.0 | QPV37: 0.0 | QPW37: 0.0 | QPX37: 0.0 | QPY37: 0.0 | QPZ37: 0.0 | QQA37: 0.0 | QQB37: 0.0 | QQC37: 0.0 | QQD37: 0.0 | QQE37: 0.0 | QQF37: 0.0 | QQG37: 0.0 | QQH37: 0.0 | QQI37: 0.0 | QQJ37: 0.0 | QQK37: 0.0 | QQL37: 0.0 | QQM37: 0.0 | QQN37: 0.0 | QQO37: 0.0 | QQP37: 0.0 | QQQ37: 0.0 | QQR37: 0.0 | QQS37: 0.0 | QQT37: 0.0 | QQU37: 0.0 | QQV37: 0.0 | QQW37: 0.0 | QQX37: 0.0 | QQY37: 0.0 | QQZ37: 0.0 | QRA37: 0.0 | QRB37: 0.0 | QRC37: 0.0 | QRD37: 0.0 | QRE37: 0.0 | QRF37: 0.0 | QRG37: 0.0 | QRH37: 0.0 | QRI37: 0.0 | QRJ37: 0.0 | QRK37: =SUM(QRK12:QRK35) -> 0.0 | QRL37: 0.0 | QRM37: 0.0 | QRN37: 0.0 | QRO37: 0.0 | QRP37: 0.0 | QRQ37: 0.0 | QRR37: 0.0 | QRS37: 0.0 | QRT37: 0.0 | QRU37: 0.0 | QRV37: 0.0 | QRW37: 0.0 | QRX37: 0.0 | QRY37: 0.0 | QRZ37: 0.0 | QSA37: 0.0 | QSB37: 0.0 | QSC37: 0.0 | QSD37: 0.0 | QSE37: 0.0 | QSF37: 0.0 | QSG37: 0.0 | QSH37: 0.0 | QSI37: 0.0 | QSJ37: 0.0 | QSK37: 0.0 | QSL37: 0.0 | QSM37: 0.0 | QSN37: 0.0 | QSO37: 0.0 | QSP37: 0.0 | QSQ37: 0.0 | QSR37: 0.0 | QSS37: 0.0 | QST37: 0.0 | QSU37: 0.0 | QSV37: 0.0 | QSW37: 0.0 | QSX37: 0.0 | QSY37: 0.0 | QSZ37: 0.0 | QTA37: 0.0 | QTB37: 0.0 | QTC37: 0.0 | QTD37: 0.0 | QTE37: 0.0 | QTF37: 0.0 | QTG37: 0.0 | QTH37: 0.0 | QTI37: 0.0 | QTJ37: 0.0 | QTK37: 0.0 | QTL37: 0.0 | QTM37: 0.0 | QTN37: 0.0 | QTO37: 0.0 | QTP37: 0.0 | QTQ37: 0.0 | QTR37: 0.0 | QTS37: 0.0 | QTT37: 0.0 | QTU37: 0.0 | QTV37: 0.0 | QTW37: =SUM(QTW12:QTW35) -> 0.0 | QTX37: 0.0 | QTY37: 0.0 | QTZ37: 0.0 | QUA37: 0.0 | QUB37: 0.0 | QUC37: 0.0 | QUD37: 0.0 | QUE37: 0.0 | QUF37: 0.0 | QUG37: 0.0 | QUH37: 0.0 | QUI37: 0.0 | QUJ37: 0.0 | QUK37: 0.0 | QUL37: 0.0 | QUM37: 0.0 | QUN37: 0.0 | QUO37: 0.0 | QUP37: 0.0 | QUQ37: 0.0 | QUR37: 0.0 | QUS37: 0.0 | QUT37: 0.0 | QUU37: 0.0 | QUV37: 0.0 | QUW37: 0.0 | QUX37: 0.0 | QUY37: 0.0 | QUZ37: 0.0 | QVA37: 0.0 | QVB37: 0.0 | QVC37: 0.0 | QVD37: 0.0 | QVE37: 0.0 | QVF37: 0.0 | QVG37: 0.0 | QVH37: 0.0 | QVI37: 0.0 | QVJ37: 0.0 | QVK37: 0.0 | QVL37: 0.0 | QVM37: 0.0 | QVN37: 0.0 | QVO37: 0.0 | QVP37: 0.0 | QVQ37: 0.0 | QVR37: 0.0 | QVS37: 0.0 | QVT37: 0.0 | QVU37: 0.0 | QVV37: 0.0 | QVW37: 0.0 | QVX37: 0.0 | QVY37: 0.0 | QVZ37: 0.0 | QWA37: 0.0 | QWB37: 0.0 | QWC37: 0.0 | QWD37: 0.0 | QWE37: 0.0 | QWF37: 0.0 | QWG37: 0.0 | QWH37: 0.0 | QWI37: =SUM(QWI12:QWI35) -> 0.0 | QWJ37: 0.0 | QWK37: 0.0 | QWL37: 0.0 | QWM37: 0.0 | QWN37: 0.0 | QWO37: 0.0 | QWP37: 0.0 | QWQ37: 0.0 | QWR37: 0.0 | QWS37: 0.0 | QWT37: 0.0 | QWU37: 0.0 | QWV37: 0.0 | QWW37: 0.0 | QWX37: 0.0 | QWY37: 0.0 | QWZ37: 0.0 | QXA37: 0.0 | QXB37: 0.0 | QXC37: 0.0 | QXD37: 0.0 | QXE37: 0.0 | QXF37: 0.0 | QXG37: 0.0 | QXH37: 0.0 | QXI37: 0.0 | QXJ37: 0.0 | QXK37: 0.0 | QXL37: 0.0 | QXM37: 0.0 | QXN37: 0.0 | QXO37: 0.0 | QXP37: 0.0 | QXQ37: 0.0 | QXR37: 0.0 | QXS37: 0.0 | QXT37: 0.0 | QXU37: 0.0 | QXV37: 0.0 | QXW37: 0.0 | QXX37: 0.0 | QXY37: 0.0 | QXZ37: 0.0 | QYA37: 0.0 | QYB37: 0.0 | QYC37: 0.0 | QYD37: 0.0 | QYE37: 0.0 | QYF37: 0.0 | QYG37: 0.0 | QYH37: 0.0 | QYI37: 0.0 | QYJ37: 0.0 | QYK37: 0.0 | QYL37: 0.0 | QYM37: 0.0 | QYN37: 0.0 | QYO37: 0.0 | QYP37: 0.0 | QYQ37: 0.0 | QYR37: 0.0 | QYS37: 0.0 | QYT37: 0.0 | QYU37: =SUM(QYU12:QYU35) -> 0.0 | QYV37: 0.0 | QYW37: 0.0 | QYX37: 0.0 | QYY37: 0.0 | QYZ37: 0.0 | QZA37: 0.0 | QZB37: 0.0 | QZC37: 0.0 | QZD37: 0.0 | QZE37: 0.0 | QZF37: 0.0 | QZG37: 0.0 | QZH37: 0.0 | QZI37: 0.0 | QZJ37: 0.0 | QZK37: 0.0 | QZL37: 0.0 | QZM37: 0.0 | QZN37: 0.0 | QZO37: 0.0 | QZP37: 0.0 | QZQ37: 0.0 | QZR37: 0.0 | QZS37: 0.0 | QZT37: 0.0 | QZU37: 0.0 | QZV37: 0.0 | QZW37: 0.0 | QZX37: 0.0 | QZY37: 0.0 | QZZ37: 0.0 | RAA37: 0.0 | RAB37: 0.0 | RAC37: 0.0 | RAD37: 0.0 | RAE37: 0.0 | RAF37: 0.0 | RAG37: 0.0 | RAH37: 0.0 | RAI37: 0.0 | RAJ37: 0.0 | RAK37: 0.0 | RAL37: 0.0 | RAM37: 0.0 | RAN37: 0.0 | RAO37: 0.0 | RAP37: 0.0 | RAQ37: 0.0 | RAR37: 0.0 | RAS37: 0.0 | RAT37: 0.0 | RAU37: 0.0 | RAV37: 0.0 | RAW37: 0.0 | RAX37: 0.0 | RAY37: 0.0 | RAZ37: 0.0 | RBA37: 0.0 | RBB37: 0.0 | RBC37: 0.0 | RBD37: 0.0 | RBE37: 0.0 | RBF37: 0.0 | RBG37: =SUM(RBG12:RBG35) -> 0.0 | RBH37: 0.0 | RBI37: 0.0 | RBJ37: 0.0 | RBK37: 0.0 | RBL37: 0.0 | RBM37: 0.0 | RBN37: 0.0 | RBO37: 0.0 | RBP37: 0.0 | RBQ37: 0.0 | RBR37: 0.0 | RBS37: 0.0 | RBT37: 0.0 | RBU37: 0.0 | RBV37: 0.0 | RBW37: 0.0 | RBX37: 0.0 | RBY37: 0.0 | RBZ37: 0.0 | RCA37: 0.0 | RCB37: 0.0 | RCC37: 0.0 | RCD37: 0.0 | RCE37: 0.0 | RCF37: 0.0 | RCG37: 0.0 | RCH37: 0.0 | RCI37: 0.0 | RCJ37: 0.0 | RCK37: 0.0 | RCL37: 0.0 | RCM37: 0.0 | RCN37: 0.0 | RCO37: 0.0 | RCP37: 0.0 | RCQ37: 0.0 | RCR37: 0.0 | RCS37: 0.0 | RCT37: 0.0 | RCU37: 0.0 | RCV37: 0.0 | RCW37: 0.0 | RCX37: 0.0 | RCY37: 0.0 | RCZ37: 0.0 | RDA37: 0.0 | RDB37: 0.0 | RDC37: 0.0 | RDD37: 0.0 | RDE37: 0.0 | RDF37: 0.0 | RDG37: 0.0 | RDH37: 0.0 | RDI37: 0.0 | RDJ37: 0.0 | RDK37: 0.0 | RDL37: 0.0 | RDM37: 0.0 | RDN37: 0.0 | RDO37: 0.0 | RDP37: 0.0 | RDQ37: 0.0 | RDR37: 0.0 | RDS37: =SUM(RDS12:RDS35) -> 0.0 | RDT37: 0.0 | RDU37: 0.0 | RDV37: 0.0 | RDW37: 0.0 | RDX37: 0.0 | RDY37: 0.0 | RDZ37: 0.0 | REA37: 0.0 | REB37: 0.0 | REC37: 0.0 | RED37: 0.0 | REE37: 0.0 | REF37: 0.0 | REG37: 0.0 | REH37: 0.0 | REI37: 0.0 | REJ37: 0.0 | REK37: 0.0 | REL37: 0.0 | REM37: 0.0 | REN37: 0.0 | REO37: 0.0 | REP37: 0.0 | REQ37: 0.0 | RER37: 0.0 | RES37: 0.0 | RET37: 0.0 | REU37: 0.0 | REV37: 0.0 | REW37: 0.0 | REX37: 0.0 | REY37: 0.0 | REZ37: 0.0 | RFA37: 0.0 | RFB37: 0.0 | RFC37: 0.0 | RFD37: 0.0 | RFE37: 0.0 | RFF37: 0.0 | RFG37: 0.0 | RFH37: 0.0 | RFI37: 0.0 | RFJ37: 0.0 | RFK37: 0.0 | RFL37: 0.0 | RFM37: 0.0 | RFN37: 0.0 | RFO37: 0.0 | RFP37: 0.0 | RFQ37: 0.0 | RFR37: 0.0 | RFS37: 0.0 | RFT37: 0.0 | RFU37: 0.0 | RFV37: 0.0 | RFW37: 0.0 | RFX37: 0.0 | RFY37: 0.0 | RFZ37: 0.0 | RGA37: 0.0 | RGB37: 0.0 | RGC37: 0.0 | RGD37: 0.0 | RGE37: =SUM(RGE12:RGE35) -> 0.0 | RGF37: 0.0 | RGG37: 0.0 | RGH37: 0.0 | RGI37: 0.0 | RGJ37: 0.0 | RGK37: 0.0 | RGL37: 0.0 | RGM37: 0.0 | RGN37: 0.0 | RGO37: 0.0 | RGP37: 0.0 | RGQ37: 0.0 | RGR37: 0.0 | RGS37: 0.0 | RGT37: 0.0 | RGU37: 0.0 | RGV37: 0.0 | RGW37: 0.0 | RGX37: 0.0 | RGY37: 0.0 | RGZ37: 0.0 | RHA37: 0.0 | RHB37: 0.0 | RHC37: 0.0 | RHD37: 0.0 | RHE37: 0.0 | RHF37: 0.0 | RHG37: 0.0 | RHH37: 0.0 | RHI37: 0.0 | RHJ37: 0.0 | RHK37: 0.0 | RHL37: 0.0 | RHM37: 0.0 | RHN37: 0.0 | RHO37: 0.0 | RHP37: 0.0 | RHQ37: 0.0 | RHR37: 0.0 | RHS37: 0.0 | RHT37: 0.0 | RHU37: 0.0 | RHV37: 0.0 | RHW37: 0.0 | RHX37: 0.0 | RHY37: 0.0 | RHZ37: 0.0 | RIA37: 0.0 | RIB37: 0.0 | RIC37: 0.0 | RID37: 0.0 | RIE37: 0.0 | RIF37: 0.0 | RIG37: 0.0 | RIH37: 0.0 | RII37: 0.0 | RIJ37: 0.0 | RIK37: 0.0 | RIL37: 0.0 | RIM37: 0.0 | RIN37: 0.0 | RIO37: 0.0 | RIP37: 0.0 | RIQ37: =SUM(RIQ12:RIQ35) -> 0.0 | RIR37: 0.0 | RIS37: 0.0 | RIT37: 0.0 | RIU37: 0.0 | RIV37: 0.0 | RIW37: 0.0 | RIX37: 0.0 | RIY37: 0.0 | RIZ37: 0.0 | RJA37: 0.0 | RJB37: 0.0 | RJC37: 0.0 | RJD37: 0.0 | RJE37: 0.0 | RJF37: 0.0 | RJG37: 0.0 | RJH37: 0.0 | RJI37: 0.0 | RJJ37: 0.0 | RJK37: 0.0 | RJL37: 0.0 | RJM37: 0.0 | RJN37: 0.0 | RJO37: 0.0 | RJP37: 0.0 | RJQ37: 0.0 | RJR37: 0.0 | RJS37: 0.0 | RJT37: 0.0 | RJU37: 0.0 | RJV37: 0.0 | RJW37: 0.0 | RJX37: 0.0 | RJY37: 0.0 | RJZ37: 0.0 | RKA37: 0.0 | RKB37: 0.0 | RKC37: 0.0 | RKD37: 0.0 | RKE37: 0.0 | RKF37: 0.0 | RKG37: 0.0 | RKH37: 0.0 | RKI37: 0.0 | RKJ37: 0.0 | RKK37: 0.0 | RKL37: 0.0 | RKM37: 0.0 | RKN37: 0.0 | RKO37: 0.0 | RKP37: 0.0 | RKQ37: 0.0 | RKR37: 0.0 | RKS37: 0.0 | RKT37: 0.0 | RKU37: 0.0 | RKV37: 0.0 | RKW37: 0.0 | RKX37: 0.0 | RKY37: 0.0 | RKZ37: 0.0 | RLA37: 0.0 | RLB37: 0.0 | RLC37: =SUM(RLC12:RLC35) -> 0.0 | RLD37: 0.0 | RLE37: 0.0 | RLF37: 0.0 | RLG37: 0.0 | RLH37: 0.0 | RLI37: 0.0 | RLJ37: 0.0 | RLK37: 0.0 | RLL37: 0.0 | RLM37: 0.0 | RLN37: 0.0 | RLO37: 0.0 | RLP37: 0.0 | RLQ37: 0.0 | RLR37: 0.0 | RLS37: 0.0 | RLT37: 0.0 | RLU37: 0.0 | RLV37: 0.0 | RLW37: 0.0 | RLX37: 0.0 | RLY37: 0.0 | RLZ37: 0.0 | RMA37: 0.0 | RMB37: 0.0 | RMC37: 0.0 | RMD37: 0.0 | RME37: 0.0 | RMF37: 0.0 | RMG37: 0.0 | RMH37: 0.0 | RMI37: 0.0 | RMJ37: 0.0 | RMK37: 0.0 | RML37: 0.0 | RMM37: 0.0 | RMN37: 0.0 | RMO37: 0.0 | RMP37: 0.0 | RMQ37: 0.0 | RMR37: 0.0 | RMS37: 0.0 | RMT37: 0.0 | RMU37: 0.0 | RMV37: 0.0 | RMW37: 0.0 | RMX37: 0.0 | RMY37: 0.0 | RMZ37: 0.0 | RNA37: 0.0 | RNB37: 0.0 | RNC37: 0.0 | RND37: 0.0 | RNE37: 0.0 | RNF37: 0.0 | RNG37: 0.0 | RNH37: 0.0 | RNI37: 0.0 | RNJ37: 0.0 | RNK37: 0.0 | RNL37: 0.0 | RNM37: 0.0 | RNN37: 0.0 | RNO37: =SUM(RNO12:RNO35) -> 0.0 | RNP37: 0.0 | RNQ37: 0.0 | RNR37: 0.0 | RNS37: 0.0 | RNT37: 0.0 | RNU37: 0.0 | RNV37: 0.0 | RNW37: 0.0 | RNX37: 0.0 | RNY37: 0.0 | RNZ37: 0.0 | ROA37: 0.0 | ROB37: 0.0 | ROC37: 0.0 | ROD37: 0.0 | ROE37: 0.0 | ROF37: 0.0 | ROG37: 0.0 | ROH37: 0.0 | ROI37: 0.0 | ROJ37: 0.0 | ROK37: 0.0 | ROL37: 0.0 | ROM37: 0.0 | RON37: 0.0 | ROO37: 0.0 | ROP37: 0.0 | ROQ37: 0.0 | ROR37: 0.0 | ROS37: 0.0 | ROT37: 0.0 | ROU37: 0.0 | ROV37: 0.0 | ROW37: 0.0 | ROX37: 0.0 | ROY37: 0.0 | ROZ37: 0.0 | RPA37: 0.0 | RPB37: 0.0 | RPC37: 0.0 | RPD37: 0.0 | RPE37: 0.0 | RPF37: 0.0 | RPG37: 0.0 | RPH37: 0.0 | RPI37: 0.0 | RPJ37: 0.0 | RPK37: 0.0 | RPL37: 0.0 | RPM37: 0.0 | RPN37: 0.0 | RPO37: 0.0 | RPP37: 0.0 | RPQ37: 0.0 | RPR37: 0.0 | RPS37: 0.0 | RPT37: 0.0 | RPU37: 0.0 | RPV37: 0.0 | RPW37: 0.0 | RPX37: 0.0 | RPY37: 0.0 | RPZ37: 0.0 | RQA37: =SUM(RQA12:RQA35) -> 0.0 | RQB37: 0.0 | RQC37: 0.0 | RQD37: 0.0 | RQE37: 0.0 | RQF37: 0.0 | RQG37: 0.0 | RQH37: 0.0 | RQI37: 0.0 | RQJ37: 0.0 | RQK37: 0.0 | RQL37: 0.0 | RQM37: 0.0 | RQN37: 0.0 | RQO37: 0.0 | RQP37: 0.0 | RQQ37: 0.0 | RQR37: 0.0 | RQS37: 0.0 | RQT37: 0.0 | RQU37: 0.0 | RQV37: 0.0 | RQW37: 0.0 | RQX37: 0.0 | RQY37: 0.0 | RQZ37: 0.0 | RRA37: 0.0 | RRB37: 0.0 | RRC37: 0.0 | RRD37: 0.0 | RRE37: 0.0 | RRF37: 0.0 | RRG37: 0.0 | RRH37: 0.0 | RRI37: 0.0 | RRJ37: 0.0 | RRK37: 0.0 | RRL37: 0.0 | RRM37: 0.0 | RRN37: 0.0 | RRO37: 0.0 | RRP37: 0.0 | RRQ37: 0.0 | RRR37: 0.0 | RRS37: 0.0 | RRT37: 0.0 | RRU37: 0.0 | RRV37: 0.0 | RRW37: 0.0 | RRX37: 0.0 | RRY37: 0.0 | RRZ37: 0.0 | RSA37: 0.0 | RSB37: 0.0 | RSC37: 0.0 | RSD37: 0.0 | RSE37: 0.0 | RSF37: 0.0 | RSG37: 0.0 | RSH37: 0.0 | RSI37: 0.0 | RSJ37: 0.0 | RSK37: 0.0 | RSL37: 0.0 | RSM37: =SUM(RSM12:RSM35) -> 0.0 | RSN37: 0.0 | RSO37: 0.0 | RSP37: 0.0 | RSQ37: 0.0 | RSR37: 0.0 | RSS37: 0.0 | RST37: 0.0 | RSU37: 0.0 | RSV37: 0.0 | RSW37: 0.0 | RSX37: 0.0 | RSY37: 0.0 | RSZ37: 0.0 | RTA37: 0.0 | RTB37: 0.0 | RTC37: 0.0 | RTD37: 0.0 | RTE37: 0.0 | RTF37: 0.0 | RTG37: 0.0 | RTH37: 0.0 | RTI37: 0.0 | RTJ37: 0.0 | RTK37: 0.0 | RTL37: 0.0 | RTM37: 0.0 | RTN37: 0.0 | RTO37: 0.0 | RTP37: 0.0 | RTQ37: 0.0 | RTR37: 0.0 | RTS37: 0.0 | RTT37: 0.0 | RTU37: 0.0 | RTV37: 0.0 | RTW37: 0.0 | RTX37: 0.0 | RTY37: 0.0 | RTZ37: 0.0 | RUA37: 0.0 | RUB37: 0.0 | RUC37: 0.0 | RUD37: 0.0 | RUE37: 0.0 | RUF37: 0.0 | RUG37: 0.0 | RUH37: 0.0 | RUI37: 0.0 | RUJ37: 0.0 | RUK37: 0.0 | RUL37: 0.0 | RUM37: 0.0 | RUN37: 0.0 | RUO37: 0.0 | RUP37: 0.0 | RUQ37: 0.0 | RUR37: 0.0 | RUS37: 0.0 | RUT37: 0.0 | RUU37: 0.0 | RUV37: 0.0 | RUW37: 0.0 | RUX37: 0.0 | RUY37: =SUM(RUY12:RUY35) -> 0.0 | RUZ37: 0.0 | RVA37: 0.0 | RVB37: 0.0 | RVC37: 0.0 | RVD37: 0.0 | RVE37: 0.0 | RVF37: 0.0 | RVG37: 0.0 | RVH37: 0.0 | RVI37: 0.0 | RVJ37: 0.0 | RVK37: 0.0 | RVL37: 0.0 | RVM37: 0.0 | RVN37: 0.0 | RVO37: 0.0 | RVP37: 0.0 | RVQ37: 0.0 | RVR37: 0.0 | RVS37: 0.0 | RVT37: 0.0 | RVU37: 0.0 | RVV37: 0.0 | RVW37: 0.0 | RVX37: 0.0 | RVY37: 0.0 | RVZ37: 0.0 | RWA37: 0.0 | RWB37: 0.0 | RWC37: 0.0 | RWD37: 0.0 | RWE37: 0.0 | RWF37: 0.0 | RWG37: 0.0 | RWH37: 0.0 | RWI37: 0.0 | RWJ37: 0.0 | RWK37: 0.0 | RWL37: 0.0 | RWM37: 0.0 | RWN37: 0.0 | RWO37: 0.0 | RWP37: 0.0 | RWQ37: 0.0 | RWR37: 0.0 | RWS37: 0.0 | RWT37: 0.0 | RWU37: 0.0 | RWV37: 0.0 | RWW37: 0.0 | RWX37: 0.0 | RWY37: 0.0 | RWZ37: 0.0 | RXA37: 0.0 | RXB37: 0.0 | RXC37: 0.0 | RXD37: 0.0 | RXE37: 0.0 | RXF37: 0.0 | RXG37: 0.0 | RXH37: 0.0 | RXI37: 0.0 | RXJ37: 0.0 | RXK37: =SUM(RXK12:RXK35) -> 0.0 | RXL37: 0.0 | RXM37: 0.0 | RXN37: 0.0 | RXO37: 0.0 | RXP37: 0.0 | RXQ37: 0.0 | RXR37: 0.0 | RXS37: 0.0 | RXT37: 0.0 | RXU37: 0.0 | RXV37: 0.0 | RXW37: 0.0 | RXX37: 0.0 | RXY37: 0.0 | RXZ37: 0.0 | RYA37: 0.0 | RYB37: 0.0 | RYC37: 0.0 | RYD37: 0.0 | RYE37: 0.0 | RYF37: 0.0 | RYG37: 0.0 | RYH37: 0.0 | RYI37: 0.0 | RYJ37: 0.0 | RYK37: 0.0 | RYL37: 0.0 | RYM37: 0.0 | RYN37: 0.0 | RYO37: 0.0 | RYP37: 0.0 | RYQ37: 0.0 | RYR37: 0.0 | RYS37: 0.0 | RYT37: 0.0 | RYU37: 0.0 | RYV37: 0.0 | RYW37: 0.0 | RYX37: 0.0 | RYY37: 0.0 | RYZ37: 0.0 | RZA37: 0.0 | RZB37: 0.0 | RZC37: 0.0 | RZD37: 0.0 | RZE37: 0.0 | RZF37: 0.0 | RZG37: 0.0 | RZH37: 0.0 | RZI37: 0.0 | RZJ37: 0.0 | RZK37: 0.0 | RZL37: 0.0 | RZM37: 0.0 | RZN37: 0.0 | RZO37: 0.0 | RZP37: 0.0 | RZQ37: 0.0 | RZR37: 0.0 | RZS37: 0.0 | RZT37: 0.0 | RZU37: 0.0 | RZV37: 0.0 | RZW37: =SUM(RZW12:RZW35) -> 0.0 | RZX37: 0.0 | RZY37: 0.0 | RZZ37: 0.0 | SAA37: 0.0 | SAB37: 0.0 | SAC37: 0.0 | SAD37: 0.0 | SAE37: 0.0 | SAF37: 0.0 | SAG37: 0.0 | SAH37: 0.0 | SAI37: 0.0 | SAJ37: 0.0 | SAK37: 0.0 | SAL37: 0.0 | SAM37: 0.0 | SAN37: 0.0 | SAO37: 0.0 | SAP37: 0.0 | SAQ37: 0.0 | SAR37: 0.0 | SAS37: 0.0 | SAT37: 0.0 | SAU37: 0.0 | SAV37: 0.0 | SAW37: 0.0 | SAX37: 0.0 | SAY37: 0.0 | SAZ37: 0.0 | SBA37: 0.0 | SBB37: 0.0 | SBC37: 0.0 | SBD37: 0.0 | SBE37: 0.0 | SBF37: 0.0 | SBG37: 0.0 | SBH37: 0.0 | SBI37: 0.0 | SBJ37: 0.0 | SBK37: 0.0 | SBL37: 0.0 | SBM37: 0.0 | SBN37: 0.0 | SBO37: 0.0 | SBP37: 0.0 | SBQ37: 0.0 | SBR37: 0.0 | SBS37: 0.0 | SBT37: 0.0 | SBU37: 0.0 | SBV37: 0.0 | SBW37: 0.0 | SBX37: 0.0 | SBY37: 0.0 | SBZ37: 0.0 | SCA37: 0.0 | SCB37: 0.0 | SCC37: 0.0 | SCD37: 0.0 | SCE37: 0.0 | SCF37: 0.0 | SCG37: 0.0 | SCH37: 0.0 | SCI37: =SUM(SCI12:SCI35) -> 0.0 | SCJ37: 0.0 | SCK37: 0.0 | SCL37: 0.0 | SCM37: 0.0 | SCN37: 0.0 | SCO37: 0.0 | SCP37: 0.0 | SCQ37: 0.0 | SCR37: 0.0 | SCS37: 0.0 | SCT37: 0.0 | SCU37: 0.0 | SCV37: 0.0 | SCW37: 0.0 | SCX37: 0.0 | SCY37: 0.0 | SCZ37: 0.0 | SDA37: 0.0 | SDB37: 0.0 | SDC37: 0.0 | SDD37: 0.0 | SDE37: 0.0 | SDF37: 0.0 | SDG37: 0.0 | SDH37: 0.0 | SDI37: 0.0 | SDJ37: 0.0 | SDK37: 0.0 | SDL37: 0.0 | SDM37: 0.0 | SDN37: 0.0 | SDO37: 0.0 | SDP37: 0.0 | SDQ37: 0.0 | SDR37: 0.0 | SDS37: 0.0 | SDT37: 0.0 | SDU37: 0.0 | SDV37: 0.0 | SDW37: 0.0 | SDX37: 0.0 | SDY37: 0.0 | SDZ37: 0.0 | SEA37: 0.0 | SEB37: 0.0 | SEC37: 0.0 | SED37: 0.0 | SEE37: 0.0 | SEF37: 0.0 | SEG37: 0.0 | SEH37: 0.0 | SEI37: 0.0 | SEJ37: 0.0 | SEK37: 0.0 | SEL37: 0.0 | SEM37: 0.0 | SEN37: 0.0 | SEO37: 0.0 | SEP37: 0.0 | SEQ37: 0.0 | SER37: 0.0 | SES37: 0.0 | SET37: 0.0 | SEU37: =SUM(SEU12:SEU35) -> 0.0 | SEV37: 0.0 | SEW37: 0.0 | SEX37: 0.0 | SEY37: 0.0 | SEZ37: 0.0 | SFA37: 0.0 | SFB37: 0.0 | SFC37: 0.0 | SFD37: 0.0 | SFE37: 0.0 | SFF37: 0.0 | SFG37: 0.0 | SFH37: 0.0 | SFI37: 0.0 | SFJ37: 0.0 | SFK37: 0.0 | SFL37: 0.0 | SFM37: 0.0 | SFN37: 0.0 | SFO37: 0.0 | SFP37: 0.0 | SFQ37: 0.0 | SFR37: 0.0 | SFS37: 0.0 | SFT37: 0.0 | SFU37: 0.0 | SFV37: 0.0 | SFW37: 0.0 | SFX37: 0.0 | SFY37: 0.0 | SFZ37: 0.0 | SGA37: 0.0 | SGB37: 0.0 | SGC37: 0.0 | SGD37: 0.0 | SGE37: 0.0 | SGF37: 0.0 | SGG37: 0.0 | SGH37: 0.0 | SGI37: 0.0 | SGJ37: 0.0 | SGK37: 0.0 | SGL37: 0.0 | SGM37: 0.0 | SGN37: 0.0 | SGO37: 0.0 | SGP37: 0.0 | SGQ37: 0.0 | SGR37: 0.0 | SGS37: 0.0 | SGT37: 0.0 | SGU37: 0.0 | SGV37: 0.0 | SGW37: 0.0 | SGX37: 0.0 | SGY37: 0.0 | SGZ37: 0.0 | SHA37: 0.0 | SHB37: 0.0 | SHC37: 0.0 | SHD37: 0.0 | SHE37: 0.0 | SHF37: 0.0 | SHG37: =SUM(SHG12:SHG35) -> 0.0 | SHH37: 0.0 | SHI37: 0.0 | SHJ37: 0.0 | SHK37: 0.0 | SHL37: 0.0 | SHM37: 0.0 | SHN37: 0.0 | SHO37: 0.0 | SHP37: 0.0 | SHQ37: 0.0 | SHR37: 0.0 | SHS37: 0.0 | SHT37: 0.0 | SHU37: 0.0 | SHV37: 0.0 | SHW37: 0.0 | SHX37: 0.0 | SHY37: 0.0 | SHZ37: 0.0 | SIA37: 0.0 | SIB37: 0.0 | SIC37: 0.0 | SID37: 0.0 | SIE37: 0.0 | SIF37: 0.0 | SIG37: 0.0 | SIH37: 0.0 | SII37: 0.0 | SIJ37: 0.0 | SIK37: 0.0 | SIL37: 0.0 | SIM37: 0.0 | SIN37: 0.0 | SIO37: 0.0 | SIP37: 0.0 | SIQ37: 0.0 | SIR37: 0.0 | SIS37: 0.0 | SIT37: 0.0 | SIU37: 0.0 | SIV37: 0.0 | SIW37: 0.0 | SIX37: 0.0 | SIY37: 0.0 | SIZ37: 0.0 | SJA37: 0.0 | SJB37: 0.0 | SJC37: 0.0 | SJD37: 0.0 | SJE37: 0.0 | SJF37: 0.0 | SJG37: 0.0 | SJH37: 0.0 | SJI37: 0.0 | SJJ37: 0.0 | SJK37: 0.0 | SJL37: 0.0 | SJM37: 0.0 | SJN37: 0.0 | SJO37: 0.0 | SJP37: 0.0 | SJQ37: 0.0 | SJR37: 0.0 | SJS37: =SUM(SJS12:SJS35) -> 0.0 | SJT37: 0.0 | SJU37: 0.0 | SJV37: 0.0 | SJW37: 0.0 | SJX37: 0.0 | SJY37: 0.0 | SJZ37: 0.0 | SKA37: 0.0 | SKB37: 0.0 | SKC37: 0.0 | SKD37: 0.0 | SKE37: 0.0 | SKF37: 0.0 | SKG37: 0.0 | SKH37: 0.0 | SKI37: 0.0 | SKJ37: 0.0 | SKK37: 0.0 | SKL37: 0.0 | SKM37: 0.0 | SKN37: 0.0 | SKO37: 0.0 | SKP37: 0.0 | SKQ37: 0.0 | SKR37: 0.0 | SKS37: 0.0 | SKT37: 0.0 | SKU37: 0.0 | SKV37: 0.0 | SKW37: 0.0 | SKX37: 0.0 | SKY37: 0.0 | SKZ37: 0.0 | SLA37: 0.0 | SLB37: 0.0 | SLC37: 0.0 | SLD37: 0.0 | SLE37: 0.0 | SLF37: 0.0 | SLG37: 0.0 | SLH37: 0.0 | SLI37: 0.0 | SLJ37: 0.0 | SLK37: 0.0 | SLL37: 0.0 | SLM37: 0.0 | SLN37: 0.0 | SLO37: 0.0 | SLP37: 0.0 | SLQ37: 0.0 | SLR37: 0.0 | SLS37: 0.0 | SLT37: 0.0 | SLU37: 0.0 | SLV37: 0.0 | SLW37: 0.0 | SLX37: 0.0 | SLY37: 0.0 | SLZ37: 0.0 | SMA37: 0.0 | SMB37: 0.0 | SMC37: 0.0 | SMD37: 0.0 | SME37: =SUM(SME12:SME35) -> 0.0 | SMF37: 0.0 | SMG37: 0.0 | SMH37: 0.0 | SMI37: 0.0 | SMJ37: 0.0 | SMK37: 0.0 | SML37: 0.0 | SMM37: 0.0 | SMN37: 0.0 | SMO37: 0.0 | SMP37: 0.0 | SMQ37: 0.0 | SMR37: 0.0 | SMS37: 0.0 | SMT37: 0.0 | SMU37: 0.0 | SMV37: 0.0 | SMW37: 0.0 | SMX37: 0.0 | SMY37: 0.0 | SMZ37: 0.0 | SNA37: 0.0 | SNB37: 0.0 | SNC37: 0.0 | SND37: 0.0 | SNE37: 0.0 | SNF37: 0.0 | SNG37: 0.0 | SNH37: 0.0 | SNI37: 0.0 | SNJ37: 0.0 | SNK37: 0.0 | SNL37: 0.0 | SNM37: 0.0 | SNN37: 0.0 | SNO37: 0.0 | SNP37: 0.0 | SNQ37: 0.0 | SNR37: 0.0 | SNS37: 0.0 | SNT37: 0.0 | SNU37: 0.0 | SNV37: 0.0 | SNW37: 0.0 | SNX37: 0.0 | SNY37: 0.0 | SNZ37: 0.0 | SOA37: 0.0 | SOB37: 0.0 | SOC37: 0.0 | SOD37: 0.0 | SOE37: 0.0 | SOF37: 0.0 | SOG37: 0.0 | SOH37: 0.0 | SOI37: 0.0 | SOJ37: 0.0 | SOK37: 0.0 | SOL37: 0.0 | SOM37: 0.0 | SON37: 0.0 | SOO37: 0.0 | SOP37: 0.0 | SOQ37: =SUM(SOQ12:SOQ35) -> 0.0 | SOR37: 0.0 | SOS37: 0.0 | SOT37: 0.0 | SOU37: 0.0 | SOV37: 0.0 | SOW37: 0.0 | SOX37: 0.0 | SOY37: 0.0 | SOZ37: 0.0 | SPA37: 0.0 | SPB37: 0.0 | SPC37: 0.0 | SPD37: 0.0 | SPE37: 0.0 | SPF37: 0.0 | SPG37: 0.0 | SPH37: 0.0 | SPI37: 0.0 | SPJ37: 0.0 | SPK37: 0.0 | SPL37: 0.0 | SPM37: 0.0 | SPN37: 0.0 | SPO37: 0.0 | SPP37: 0.0 | SPQ37: 0.0 | SPR37: 0.0 | SPS37: 0.0 | SPT37: 0.0 | SPU37: 0.0 | SPV37: 0.0 | SPW37: 0.0 | SPX37: 0.0 | SPY37: 0.0 | SPZ37: 0.0 | SQA37: 0.0 | SQB37: 0.0 | SQC37: 0.0 | SQD37: 0.0 | SQE37: 0.0 | SQF37: 0.0 | SQG37: 0.0 | SQH37: 0.0 | SQI37: 0.0 | SQJ37: 0.0 | SQK37: 0.0 | SQL37: 0.0 | SQM37: 0.0 | SQN37: 0.0 | SQO37: 0.0 | SQP37: 0.0 | SQQ37: 0.0 | SQR37: 0.0 | SQS37: 0.0 | SQT37: 0.0 | SQU37: 0.0 | SQV37: 0.0 | SQW37: 0.0 | SQX37: 0.0 | SQY37: 0.0 | SQZ37: 0.0 | SRA37: 0.0 | SRB37: 0.0 | SRC37: =SUM(SRC12:SRC35) -> 0.0 | SRD37: 0.0 | SRE37: 0.0 | SRF37: 0.0 | SRG37: 0.0 | SRH37: 0.0 | SRI37: 0.0 | SRJ37: 0.0 | SRK37: 0.0 | SRL37: 0.0 | SRM37: 0.0 | SRN37: 0.0 | SRO37: 0.0 | SRP37: 0.0 | SRQ37: 0.0 | SRR37: 0.0 | SRS37: 0.0 | SRT37: 0.0 | SRU37: 0.0 | SRV37: 0.0 | SRW37: 0.0 | SRX37: 0.0 | SRY37: 0.0 | SRZ37: 0.0 | SSA37: 0.0 | SSB37: 0.0 | SSC37: 0.0 | SSD37: 0.0 | SSE37: 0.0 | SSF37: 0.0 | SSG37: 0.0 | SSH37: 0.0 | SSI37: 0.0 | SSJ37: 0.0 | SSK37: 0.0 | SSL37: 0.0 | SSM37: 0.0 | SSN37: 0.0 | SSO37: 0.0 | SSP37: 0.0 | SSQ37: 0.0 | SSR37: 0.0 | SSS37: 0.0 | SST37: 0.0 | SSU37: 0.0 | SSV37: 0.0 | SSW37: 0.0 | SSX37: 0.0 | SSY37: 0.0 | SSZ37: 0.0 | STA37: 0.0 | STB37: 0.0 | STC37: 0.0 | STD37: 0.0 | STE37: 0.0 | STF37: 0.0 | STG37: 0.0 | STH37: 0.0 | STI37: 0.0 | STJ37: 0.0 | STK37: 0.0 | STL37: 0.0 | STM37: 0.0 | STN37: 0.0 | STO37: =SUM(STO12:STO35) -> 0.0 | STP37: 0.0 | STQ37: 0.0 | STR37: 0.0 | STS37: 0.0 | STT37: 0.0 | STU37: 0.0 | STV37: 0.0 | STW37: 0.0 | STX37: 0.0 | STY37: 0.0 | STZ37: 0.0 | SUA37: 0.0 | SUB37: 0.0 | SUC37: 0.0 | SUD37: 0.0 | SUE37: 0.0 | SUF37: 0.0 | SUG37: 0.0 | SUH37: 0.0 | SUI37: 0.0 | SUJ37: 0.0 | SUK37: 0.0 | SUL37: 0.0 | SUM37: 0.0 | SUN37: 0.0 | SUO37: 0.0 | SUP37: 0.0 | SUQ37: 0.0 | SUR37: 0.0 | SUS37: 0.0 | SUT37: 0.0 | SUU37: 0.0 | SUV37: 0.0 | SUW37: 0.0 | SUX37: 0.0 | SUY37: 0.0 | SUZ37: 0.0 | SVA37: 0.0 | SVB37: 0.0 | SVC37: 0.0 | SVD37: 0.0 | SVE37: 0.0 | SVF37: 0.0 | SVG37: 0.0 | SVH37: 0.0 | SVI37: 0.0 | SVJ37: 0.0 | SVK37: 0.0 | SVL37: 0.0 | SVM37: 0.0 | SVN37: 0.0 | SVO37: 0.0 | SVP37: 0.0 | SVQ37: 0.0 | SVR37: 0.0 | SVS37: 0.0 | SVT37: 0.0 | SVU37: 0.0 | SVV37: 0.0 | SVW37: 0.0 | SVX37: 0.0 | SVY37: 0.0 | SVZ37: 0.0 | SWA37: =SUM(SWA12:SWA35) -> 0.0 | SWB37: 0.0 | SWC37: 0.0 | SWD37: 0.0 | SWE37: 0.0 | SWF37: 0.0 | SWG37: 0.0 | SWH37: 0.0 | SWI37: 0.0 | SWJ37: 0.0 | SWK37: 0.0 | SWL37: 0.0 | SWM37: 0.0 | SWN37: 0.0 | SWO37: 0.0 | SWP37: 0.0 | SWQ37: 0.0 | SWR37: 0.0 | SWS37: 0.0 | SWT37: 0.0 | SWU37: 0.0 | SWV37: 0.0 | SWW37: 0.0 | SWX37: 0.0 | SWY37: 0.0 | SWZ37: 0.0 | SXA37: 0.0 | SXB37: 0.0 | SXC37: 0.0 | SXD37: 0.0 | SXE37: 0.0 | SXF37: 0.0 | SXG37: 0.0 | SXH37: 0.0 | SXI37: 0.0 | SXJ37: 0.0 | SXK37: 0.0 | SXL37: 0.0 | SXM37: 0.0 | SXN37: 0.0 | SXO37: 0.0 | SXP37: 0.0 | SXQ37: 0.0 | SXR37: 0.0 | SXS37: 0.0 | SXT37: 0.0 | SXU37: 0.0 | SXV37: 0.0 | SXW37: 0.0 | SXX37: 0.0 | SXY37: 0.0 | SXZ37: 0.0 | SYA37: 0.0 | SYB37: 0.0 | SYC37: 0.0 | SYD37: 0.0 | SYE37: 0.0 | SYF37: 0.0 | SYG37: 0.0 | SYH37: 0.0 | SYI37: 0.0 | SYJ37: 0.0 | SYK37: 0.0 | SYL37: 0.0 | SYM37: =SUM(SYM12:SYM35) -> 0.0 | SYN37: 0.0 | SYO37: 0.0 | SYP37: 0.0 | SYQ37: 0.0 | SYR37: 0.0 | SYS37: 0.0 | SYT37: 0.0 | SYU37: 0.0 | SYV37: 0.0 | SYW37: 0.0 | SYX37: 0.0 | SYY37: 0.0 | SYZ37: 0.0 | SZA37: 0.0 | SZB37: 0.0 | SZC37: 0.0 | SZD37: 0.0 | SZE37: 0.0 | SZF37: 0.0 | SZG37: 0.0 | SZH37: 0.0 | SZI37: 0.0 | SZJ37: 0.0 | SZK37: 0.0 | SZL37: 0.0 | SZM37: 0.0 | SZN37: 0.0 | SZO37: 0.0 | SZP37: 0.0 | SZQ37: 0.0 | SZR37: 0.0 | SZS37: 0.0 | SZT37: 0.0 | SZU37: 0.0 | SZV37: 0.0 | SZW37: 0.0 | SZX37: 0.0 | SZY37: 0.0 | SZZ37: 0.0 | TAA37: 0.0 | TAB37: 0.0 | TAC37: 0.0 | TAD37: 0.0 | TAE37: 0.0 | TAF37: 0.0 | TAG37: 0.0 | TAH37: 0.0 | TAI37: 0.0 | TAJ37: 0.0 | TAK37: 0.0 | TAL37: 0.0 | TAM37: 0.0 | TAN37: 0.0 | TAO37: 0.0 | TAP37: 0.0 | TAQ37: 0.0 | TAR37: 0.0 | TAS37: 0.0 | TAT37: 0.0 | TAU37: 0.0 | TAV37: 0.0 | TAW37: 0.0 | TAX37: 0.0 | TAY37: =SUM(TAY12:TAY35) -> 0.0 | TAZ37: 0.0 | TBA37: 0.0 | TBB37: 0.0 | TBC37: 0.0 | TBD37: 0.0 | TBE37: 0.0 | TBF37: 0.0 | TBG37: 0.0 | TBH37: 0.0 | TBI37: 0.0 | TBJ37: 0.0 | TBK37: 0.0 | TBL37: 0.0 | TBM37: 0.0 | TBN37: 0.0 | TBO37: 0.0 | TBP37: 0.0 | TBQ37: 0.0 | TBR37: 0.0 | TBS37: 0.0 | TBT37: 0.0 | TBU37: 0.0 | TBV37: 0.0 | TBW37: 0.0 | TBX37: 0.0 | TBY37: 0.0 | TBZ37: 0.0 | TCA37: 0.0 | TCB37: 0.0 | TCC37: 0.0 | TCD37: 0.0 | TCE37: 0.0 | TCF37: 0.0 | TCG37: 0.0 | TCH37: 0.0 | TCI37: 0.0 | TCJ37: 0.0 | TCK37: 0.0 | TCL37: 0.0 | TCM37: 0.0 | TCN37: 0.0 | TCO37: 0.0 | TCP37: 0.0 | TCQ37: 0.0 | TCR37: 0.0 | TCS37: 0.0 | TCT37: 0.0 | TCU37: 0.0 | TCV37: 0.0 | TCW37: 0.0 | TCX37: 0.0 | TCY37: 0.0 | TCZ37: 0.0 | TDA37: 0.0 | TDB37: 0.0 | TDC37: 0.0 | TDD37: 0.0 | TDE37: 0.0 | TDF37: 0.0 | TDG37: 0.0 | TDH37: 0.0 | TDI37: 0.0 | TDJ37: 0.0 | TDK37: =SUM(TDK12:TDK35) -> 0.0 | TDL37: 0.0 | TDM37: 0.0 | TDN37: 0.0 | TDO37: 0.0 | TDP37: 0.0 | TDQ37: 0.0 | TDR37: 0.0 | TDS37: 0.0 | TDT37: 0.0 | TDU37: 0.0 | TDV37: 0.0 | TDW37: 0.0 | TDX37: 0.0 | TDY37: 0.0 | TDZ37: 0.0 | TEA37: 0.0 | TEB37: 0.0 | TEC37: 0.0 | TED37: 0.0 | TEE37: 0.0 | TEF37: 0.0 | TEG37: 0.0 | TEH37: 0.0 | TEI37: 0.0 | TEJ37: 0.0 | TEK37: 0.0 | TEL37: 0.0 | TEM37: 0.0 | TEN37: 0.0 | TEO37: 0.0 | TEP37: 0.0 | TEQ37: 0.0 | TER37: 0.0 | TES37: 0.0 | TET37: 0.0 | TEU37: 0.0 | TEV37: 0.0 | TEW37: 0.0 | TEX37: 0.0 | TEY37: 0.0 | TEZ37: 0.0 | TFA37: 0.0 | TFB37: 0.0 | TFC37: 0.0 | TFD37: 0.0 | TFE37: 0.0 | TFF37: 0.0 | TFG37: 0.0 | TFH37: 0.0 | TFI37: 0.0 | TFJ37: 0.0 | TFK37: 0.0 | TFL37: 0.0 | TFM37: 0.0 | TFN37: 0.0 | TFO37: 0.0 | TFP37: 0.0 | TFQ37: 0.0 | TFR37: 0.0 | TFS37: 0.0 | TFT37: 0.0 | TFU37: 0.0 | TFV37: 0.0 | TFW37: =SUM(TFW12:TFW35) -> 0.0 | TFX37: 0.0 | TFY37: 0.0 | TFZ37: 0.0 | TGA37: 0.0 | TGB37: 0.0 | TGC37: 0.0 | TGD37: 0.0 | TGE37: 0.0 | TGF37: 0.0 | TGG37: 0.0 | TGH37: 0.0 | TGI37: 0.0 | TGJ37: 0.0 | TGK37: 0.0 | TGL37: 0.0 | TGM37: 0.0 | TGN37: 0.0 | TGO37: 0.0 | TGP37: 0.0 | TGQ37: 0.0 | TGR37: 0.0 | TGS37: 0.0 | TGT37: 0.0 | TGU37: 0.0 | TGV37: 0.0 | TGW37: 0.0 | TGX37: 0.0 | TGY37: 0.0 | TGZ37: 0.0 | THA37: 0.0 | THB37: 0.0 | THC37: 0.0 | THD37: 0.0 | THE37: 0.0 | THF37: 0.0 | THG37: 0.0 | THH37: 0.0 | THI37: 0.0 | THJ37: 0.0 | THK37: 0.0 | THL37: 0.0 | THM37: 0.0 | THN37: 0.0 | THO37: 0.0 | THP37: 0.0 | THQ37: 0.0 | THR37: 0.0 | THS37: 0.0 | THT37: 0.0 | THU37: 0.0 | THV37: 0.0 | THW37: 0.0 | THX37: 0.0 | THY37: 0.0 | THZ37: 0.0 | TIA37: 0.0 | TIB37: 0.0 | TIC37: 0.0 | TID37: 0.0 | TIE37: 0.0 | TIF37: 0.0 | TIG37: 0.0 | TIH37: 0.0 | TII37: =SUM(TII12:TII35) -> 0.0 | TIJ37: 0.0 | TIK37: 0.0 | TIL37: 0.0 | TIM37: 0.0 | TIN37: 0.0 | TIO37: 0.0 | TIP37: 0.0 | TIQ37: 0.0 | TIR37: 0.0 | TIS37: 0.0 | TIT37: 0.0 | TIU37: 0.0 | TIV37: 0.0 | TIW37: 0.0 | TIX37: 0.0 | TIY37: 0.0 | TIZ37: 0.0 | TJA37: 0.0 | TJB37: 0.0 | TJC37: 0.0 | TJD37: 0.0 | TJE37: 0.0 | TJF37: 0.0 | TJG37: 0.0 | TJH37: 0.0 | TJI37: 0.0 | TJJ37: 0.0 | TJK37: 0.0 | TJL37: 0.0 | TJM37: 0.0 | TJN37: 0.0 | TJO37: 0.0 | TJP37: 0.0 | TJQ37: 0.0 | TJR37: 0.0 | TJS37: 0.0 | TJT37: 0.0 | TJU37: 0.0 | TJV37: 0.0 | TJW37: 0.0 | TJX37: 0.0 | TJY37: 0.0 | TJZ37: 0.0 | TKA37: 0.0 | TKB37: 0.0 | TKC37: 0.0 | TKD37: 0.0 | TKE37: 0.0 | TKF37: 0.0 | TKG37: 0.0 | TKH37: 0.0 | TKI37: 0.0 | TKJ37: 0.0 | TKK37: 0.0 | TKL37: 0.0 | TKM37: 0.0 | TKN37: 0.0 | TKO37: 0.0 | TKP37: 0.0 | TKQ37: 0.0 | TKR37: 0.0 | TKS37: 0.0 | TKT37: 0.0 | TKU37: =SUM(TKU12:TKU35) -> 0.0 | TKV37: 0.0 | TKW37: 0.0 | TKX37: 0.0 | TKY37: 0.0 | TKZ37: 0.0 | TLA37: 0.0 | TLB37: 0.0 | TLC37: 0.0 | TLD37: 0.0 | TLE37: 0.0 | TLF37: 0.0 | TLG37: 0.0 | TLH37: 0.0 | TLI37: 0.0 | TLJ37: 0.0 | TLK37: 0.0 | TLL37: 0.0 | TLM37: 0.0 | TLN37: 0.0 | TLO37: 0.0 | TLP37: 0.0 | TLQ37: 0.0 | TLR37: 0.0 | TLS37: 0.0 | TLT37: 0.0 | TLU37: 0.0 | TLV37: 0.0 | TLW37: 0.0 | TLX37: 0.0 | TLY37: 0.0 | TLZ37: 0.0 | TMA37: 0.0 | TMB37: 0.0 | TMC37: 0.0 | TMD37: 0.0 | TME37: 0.0 | TMF37: 0.0 | TMG37: 0.0 | TMH37: 0.0 | TMI37: 0.0 | TMJ37: 0.0 | TMK37: 0.0 | TML37: 0.0 | TMM37: 0.0 | TMN37: 0.0 | TMO37: 0.0 | TMP37: 0.0 | TMQ37: 0.0 | TMR37: 0.0 | TMS37: 0.0 | TMT37: 0.0 | TMU37: 0.0 | TMV37: 0.0 | TMW37: 0.0 | TMX37: 0.0 | TMY37: 0.0 | TMZ37: 0.0 | TNA37: 0.0 | TNB37: 0.0 | TNC37: 0.0 | TND37: 0.0 | TNE37: 0.0 | TNF37: 0.0 | TNG37: =SUM(TNG12:TNG35) -> 0.0 | TNH37: 0.0 | TNI37: 0.0 | TNJ37: 0.0 | TNK37: 0.0 | TNL37: 0.0 | TNM37: 0.0 | TNN37: 0.0 | TNO37: 0.0 | TNP37: 0.0 | TNQ37: 0.0 | TNR37: 0.0 | TNS37: 0.0 | TNT37: 0.0 | TNU37: 0.0 | TNV37: 0.0 | TNW37: 0.0 | TNX37: 0.0 | TNY37: 0.0 | TNZ37: 0.0 | TOA37: 0.0 | TOB37: 0.0 | TOC37: 0.0 | TOD37: 0.0 | TOE37: 0.0 | TOF37: 0.0 | TOG37: 0.0 | TOH37: 0.0 | TOI37: 0.0 | TOJ37: 0.0 | TOK37: 0.0 | TOL37: 0.0 | TOM37: 0.0 | TON37: 0.0 | TOO37: 0.0 | TOP37: 0.0 | TOQ37: 0.0 | TOR37: 0.0 | TOS37: 0.0 | TOT37: 0.0 | TOU37: 0.0 | TOV37: 0.0 | TOW37: 0.0 | TOX37: 0.0 | TOY37: 0.0 | TOZ37: 0.0 | TPA37: 0.0 | TPB37: 0.0 | TPC37: 0.0 | TPD37: 0.0 | TPE37: 0.0 | TPF37: 0.0 | TPG37: 0.0 | TPH37: 0.0 | TPI37: 0.0 | TPJ37: 0.0 | TPK37: 0.0 | TPL37: 0.0 | TPM37: 0.0 | TPN37: 0.0 | TPO37: 0.0 | TPP37: 0.0 | TPQ37: 0.0 | TPR37: 0.0 | TPS37: =SUM(TPS12:TPS35) -> 0.0 | TPT37: 0.0 | TPU37: 0.0 | TPV37: 0.0 | TPW37: 0.0 | TPX37: 0.0 | TPY37: 0.0 | TPZ37: 0.0 | TQA37: 0.0 | TQB37: 0.0 | TQC37: 0.0 | TQD37: 0.0 | TQE37: 0.0 | TQF37: 0.0 | TQG37: 0.0 | TQH37: 0.0 | TQI37: 0.0 | TQJ37: 0.0 | TQK37: 0.0 | TQL37: 0.0 | TQM37: 0.0 | TQN37: 0.0 | TQO37: 0.0 | TQP37: 0.0 | TQQ37: 0.0 | TQR37: 0.0 | TQS37: 0.0 | TQT37: 0.0 | TQU37: 0.0 | TQV37: 0.0 | TQW37: 0.0 | TQX37: 0.0 | TQY37: 0.0 | TQZ37: 0.0 | TRA37: 0.0 | TRB37: 0.0 | TRC37: 0.0 | TRD37: 0.0 | TRE37: 0.0 | TRF37: 0.0 | TRG37: 0.0 | TRH37: 0.0 | TRI37: 0.0 | TRJ37: 0.0 | TRK37: 0.0 | TRL37: 0.0 | TRM37: 0.0 | TRN37: 0.0 | TRO37: 0.0 | TRP37: 0.0 | TRQ37: 0.0 | TRR37: 0.0 | TRS37: 0.0 | TRT37: 0.0 | TRU37: 0.0 | TRV37: 0.0 | TRW37: 0.0 | TRX37: 0.0 | TRY37: 0.0 | TRZ37: 0.0 | TSA37: 0.0 | TSB37: 0.0 | TSC37: 0.0 | TSD37: 0.0 | TSE37: =SUM(TSE12:TSE35) -> 0.0 | TSF37: 0.0 | TSG37: 0.0 | TSH37: 0.0 | TSI37: 0.0 | TSJ37: 0.0 | TSK37: 0.0 | TSL37: 0.0 | TSM37: 0.0 | TSN37: 0.0 | TSO37: 0.0 | TSP37: 0.0 | TSQ37: 0.0 | TSR37: 0.0 | TSS37: 0.0 | TST37: 0.0 | TSU37: 0.0 | TSV37: 0.0 | TSW37: 0.0 | TSX37: 0.0 | TSY37: 0.0 | TSZ37: 0.0 | TTA37: 0.0 | TTB37: 0.0 | TTC37: 0.0 | TTD37: 0.0 | TTE37: 0.0 | TTF37: 0.0 | TTG37: 0.0 | TTH37: 0.0 | TTI37: 0.0 | TTJ37: 0.0 | TTK37: 0.0 | TTL37: 0.0 | TTM37: 0.0 | TTN37: 0.0 | TTO37: 0.0 | TTP37: 0.0 | TTQ37: 0.0 | TTR37: 0.0 | TTS37: 0.0 | TTT37: 0.0 | TTU37: 0.0 | TTV37: 0.0 | TTW37: 0.0 | TTX37: 0.0 | TTY37: 0.0 | TTZ37: 0.0 | TUA37: 0.0 | TUB37: 0.0 | TUC37: 0.0 | TUD37: 0.0 | TUE37: 0.0 | TUF37: 0.0 | TUG37: 0.0 | TUH37: 0.0 | TUI37: 0.0 | TUJ37: 0.0 | TUK37: 0.0 | TUL37: 0.0 | TUM37: 0.0 | TUN37: 0.0 | TUO37: 0.0 | TUP37: 0.0 | TUQ37: =SUM(TUQ12:TUQ35) -> 0.0 | TUR37: 0.0 | TUS37: 0.0 | TUT37: 0.0 | TUU37: 0.0 | TUV37: 0.0 | TUW37: 0.0 | TUX37: 0.0 | TUY37: 0.0 | TUZ37: 0.0 | TVA37: 0.0 | TVB37: 0.0 | TVC37: 0.0 | TVD37: 0.0 | TVE37: 0.0 | TVF37: 0.0 | TVG37: 0.0 | TVH37: 0.0 | TVI37: 0.0 | TVJ37: 0.0 | TVK37: 0.0 | TVL37: 0.0 | TVM37: 0.0 | TVN37: 0.0 | TVO37: 0.0 | TVP37: 0.0 | TVQ37: 0.0 | TVR37: 0.0 | TVS37: 0.0 | TVT37: 0.0 | TVU37: 0.0 | TVV37: 0.0 | TVW37: 0.0 | TVX37: 0.0 | TVY37: 0.0 | TVZ37: 0.0 | TWA37: 0.0 | TWB37: 0.0 | TWC37: 0.0 | TWD37: 0.0 | TWE37: 0.0 | TWF37: 0.0 | TWG37: 0.0 | TWH37: 0.0 | TWI37: 0.0 | TWJ37: 0.0 | TWK37: 0.0 | TWL37: 0.0 | TWM37: 0.0 | TWN37: 0.0 | TWO37: 0.0 | TWP37: 0.0 | TWQ37: 0.0 | TWR37: 0.0 | TWS37: 0.0 | TWT37: 0.0 | TWU37: 0.0 | TWV37: 0.0 | TWW37: 0.0 | TWX37: 0.0 | TWY37: 0.0 | TWZ37: 0.0 | TXA37: 0.0 | TXB37: 0.0 | TXC37: =SUM(TXC12:TXC35) -> 0.0 | TXD37: 0.0 | TXE37: 0.0 | TXF37: 0.0 | TXG37: 0.0 | TXH37: 0.0 | TXI37: 0.0 | TXJ37: 0.0 | TXK37: 0.0 | TXL37: 0.0 | TXM37: 0.0 | TXN37: 0.0 | TXO37: 0.0 | TXP37: 0.0 | TXQ37: 0.0 | TXR37: 0.0 | TXS37: 0.0 | TXT37: 0.0 | TXU37: 0.0 | TXV37: 0.0 | TXW37: 0.0 | TXX37: 0.0 | TXY37: 0.0 | TXZ37: 0.0 | TYA37: 0.0 | TYB37: 0.0 | TYC37: 0.0 | TYD37: 0.0 | TYE37: 0.0 | TYF37: 0.0 | TYG37: 0.0 | TYH37: 0.0 | TYI37: 0.0 | TYJ37: 0.0 | TYK37: 0.0 | TYL37: 0.0 | TYM37: 0.0 | TYN37: 0.0 | TYO37: 0.0 | TYP37: 0.0 | TYQ37: 0.0 | TYR37: 0.0 | TYS37: 0.0 | TYT37: 0.0 | TYU37: 0.0 | TYV37: 0.0 | TYW37: 0.0 | TYX37: 0.0 | TYY37: 0.0 | TYZ37: 0.0 | TZA37: 0.0 | TZB37: 0.0 | TZC37: 0.0 | TZD37: 0.0 | TZE37: 0.0 | TZF37: 0.0 | TZG37: 0.0 | TZH37: 0.0 | TZI37: 0.0 | TZJ37: 0.0 | TZK37: 0.0 | TZL37: 0.0 | TZM37: 0.0 | TZN37: 0.0 | TZO37: =SUM(TZO12:TZO35) -> 0.0 | TZP37: 0.0 | TZQ37: 0.0 | TZR37: 0.0 | TZS37: 0.0 | TZT37: 0.0 | TZU37: 0.0 | TZV37: 0.0 | TZW37: 0.0 | TZX37: 0.0 | TZY37: 0.0 | TZZ37: 0.0 | UAA37: 0.0 | UAB37: 0.0 | UAC37: 0.0 | UAD37: 0.0 | UAE37: 0.0 | UAF37: 0.0 | UAG37: 0.0 | UAH37: 0.0 | UAI37: 0.0 | UAJ37: 0.0 | UAK37: 0.0 | UAL37: 0.0 | UAM37: 0.0 | UAN37: 0.0 | UAO37: 0.0 | UAP37: 0.0 | UAQ37: 0.0 | UAR37: 0.0 | UAS37: 0.0 | UAT37: 0.0 | UAU37: 0.0 | UAV37: 0.0 | UAW37: 0.0 | UAX37: 0.0 | UAY37: 0.0 | UAZ37: 0.0 | UBA37: 0.0 | UBB37: 0.0 | UBC37: 0.0 | UBD37: 0.0 | UBE37: 0.0 | UBF37: 0.0 | UBG37: 0.0 | UBH37: 0.0 | UBI37: 0.0 | UBJ37: 0.0 | UBK37: 0.0 | UBL37: 0.0 | UBM37: 0.0 | UBN37: 0.0 | UBO37: 0.0 | UBP37: 0.0 | UBQ37: 0.0 | UBR37: 0.0 | UBS37: 0.0 | UBT37: 0.0 | UBU37: 0.0 | UBV37: 0.0 | UBW37: 0.0 | UBX37: 0.0 | UBY37: 0.0 | UBZ37: 0.0 | UCA37: =SUM(UCA12:UCA35) -> 0.0 | UCB37: 0.0 | UCC37: 0.0 | UCD37: 0.0 | UCE37: 0.0 | UCF37: 0.0 | UCG37: 0.0 | UCH37: 0.0 | UCI37: 0.0 | UCJ37: 0.0 | UCK37: 0.0 | UCL37: 0.0 | UCM37: 0.0 | UCN37: 0.0 | UCO37: 0.0 | UCP37: 0.0 | UCQ37: 0.0 | UCR37: 0.0 | UCS37: 0.0 | UCT37: 0.0 | UCU37: 0.0 | UCV37: 0.0 | UCW37: 0.0 | UCX37: 0.0 | UCY37: 0.0 | UCZ37: 0.0 | UDA37: 0.0 | UDB37: 0.0 | UDC37: 0.0 | UDD37: 0.0 | UDE37: 0.0 | UDF37: 0.0 | UDG37: 0.0 | UDH37: 0.0 | UDI37: 0.0 | UDJ37: 0.0 | UDK37: 0.0 | UDL37: 0.0 | UDM37: 0.0 | UDN37: 0.0 | UDO37: 0.0 | UDP37: 0.0 | UDQ37: 0.0 | UDR37: 0.0 | UDS37: 0.0 | UDT37: 0.0 | UDU37: 0.0 | UDV37: 0.0 | UDW37: 0.0 | UDX37: 0.0 | UDY37: 0.0 | UDZ37: 0.0 | UEA37: 0.0 | UEB37: 0.0 | UEC37: 0.0 | UED37: 0.0 | UEE37: 0.0 | UEF37: 0.0 | UEG37: 0.0 | UEH37: 0.0 | UEI37: 0.0 | UEJ37: 0.0 | UEK37: 0.0 | UEL37: 0.0 | UEM37: =SUM(UEM12:UEM35) -> 0.0 | UEN37: 0.0 | UEO37: 0.0 | UEP37: 0.0 | UEQ37: 0.0 | UER37: 0.0 | UES37: 0.0 | UET37: 0.0 | UEU37: 0.0 | UEV37: 0.0 | UEW37: 0.0 | UEX37: 0.0 | UEY37: 0.0 | UEZ37: 0.0 | UFA37: 0.0 | UFB37: 0.0 | UFC37: 0.0 | UFD37: 0.0 | UFE37: 0.0 | UFF37: 0.0 | UFG37: 0.0 | UFH37: 0.0 | UFI37: 0.0 | UFJ37: 0.0 | UFK37: 0.0 | UFL37: 0.0 | UFM37: 0.0 | UFN37: 0.0 | UFO37: 0.0 | UFP37: 0.0 | UFQ37: 0.0 | UFR37: 0.0 | UFS37: 0.0 | UFT37: 0.0 | UFU37: 0.0 | UFV37: 0.0 | UFW37: 0.0 | UFX37: 0.0 | UFY37: 0.0 | UFZ37: 0.0 | UGA37: 0.0 | UGB37: 0.0 | UGC37: 0.0 | UGD37: 0.0 | UGE37: 0.0 | UGF37: 0.0 | UGG37: 0.0 | UGH37: 0.0 | UGI37: 0.0 | UGJ37: 0.0 | UGK37: 0.0 | UGL37: 0.0 | UGM37: 0.0 | UGN37: 0.0 | UGO37: 0.0 | UGP37: 0.0 | UGQ37: 0.0 | UGR37: 0.0 | UGS37: 0.0 | UGT37: 0.0 | UGU37: 0.0 | UGV37: 0.0 | UGW37: 0.0 | UGX37: 0.0 | UGY37: =SUM(UGY12:UGY35) -> 0.0 | UGZ37: 0.0 | UHA37: 0.0 | UHB37: 0.0 | UHC37: 0.0 | UHD37: 0.0 | UHE37: 0.0 | UHF37: 0.0 | UHG37: 0.0 | UHH37: 0.0 | UHI37: 0.0 | UHJ37: 0.0 | UHK37: 0.0 | UHL37: 0.0 | UHM37: 0.0 | UHN37: 0.0 | UHO37: 0.0 | UHP37: 0.0 | UHQ37: 0.0 | UHR37: 0.0 | UHS37: 0.0 | UHT37: 0.0 | UHU37: 0.0 | UHV37: 0.0 | UHW37: 0.0 | UHX37: 0.0 | UHY37: 0.0 | UHZ37: 0.0 | UIA37: 0.0 | UIB37: 0.0 | UIC37: 0.0 | UID37: 0.0 | UIE37: 0.0 | UIF37: 0.0 | UIG37: 0.0 | UIH37: 0.0 | UII37: 0.0 | UIJ37: 0.0 | UIK37: 0.0 | UIL37: 0.0 | UIM37: 0.0 | UIN37: 0.0 | UIO37: 0.0 | UIP37: 0.0 | UIQ37: 0.0 | UIR37: 0.0 | UIS37: 0.0 | UIT37: 0.0 | UIU37: 0.0 | UIV37: 0.0 | UIW37: 0.0 | UIX37: 0.0 | UIY37: 0.0 | UIZ37: 0.0 | UJA37: 0.0 | UJB37: 0.0 | UJC37: 0.0 | UJD37: 0.0 | UJE37: 0.0 | UJF37: 0.0 | UJG37: 0.0 | UJH37: 0.0 | UJI37: 0.0 | UJJ37: 0.0 | UJK37: =SUM(UJK12:UJK35) -> 0.0 | UJL37: 0.0 | UJM37: 0.0 | UJN37: 0.0 | UJO37: 0.0 | UJP37: 0.0 | UJQ37: 0.0 | UJR37: 0.0 | UJS37: 0.0 | UJT37: 0.0 | UJU37: 0.0 | UJV37: 0.0 | UJW37: 0.0 | UJX37: 0.0 | UJY37: 0.0 | UJZ37: 0.0 | UKA37: 0.0 | UKB37: 0.0 | UKC37: 0.0 | UKD37: 0.0 | UKE37: 0.0 | UKF37: 0.0 | UKG37: 0.0 | UKH37: 0.0 | UKI37: 0.0 | UKJ37: 0.0 | UKK37: 0.0 | UKL37: 0.0 | UKM37: 0.0 | UKN37: 0.0 | UKO37: 0.0 | UKP37: 0.0 | UKQ37: 0.0 | UKR37: 0.0 | UKS37: 0.0 | UKT37: 0.0 | UKU37: 0.0 | UKV37: 0.0 | UKW37: 0.0 | UKX37: 0.0 | UKY37: 0.0 | UKZ37: 0.0 | ULA37: 0.0 | ULB37: 0.0 | ULC37: 0.0 | ULD37: 0.0 | ULE37: 0.0 | ULF37: 0.0 | ULG37: 0.0 | ULH37: 0.0 | ULI37: 0.0 | ULJ37: 0.0 | ULK37: 0.0 | ULL37: 0.0 | ULM37: 0.0 | ULN37: 0.0 | ULO37: 0.0 | ULP37: 0.0 | ULQ37: 0.0 | ULR37: 0.0 | ULS37: 0.0 | ULT37: 0.0 | ULU37: 0.0 | ULV37: 0.0 | ULW37: =SUM(ULW12:ULW35) -> 0.0 | ULX37: 0.0 | ULY37: 0.0 | ULZ37: 0.0 | UMA37: 0.0 | UMB37: 0.0 | UMC37: 0.0 | UMD37: 0.0 | UME37: 0.0 | UMF37: 0.0 | UMG37: 0.0 | UMH37: 0.0 | UMI37: 0.0 | UMJ37: 0.0 | UMK37: 0.0 | UML37: 0.0 | UMM37: 0.0 | UMN37: 0.0 | UMO37: 0.0 | UMP37: 0.0 | UMQ37: 0.0 | UMR37: 0.0 | UMS37: 0.0 | UMT37: 0.0 | UMU37: 0.0 | UMV37: 0.0 | UMW37: 0.0 | UMX37: 0.0 | UMY37: 0.0 | UMZ37: 0.0 | UNA37: 0.0 | UNB37: 0.0 | UNC37: 0.0 | UND37: 0.0 | UNE37: 0.0 | UNF37: 0.0 | UNG37: 0.0 | UNH37: 0.0 | UNI37: 0.0 | UNJ37: 0.0 | UNK37: 0.0 | UNL37: 0.0 | UNM37: 0.0 | UNN37: 0.0 | UNO37: 0.0 | UNP37: 0.0 | UNQ37: 0.0 | UNR37: 0.0 | UNS37: 0.0 | UNT37: 0.0 | UNU37: 0.0 | UNV37: 0.0 | UNW37: 0.0 | UNX37: 0.0 | UNY37: 0.0 | UNZ37: 0.0 | UOA37: 0.0 | UOB37: 0.0 | UOC37: 0.0 | UOD37: 0.0 | UOE37: 0.0 | UOF37: 0.0 | UOG37: 0.0 | UOH37: 0.0 | UOI37: =SUM(UOI12:UOI35) -> 0.0 | UOJ37: 0.0 | UOK37: 0.0 | UOL37: 0.0 | UOM37: 0.0 | UON37: 0.0 | UOO37: 0.0 | UOP37: 0.0 | UOQ37: 0.0 | UOR37: 0.0 | UOS37: 0.0 | UOT37: 0.0 | UOU37: 0.0 | UOV37: 0.0 | UOW37: 0.0 | UOX37: 0.0 | UOY37: 0.0 | UOZ37: 0.0 | UPA37: 0.0 | UPB37: 0.0 | UPC37: 0.0 | UPD37: 0.0 | UPE37: 0.0 | UPF37: 0.0 | UPG37: 0.0 | UPH37: 0.0 | UPI37: 0.0 | UPJ37: 0.0 | UPK37: 0.0 | UPL37: 0.0 | UPM37: 0.0 | UPN37: 0.0 | UPO37: 0.0 | UPP37: 0.0 | UPQ37: 0.0 | UPR37: 0.0 | UPS37: 0.0 | UPT37: 0.0 | UPU37: 0.0 | UPV37: 0.0 | UPW37: 0.0 | UPX37: 0.0 | UPY37: 0.0 | UPZ37: 0.0 | UQA37: 0.0 | UQB37: 0.0 | UQC37: 0.0 | UQD37: 0.0 | UQE37: 0.0 | UQF37: 0.0 | UQG37: 0.0 | UQH37: 0.0 | UQI37: 0.0 | UQJ37: 0.0 | UQK37: 0.0 | UQL37: 0.0 | UQM37: 0.0 | UQN37: 0.0 | UQO37: 0.0 | UQP37: 0.0 | UQQ37: 0.0 | UQR37: 0.0 | UQS37: 0.0 | UQT37: 0.0 | UQU37: =SUM(UQU12:UQU35) -> 0.0 | UQV37: 0.0 | UQW37: 0.0 | UQX37: 0.0 | UQY37: 0.0 | UQZ37: 0.0 | URA37: 0.0 | URB37: 0.0 | URC37: 0.0 | URD37: 0.0 | URE37: 0.0 | URF37: 0.0 | URG37: 0.0 | URH37: 0.0 | URI37: 0.0 | URJ37: 0.0 | URK37: 0.0 | URL37: 0.0 | URM37: 0.0 | URN37: 0.0 | URO37: 0.0 | URP37: 0.0 | URQ37: 0.0 | URR37: 0.0 | URS37: 0.0 | URT37: 0.0 | URU37: 0.0 | URV37: 0.0 | URW37: 0.0 | URX37: 0.0 | URY37: 0.0 | URZ37: 0.0 | USA37: 0.0 | USB37: 0.0 | USC37: 0.0 | USD37: 0.0 | USE37: 0.0 | USF37: 0.0 | USG37: 0.0 | USH37: 0.0 | USI37: 0.0 | USJ37: 0.0 | USK37: 0.0 | USL37: 0.0 | USM37: 0.0 | USN37: 0.0 | USO37: 0.0 | USP37: 0.0 | USQ37: 0.0 | USR37: 0.0 | USS37: 0.0 | UST37: 0.0 | USU37: 0.0 | USV37: 0.0 | USW37: 0.0 | USX37: 0.0 | USY37: 0.0 | USZ37: 0.0 | UTA37: 0.0 | UTB37: 0.0 | UTC37: 0.0 | UTD37: 0.0 | UTE37: 0.0 | UTF37: 0.0 | UTG37: =SUM(UTG12:UTG35) -> 0.0 | UTH37: 0.0 | UTI37: 0.0 | UTJ37: 0.0 | UTK37: 0.0 | UTL37: 0.0 | UTM37: 0.0 | UTN37: 0.0 | UTO37: 0.0 | UTP37: 0.0 | UTQ37: 0.0 | UTR37: 0.0 | UTS37: 0.0 | UTT37: 0.0 | UTU37: 0.0 | UTV37: 0.0 | UTW37: 0.0 | UTX37: 0.0 | UTY37: 0.0 | UTZ37: 0.0 | UUA37: 0.0 | UUB37: 0.0 | UUC37: 0.0 | UUD37: 0.0 | UUE37: 0.0 | UUF37: 0.0 | UUG37: 0.0 | UUH37: 0.0 | UUI37: 0.0 | UUJ37: 0.0 | UUK37: 0.0 | UUL37: 0.0 | UUM37: 0.0 | UUN37: 0.0 | UUO37: 0.0 | UUP37: 0.0 | UUQ37: 0.0 | UUR37: 0.0 | UUS37: 0.0 | UUT37: 0.0 | UUU37: 0.0 | UUV37: 0.0 | UUW37: 0.0 | UUX37: 0.0 | UUY37: 0.0 | UUZ37: 0.0 | UVA37: 0.0 | UVB37: 0.0 | UVC37: 0.0 | UVD37: 0.0 | UVE37: 0.0 | UVF37: 0.0 | UVG37: 0.0 | UVH37: 0.0 | UVI37: 0.0 | UVJ37: 0.0 | UVK37: 0.0 | UVL37: 0.0 | UVM37: 0.0 | UVN37: 0.0 | UVO37: 0.0 | UVP37: 0.0 | UVQ37: 0.0 | UVR37: 0.0 | UVS37: =SUM(UVS12:UVS35) -> 0.0 | UVT37: 0.0 | UVU37: 0.0 | UVV37: 0.0 | UVW37: 0.0 | UVX37: 0.0 | UVY37: 0.0 | UVZ37: 0.0 | UWA37: 0.0 | UWB37: 0.0 | UWC37: 0.0 | UWD37: 0.0 | UWE37: 0.0 | UWF37: 0.0 | UWG37: 0.0 | UWH37: 0.0 | UWI37: 0.0 | UWJ37: 0.0 | UWK37: 0.0 | UWL37: 0.0 | UWM37: 0.0 | UWN37: 0.0 | UWO37: 0.0 | UWP37: 0.0 | UWQ37: 0.0 | UWR37: 0.0 | UWS37: 0.0 | UWT37: 0.0 | UWU37: 0.0 | UWV37: 0.0 | UWW37: 0.0 | UWX37: 0.0 | UWY37: 0.0 | UWZ37: 0.0 | UXA37: 0.0 | UXB37: 0.0 | UXC37: 0.0 | UXD37: 0.0 | UXE37: 0.0 | UXF37: 0.0 | UXG37: 0.0 | UXH37: 0.0 | UXI37: 0.0 | UXJ37: 0.0 | UXK37: 0.0 | UXL37: 0.0 | UXM37: 0.0 | UXN37: 0.0 | UXO37: 0.0 | UXP37: 0.0 | UXQ37: 0.0 | UXR37: 0.0 | UXS37: 0.0 | UXT37: 0.0 | UXU37: 0.0 | UXV37: 0.0 | UXW37: 0.0 | UXX37: 0.0 | UXY37: 0.0 | UXZ37: 0.0 | UYA37: 0.0 | UYB37: 0.0 | UYC37: 0.0 | UYD37: 0.0 | UYE37: =SUM(UYE12:UYE35) -> 0.0 | UYF37: 0.0 | UYG37: 0.0 | UYH37: 0.0 | UYI37: 0.0 | UYJ37: 0.0 | UYK37: 0.0 | UYL37: 0.0 | UYM37: 0.0 | UYN37: 0.0 | UYO37: 0.0 | UYP37: 0.0 | UYQ37: 0.0 | UYR37: 0.0 | UYS37: 0.0 | UYT37: 0.0 | UYU37: 0.0 | UYV37: 0.0 | UYW37: 0.0 | UYX37: 0.0 | UYY37: 0.0 | UYZ37: 0.0 | UZA37: 0.0 | UZB37: 0.0 | UZC37: 0.0 | UZD37: 0.0 | UZE37: 0.0 | UZF37: 0.0 | UZG37: 0.0 | UZH37: 0.0 | UZI37: 0.0 | UZJ37: 0.0 | UZK37: 0.0 | UZL37: 0.0 | UZM37: 0.0 | UZN37: 0.0 | UZO37: 0.0 | UZP37: 0.0 | UZQ37: 0.0 | UZR37: 0.0 | UZS37: 0.0 | UZT37: 0.0 | UZU37: 0.0 | UZV37: 0.0 | UZW37: 0.0 | UZX37: 0.0 | UZY37: 0.0 | UZZ37: 0.0 | VAA37: 0.0 | VAB37: 0.0 | VAC37: 0.0 | VAD37: 0.0 | VAE37: 0.0 | VAF37: 0.0 | VAG37: 0.0 | VAH37: 0.0 | VAI37: 0.0 | VAJ37: 0.0 | VAK37: 0.0 | VAL37: 0.0 | VAM37: 0.0 | VAN37: 0.0 | VAO37: 0.0 | VAP37: 0.0 | VAQ37: =SUM(VAQ12:VAQ35) -> 0.0 | VAR37: 0.0 | VAS37: 0.0 | VAT37: 0.0 | VAU37: 0.0 | VAV37: 0.0 | VAW37: 0.0 | VAX37: 0.0 | VAY37: 0.0 | VAZ37: 0.0 | VBA37: 0.0 | VBB37: 0.0 | VBC37: 0.0 | VBD37: 0.0 | VBE37: 0.0 | VBF37: 0.0 | VBG37: 0.0 | VBH37: 0.0 | VBI37: 0.0 | VBJ37: 0.0 | VBK37: 0.0 | VBL37: 0.0 | VBM37: 0.0 | VBN37: 0.0 | VBO37: 0.0 | VBP37: 0.0 | VBQ37: 0.0 | VBR37: 0.0 | VBS37: 0.0 | VBT37: 0.0 | VBU37: 0.0 | VBV37: 0.0 | VBW37: 0.0 | VBX37: 0.0 | VBY37: 0.0 | VBZ37: 0.0 | VCA37: 0.0 | VCB37: 0.0 | VCC37: 0.0 | VCD37: 0.0 | VCE37: 0.0 | VCF37: 0.0 | VCG37: 0.0 | VCH37: 0.0 | VCI37: 0.0 | VCJ37: 0.0 | VCK37: 0.0 | VCL37: 0.0 | VCM37: 0.0 | VCN37: 0.0 | VCO37: 0.0 | VCP37: 0.0 | VCQ37: 0.0 | VCR37: 0.0 | VCS37: 0.0 | VCT37: 0.0 | VCU37: 0.0 | VCV37: 0.0 | VCW37: 0.0 | VCX37: 0.0 | VCY37: 0.0 | VCZ37: 0.0 | VDA37: 0.0 | VDB37: 0.0 | VDC37: =SUM(VDC12:VDC35) -> 0.0 | VDD37: 0.0 | VDE37: 0.0 | VDF37: 0.0 | VDG37: 0.0 | VDH37: 0.0 | VDI37: 0.0 | VDJ37: 0.0 | VDK37: 0.0 | VDL37: 0.0 | VDM37: 0.0 | VDN37: 0.0 | VDO37: 0.0 | VDP37: 0.0 | VDQ37: 0.0 | VDR37: 0.0 | VDS37: 0.0 | VDT37: 0.0 | VDU37: 0.0 | VDV37: 0.0 | VDW37: 0.0 | VDX37: 0.0 | VDY37: 0.0 | VDZ37: 0.0 | VEA37: 0.0 | VEB37: 0.0 | VEC37: 0.0 | VED37: 0.0 | VEE37: 0.0 | VEF37: 0.0 | VEG37: 0.0 | VEH37: 0.0 | VEI37: 0.0 | VEJ37: 0.0 | VEK37: 0.0 | VEL37: 0.0 | VEM37: 0.0 | VEN37: 0.0 | VEO37: 0.0 | VEP37: 0.0 | VEQ37: 0.0 | VER37: 0.0 | VES37: 0.0 | VET37: 0.0 | VEU37: 0.0 | VEV37: 0.0 | VEW37: 0.0 | VEX37: 0.0 | VEY37: 0.0 | VEZ37: 0.0 | VFA37: 0.0 | VFB37: 0.0 | VFC37: 0.0 | VFD37: 0.0 | VFE37: 0.0 | VFF37: 0.0 | VFG37: 0.0 | VFH37: 0.0 | VFI37: 0.0 | VFJ37: 0.0 | VFK37: 0.0 | VFL37: 0.0 | VFM37: 0.0 | VFN37: 0.0 | VFO37: =SUM(VFO12:VFO35) -> 0.0 | VFP37: 0.0 | VFQ37: 0.0 | VFR37: 0.0 | VFS37: 0.0 | VFT37: 0.0 | VFU37: 0.0 | VFV37: 0.0 | VFW37: 0.0 | VFX37: 0.0 | VFY37: 0.0 | VFZ37: 0.0 | VGA37: 0.0 | VGB37: 0.0 | VGC37: 0.0 | VGD37: 0.0 | VGE37: 0.0 | VGF37: 0.0 | VGG37: 0.0 | VGH37: 0.0 | VGI37: 0.0 | VGJ37: 0.0 | VGK37: 0.0 | VGL37: 0.0 | VGM37: 0.0 | VGN37: 0.0 | VGO37: 0.0 | VGP37: 0.0 | VGQ37: 0.0 | VGR37: 0.0 | VGS37: 0.0 | VGT37: 0.0 | VGU37: 0.0 | VGV37: 0.0 | VGW37: 0.0 | VGX37: 0.0 | VGY37: 0.0 | VGZ37: 0.0 | VHA37: 0.0 | VHB37: 0.0 | VHC37: 0.0 | VHD37: 0.0 | VHE37: 0.0 | VHF37: 0.0 | VHG37: 0.0 | VHH37: 0.0 | VHI37: 0.0 | VHJ37: 0.0 | VHK37: 0.0 | VHL37: 0.0 | VHM37: 0.0 | VHN37: 0.0 | VHO37: 0.0 | VHP37: 0.0 | VHQ37: 0.0 | VHR37: 0.0 | VHS37: 0.0 | VHT37: 0.0 | VHU37: 0.0 | VHV37: 0.0 | VHW37: 0.0 | VHX37: 0.0 | VHY37: 0.0 | VHZ37: 0.0 | VIA37: =SUM(VIA12:VIA35) -> 0.0 | VIB37: 0.0 | VIC37: 0.0 | VID37: 0.0 | VIE37: 0.0 | VIF37: 0.0 | VIG37: 0.0 | VIH37: 0.0 | VII37: 0.0 | VIJ37: 0.0 | VIK37: 0.0 | VIL37: 0.0 | VIM37: 0.0 | VIN37: 0.0 | VIO37: 0.0 | VIP37: 0.0 | VIQ37: 0.0 | VIR37: 0.0 | VIS37: 0.0 | VIT37: 0.0 | VIU37: 0.0 | VIV37: 0.0 | VIW37: 0.0 | VIX37: 0.0 | VIY37: 0.0 | VIZ37: 0.0 | VJA37: 0.0 | VJB37: 0.0 | VJC37: 0.0 | VJD37: 0.0 | VJE37: 0.0 | VJF37: 0.0 | VJG37: 0.0 | VJH37: 0.0 | VJI37: 0.0 | VJJ37: 0.0 | VJK37: 0.0 | VJL37: 0.0 | VJM37: 0.0 | VJN37: 0.0 | VJO37: 0.0 | VJP37: 0.0 | VJQ37: 0.0 | VJR37: 0.0 | VJS37: 0.0 | VJT37: 0.0 | VJU37: 0.0 | VJV37: 0.0 | VJW37: 0.0 | VJX37: 0.0 | VJY37: 0.0 | VJZ37: 0.0 | VKA37: 0.0 | VKB37: 0.0 | VKC37: 0.0 | VKD37: 0.0 | VKE37: 0.0 | VKF37: 0.0 | VKG37: 0.0 | VKH37: 0.0 | VKI37: 0.0 | VKJ37: 0.0 | VKK37: 0.0 | VKL37: 0.0 | VKM37: =SUM(VKM12:VKM35) -> 0.0 | VKN37: 0.0 | VKO37: 0.0 | VKP37: 0.0 | VKQ37: 0.0 | VKR37: 0.0 | VKS37: 0.0 | VKT37: 0.0 | VKU37: 0.0 | VKV37: 0.0 | VKW37: 0.0 | VKX37: 0.0 | VKY37: 0.0 | VKZ37: 0.0 | VLA37: 0.0 | VLB37: 0.0 | VLC37: 0.0 | VLD37: 0.0 | VLE37: 0.0 | VLF37: 0.0 | VLG37: 0.0 | VLH37: 0.0 | VLI37: 0.0 | VLJ37: 0.0 | VLK37: 0.0 | VLL37: 0.0 | VLM37: 0.0 | VLN37: 0.0 | VLO37: 0.0 | VLP37: 0.0 | VLQ37: 0.0 | VLR37: 0.0 | VLS37: 0.0 | VLT37: 0.0 | VLU37: 0.0 | VLV37: 0.0 | VLW37: 0.0 | VLX37: 0.0 | VLY37: 0.0 | VLZ37: 0.0 | VMA37: 0.0 | VMB37: 0.0 | VMC37: 0.0 | VMD37: 0.0 | VME37: 0.0 | VMF37: 0.0 | VMG37: 0.0 | VMH37: 0.0 | VMI37: 0.0 | VMJ37: 0.0 | VMK37: 0.0 | VML37: 0.0 | VMM37: 0.0 | VMN37: 0.0 | VMO37: 0.0 | VMP37: 0.0 | VMQ37: 0.0 | VMR37: 0.0 | VMS37: 0.0 | VMT37: 0.0 | VMU37: 0.0 | VMV37: 0.0 | VMW37: 0.0 | VMX37: 0.0 | VMY37: =SUM(VMY12:VMY35) -> 0.0 | VMZ37: 0.0 | VNA37: 0.0 | VNB37: 0.0 | VNC37: 0.0 | VND37: 0.0 | VNE37: 0.0 | VNF37: 0.0 | VNG37: 0.0 | VNH37: 0.0 | VNI37: 0.0 | VNJ37: 0.0 | VNK37: 0.0 | VNL37: 0.0 | VNM37: 0.0 | VNN37: 0.0 | VNO37: 0.0 | VNP37: 0.0 | VNQ37: 0.0 | VNR37: 0.0 | VNS37: 0.0 | VNT37: 0.0 | VNU37: 0.0 | VNV37: 0.0 | VNW37: 0.0 | VNX37: 0.0 | VNY37: 0.0 | VNZ37: 0.0 | VOA37: 0.0 | VOB37: 0.0 | VOC37: 0.0 | VOD37: 0.0 | VOE37: 0.0 | VOF37: 0.0 | VOG37: 0.0 | VOH37: 0.0 | VOI37: 0.0 | VOJ37: 0.0 | VOK37: 0.0 | VOL37: 0.0 | VOM37: 0.0 | VON37: 0.0 | VOO37: 0.0 | VOP37: 0.0 | VOQ37: 0.0 | VOR37: 0.0 | VOS37: 0.0 | VOT37: 0.0 | VOU37: 0.0 | VOV37: 0.0 | VOW37: 0.0 | VOX37: 0.0 | VOY37: 0.0 | VOZ37: 0.0 | VPA37: 0.0 | VPB37: 0.0 | VPC37: 0.0 | VPD37: 0.0 | VPE37: 0.0 | VPF37: 0.0 | VPG37: 0.0 | VPH37: 0.0 | VPI37: 0.0 | VPJ37: 0.0 | VPK37: =SUM(VPK12:VPK35) -> 0.0 | VPL37: 0.0 | VPM37: 0.0 | VPN37: 0.0 | VPO37: 0.0 | VPP37: 0.0 | VPQ37: 0.0 | VPR37: 0.0 | VPS37: 0.0 | VPT37: 0.0 | VPU37: 0.0 | VPV37: 0.0 | VPW37: 0.0 | VPX37: 0.0 | VPY37: 0.0 | VPZ37: 0.0 | VQA37: 0.0 | VQB37: 0.0 | VQC37: 0.0 | VQD37: 0.0 | VQE37: 0.0 | VQF37: 0.0 | VQG37: 0.0 | VQH37: 0.0 | VQI37: 0.0 | VQJ37: 0.0 | VQK37: 0.0 | VQL37: 0.0 | VQM37: 0.0 | VQN37: 0.0 | VQO37: 0.0 | VQP37: 0.0 | VQQ37: 0.0 | VQR37: 0.0 | VQS37: 0.0 | VQT37: 0.0 | VQU37: 0.0 | VQV37: 0.0 | VQW37: 0.0 | VQX37: 0.0 | VQY37: 0.0 | VQZ37: 0.0 | VRA37: 0.0 | VRB37: 0.0 | VRC37: 0.0 | VRD37: 0.0 | VRE37: 0.0 | VRF37: 0.0 | VRG37: 0.0 | VRH37: 0.0 | VRI37: 0.0 | VRJ37: 0.0 | VRK37: 0.0 | VRL37: 0.0 | VRM37: 0.0 | VRN37: 0.0 | VRO37: 0.0 | VRP37: 0.0 | VRQ37: 0.0 | VRR37: 0.0 | VRS37: 0.0 | VRT37: 0.0 | VRU37: 0.0 | VRV37: 0.0 | VRW37: =SUM(VRW12:VRW35) -> 0.0 | VRX37: 0.0 | VRY37: 0.0 | VRZ37: 0.0 | VSA37: 0.0 | VSB37: 0.0 | VSC37: 0.0 | VSD37: 0.0 | VSE37: 0.0 | VSF37: 0.0 | VSG37: 0.0 | VSH37: 0.0 | VSI37: 0.0 | VSJ37: 0.0 | VSK37: 0.0 | VSL37: 0.0 | VSM37: 0.0 | VSN37: 0.0 | VSO37: 0.0 | VSP37: 0.0 | VSQ37: 0.0 | VSR37: 0.0 | VSS37: 0.0 | VST37: 0.0 | VSU37: 0.0 | VSV37: 0.0 | VSW37: 0.0 | VSX37: 0.0 | VSY37: 0.0 | VSZ37: 0.0 | VTA37: 0.0 | VTB37: 0.0 | VTC37: 0.0 | VTD37: 0.0 | VTE37: 0.0 | VTF37: 0.0 | VTG37: 0.0 | VTH37: 0.0 | VTI37: 0.0 | VTJ37: 0.0 | VTK37: 0.0 | VTL37: 0.0 | VTM37: 0.0 | VTN37: 0.0 | VTO37: 0.0 | VTP37: 0.0 | VTQ37: 0.0 | VTR37: 0.0 | VTS37: 0.0 | VTT37: 0.0 | VTU37: 0.0 | VTV37: 0.0 | VTW37: 0.0 | VTX37: 0.0 | VTY37: 0.0 | VTZ37: 0.0 | VUA37: 0.0 | VUB37: 0.0 | VUC37: 0.0 | VUD37: 0.0 | VUE37: 0.0 | VUF37: 0.0 | VUG37: 0.0 | VUH37: 0.0 | VUI37: =SUM(VUI12:VUI35) -> 0.0 | VUJ37: 0.0 | VUK37: 0.0 | VUL37: 0.0 | VUM37: 0.0 | VUN37: 0.0 | VUO37: 0.0 | VUP37: 0.0 | VUQ37: 0.0 | VUR37: 0.0 | VUS37: 0.0 | VUT37: 0.0 | VUU37: 0.0 | VUV37: 0.0 | VUW37: 0.0 | VUX37: 0.0 | VUY37: 0.0 | VUZ37: 0.0 | VVA37: 0.0 | VVB37: 0.0 | VVC37: 0.0 | VVD37: 0.0 | VVE37: 0.0 | VVF37: 0.0 | VVG37: 0.0 | VVH37: 0.0 | VVI37: 0.0 | VVJ37: 0.0 | VVK37: 0.0 | VVL37: 0.0 | VVM37: 0.0 | VVN37: 0.0 | VVO37: 0.0 | VVP37: 0.0 | VVQ37: 0.0 | VVR37: 0.0 | VVS37: 0.0 | VVT37: 0.0 | VVU37: 0.0 | VVV37: 0.0 | VVW37: 0.0 | VVX37: 0.0 | VVY37: 0.0 | VVZ37: 0.0 | VWA37: 0.0 | VWB37: 0.0 | VWC37: 0.0 | VWD37: 0.0 | VWE37: 0.0 | VWF37: 0.0 | VWG37: 0.0 | VWH37: 0.0 | VWI37: 0.0 | VWJ37: 0.0 | VWK37: 0.0 | VWL37: 0.0 | VWM37: 0.0 | VWN37: 0.0 | VWO37: 0.0 | VWP37: 0.0 | VWQ37: 0.0 | VWR37: 0.0 | VWS37: 0.0 | VWT37: 0.0 | VWU37: =SUM(VWU12:VWU35) -> 0.0 | VWV37: 0.0 | VWW37: 0.0 | VWX37: 0.0 | VWY37: 0.0 | VWZ37: 0.0 | VXA37: 0.0 | VXB37: 0.0 | VXC37: 0.0 | VXD37: 0.0 | VXE37: 0.0 | VXF37: 0.0 | VXG37: 0.0 | VXH37: 0.0 | VXI37: 0.0 | VXJ37: 0.0 | VXK37: 0.0 | VXL37: 0.0 | VXM37: 0.0 | VXN37: 0.0 | VXO37: 0.0 | VXP37: 0.0 | VXQ37: 0.0 | VXR37: 0.0 | VXS37: 0.0 | VXT37: 0.0 | VXU37: 0.0 | VXV37: 0.0 | VXW37: 0.0 | VXX37: 0.0 | VXY37: 0.0 | VXZ37: 0.0 | VYA37: 0.0 | VYB37: 0.0 | VYC37: 0.0 | VYD37: 0.0 | VYE37: 0.0 | VYF37: 0.0 | VYG37: 0.0 | VYH37: 0.0 | VYI37: 0.0 | VYJ37: 0.0 | VYK37: 0.0 | VYL37: 0.0 | VYM37: 0.0 | VYN37: 0.0 | VYO37: 0.0 | VYP37: 0.0 | VYQ37: 0.0 | VYR37: 0.0 | VYS37: 0.0 | VYT37: 0.0 | VYU37: 0.0 | VYV37: 0.0 | VYW37: 0.0 | VYX37: 0.0 | VYY37: 0.0 | VYZ37: 0.0 | VZA37: 0.0 | VZB37: 0.0 | VZC37: 0.0 | VZD37: 0.0 | VZE37: 0.0 | VZF37: 0.0 | VZG37: =SUM(VZG12:VZG35) -> 0.0 | VZH37: 0.0 | VZI37: 0.0 | VZJ37: 0.0 | VZK37: 0.0 | VZL37: 0.0 | VZM37: 0.0 | VZN37: 0.0 | VZO37: 0.0 | VZP37: 0.0 | VZQ37: 0.0 | VZR37: 0.0 | VZS37: 0.0 | VZT37: 0.0 | VZU37: 0.0 | VZV37: 0.0 | VZW37: 0.0 | VZX37: 0.0 | VZY37: 0.0 | VZZ37: 0.0 | WAA37: 0.0 | WAB37: 0.0 | WAC37: 0.0 | WAD37: 0.0 | WAE37: 0.0 | WAF37: 0.0 | WAG37: 0.0 | WAH37: 0.0 | WAI37: 0.0 | WAJ37: 0.0 | WAK37: 0.0 | WAL37: 0.0 | WAM37: 0.0 | WAN37: 0.0 | WAO37: 0.0 | WAP37: 0.0 | WAQ37: 0.0 | WAR37: 0.0 | WAS37: 0.0 | WAT37: 0.0 | WAU37: 0.0 | WAV37: 0.0 | WAW37: 0.0 | WAX37: 0.0 | WAY37: 0.0 | WAZ37: 0.0 | WBA37: 0.0 | WBB37: 0.0 | WBC37: 0.0 | WBD37: 0.0 | WBE37: 0.0 | WBF37: 0.0 | WBG37: 0.0 | WBH37: 0.0 | WBI37: 0.0 | WBJ37: 0.0 | WBK37: 0.0 | WBL37: 0.0 | WBM37: 0.0 | WBN37: 0.0 | WBO37: 0.0 | WBP37: 0.0 | WBQ37: 0.0 | WBR37: 0.0 | WBS37: =SUM(WBS12:WBS35) -> 0.0 | WBT37: 0.0 | WBU37: 0.0 | WBV37: 0.0 | WBW37: 0.0 | WBX37: 0.0 | WBY37: 0.0 | WBZ37: 0.0 | WCA37: 0.0 | WCB37: 0.0 | WCC37: 0.0 | WCD37: 0.0 | WCE37: 0.0 | WCF37: 0.0 | WCG37: 0.0 | WCH37: 0.0 | WCI37: 0.0 | WCJ37: 0.0 | WCK37: 0.0 | WCL37: 0.0 | WCM37: 0.0 | WCN37: 0.0 | WCO37: 0.0 | WCP37: 0.0 | WCQ37: 0.0 | WCR37: 0.0 | WCS37: 0.0 | WCT37: 0.0 | WCU37: 0.0 | WCV37: 0.0 | WCW37: 0.0 | WCX37: 0.0 | WCY37: 0.0 | WCZ37: 0.0 | WDA37: 0.0 | WDB37: 0.0 | WDC37: 0.0 | WDD37: 0.0 | WDE37: 0.0 | WDF37: 0.0 | WDG37: 0.0 | WDH37: 0.0 | WDI37: 0.0 | WDJ37: 0.0 | WDK37: 0.0 | WDL37: 0.0 | WDM37: 0.0 | WDN37: 0.0 | WDO37: 0.0 | WDP37: 0.0 | WDQ37: 0.0 | WDR37: 0.0 | WDS37: 0.0 | WDT37: 0.0 | WDU37: 0.0 | WDV37: 0.0 | WDW37: 0.0 | WDX37: 0.0 | WDY37: 0.0 | WDZ37: 0.0 | WEA37: 0.0 | WEB37: 0.0 | WEC37: 0.0 | WED37: 0.0 | WEE37: =SUM(WEE12:WEE35) -> 0.0 | WEF37: 0.0 | WEG37: 0.0 | WEH37: 0.0 | WEI37: 0.0 | WEJ37: 0.0 | WEK37: 0.0 | WEL37: 0.0 | WEM37: 0.0 | WEN37: 0.0 | WEO37: 0.0 | WEP37: 0.0 | WEQ37: 0.0 | WER37: 0.0 | WES37: 0.0 | WET37: 0.0 | WEU37: 0.0 | WEV37: 0.0 | WEW37: 0.0 | WEX37: 0.0 | WEY37: 0.0 | WEZ37: 0.0 | WFA37: 0.0 | WFB37: 0.0 | WFC37: 0.0 | WFD37: 0.0 | WFE37: 0.0 | WFF37: 0.0 | WFG37: 0.0 | WFH37: 0.0 | WFI37: 0.0 | WFJ37: 0.0 | WFK37: 0.0 | WFL37: 0.0 | WFM37: 0.0 | WFN37: 0.0 | WFO37: 0.0 | WFP37: 0.0 | WFQ37: 0.0 | WFR37: 0.0 | WFS37: 0.0 | WFT37: 0.0 | WFU37: 0.0 | WFV37: 0.0 | WFW37: 0.0 | WFX37: 0.0 | WFY37: 0.0 | WFZ37: 0.0 | WGA37: 0.0 | WGB37: 0.0 | WGC37: 0.0 | WGD37: 0.0 | WGE37: 0.0 | WGF37: 0.0 | WGG37: 0.0 | WGH37: 0.0 | WGI37: 0.0 | WGJ37: 0.0 | WGK37: 0.0 | WGL37: 0.0 | WGM37: 0.0 | WGN37: 0.0 | WGO37: 0.0 | WGP37: 0.0 | WGQ37: =SUM(WGQ12:WGQ35) -> 0.0 | WGR37: 0.0 | WGS37: 0.0 | WGT37: 0.0 | WGU37: 0.0 | WGV37: 0.0 | WGW37: 0.0 | WGX37: 0.0 | WGY37: 0.0 | WGZ37: 0.0 | WHA37: 0.0 | WHB37: 0.0 | WHC37: 0.0 | WHD37: 0.0 | WHE37: 0.0 | WHF37: 0.0 | WHG37: 0.0 | WHH37: 0.0 | WHI37: 0.0 | WHJ37: 0.0 | WHK37: 0.0 | WHL37: 0.0 | WHM37: 0.0 | WHN37: 0.0 | WHO37: 0.0 | WHP37: 0.0 | WHQ37: 0.0 | WHR37: 0.0 | WHS37: 0.0 | WHT37: 0.0 | WHU37: 0.0 | WHV37: 0.0 | WHW37: 0.0 | WHX37: 0.0 | WHY37: 0.0 | WHZ37: 0.0 | WIA37: 0.0 | WIB37: 0.0 | WIC37: 0.0 | WID37: 0.0 | WIE37: 0.0 | WIF37: 0.0 | WIG37: 0.0 | WIH37: 0.0 | WII37: 0.0 | WIJ37: 0.0 | WIK37: 0.0 | WIL37: 0.0 | WIM37: 0.0 | WIN37: 0.0 | WIO37: 0.0 | WIP37: 0.0 | WIQ37: 0.0 | WIR37: 0.0 | WIS37: 0.0 | WIT37: 0.0 | WIU37: 0.0 | WIV37: 0.0 | WIW37: 0.0 | WIX37: 0.0 | WIY37: 0.0 | WIZ37: 0.0 | WJA37: 0.0 | WJB37: 0.0 | WJC37: =SUM(WJC12:WJC35) -> 0.0 | WJD37: 0.0 | WJE37: 0.0 | WJF37: 0.0 | WJG37: 0.0 | WJH37: 0.0 | WJI37: 0.0 | WJJ37: 0.0 | WJK37: 0.0 | WJL37: 0.0 | WJM37: 0.0 | WJN37: 0.0 | WJO37: 0.0 | WJP37: 0.0 | WJQ37: 0.0 | WJR37: 0.0 | WJS37: 0.0 | WJT37: 0.0 | WJU37: 0.0 | WJV37: 0.0 | WJW37: 0.0 | WJX37: 0.0 | WJY37: 0.0 | WJZ37: 0.0 | WKA37: 0.0 | WKB37: 0.0 | WKC37: 0.0 | WKD37: 0.0 | WKE37: 0.0 | WKF37: 0.0 | WKG37: 0.0 | WKH37: 0.0 | WKI37: 0.0 | WKJ37: 0.0 | WKK37: 0.0 | WKL37: 0.0 | WKM37: 0.0 | WKN37: 0.0 | WKO37: 0.0 | WKP37: 0.0 | WKQ37: 0.0 | WKR37: 0.0 | WKS37: 0.0 | WKT37: 0.0 | WKU37: 0.0 | WKV37: 0.0 | WKW37: 0.0 | WKX37: 0.0 | WKY37: 0.0 | WKZ37: 0.0 | WLA37: 0.0 | WLB37: 0.0 | WLC37: 0.0 | WLD37: 0.0 | WLE37: 0.0 | WLF37: 0.0 | WLG37: 0.0 | WLH37: 0.0 | WLI37: 0.0 | WLJ37: 0.0 | WLK37: 0.0 | WLL37: 0.0 | WLM37: 0.0 | WLN37: 0.0 | WLO37: =SUM(WLO12:WLO35) -> 0.0 | WLP37: 0.0 | WLQ37: 0.0 | WLR37: 0.0 | WLS37: 0.0 | WLT37: 0.0 | WLU37: 0.0 | WLV37: 0.0 | WLW37: 0.0 | WLX37: 0.0 | WLY37: 0.0 | WLZ37: 0.0 | WMA37: 0.0 | WMB37: 0.0 | WMC37: 0.0 | WMD37: 0.0 | WME37: 0.0 | WMF37: 0.0 | WMG37: 0.0 | WMH37: 0.0 | WMI37: 0.0 | WMJ37: 0.0 | WMK37: 0.0 | WML37: 0.0 | WMM37: 0.0 | WMN37: 0.0 | WMO37: 0.0 | WMP37: 0.0 | WMQ37: 0.0 | WMR37: 0.0 | WMS37: 0.0 | WMT37: 0.0 | WMU37: 0.0 | WMV37: 0.0 | WMW37: 0.0 | WMX37: 0.0 | WMY37: 0.0 | WMZ37: 0.0 | WNA37: 0.0 | WNB37: 0.0 | WNC37: 0.0 | WND37: 0.0 | WNE37: 0.0 | WNF37: 0.0 | WNG37: 0.0 | WNH37: 0.0 | WNI37: 0.0 | WNJ37: 0.0 | WNK37: 0.0 | WNL37: 0.0 | WNM37: 0.0 | WNN37: 0.0 | WNO37: 0.0 | WNP37: 0.0 | WNQ37: 0.0 | WNR37: 0.0 | WNS37: 0.0 | WNT37: 0.0 | WNU37: 0.0 | WNV37: 0.0 | WNW37: 0.0 | WNX37: 0.0 | WNY37: 0.0 | WNZ37: 0.0 | WOA37: =SUM(WOA12:WOA35) -> 0.0 | WOB37: 0.0 | WOC37: 0.0 | WOD37: 0.0 | WOE37: 0.0 | WOF37: 0.0 | WOG37: 0.0 | WOH37: 0.0 | WOI37: 0.0 | WOJ37: 0.0 | WOK37: 0.0 | WOL37: 0.0 | WOM37: 0.0 | WON37: 0.0 | WOO37: 0.0 | WOP37: 0.0 | WOQ37: 0.0 | WOR37: 0.0 | WOS37: 0.0 | WOT37: 0.0 | WOU37: 0.0 | WOV37: 0.0 | WOW37: 0.0 | WOX37: 0.0 | WOY37: 0.0 | WOZ37: 0.0 | WPA37: 0.0 | WPB37: 0.0 | WPC37: 0.0 | WPD37: 0.0 | WPE37: 0.0 | WPF37: 0.0 | WPG37: 0.0 | WPH37: 0.0 | WPI37: 0.0 | WPJ37: 0.0 | WPK37: 0.0 | WPL37: 0.0 | WPM37: 0.0 | WPN37: 0.0 | WPO37: 0.0 | WPP37: 0.0 | WPQ37: 0.0 | WPR37: 0.0 | WPS37: 0.0 | WPT37: 0.0 | WPU37: 0.0 | WPV37: 0.0 | WPW37: 0.0 | WPX37: 0.0 | WPY37: 0.0 | WPZ37: 0.0 | WQA37: 0.0 | WQB37: 0.0 | WQC37: 0.0 | WQD37: 0.0 | WQE37: 0.0 | WQF37: 0.0 | WQG37: 0.0 | WQH37: 0.0 | WQI37: 0.0 | WQJ37: 0.0 | WQK37: 0.0 | WQL37: 0.0 | WQM37: =SUM(WQM12:WQM35) -> 0.0 | WQN37: 0.0 | WQO37: 0.0 | WQP37: 0.0 | WQQ37: 0.0 | WQR37: 0.0 | WQS37: 0.0 | WQT37: 0.0 | WQU37: 0.0 | WQV37: 0.0 | WQW37: 0.0 | WQX37: 0.0 | WQY37: 0.0 | WQZ37: 0.0 | WRA37: 0.0 | WRB37: 0.0 | WRC37: 0.0 | WRD37: 0.0 | WRE37: 0.0 | WRF37: 0.0 | WRG37: 0.0 | WRH37: 0.0 | WRI37: 0.0 | WRJ37: 0.0 | WRK37: 0.0 | WRL37: 0.0 | WRM37: 0.0 | WRN37: 0.0 | WRO37: 0.0 | WRP37: 0.0 | WRQ37: 0.0 | WRR37: 0.0 | WRS37: 0.0 | WRT37: 0.0 | WRU37: 0.0 | WRV37: 0.0 | WRW37: 0.0 | WRX37: 0.0 | WRY37: 0.0 | WRZ37: 0.0 | WSA37: 0.0 | WSB37: 0.0 | WSC37: 0.0 | WSD37: 0.0 | WSE37: 0.0 | WSF37: 0.0 | WSG37: 0.0 | WSH37: 0.0 | WSI37: 0.0 | WSJ37: 0.0 | WSK37: 0.0 | WSL37: 0.0 | WSM37: 0.0 | WSN37: 0.0 | WSO37: 0.0 | WSP37: 0.0 | WSQ37: 0.0 | WSR37: 0.0 | WSS37: 0.0 | WST37: 0.0 | WSU37: 0.0 | WSV37: 0.0 | WSW37: 0.0 | WSX37: 0.0 | WSY37: =SUM(WSY12:WSY35) -> 0.0 | WSZ37: 0.0 | WTA37: 0.0 | WTB37: 0.0 | WTC37: 0.0 | WTD37: 0.0 | WTE37: 0.0 | WTF37: 0.0 | WTG37: 0.0 | WTH37: 0.0 | WTI37: 0.0 | WTJ37: 0.0 | WTK37: 0.0 | WTL37: 0.0 | WTM37: 0.0 | WTN37: 0.0 | WTO37: 0.0 | WTP37: 0.0 | WTQ37: 0.0 | WTR37: 0.0 | WTS37: 0.0 | WTT37: 0.0 | WTU37: 0.0 | WTV37: 0.0 | WTW37: 0.0 | WTX37: 0.0 | WTY37: 0.0 | WTZ37: 0.0 | WUA37: 0.0 | WUB37: 0.0 | WUC37: 0.0 | WUD37: 0.0 | WUE37: 0.0 | WUF37: 0.0 | WUG37: 0.0 | WUH37: 0.0 | WUI37: 0.0 | WUJ37: 0.0 | WUK37: 0.0 | WUL37: 0.0 | WUM37: 0.0 | WUN37: 0.0 | WUO37: 0.0 | WUP37: 0.0 | WUQ37: 0.0 | WUR37: 0.0 | WUS37: 0.0 | WUT37: 0.0 | WUU37: 0.0 | WUV37: 0.0 | WUW37: 0.0 | WUX37: 0.0 | WUY37: 0.0 | WUZ37: 0.0 | WVA37: 0.0 | WVB37: 0.0 | WVC37: 0.0 | WVD37: 0.0 | WVE37: 0.0 | WVF37: 0.0 | WVG37: 0.0 | WVH37: 0.0 | WVI37: 0.0 | WVJ37: 0.0 | WVK37: =SUM(WVK12:WVK35) -> 0.0 | WVL37: 0.0 | WVM37: 0.0 | WVN37: 0.0 | WVO37: 0.0 | WVP37: 0.0 | WVQ37: 0.0 | WVR37: 0.0 | WVS37: 0.0 | WVT37: 0.0 | WVU37: 0.0 | WVV37: 0.0 | WVW37: 0.0 | WVX37: 0.0 | WVY37: 0.0 | WVZ37: 0.0 | WWA37: 0.0 | WWB37: 0.0 | WWC37: 0.0 | WWD37: 0.0 | WWE37: 0.0 | WWF37: 0.0 | WWG37: 0.0 | WWH37: 0.0 | WWI37: 0.0 | WWJ37: 0.0 | WWK37: 0.0 | WWL37: 0.0 | WWM37: 0.0 | WWN37: 0.0 | WWO37: 0.0 | WWP37: 0.0 | WWQ37: 0.0 | WWR37: 0.0 | WWS37: 0.0 | WWT37: 0.0 | WWU37: 0.0 | WWV37: 0.0 | WWW37: 0.0 | WWX37: 0.0 | WWY37: 0.0 | WWZ37: 0.0 | WXA37: 0.0 | WXB37: 0.0 | WXC37: 0.0 | WXD37: 0.0 | WXE37: 0.0 | WXF37: 0.0 | WXG37: 0.0 | WXH37: 0.0 | WXI37: 0.0 | WXJ37: 0.0 | WXK37: 0.0 | WXL37: 0.0 | WXM37: 0.0 | WXN37: 0.0 | WXO37: 0.0 | WXP37: 0.0 | WXQ37: 0.0 | WXR37: 0.0 | WXS37: 0.0 | WXT37: 0.0 | WXU37: 0.0 | WXV37: 0.0 | WXW37: =SUM(WXW12:WXW35) -> 0.0 | WXX37: 0.0 | WXY37: 0.0 | WXZ37: 0.0 | WYA37: 0.0 | WYB37: 0.0 | WYC37: 0.0 | WYD37: 0.0 | WYE37: 0.0 | WYF37: 0.0 | WYG37: 0.0 | WYH37: 0.0 | WYI37: 0.0 | WYJ37: 0.0 | WYK37: 0.0 | WYL37: 0.0 | WYM37: 0.0 | WYN37: 0.0 | WYO37: 0.0 | WYP37: 0.0 | WYQ37: 0.0 | WYR37: 0.0 | WYS37: 0.0 | WYT37: 0.0 | WYU37: 0.0 | WYV37: 0.0 | WYW37: 0.0 | WYX37: 0.0 | WYY37: 0.0 | WYZ37: 0.0 | WZA37: 0.0 | WZB37: 0.0 | WZC37: 0.0 | WZD37: 0.0 | WZE37: 0.0 | WZF37: 0.0 | WZG37: 0.0 | WZH37: 0.0 | WZI37: 0.0 | WZJ37: 0.0 | WZK37: 0.0 | WZL37: 0.0 | WZM37: 0.0 | WZN37: 0.0 | WZO37: 0.0 | WZP37: 0.0 | WZQ37: 0.0 | WZR37: 0.0 | WZS37: 0.0 | WZT37: 0.0 | WZU37: 0.0 | WZV37: 0.0 | WZW37: 0.0 | WZX37: 0.0 | WZY37: 0.0 | WZZ37: 0.0 | XAA37: 0.0 | XAB37: 0.0 | XAC37: 0.0 | XAD37: 0.0 | XAE37: 0.0 | XAF37: 0.0 | XAG37: 0.0 | XAH37: 0.0 | XAI37: =SUM(XAI12:XAI35) -> 0.0 | XAJ37: 0.0 | XAK37: 0.0 | XAL37: 0.0 | XAM37: 0.0 | XAN37: 0.0 | XAO37: 0.0 | XAP37: 0.0 | XAQ37: 0.0 | XAR37: 0.0 | XAS37: 0.0 | XAT37: 0.0 | XAU37: 0.0 | XAV37: 0.0 | XAW37: 0.0 | XAX37: 0.0 | XAY37: 0.0 | XAZ37: 0.0 | XBA37: 0.0 | XBB37: 0.0 | XBC37: 0.0 | XBD37: 0.0 | XBE37: 0.0 | XBF37: 0.0 | XBG37: 0.0 | XBH37: 0.0 | XBI37: 0.0 | XBJ37: 0.0 | XBK37: 0.0 | XBL37: 0.0 | XBM37: 0.0 | XBN37: 0.0 | XBO37: 0.0 | XBP37: 0.0 | XBQ37: 0.0 | XBR37: 0.0 | XBS37: 0.0 | XBT37: 0.0 | XBU37: 0.0 | XBV37: 0.0 | XBW37: 0.0 | XBX37: 0.0 | XBY37: 0.0 | XBZ37: 0.0 | XCA37: 0.0 | XCB37: 0.0 | XCC37: 0.0 | XCD37: 0.0 | XCE37: 0.0 | XCF37: 0.0 | XCG37: 0.0 | XCH37: 0.0 | XCI37: 0.0 | XCJ37: 0.0 | XCK37: 0.0 | XCL37: 0.0 | XCM37: 0.0 | XCN37: 0.0 | XCO37: 0.0 | XCP37: 0.0 | XCQ37: 0.0 | XCR37: 0.0 | XCS37: 0.0 | XCT37: 0.0 | XCU37: =SUM(XCU12:XCU35) -> 0.0 | XCV37: 0.0 | XCW37: 0.0 | XCX37: 0.0 | XCY37: 0.0 | XCZ37: 0.0 | XDA37: 0.0 | XDB37: 0.0 | XDC37: 0.0 | XDD37: 0.0 | XDE37: 0.0 | XDF37: 0.0 | XDG37: 0.0 | XDH37: 0.0 | XDI37: 0.0 | XDJ37: 0.0 | XDK37: 0.0 | XDL37: 0.0 | XDM37: 0.0 | XDN37: 0.0 | XDO37: 0.0 | XDP37: 0.0 | XDQ37: 0.0 | XDR37: 0.0 | XDS37: 0.0 | XDT37: 0.0 | XDU37: 0.0 | XDV37: 0.0 | XDW37: 0.0 | XDX37: 0.0 | XDY37: 0.0 | XDZ37: 0.0 | XEA37: 0.0 | XEB37: 0.0 | XEC37: 0.0 | XED37: 0.0 | XEE37: 0.0 | XEF37: 0.0 | XEG37: 0.0 | XEH37: 0.0 | XEI37: 0.0 | XEJ37: 0.0 | XEK37: 0.0 | XEL37: 0.0 | XEM37: 0.0 | XEN37: 0.0 | XEO37: 0.0 | XEP37: 0.0 | XEQ37: 0.0 | XER37: 0.0 | XES37: 0.0 | XET37: 0.0 | XEU37: 0.0 | XEV37: 0.0 | XEW37: 0.0 | XEX37: 0.0 | XEY37: 0.0 | XEZ37: 0.0 | XFA37: 0.0 | XFB37: 0.0 | XFC37: 0.0 | XFD37: 0.0
